{"text_format":"1","workbook":"xlsx","n_sheets":22,"sheets":["使い方","単価表","見積予算","内訳書","工種リスト","撤去工事","土工事","擁壁工事","排水工事","付帯工事","舗装工事","仮設工事","景観金物","植栽工事","法面工事","地盤改良工事","選択リスト","選択マップ","単価表_分類マップ","工種の追加","工種の新規登録","単価の追加"],"not_rendered":{"charts":0,"images":0,"macros":1,"external_links":0,"defined_names":4,"comments":0,"pivot_tables":0},"unopened":[],"bounds":{"document_bytes":16777216,"sheet_cells":100000,"rows_first":2000,"rows_last":500,"rows_between":2000,"halvings":0,"cell_chars":16384,"cell_head_chars":4096},"cells_cut":0,"cells_raw":0,"read":"whole","date_system":"1900"}

{"sheet":"使い方","index":0,"n_rows":40,"n_cols":2,"rows_kept":40,"cut":false,"hidden":false,"merged":[]}
[]
[null,"使い方 － 土木工事 見積システム"]
[]
[null,"１．見積書をつくる（見積予算シート）"]
[null,"・B5 に工事名を入れてください。内訳書のC4に自動で転記されます。"]
[null,"・「工種を追加」ボタン … 入力画面が開きます。大分類 → 中分類 → 工種名 → 詳細 を選んで"]
[null,"　数量を入れ、「追加して閉じる」。歩掛の内訳ごと展開され、代価番号も自動で付きます。"]
[null,"・「仮設を追加」ボタン … 「仮設費」のすぐ下に1行足します。B列のプルダウンから選ぶと"]
[null,"　項目名・仕様・単位・単価が入り、数量に1が入ります。"]
[null,"・追加した行の色 … 工種＝黄色 ／ 仮設＝水色"]
[]
[null,"２．工種を増やす（工種マスタ）"]
[null,"・見積予算シートの「工種を新規登録」ボタンを押すと入力画面が開きます。"]
[null,"　大分類・中分類・工種名・詳細・数量を入れ、歩掛の内訳を単価表から選びます。"]
[null,"　「登録して見積に追加」を押すと、工種マスタに登録してそのまま見積にも入ります。"]
[null,"　「登録して閉じる」なら登録だけ。見積予算のプルダウンにはすぐ反映されます。"]
[null,"・工種シートを直接編集した場合も、別のシートに移った時点で自動で反映されます。"]
[]
[null,"３．単価を増やす（単価表シート）"]
[null,"・単価表シートの右上「単価を追加」ボタンを押すと入力画面が開きます。"]
[null,"・登録先（合材・砕石／その他材料／作業員／外注・処分費／機械・その他／工種ｅｔｃ．）を"]
[null,"　選ぶと、空いているコードを自動で採番します。"]
[null,"・単価を直すと、その場で全工種の金額に反映されます。更新の操作は要りません。"]
[]
[null,"４．内訳書"]
[null,"・工種を追加すると自動で行が増え、大分類ごとに小計が立ちます。"]
[null,"・J2「単価変動値」／ J3「単価まるめ単位」で調整できます。"]
[]
[null,"５．困ったとき"]
[null,"・入力画面でプルダウンが出ない → 画面の下の「うまく選べないときはここ」を押してください。"]
[null,"・シートの追加・削除・複製はできません（ブックの構成を保護しています）。"]
[]
[null,"シートの色分け"]
[null,"　青　　… 単価表・見積予算・内訳書（見積を作るシート）"]
[null,"　薄緑　… 撤去工事〜地盤改良工事（工種マスタ。歩掛を登録するシート）"]
[]
[null,"６．製品版について（シリアル番号）"]
[null,"・無料版のままでも、そのままお使いいただけます（工種の追加3件まで／単価の追加は不可／1つの見積に入れられる工種5件まで）。"]
[null,"・シリアル番号を登録すると、この制限がすべてなくなります。下のボタン、または単価表シートの「製品版にする」から登録してください。"]
[null,"◆ 無料版　（工種の追加は 3 件まで／単価の追加はできません）　右の「購入方法のご案内」から製品版のお申し込みができます"]

{"sheet":"単価表","index":1,"n_rows":404,"n_cols":16,"rows_kept":404,"cut":false,"hidden":false,"merged":[[10,10,10,11]]}
[null,"単　価　表",null,null,null,"変更日時 2022/10/20",null,null,null,null,null,null,null,null,null,"”変更日時”&\" \"&YEAR(M9)&\"/\"&MONTH(M9)&\"/\"&DAY(M9)"]
["コード","工　種","詳　細","単位","数量","単価","使用単価","変動単価","定価","摘要"]
["合材・砕石　単価登録"]
["コード","工　種","詳　細","単位","数量","単価","使用単価","変動単価","定価","摘要","変動率・・・・",1.5]
[10100,"密粒13･20mm",null,"ｔ",null,14000,{"$f":"IF($L$7=$F$4,F5,H5)","v":21000},{"$f":"F5*$L$4","v":21000},0,null,null,null,{"$f":"+F5+1500","v":15500}]
[10101,"再生密粒13･20mm",null,"ｔ",null,13000,19500,19500,0,{"$f":"IF(A5<A6,\"(^o^)v\",\"(*_*)\")","v":"(^o^)v"},null,null,14500]
[10102,"粗粒度20mm",null,"ｔ",null,13800,20700,20700,0,"(^o^)v","使用単価・・・","変動単価",15300,"単価"]
[10103,"再生粗粒度20mm",null,"ｔ",null,12900,19350,19350,0,"(^o^)v",null,null,14400,"変動単価"]
[10104,"AS安定処理",null,"ｔ",null,13600,20400,20400,0,"(^o^)v",null,null,15100]
[10105,"再生AS安定処理",null,"ｔ",null,12800,19200,19200,0,"(^o^)v","只今の日時",null,14300]
[10106,"密粒改質Ⅱ型",null,"ｔ",null,16000,24000,24000,0,"(^o^)v",{"$f":"TODAY()","v":"2026-08-14"},null,17500]
[10107,"粗粒改質Ⅱ型",null,"ｔ",null,15800,23700,23700,0,"(^o^)v",null,null,17300]
[10108,"排水性合材",null,"ｔ",null,17000,25500,25500,0,"(^o^)v",null,null,18500]
[null,null,null,null,null,1500,2250,2250,0,"(*_*)",null,null,3000]
[10109,"開粒度（2号）",null,"ｔ",null,14000,21000,21000,0,"(^o^)v",null,null,15500]
[10110,"再生細粒",null,"ｔ",null,13200,19800,19800,0,"(^o^)v",null,null,14700]
[10111,"細粒度",null,"ｔ",null,14200,21300,21300,0,"(^o^)v",null,null,15700]
[10112,"改質Ⅱ型開粒度（1号）",null,"ｔ",null,16000,24000,24000,0,"(^o^)v",null,null,17500]
[10113,"諸雑費","寒水粉・定規・養生砂","ｍ2",null,20,30,30,0,"(^o^)v"]
[null,null,null,null,null,null,0,0,0,"(*_*)"]
[10114,"小型割増",null,"ｔ",null,1500,2250,2250,0,"(^o^)v"]
[10200,{"$f":"\"RC-40(ﾌﾟﾗﾝﾄ)\"&C22&\"大型\"","v":"RC-40(ﾌﾟﾗﾝﾄ)　大型"},"　","ｔ",null,1500,2250,2250,0,"(^o^)v"]
[10201,{"$f":"\"RC-40(ﾌﾟﾗﾝﾄ)\"&C23&\"小型\"","v":"RC-40(ﾌﾟﾗﾝﾄ)　小型"},{"$f":"+C22","v":"　"},"ｔ",null,3000,4500,4500,0,"(^o^)v"]
[10202,{"$f":"\"C-40　\"&C24&\"小型\"","v":"C-40　　小型"},{"$f":"+C23","v":"　"},"ｍ3",null,10000,15000,15000,0,"(^o^)v"]
[10203,{"$f":"\"C-40　\"&C25&\"大型\"","v":"C-40　　大型"},{"$f":"+C22","v":"　"},"ｍ3",null,8000,12000,12000,0,"(^o^)v"]
[10204,"再生砂 大型",{"$f":"+C22","v":"　"},"ｍ3",null,2000,3000,3000,0,"(^o^)v"]
[10205,"RC-40(建材店)　大型",null,"ｔ",null,1200,1800,1800,0,"(^o^)v"]
[10206,{"$f":"\"M-30　\"&C28&\"大型\"","v":"M-30　　大型"},{"$f":"+C22","v":"　"},"ｍ3",null,2900,4350,4350,null,"(^o^)v"]
[10300,{"$f":"\"RM-40 (ﾌﾟﾗﾝﾄ)\"&C29&\"大型\"","v":"RM-40 (ﾌﾟﾗﾝﾄ)　大型"},{"$f":"+C22","v":"　"},"ｔ",null,1700,2550,2550,0,"(^o^)v"]
[10301,{"$f":"\"RM-40(ﾌﾟﾗﾝﾄ)\"&C30&\"小型\"","v":"RM-40(ﾌﾟﾗﾝﾄ)　小型"},{"$f":"+C22","v":"　"},"ｔ",null,3200,4800,4800,0,"(^o^)v"]
[null,null,null,null,null,null,0,0,0,"(*_*)"]
[10302,{"$f":"\"M-40　\"&C32&\"大型\"","v":"M-40　　大型"},{"$f":"+C28","v":"　"},"ｍ3",null,3000,4500,4500,0,"(^o^)v"]
[10303,{"$f":"\"M-40　\"&C33&\"小型\"","v":"M-40　　小型"},{"$f":"+C28","v":"　"},"ｍ3",null,6000,9000,9000,0,"(^o^)v"]
[null,null,null,null,null,null,0,0,0,"(*_*)"]
[10304,{"$f":"\"単粒度砕石 4号(20～40mm)　\"&C22&\"大型\"","v":"単粒度砕石 4号(20～40mm)　　大型"},null,"ｍ3",null,4800,7200,7200,0,"(^o^)v"]
[10305,{"$f":"\"M-30　\"&C36&\"小型\"","v":"M-30　　小型"},{"$f":"+C22","v":"　"},"ｍ3",null,4900,7350,7350,0,"(^o^)v"]
[10306,{"$f":"\"M-30　\"&C37&\"大型\"","v":"M-30　　大型"},{"$f":"+C22","v":"　"},"ｍ3",null,3500,{"$f":"IF($L$7=$F$4,F37,H37)","v":5250},{"$f":"F37*$L$4","v":5250},0,"(^o^)v"]
[null,null,null,null,null,null,0,0,0,"(*_*)"]
[10307,{"$f":"\"単粒度砕石 5号(20mm)　\"&C26&\"小型\"","v":"単粒度砕石 5号(20mm)　　小型"},null,"ｍ3",null,6800,10200,10200,0,"(^o^)v"]
[null,null,null,null,null,null,0,0,0,"(*_*)"]
[null,null,null,null,null,null,0,0,0,"(*_*)"]
[null,null,null,null,null,null,0,0,0,"(*_*)"]
[null,null,null,null,null,null,0,0,0,"(*_*)"]
[10308,"中目砂　大型",null,"ｍ3",null,4600,6900,6900,null,"(^o^)v"]
[10309,"埋戻砂　大型",null,"ｍ3",null,5600,8400,8400,null,"(^o^)v"]
[10310,"遮断（山）砂　大型",null,"ｍ3",null,2600,3900,3900,null,"(^o^)v"]
[10311,"中目砂　小型",null,"ｍ3",null,7500,11250,11250,null,"(^o^)v"]
[10312,"埋戻砂　小型",null,"ｍ3",null,7300,10950,10950,null,"(^o^)v"]
[10313,"遮断砂　小型",null,"ｍ3",null,7300,10950,10950,null,"(^o^)v"]
[10400,"乳剤PK-3","1.26㍑/ｍ2","㍑",null,100,150,150,0,{"$f":"IF(A46<A50,\"(^o^)v\",\"(*_*)\")","v":"(^o^)v"}]
[10401,"乳剤PK-4","0.43㍑/ｍ2","㍑",null,100,150,150,0,{"$f":"IF(A50<A51,\"(^o^)v\",\"(*_*)\")","v":"(^o^)v"}]
[10402,"乳剤ﾍﾟﾈﾄｰﾙS・PKR","ﾍﾟﾈﾄｰﾙS","㍑",null,90,135,135,null,{"$f":"IF(A51<A52,\"(^o^)v\",\"(*_*)\")","v":"(^o^)v"}]
[10403,"乳剤 ﾀｯｸﾌｧｲﾝE","PK-10","㍑",null,145,217.5,217.5,null,{"$f":"IF(A52<A53,\"(^o^)v\",\"(*_*)\")","v":"(^o^)v"}]
["その他材料　単価登録"]
["コード","工　種","詳　細","単位","数量","単価","使用単価","変動単価","定価","摘要"]
[10500,"生ｺﾝｸﾘｰﾄ　18-8　大型","18-15　大型","ｍ3",null,18600,{"$f":"IF($L$7=$F$4,F56,H56)","v":27900},{"$f":"F56*$L$4","v":27900},0,{"$f":"IF(A53<A56,\"(^o^)v\",\"(*_*)\")","v":"(^o^)v"},null,{"$f":"+F56+800","v":19400}]
[10501,"生ｺﾝｸﾘｰﾄ　18-8　小型","18-15　小型","ｍ3",null,19600,29400,29400,0,{"$f":"IF(A56<A57,\"(^o^)v\",\"(*_*)\")","v":"(^o^)v"},null,20400]
[10502,"生ｺﾝｸﾘｰﾄ　　21-8　大型","21-15　大型","ｍ3",null,19100,28650,28650,null,"(^o^)v",null,19900]
[10503,"生ｺﾝｸﾘｰﾄ　21-8　小型","21-15　小型","ｍ3",null,20100,30150,30150,null,"(^o^)v",null,20900]
[10504,"生ｺﾝｸﾘｰﾄ　舗装　大型","35-12　大型","ｍ3",null,21100,31650,31650,null,"(^o^)v",null,21900]
[10505,"生ｺﾝｸﾘｰﾄ　舗装　小型","35-12　小型","ｍ3",null,22100,33150,33150,null,"(^o^)v",null,22900]
[10506,"生ｺﾝｸﾘｰﾄ　擁壁　大型","24-15　大型","ｍ3",null,19600,29400,29400,null,"(^o^)v",null,20400]
[10507,"生ｺﾝｸﾘｰﾄ　擁壁　小型","24-15　小型","ｍ3",null,20600,30900,30900,null,"(^o^)v",null,21400]
[10508,"生ｺﾝｸﾘｰﾄ　30-18",null,"ｍ3",null,23000,34500,34500,null,"(^o^)v"]
[null,null,null,null,null,null,0,0,null,"(*_*)"]
[null,null,null,null,null,null,0,0,null,"(*_*)"]
[10509,"目地材，路盤紙，ﾒｯｼｭ",null,"ｍ2",null,950,1425,1425,null,"(^o^)v"]
[10510,"路盤紙",null,"ｍ2",null,35,52.5,52.5,null,"(^o^)v"]
[10511,"ﾒｯｼｭ",null,"ｍ2",null,350,525,525,null,"(^o^)v"]
[null,null,null,null,null,null,0,0,null,"(*_*)"]
[null,null,null,null,null,null,0,0,null,"(*_*)"]
[10512,"ｾﾒﾝﾄ 小口","小口","袋",null,600,900,900,null,"(^o^)v"]
[10513,"ｾﾒﾝﾄ 大口","大口　90袋以上","袋",null,420,630,630,0,"(^o^)v"]
[10514,"型枠　Ａ",null,"ｍ2",null,1000,1500,1500,null,"(^o^)v"]
[10515,"型枠　Ｂ",null,"ｍ2",null,2000,3000,3000,null,"(^o^)v"]
[10516,"型枠小型構造物",null,"ｍ2",null,4500,6750,6750,null,"(^o^)v"]
[10517,null,null,"ｍ2",null,null,0,0,null,"(^o^)v"]
[10518,"型枠擁壁",null,"ｍ2",null,6500,9750,9750,null,"(^o^)v"]
[10519,"型枠擁壁役物",null,"ｍ2",null,7500,11250,11250,null,"(^o^)v"]
[10520,"ﾓﾙﾀﾙ","1：3","ｍ3",null,25000,37500,37500,null,"(^o^)v"]
[12100,"鉄筋工　小規模(ｔ)","材工共","ｔ",null,200000,300000,300000,null,"(^o^)v"]
[12101,"鉄筋工　小規模(kg)","材工共","kg",null,200,300,300,null,"(^o^)v"]
[12102,"鉄筋工　中規模(ｔ)","材工共","ｔ",null,190000,285000,285000,null,"(^o^)v"]
[12103,"鉄筋工　中規模(kg)","材工共","kg",null,190,285,285,null,"(^o^)v"]
[12104,"鉄筋工　大規模(ｔ)","材工共","ｔ",null,170000,255000,255000,null,"(^o^)v"]
[12105,"鉄筋材料・加工費",null,"ｔ",null,null,0,0,null,"(^o^)v"]
[null,null,null,null,null,null,0,0,null,{"$f":"IF(A85<A87,\"(^o^)v\",\"(*_*)\")","v":"(*_*)"}]
[12500,"VU100　片口","取付管ｺﾞﾑ　L=4000","本",null,1700,{"$f":"IF($L$7=$F$4,F88,H88)","v":2550},{"$f":"F88*$L$4","v":2550},null,{"$f":"IF(A87<A88,\"(^o^)v\",\"(*_*)\")","v":"(^o^)v"}]
[12501,"VU125　片口","取付管ｺﾞﾑ　L=4000","本",null,3200,4800,4800,null,"(^o^)v"]
[12502,"VU150　片口","取付管ｺﾞﾑ　L=4000","本",null,3400,5100,5100,null,"(^o^)v"]
[12503,"VU200　片口","取付管ｺﾞﾑ　L=4000","本",null,4800,7200,7200,null,"(^o^)v"]
[12504,"VU250　片口","取付管ｺﾞﾑ　L=4000","本",null,7600,11400,11400,null,"(^o^)v"]
[12505,"VP150　片口","L=4000","本",null,6600,9900,9900,null,"(^o^)v"]
[12506,"VP200　片口","L=4000","本",null,10200,15300,15300,null,"(^o^)v"]
[12507,"有孔管VU100 接着片口","L=4000","本",null,2000,3000,3000,null,"(^o^)v"]
[12508,"有孔管VU150 接着片口","L=4000","本",null,3800,5700,5700,null,"(^o^)v"]
[12509,"有孔管VU200 接着片口","L=4000","本",null,5500,8250,8250,null,"(^o^)v"]
[null,null,null,null,null,null,0,0,null,"(*_*)"]
[null,null,null,null,null,null,0,0,null,"(*_*)"]
[null,null,null,null,null,null,0,0,null,"(*_*)"]
[null,null,null,null,null,null,0,0,null,"(*_*)"]
[null,null,null,null,null,null,0,0,null,"(*_*)"]
[null,null,null,null,null,null,0,0,null,"(*_*)"]
[null,null,null,null,null,null,0,0,null,"(*_*)"]
[null,null,null,null,null,null,0,0,null,"(*_*)"]
[null,null,null,null,null,null,0,0,null,"(*_*)"]
[null,null,null,null,null,null,0,0,null,"(*_*)"]
[null,null,null,null,null,null,0,0,null,"(*_*)"]
[null,null,null,null,null,null,0,0,null,"(*_*)"]
[null,null,null,null,null,null,0,0,null,"(*_*)"]
[null,null,null,null,null,null,0,0,null,"(*_*)"]
[null,null,null,null,null,null,0,0,null,"(*_*)"]
[null,null,null,null,null,null,0,0,null,"(*_*)"]
[null,null,null,null,null,null,0,0,null,"(*_*)"]
[null,null,null,null,null,null,0,0,null,"(*_*)"]
[null,null,null,null,null,null,0,0,null,"(*_*)"]
[null,null,null,null,null,null,0,0,null,"(*_*)"]
[null,null,null,null,null,null,0,0,null,"(*_*)"]
[null,null,null,null,null,null,0,0,null,"(*_*)"]
[null,null,null,null,null,null,{"$f":"IF($L$7=$F$4,F120,H120)","v":0},{"$f":"F120*$L$4","v":0},null,{"$f":"IF(A119<A120,\"(^o^)v\",\"(*_*)\")","v":"(*_*)"}]
[13000,"地先Aﾌﾞﾛｯｸ","120*120*600 19kg/本","本",null,400,600,600,0,"(^o^)v"]
[13001,"地先Bﾌﾞﾛｯｸ","150*120*600 24kg/本","本",null,500,750,750,0,"(^o^)v"]
[13002,"地先Cﾌﾞﾛｯｸ","150*150*600 31kg/本","本",null,550,825,825,0,"(^o^)v"]
[13003,"公団ﾌﾞﾛｯｸ(K104)","100*100*600 26kg/本","本",null,600,900,900,null,"(^o^)v"]
[13004,"歩車Aﾌﾞﾛｯｸ","150/170*200*600 44kg/本","本",null,790,1185,1185,null,"(^o^)v"]
[13005,"歩車Aﾌﾞﾛｯｸ 平(10cm)","160/170*100*600 23kg/本","本",null,830,1245,1245,0,"(^o^)v"]
[13006,"歩車Aﾌﾞﾛｯｸ 1本斜(10cm)","150/170*200*160/170*100*600 34kg/本","本",null,1340,2010,2010,null,"(^o^)v"]
[null,null,null,null,null,null,0,0,0,"(*_*)"]
[13007,"歩車Bﾌﾞﾛｯｸ","180/205*250*600 66kg/本","本",null,1140,1710,1710,null,"(^o^)v"]
[13008,"歩車Bﾌﾞﾛｯｸ 平(10cm)","195/205*100*600 28kg/本","本",null,980,1470,1470,null,"(^o^)v"]
[13009,"歩車Bﾌﾞﾛｯｸ 1本斜(10cm)","180/205*250*195/205*100*600 47kg/本","本",null,1830,2745,2745,null,"(^o^)v"]
[null,null,null,null,null,null,0,0,null,"(*_*)"]
[13100,"植樹・並木ブロック","C種 1号 150*180*900 58kg/本","本",null,1180,1770,1770,null,"(^o^)v"]
[13101,"植樹・並木ブロック","C種 2号 150*180*600 39kg/本","本",null,820,1230,1230,null,"(^o^)v"]
[13102,"植樹・並木ブロック","C種 3号 150*180*450 29kg/本","本",null,660,990,990,null,"(^o^)v"]
[13103,"植樹・並木ブロック(ｺｰﾅｰ)","C種 5号 150*180*340 21kg/本","本",null,520,780,780,null,"(^o^)v"]
[null,null,null,null,null,null,0,0,null,"(*_*)"]
[13200,"Ｕ字側溝　150","150*150*600 23kg/本","本",null,1120,1680,1680,null,"(^o^)v"]
[13201,"Ｕ字側溝　180","180*180*600 33kg/本","本",null,1190,1785,1785,null,"(^o^)v"]
[13202,"Ｕ字側溝　240A","240*240*600 53kg/本","本",null,1360,2040,2040,null,"(^o^)v"]
[13203,"Ｕ字側溝　300B","300*300*600 77kg/本","本",null,1560,2340,2340,null,"(^o^)v"]
[13204,"Ｕ字側溝　300C","300*360*600 89kg/本","本",null,1850,2775,2775,null,"(^o^)v"]
[13205,"横断側溝 G付","U-250　T-25","本",null,null,0,0,null,"(^o^)v"]
[null,null,null,null,null,null,0,0,null,"(*_*)"]
[null,null,null,null,null,null,0,0,null,"(*_*)"]
[null,null,null,null,null,null,0,0,null,"(*_*)"]
[null,null,null,null,null,null,0,0,null,"(*_*)"]
[null,null,null,null,null,null,0,0,null,"(*_*)"]
[13206,"CD桝 縁塊 300","500*500*100 32kg/個","個",null,1980,2970,2970,null,"(^o^)v"]
[13207,"CD桝 縁塊 450","650*650*100 42kg/個","個",null,2650,3975,3975,null,"(^o^)v"]
[13208,"CD桝 側塊300 (H150)","400*400*150 24kg/個","個",null,1550,2325,2325,null,"(^o^)v"]
[13209,"CD桝 側塊300 (H300)","400*400*300 48kg/個","個",null,2200,{"$f":"IF($L$7=$F$4,F152,H152)","v":3300},{"$f":"F152*$L$4","v":3300},null,{"$f":"IF(A151<A152,\"(^o^)v\",\"(*_*)\")","v":"(^o^)v"}]
[13210,"CD桝 側塊450 (H150)","570*570*150 43kg/個","個",null,2650,3975,3975,null,"(^o^)v"]
[13211,"CD桝 側塊450 (H300)","570*570*300 86kg/個","個",null,3750,5625,5625,null,"(^o^)v"]
[13212,"CD桝□300ｸﾞﾚｰﾁﾝｸﾞ蓋","普通目 T-2","枚",null,4000,6000,6000,null,"(^o^)v"]
[13213,"CD桝□450ｸﾞﾚｰﾁﾝｸﾞ蓋","普通目 T-2","枚",null,6800,10200,10200,null,"(^o^)v"]
[null,null,null,null,null,null,0,0,null,"(*_*)"]
[null,null,null,null,null,null,0,0,null,"(*_*)"]
[null,null,null,null,null,null,0,0,null,"(*_*)"]
[null,null,null,null,null,null,0,0,null,"(*_*)"]
[null,null,null,null,null,null,0,0,null,"(*_*)"]
[null,null,null,null,null,null,0,0,null,"(*_*)"]
[null,null,null,null,null,null,0,0,null,"(*_*)"]
[null,null,null,null,null,null,0,0,null,"(*_*)"]
[null,null,null,null,null,null,0,0,null,"(*_*)"]
[null,null,null,null,null,null,0,0,null,"(*_*)"]
[null,null,null,null,null,null,0,0,null,"(*_*)"]
[null,null,null,null,null,null,0,0,null,"(*_*)"]
[null,null,null,null,null,null,0,0,null,"(*_*)"]
[null,null,null,null,null,null,0,0,null,"(*_*)"]
[null,null,null,null,null,null,0,0,null,"(*_*)"]
[null,null,null,null,null,null,0,0,null,"(*_*)"]
[null,null,null,null,null,null,0,0,null,"(*_*)"]
[null,null,null,null,null,null,0,0,null,"(*_*)"]
[null,null,null,null,null,null,0,0,null,"(*_*)"]
[null,null,null,null,null,null,0,0,null,"(*_*)"]
[null,null,null,null,null,null,0,0,null,"(*_*)"]
[null,null,null,null,null,null,0,0,null,"(*_*)"]
[null,null,null,null,null,null,0,0,null,"(*_*)"]
[null,null,null,null,null,null,0,0,null,"(*_*)"]
[null,null,null,null,null,null,0,0,null,"(*_*)"]
[null,null,null,null,null,null,0,0,null,"(*_*)"]
[null,null,null,null,null,null,0,0,null,"(*_*)"]
[null,null,null,null,null,null,{"$f":"IF($L$7=$F$4,F184,H184)","v":0},{"$f":"F184*$L$4","v":0},null,{"$f":"IF(A183<A184,\"(^o^)v\",\"(*_*)\")","v":"(*_*)"}]
[null,null,null,null,null,null,0,0,null,"(*_*)"]
[null,null,null,null,null,null,0,0,null,"(*_*)"]
[null,null,null,null,null,null,0,0,null,"(*_*)"]
[null,null,null,null,null,null,0,0,null,"(*_*)"]
[null,null,null,null,null,null,0,0,null,"(*_*)"]
[null,null,null,null,null,null,0,0,null,"(*_*)"]
[null,null,null,null,null,null,0,0,null,"(*_*)"]
[null,null,null,null,null,null,0,0,null,"(*_*)"]
[null,null,null,null,null,null,0,0,null,"(*_*)"]
[null,null,null,null,null,null,0,0,null,"(*_*)"]
[null,null,null,null,null,null,0,0,null,"(*_*)"]
[null,null,null,null,null,null,0,0,null,"(*_*)"]
[null,null,null,null,null,null,0,0,null,"(*_*)"]
[null,null,null,null,null,null,0,0,null,"(*_*)"]
[null,null,null,null,null,null,0,0,null,"(*_*)"]
[null,null,null,null,null,null,0,0,null,"(*_*)"]
[null,null,null,null,null,null,0,0,null,"(*_*)"]
[null,null,null,null,null,null,0,0,null,"(*_*)"]
[null,null,null,null,null,null,0,0,null,"(*_*)"]
[null,null,null,null,null,null,0,0,null,"(*_*)"]
[null,null,null,null,null,null,0,0,null,"(*_*)"]
[null,null,null,null,null,null,0,0,null,"(*_*)"]
[null,null,null,null,null,null,0,0,null,"(*_*)"]
[null,null,null,null,null,null,0,0,null,"(*_*)"]
[null,null,null,null,null,null,0,0,null,"(*_*)"]
[null,null,null,null,null,null,0,0,null,"(*_*)"]
[null,null,null,null,null,null,0,0,null,"(*_*)"]
[null,null,null,null,null,null,0,0,null,"(*_*)"]
[null,null,null,null,null,null,0,0,null,"(*_*)"]
[null,null,null,null,null,null,0,0,null,"(*_*)"]
[null,null,null,null,null,null,0,0,null,"(*_*)"]
[null,null,null,null,null,null,{"$f":"IF($L$7=$F$4,F216,H216)","v":0},{"$f":"F216*$L$4","v":0},null,{"$f":"IF(A209<A216,\"(^o^)v\",\"(*_*)\")","v":"(*_*)"}]
[null,null,null,null,null,null,0,0,null,{"$f":"IF(A216<A217,\"(^o^)v\",\"(*_*)\")","v":"(*_*)"}]
[null,null,null,null,null,null,0,0,null,{"$f":"IF(A217<A218,\"(^o^)v\",\"(*_*)\")","v":"(*_*)"}]
[null,null,null,null,null,null,0,0,null,{"$f":"IF(A218<A219,\"(^o^)v\",\"(*_*)\")","v":"(*_*)"}]
[null,null,null,null,null,null,0,0,null,{"$f":"IF(A219<A220,\"(^o^)v\",\"(*_*)\")","v":"(*_*)"}]
[null,null,null,null,null,null,0,0,null,{"$f":"IF(A220<A221,\"(^o^)v\",\"(*_*)\")","v":"(*_*)"}]
[null,null,null,null,null,null,0,0,null,{"$f":"IF(A219<A222,\"(^o^)v\",\"(*_*)\")","v":"(*_*)"}]
[null,null,null,null,null,null,0,0,null,{"$f":"IF(A222<A223,\"(^o^)v\",\"(*_*)\")","v":"(*_*)"}]
[null,null,null,null,null,null,0,0,null,{"$f":"IF(A223<A224,\"(^o^)v\",\"(*_*)\")","v":"(*_*)"}]
["作業員　単価登録"]
["コード","工　種","詳　細","単位","数量","単価","使用単価","変動単価","定価","摘要"]
[20100,"作業員　昼間","社外","人",null,27000,{"$f":"IF($L$7=$F$4,F227,H227)","v":40500},{"$f":"F227*$L$4","v":40500},0,"東京都R8.3:普通作業員27,000／神奈川R8.4:26,800 → 東京採用"]
[20101,"作業員（夜間）","社外","人",null,{"$f":"F227*1.5","v":40500},60750,60750,0,"夜間割増(昼間単価×1.5)"]
[20200,"作業員　昼間","直営","人",null,30900,46350,46350,0,"直営(自社)作業員=特殊作業員クラス 神奈川R8.4:30,900／東京R8.3:30,700 → 神奈川採用"]
[20201,"作業員（夜間）","直営","人",null,{"$f":"F229*1.5","v":46350},69525,69525,0,"夜間割増(昼間単価×1.5)"]
[20300,"ｶﾞｰﾄﾞﾏﾝ","昼間","人",null,20500,30750,30750,0,"交通誘導警備員A 東京R8.3:20,500／神奈川R8.4:20,200 → 東京採用"]
[20301,"ｶﾞｰﾄﾞﾏﾝ","夜間","人",null,{"$f":"F231*1.5","v":30750},46125,46125,0,"夜間割増(昼間単価×1.5)"]
[20302,"現場監理",null,"人",null,33800,50700,50700,null,"現場監理(職長クラス、鉄筋工・左官同等と仮定) ※要確認:公共労務単価表に直接該当職種なし"]
[null,null,null,null,null,null,0,0,null,{"$f":"IF(A233<A234,\"(^o^)v\",\"(*_*)\")","v":"(*_*)"}]
[20500,"土木一般世話役",null,"人",null,32000,48000,48000,null,"土木一般世話役(とび工・特殊作業員の中間で仮定) ※要確認:公共労務単価表に直接該当職種なし"]
[20501,"特殊作業員",null,"人",null,30900,46350,46350,null,"特殊作業員 神奈川R8.4:30,900／東京R8.3:30,700 → 神奈川採用"]
[20502,"普通作業員",null,"人",null,27000,40500,40500,null,"普通作業員 東京R8.3:27,000／神奈川R8.4:26,800 → 東京採用"]
[20503,"型枠工・左官工",null,"人",null,33800,50700,50700,null,"型枠工・左官工(型わく工33,000・左官33,800の高い方) 東京R8.3採用"]
[20504,"とび工",null,"人",null,33100,49650,49650,null,"とび工 東京R8.3:33,100／神奈川R8.4:33,100 → 同額"]
[20505,"左官工",null,"人",null,33800,50700,50700,null,"左官工 東京R8.3:33,800／神奈川R8.4:32,800 → 東京採用"]
[null,null,null,null,null,null,0,0,null,{"$f":"IF(A240<A241,\"(^o^)v\",\"(*_*)\")","v":"(*_*)"}]
["外注・処分費　単価登録"]
["コード","工　種","詳　細","単位","数量","単価","使用単価","変動単価","定価","摘要"]
[30100,"ＡＳ舗装切断(半日)","半日常傭","式",null,15000,{"$f":"IF($L$7=$F$4,F244,H244)","v":22500},{"$f":"F244*$L$4","v":22500},0,{"$f":"IF(A235<A244,\"(^o^)v\",\"(*_*)\")","v":"(^o^)v"}]
[30101,"ＡＳ舗装切断 t=50","t=50まで","ｍ",null,90,135,135,0,{"$f":"IF(A244<A245,\"(^o^)v\",\"(*_*)\")","v":"(^o^)v"}]
[30102,"ＡＳ舗装切断 t=100","t=100まで","ｍ",null,180,270,270,0,"(^o^)v"]
[30103,"ＡＳ舗装切断 t=150","t=150まで","ｍ",null,350,525,525,0,"(^o^)v"]
[30104,"ＡＳ舗装切断 t=200","t=200まで","ｍ",null,600,900,900,0,"(^o^)v"]
[30105,"ＡＳ舗装切断 t=250","t=250まで","ｍ",null,800,1200,1200,0,"(^o^)v"]
[30106,"ＡＳ舗装切断 t=350","t=350まで","ｍ",null,1500,2250,2250,0,"(^o^)v"]
[30107,"真空処理","常傭","日",null,180000,270000,270000,0,"(^o^)v"]
[null,null,null,null,null,null,0,0,0,"(*_*)"]
[30108,"左官仕上げ（ｍ2）",null,"ｍ2",null,500,750,750,0,"(^o^)v"]
[null,null,null,null,null,null,0,0,0,"(*_*)"]
[null,null,null,null,null,null,0,0,0,"(*_*)"]
[null,null,null,null,null,null,0,0,0,"(*_*)"]
[null,null,null,null,null,null,0,0,0,"(*_*)"]
[null,null,null,null,null,null,0,0,0,"(*_*)"]
[null,null,null,null,null,null,0,0,0,"(*_*)"]
[30200,"残土処分　大型","自由処分","台",null,16000,24000,24000,0,{"$f":"IF(A256<A260,\"(^o^)v\",\"(*_*)\")","v":"(^o^)v"}]
[30201,"残土処分　4ｔ","自由処分","台",null,12000,18000,18000,0,{"$f":"IF(A260<A261,\"(^o^)v\",\"(*_*)\")","v":"(^o^)v"}]
[30202,"ＣＯ殻処分　大型","自由処分","台",null,13000,19500,19500,0,"(^o^)v"]
[30203,"ＣＯ殻処分　小型","自由処分","台",null,8000,12000,12000,0,"(^o^)v"]
[30204,"有筋CO殻処分(指定)",null,"ｔ",null,2300,3450,3450,0,"(^o^)v"]
[30205,"無筋CO殻処分(指定)",null,"ｔ",null,1800,2700,2700,0,"(^o^)v"]
[30206,"旧路盤材処分(指定)",null,"ｔ",null,1800,2700,2700,0,"(^o^)v"]
[30207,"AS殻処分","自由処分","ｔ",null,800,1200,1200,0,"(^o^)v"]
[30208,"切削廃材処分",null,"ｔ",null,800,1200,1200,0,"(^o^)v"]
[30209,"排水性切削廃材処分",null,"ｔ",null,2000,3000,3000,0,"(^o^)v"]
[null,null,null,null,null,null,0,0,0,"(*_*)"]
[null,null,null,null,null,null,0,0,0,"(*_*)"]
[null,null,null,null,null,null,0,0,0,"(*_*)"]
[null,null,null,null,null,null,0,0,0,"(*_*)"]
[null,null,null,null,null,null,0,0,0,"(*_*)"]
[null,null,null,null,null,null,0,0,0,"(*_*)"]
[null,null,null,null,null,null,0,0,0,"(*_*)"]
[null,null,null,null,null,null,0,0,0,"(*_*)"]
[30210,"残土指定処分 大型 昼間",28652,"ｍ3",null,{"$f":"CEILING(C278/7.6,10)","v":3770},5655,5655,null,"(^o^)v"]
[30211,"残土指定処分 大型 昼間",12064,"ｍ3",null,{"$f":"CEILING(C279/3.2,10)","v":3770},5655,5655,null,"(^o^)v"]
[30212,"残土指定処分 大型 昼間","\\28,652-/(7.6ｍ3）枚","枚",null,28652,42978,42978,null,"(^o^)v"]
[30213,"残土指定処分 大型 昼間","\\33,744-/(7.6ｍ3）枚",null,null,33744,50616,50616,null,"(^o^)v"]
[null,null,null,null,null,null,0,0,null,"(*_*)"]
["機械・その他　単価登録"]
["コード","工　種","詳　細","単位","数量","単価","使用単価","変動単価","定価","摘要"]
[40000,"油脂燃料",null,"台日",null,1000,{"$f":"IF($L$7=$F$4,F285,H285)","v":1500},{"$f":"F285*$L$4","v":1500},0,{"$f":"IF(A277<A285,\"(^o^)v\",\"(*_*)\")","v":"(^o^)v"}]
[40001,"ﾗﾝﾏｰ･ﾌﾟﾚｰﾄ",null,"台",null,510,765,765,0,{"$f":"IF(A285<A286,\"(^o^)v\",\"(*_*)\")","v":"(^o^)v"}]
[40002,"ﾊﾝﾄﾞﾛｰﾗｰ","650ｋｇ","台",null,1300,1950,1950,null,"(^o^)v"]
[40003,"2.5ｔｺﾝﾊﾞｲﾝﾄﾞﾛｰﾗｰ","4ｔ","台",null,2200,3300,3300,0,"(^o^)v"]
[40004,"3ｔﾀｲﾔﾛｰﾗｰ","3ｔ","台",null,3400,5100,5100,0,"(^o^)v"]
[40005,"10ｔﾀｲﾔﾛｰﾗｰ","10ｔ","台",null,6500,9750,9750,0,"(^o^)v"]
[40006,"4ｔ鉄輪ﾛｰﾗｰ","４ｔ","台",null,3400,5100,5100,0,"(^o^)v"]
[40007,"10ｔ鉄輪ﾛｰﾗｰ","8～12ｔ","台",null,6500,9750,9750,0,"(^o^)v"]
[40008,"ﾌﾞﾙﾄﾞｰｻﾞｰ3ｔ（Ｄ20） ゴム","3ｔ","台",null,6200,9300,9300,0,"(^o^)v"]
[40009,"ﾌﾞﾙﾄﾞｰｻﾞｰ3ｔ（Ｄ20） ｷｬﾀ","3ｔ","台",null,5500,8250,8250,0,"(^o^)v"]
[40010,"ﾌﾞﾙﾄﾞｰｻﾞｰ（6ｔ）",null,"台",null,7700,11550,11550,0,"(^o^)v"]
[null,null,null,null,null,null,0,0,null,"(*_*)"]
[null,null,null,null,null,null,0,0,0,"(*_*)"]
[40011,"小旋回0.12ﾊﾞｯｸﾎｳ",null,"台",null,6000,9000,9000,0,"(^o^)v"]
[40012,"小旋回0.18ﾊﾞｯｸﾎｳ",null,"台",null,7500,11250,11250,null,"(^o^)v"]
[40013,"小旋回0.25ﾊﾞｯｸﾎｳ",null,"台",null,9000,13500,13500,0,"(^o^)v"]
[40014,"超小旋回0.12ﾊﾞｯｸﾎｳ",null,"台",null,7000,10500,10500,0,"(^o^)v"]
[40015,"超小旋回0.18ﾊﾞｯｸﾎｳ",null,"台",null,9000,13500,13500,0,"(^o^)v"]
[40016,"超小旋回0.25ﾊﾞｯｸﾎｳ",null,"台",null,11000,16500,16500,0,"(^o^)v"]
[40017,"ﾀｲﾔｼｮﾍﾞﾙ　WA30 0.3ｍ3","0.3ｍ3","台",null,7000,10500,10500,0,{"$f":"IF(A300<A304,\"(^o^)v\",\"(*_*)\")","v":"(^o^)v"}]
[40018,"ﾀｲﾔｼｮﾍﾞﾙ　WA40 0.5ｍ3","0.5ｍ3","台",null,9000,13500,13500,0,"(^o^)v"]
[40019,"0.4 ﾊﾞｯｸﾎｳ",null,"台",null,8000,12000,12000,null,"(^o^)v"]
[40020,"0.45ＢＨ 小旋回（ゴム）",null,"台",null,13000,19500,19500,null,"(^o^)v"]
[40021,"0.7 ﾊﾞｯｸﾎｳ",null,"台",null,16000,24000,24000,null,"(^o^)v"]
[40022,"諸機械 ｴｱｰｺﾝﾌﾟﾚｯｻｰ　",null,"台",null,2500,3750,3750,null,"(^o^)v"]
[40023,"諸機械 発電器,ｅｔｃ",null,"台",null,1500,2250,2250,null,"(^o^)v"]
[40024,"諸機械 1ｔｷｬﾘｱﾀﾞﾝﾌﾟ",null,"台",null,5000,7500,7500,null,"(^o^)v"]
[40025,"諸機械 ｱｽｶｰﾊﾞｰ",null,"台",null,30000,45000,45000,null,"(^o^)v"]
[40026,"諸機械 ｽﾌﾟﾚｰﾔｰ",null,"台",null,2500,3750,3750,null,"(^o^)v"]
[40027,"諸機械 ﾓﾙﾀﾙﾐｷｻｰ",null,"台",null,1500,2250,2250,null,"(^o^)v"]
[40028,"ガス切断",null,"式",null,35000,52500,52500,null,"(^o^)v"]
[40029,"油圧ブレーカー",null,"台",null,4000,6000,6000,null,"(^o^)v"]
[40030,"ﾌﾞﾚｰｶｰ付き0.1",null,"台",null,11000,{"$f":"IF($L$7=$F$4,F317,H317)","v":16500},{"$f":"F317*$L$4","v":16500},null,"(^o^)v"]
[40031,"ﾌﾞﾚｰｶｰ付き0.25",null,"台",null,17000,25500,25500,null,"(^o^)v"]
[40032,"ﾌﾞﾚｰｶｰ付き0.4",null,"台",null,26000,39000,39000,null,"(^o^)v"]
[40033,"ｸﾚｰﾝ仕様0.4ﾊﾞｯｸﾎｳ",null,"台",null,15000,22500,22500,null,"(^o^)v"]
[40034,null,null,"台",null,null,0,0,null,"(^o^)v"]
[40035,null,null,"台",null,null,0,0,null,"(^o^)v"]
[40036,"大型重機油脂燃料","80㍑/day","台日",null,{"$f":"80*100","v":8000},12000,12000,null,"(^o^)v"]
[40037,null,null,"台",null,null,0,0,null,"(^o^)v"]
[40038,"ﾃﾞｽﾋﾞｰ","４ｔ","台",null,45000,67500,67500,null,"(^o^)v"]
[40039,"切削機",null,"台",null,220000,330000,330000,null,"(^o^)v"]
[40040,"ﾐﾆ切削機",null,"台",null,null,0,0,null,"(^o^)v"]
[40041,"ｽｲﾊﾟｰ",null,"台",null,60000,90000,90000,null,"(^o^)v"]
[40042,"ﾀｲﾔﾕﾝﾎﾞ",null,"台",null,46000,69000,69000,0,"(^o^)v"]
[40043,"ﾆﾌﾞﾗorﾌﾞﾚｰｶｰ　ﾀｲﾔﾕﾝﾎﾞ",null,"台",null,66000,99000,99000,0,{"$f":"IF(A329<A330,\"(^o^)v\",\"(*_*)\")","v":"(^o^)v"}]
[40044,"Co圧砕ｶﾐｶﾐ　ﾀｲﾔﾕﾝﾎﾞ",null,"台",null,71000,106500,106500,0,"(^o^)v"]
[40045,"各重機 深夜割増 台日",null,"台",null,3000,4500,4500,0,"(^o^)v"]
[40046,"大型ﾀﾞﾝﾌﾟ　常傭","常傭","台",null,45000,67500,67500,0,"(^o^)v"]
[40047,"4ｔﾀﾞﾝﾌﾟ　常傭","常傭","台",null,28000,42000,42000,0,"(^o^)v"]
[40048,"8ｔﾀﾞﾝﾌﾟ　常傭","常傭","台",null,36000,54000,54000,0,"(^o^)v"]
[40049,"ﾎﾟﾝﾌﾟ車","4ｔ","台",null,45000,67500,67500,0,"(^o^)v"]
[40050,"ﾎﾟﾝﾌﾟ車　基本料","大型","台",null,65000,97500,97500,0,"(^o^)v"]
[40051,"小型ﾀﾞﾝﾌﾟ （代引）",null,"台",null,13000,19500,19500,0,"(^o^)v"]
[40052,"大型ﾀﾞﾝﾌﾟ （代引）",null,"台",null,15000,22500,22500,0,{"$f":"IF(A336<A339,\"(^o^)v\",\"(*_*)\")","v":"(^o^)v"}]
[40053,"ﾐﾆﾌｨﾆｯｼｬｰ",null,"台",null,65000,97500,97500,null,{"$f":"IF(A339<A340,\"(^o^)v\",\"(*_*)\")","v":"(^o^)v"}]
[40054,"ＡＳＦ　4.5","ﾀｲﾔ45","台",null,100000,150000,150000,null,"(^o^)v"]
[40055,"ＡＳＦ　6.0","ﾀｲﾔ60","台",null,120000,180000,180000,null,"(^o^)v"]
[40056,"ﾗﾌﾀｰｸﾚｰﾝ 13ｔ",null,"台",null,60000,90000,90000,null,"(^o^)v"]
[41000,"ｽﾌﾟﾚｰﾔｰ",null,"台",null,2500,3750,3750,null,"(^o^)v"]
[41001,"ﾀｲｶﾞｰ",null,"台",null,15000,22500,22500,null,"(^o^)v"]
[41002,"自社ﾀﾞﾝﾌﾟ",null,"台",null,6000,9000,9000,null,"(^o^)v"]
[41003,"４ｔﾀﾞﾝﾌﾟ（ﾘｰｽ)",null,"台",null,10000,15000,15000,null,"(^o^)v"]
[42000,"２ｔﾀﾞﾝﾌﾟ（ﾘｰｽ)",null,"台",null,6000,9000,9000,null,"(^o^)v"]
[42001,"４ｔﾕﾆｯｸ（ﾘｰｽ)",null,"台",null,12000,{"$f":"IF($L$7=$F$4,F349,H349)","v":18000},{"$f":"F349*$L$4","v":18000},null,"(^o^)v"]
[null,null,null,null,null,null,0,0,null,"(*_*)"]
[null,null,null,null,null,null,0,0,null,"(*_*)"]
[null,null,null,null,null,null,0,0,null,"(*_*)"]
[null,null,null,null,null,null,0,0,null,"(*_*)"]
[null,null,null,null,null,null,0,0,null,{"$f":"IF(A352<A354,\"(^o^)v\",\"(*_*)\")","v":"(*_*)"}]
[null,null,null,null,null,null,0,0,null,{"$f":"IF(A352<A355,\"(^o^)v\",\"(*_*)\")","v":"(*_*)"}]
[null,null,null,null,null,null,0,0,null,{"$f":"IF(A355<A356,\"(^o^)v\",\"(*_*)\")","v":"(*_*)"}]
[null,null,null,null,null,null,0,0,null,"(*_*)"]
[null,null,null,null,null,null,0,0,null,"(*_*)"]
[null,null,null,null,null,null,0,0,null,"(*_*)"]
[null,null,null,null,null,null,0,0,null,"(*_*)"]
[null,null,null,null,null,null,0,0,null,"(*_*)"]
[null,null,null,null,null,null,0,0,null,"(*_*)"]
[80000,"所要日数",null,"日",null,null,0,0,null,"(^o^)v"]
[80001,"所要日数(総延外)",null,"日",null,null,0,0,null,"(^o^)v"]
[null,null,null,null,null,null,0,0,null,"(*_*)"]
[null,null,null,null,null,null,0,0,null,"(*_*)"]
[null,null,null,null,null,null,0,0,null,"(*_*)"]
[null,null,null,null,null,null,0,0,null,"(*_*)"]
[null,null,null,null,null,null,0,0,null,"(*_*)"]
["工種　ｅｔｃ．　単価登録"]
["コード","工　種","詳　細","単位","数量","単価","使用単価","変動単価","定価","摘要"]
[90000,"掘削・鋤取発生土（ｍ3）",null,"ｍ3",null,null,{"$f":"IF($L$7=$F$4,F372,H372)","v":0},{"$f":"F372*$L$4","v":0},null,{"$f":"IF(A369<A372,\"(^o^)v\",\"(*_*)\")","v":"(^o^)v"}]
[90001,"埋戻し（ｍ3）",null,"ｍ3",null,null,0,0,null,{"$f":"IF(A372<A373,\"(^o^)v\",\"(*_*)\")","v":"(^o^)v"}]
[90002,"残土処理（ｍ3）",null,"ｍ3",null,null,0,0,null,"(^o^)v"]
[90003,"ＡＳガラ（ｍ3）",null,"ｍ3",null,null,0,0,null,"(^o^)v"]
[90004,"ＣＯガラ（ｍ3）",null,"ｍ3",null,null,0,0,null,"(^o^)v"]
[90005,"盛土（ｍ3）",null,"ｍ3",null,null,0,0,null,"(^o^)v"]
[90006,"がれき類（ｍ3）",null,"ｍ3",null,null,0,0,null,"(^o^)v"]
[null,null,null,null,null,null,0,0,null,"(*_*)"]
[null,null,null,null,null,null,0,0,null,"(*_*)"]
[null,null,null,null,null,null,0,0,null,"(*_*)"]
[90007,"アスファルト殻（ｔ）",null,"ｔ",null,null,0,0,null,"(^o^)v"]
[90008,"コンクリート殻（ｔ）",null,"ｔ",null,null,0,0,null,"(^o^)v"]
[90009,"がれき類（ｔ）",null,"ｔ",null,null,0,0,null,"(^o^)v"]
[90010,"旧路盤材（ｔ）",null,"ｔ",null,null,0,0,null,"(^o^)v"]
[null,null,null,null,null,null,0,0,null,"(*_*)"]
[null,null,null,null,null,null,0,0,null,"(*_*)"]
[null,null,null,null,null,null,0,0,null,"(*_*)"]
[null,null,null,null,null,null,0,0,null,"(*_*)"]
[null,null,null,null,null,null,0,0,null,"(*_*)"]
[null,null,null,null,null,null,0,0,null,"(*_*)"]
[null,null,null,null,null,null,0,0,null,"(*_*)"]
[null,null,null,null,null,null,0,0,null,"(*_*)"]
[null,null,null,null,null,null,0,0,null,"(*_*)"]
[null,null,null,null,null,null,0,0,null,"(*_*)"]
[null,null,null,null,null,null,0,0,null,"(*_*)"]
[null,null,null,null,null,null,0,0,null,"(*_*)"]
[null,null,null,null,null,null,0,0]
[null,null,null,null,null,null,0,0]
[null,null,null,null,null,null,0,0]
[null,null,null,null,null,null,0,0]
[null,null,null,null,null,null,0,0]
[99999,"書き換え",null,null,null,null,0,0,null,{"$f":"IF(A401<A403,\"(^o^)v\",\"(*_*)\")","v":"(^o^)v"}]
["登録　ＥＮＤ"]

{"sheet":"見積予算","index":2,"n_rows":33,"n_cols":11,"rows_kept":33,"cut":false,"hidden":false,"merged":[]}
[1]
[]
["コード","工種","詳細","数量","単位","単価","金額",null,"代価番号","削除","未入力"]
[null,"直接工事費","LEVEL1"]
[null,"ここに工事名を記入",null,null,{"$f":"IF(ISBLANK(A5),\"\",LOOKUP(A5,単価表!$A$5:$A$1154,単価表!$D$5:$D$1154))","v":""},{"$f":"IF(ISBLANK(A5),\"\",LOOKUP(A5,単価表!$A$5:$A$1154,単価表!$G$5:$G$1154))","v":""},{"$f":"IF(ISBLANK(A5),\"\",ROUND(D5*F5,0))","v":""},null,null,"ダブルクリック"]
[null,{"$f":"IF(ISBLANK(A6),\"\",LOOKUP(A6,単価表!$A$5:$A$1154,単価表!$B$5:$B$1154))","v":""},null,null,{"$f":"IF(ISBLANK(A6),\"\",LOOKUP(A6,単価表!$A$5:$A$1154,単価表!$D$5:$D$1154))","v":""},{"$f":"IF(ISBLANK(A6),\"\",LOOKUP(A6,単価表!$A$5:$A$1154,単価表!$G$5:$G$1154))","v":""},""]
[null,{"$f":"IF(ISBLANK(A7),\"\",LOOKUP(A7,単価表!$A$5:$A$1154,単価表!$B$5:$B$1154))","v":""},null,null,{"$f":"IF(ISBLANK(A7),\"\",LOOKUP(A7,単価表!$A$5:$A$1154,単価表!$D$5:$D$1154))","v":""},{"$f":"IF(ISBLANK(A7),\"\",LOOKUP(A7,単価表!$A$5:$A$1154,単価表!$G$5:$G$1154))","v":""},""]
[null,{"$f":"IF(ISBLANK(A8),\"\",LOOKUP(A8,単価表!$A$5:$A$1154,単価表!$B$5:$B$1154))","v":""},null,null,{"$f":"IF(ISBLANK(A8),\"\",LOOKUP(A8,単価表!$A$5:$A$1154,単価表!$D$5:$D$1154))","v":""},{"$f":"IF(ISBLANK(A8),\"\",LOOKUP(A8,単価表!$A$5:$A$1154,単価表!$G$5:$G$1154))","v":""},""]
[null,{"$f":"IF(ISBLANK(A9),\"\",LOOKUP(A9,単価表!$A$5:$A$1154,単価表!$B$5:$B$1154))","v":""},null,null,{"$f":"IF(ISBLANK(A9),\"\",LOOKUP(A9,単価表!$A$5:$A$1154,単価表!$D$5:$D$1154))","v":""},{"$f":"IF(ISBLANK(A9),\"\",LOOKUP(A9,単価表!$A$5:$A$1154,単価表!$G$5:$G$1154))","v":""},""]
[null,{"$f":"IF(ISBLANK(A10),\"\",LOOKUP(A10,単価表!$A$5:$A$1154,単価表!$B$5:$B$1154))","v":""},null,null,{"$f":"IF(ISBLANK(A10),\"\",LOOKUP(A10,単価表!$A$5:$A$1154,単価表!$D$5:$D$1154))","v":""},{"$f":"IF(ISBLANK(A10),\"\",LOOKUP(A10,単価表!$A$5:$A$1154,単価表!$G$5:$G$1154))","v":""},""]
[null,"仮設工事費",null,1,"式"]
[2,"仮設費",null,1,"式",{"$f":"ROUNDUP(G12/D12,0)","v":0},{"$f":"SUM(G13:G15)","v":0}]
[null,null,null,null,null,null,{"$f":"D13*F13","v":0}]
[null,"高速代",3,{"$f":"+$D$31*C14","v":0},"台日",8000,{"$f":"D14*F14","v":0}]
[null,"労務通勤",1,{"$f":"+$D$31*C15","v":0},"日",4500,{"$f":"D15*F15","v":0}]
[]
[]
[null,"現場管理費",null,1,"式"]
[3,"現場管理費",null,1,"式",{"$f":"ROUNDUP(G19/D19,0)","v":0},{"$f":"SUM(G20:G22)","v":0}]
[null,"現場管理費","現場代理人",{"$f":"+D32","v":0},"ヶ月",550000,{"$f":"D20*F20","v":0}]
[null,"通信費",null,{"$f":"+D20","v":0},"ヶ月",100000,{"$f":"D21*F21","v":0}]
[null,"保険・租税公課",null,null,"式",100000,{"$f":"D22*F22","v":0}]
[]
[]
[]
[null,"直接工事費計",null,null,null,null,{"$f":"SUMIF(A:A,1,G:G)","v":0}]
[null,"仮設工事費計",null,null,null,null,{"$f":"SUMIF(A:A,2,G:G)","v":0}]
[null,"現場経費計",null,null,null,null,{"$f":"SUMIF(A:A,3,G:G)","v":0}]
[null,"一般管理費",0,null,null,null,{"$f":"ROUNDDOWN(SUMIF($B:$B,\"直接工事費計\",$G:$G)*C29/100,-4)","v":0}]
[null,null,"予定作業員数",{"$f":"SUMIF(A:A,20100,D:D)+SUMIF(A:A,20505,D:D)","v":0},null,"人","ＮＥＴ金額"]
[null,null,"予定作業日数",{"$f":"SUMIF(A:A,80000,D:D)","v":0},null,"日",{"$f":"SUM(G26:G29)","v":0}]
[null,null,"工事期間",{"$f":"+D31/22","v":0},"月"]
[null,null,null,null,null,"ｃｈｅｅｋ",{"$f":"IF(G26=SUM($G$6:INDEX($G:$G,MATCH(\"仮設工事費\",$B:$B,0)-1))/2,\"ＯＫ・・・\",\"ＮＧ・・・\")","v":"ＯＫ・・・"}]

{"sheet":"内訳書","index":3,"n_rows":25,"n_cols":15,"rows_kept":25,"cut":false,"hidden":false,"merged":[]}
[null,null,null,null,null,null,null,null,null,null,null,null,null,null,"大分類グループ(VBA用)"]
[null,"工 事 費 内 訳 書",null,null,null,null,null,null,null,"単価変動値",1.1000000000000001]
[null,"NO","名      称","仕    様","数  量","単位","単価","金額","摘  要","単価まるめ単位",50,"代価番号"]
[null,null,{"$f":"IF(見積予算!$B$5=\"ここに工事名を記入\",\"\",見積予算!$B$5)","v":""}]
[]
[null,null,{"$f":"IF(L6=\"\",\"\",LOOKUP(L6,見積予算!$I$3:$I$523,見積予算!$B$3:$B$523))","v":""},{"$f":"IF(L6=\"\",\"\",LOOKUP(L6,見積予算!$I$3:$I$523,見積予算!$C$3:$C$523))","v":""},{"$f":"IF(L6=\"\",\"\",LOOKUP(L6,見積予算!$I$3:$I$523,見積予算!$D$3:$D$523))","v":""},{"$f":"IF(L6=\"\",\"\",LOOKUP(L6,見積予算!$I$3:$I$523,見積予算!$E$3:$E$523))","v":""},{"$f":"IF(J6=\"\",\"\",CEILING(J6,$K$3))","v":""},{"$f":"IF(G6=\"\",\"\",ROUND(E6*G6,0))","v":""},null,{"$f":"IF(E6=\"\",\"\",ROUNDUP(K6/E6*$K$2,-1))","v":""},{"$f":"IF(L6=\"\",\"\",LOOKUP(L6,見積予算!$I$3:$I$523,見積予算!$G$3:$G$523))","v":""}]
[null,null,{"$f":"IF(L7=\"\",\"\",LOOKUP(L7,見積予算!$I$3:$I$523,見積予算!$B$3:$B$523))","v":""},{"$f":"IF(L7=\"\",\"\",LOOKUP(L7,見積予算!$I$3:$I$523,見積予算!$C$3:$C$523))","v":""},{"$f":"IF(L7=\"\",\"\",LOOKUP(L7,見積予算!$I$3:$I$523,見積予算!$D$3:$D$523))","v":""},{"$f":"IF(L7=\"\",\"\",LOOKUP(L7,見積予算!$I$3:$I$523,見積予算!$E$3:$E$523))","v":""},{"$f":"IF(J7=\"\",\"\",CEILING(J7,$K$3))","v":""},{"$f":"IF(G7=\"\",\"\",ROUND(E7*G7,0))","v":""},null,{"$f":"IF(E7=\"\",\"\",ROUNDUP(K7/E7*$K$2,-1))","v":""},{"$f":"IF(L7=\"\",\"\",LOOKUP(L7,見積予算!$I$3:$I$523,見積予算!$G$3:$G$523))","v":""}]
[null,null,{"$f":"IF(L8=\"\",\"\",LOOKUP(L8,見積予算!$I$3:$I$523,見積予算!$B$3:$B$523))","v":""},{"$f":"IF(L8=\"\",\"\",LOOKUP(L8,見積予算!$I$3:$I$523,見積予算!$C$3:$C$523))","v":""},{"$f":"IF(L8=\"\",\"\",LOOKUP(L8,見積予算!$I$3:$I$523,見積予算!$D$3:$D$523))","v":""},{"$f":"IF(L8=\"\",\"\",LOOKUP(L8,見積予算!$I$3:$I$523,見積予算!$E$3:$E$523))","v":""},{"$f":"IF(J8=\"\",\"\",CEILING(J8,$K$3))","v":""},{"$f":"IF(G8=\"\",\"\",ROUND(E8*G8,0))","v":""},null,{"$f":"IF(E8=\"\",\"\",ROUNDUP(K8/E8*$K$2,-1))","v":""},{"$f":"IF(L8=\"\",\"\",LOOKUP(L8,見積予算!$I$3:$I$523,見積予算!$G$3:$G$523))","v":""}]
[null,null,{"$f":"IF(L9=\"\",\"\",LOOKUP(L9,見積予算!$I$3:$I$523,見積予算!$B$3:$B$523))","v":""},{"$f":"IF(L9=\"\",\"\",LOOKUP(L9,見積予算!$I$3:$I$523,見積予算!$C$3:$C$523))","v":""},{"$f":"IF(L9=\"\",\"\",LOOKUP(L9,見積予算!$I$3:$I$523,見積予算!$D$3:$D$523))","v":""},{"$f":"IF(L9=\"\",\"\",LOOKUP(L9,見積予算!$I$3:$I$523,見積予算!$E$3:$E$523))","v":""},{"$f":"IF(J9=\"\",\"\",CEILING(J9,$K$3))","v":""},{"$f":"IF(G9=\"\",\"\",ROUND(E9*G9,0))","v":""},null,{"$f":"IF(E9=\"\",\"\",ROUNDUP(K9/E9*$K$2,-1))","v":""},{"$f":"IF(L9=\"\",\"\",LOOKUP(L9,見積予算!$I$3:$I$523,見積予算!$G$3:$G$523))","v":""}]
[null,null,"小　　計",null,null,null,null,{"$f":"SUM(H6:H9)","v":0}]
[]
[1,null,"直接工事費計",null,null,null,null,{"$f":"SUMIF(C:C,\"小　　計\",H:H)","v":0},null,null,{"$f":"SUM(K4:INDEX(K:K,MATCH(\"直接工事費計\",C:C,0)-1))","v":0},{"$f":"IF(K12=見積予算!G26,\"・・・ＯＫ\",\"・・・ＮＧ\")","v":"・・・ＯＫ"},"予算金額確認"]
[2,null,"仮設工事費",null,1,"式",729000,{"$f":"CEILING(J13,1000)","v":0},null,{"$f":"+K13/E13*$K$2*0.9","v":0},{"$f":"SUMIF(見積予算!B:B,\"仮設工事費計\",見積予算!G:G)","v":0}]
[3,null,"現場管理費",null,1,"式",729000,{"$f":"CEILING(J14,1000)","v":0},null,{"$f":"+K14/E14*$K$2*0.9","v":0},{"$f":"SUMIF(見積予算!B:B,\"現場経費計\",見積予算!G:G)","v":0}]
[4,null,"一般管理費",null,1,"式",null,{"$f":"CEILING(SUM(H12)*K15,1000)","v":0},null,null,0.2]
[5,null,"値引き",null,null,null,null,0,null,null,"↑諸経費変動値"]
[]
[]
[]
[]
[]
[null,null,"合 　　計",null,null,null,null,{"$f":"SUM(H12:H18)","v":0}]
[]
[]
[null,null,null,null,null,null,null,null,null,{"$f":"\"実行予算￥ \"&TEXT(見積予算!G31,\"0,0-\")","v":"実行予算￥ 00-"}]

{"sheet":"工種リスト","index":4,"n_rows":34,"n_cols":13,"rows_kept":34,"cut":false,"hidden":true,"merged":[]}
["No","大分類","中分類","工種名","詳細","既定数量","単位","DBシート名","マスタファイル名","開始行","終了行","表示ラベル","表示ラベル2"]
[1,"撤去工事","舗装版撤去","既設舗装版撤去","AS：t=5cm AS廃材運搬処分共",100,"ｍ2","撤去工事","撤去工事",6,20,"撤去工事｜既設舗装版撤去｜AS：t=5cm AS廃材運搬処分共","既設舗装版撤去｜AS：t=5cm AS廃材運搬処分共"]
[2,"撤去工事","構造物取壊し","構造物取壊し","\n廃材運搬処分共",100,"ｍ3","撤去工事","撤去工事",21,36,"撤去工事｜構造物取壊し｜\n廃材運搬処分共","構造物取壊し｜\n廃材運搬処分共"]
[3,"土工事","切土工","残土処分","鋤取り土工含 発生土運搬処分共",100,"ｍ3","土工事","土工事",6,18,"土工事｜残土処分｜鋤取り土工含 発生土運搬処分共","残土処分｜鋤取り土工含 発生土運搬処分共"]
[4,"土工事","床堀工","根切り","人力土工\n",10,"ｍ3","土工事","土工事",19,27,"土工事｜根切り｜人力土工\n","根切り｜人力土工\n"]
[5,"土工事","盛土工","埋戻し","人力土工\n",10,"ｍ3","土工事","土工事",28,36,"土工事｜埋戻し｜人力土工\n","埋戻し｜人力土工\n"]
[6,"土工事","埋戻工","路体（流用土）","4.0≦W\n",100,"ｍ3","土工事","土工事",37,47,"土工事｜路体（流用土）｜4.0≦W\n","路体（流用土）｜4.0≦W\n"]
[7,"擁壁工事","RC擁壁","コンクリート立上り","H=890 t=150\n打放し 掘削土工共",100,"ｍ","擁壁工事","擁壁工事",6,32,"擁壁工事｜コンクリート立上り｜H=890 t=150\n打放し 掘削土工共","コンクリート立上り｜H=890 t=150\n打放し 掘削土工共"]
[8,"擁壁工事","型枠CB","型枠CB擁壁","H=2.0ｍﾀｲﾌﾟ\n",10,"ｍ","擁壁工事","擁壁工事",33,87,"擁壁工事｜型枠CB擁壁｜H=2.0ｍﾀｲﾌﾟ\n","型枠CB擁壁｜H=2.0ｍﾀｲﾌﾟ\n"]
[9,"擁壁工事","石積擁壁","石積擁壁工","H=2.00ｍ 65゜\n基礎共",50,"ｍ","擁壁工事","擁壁工事",88,121,"擁壁工事｜石積擁壁工｜H=2.00ｍ 65゜\n基礎共","石積擁壁工｜H=2.00ｍ 65゜\n基礎共"]
[10,"擁壁工事","プレキャスト擁壁","プレキャスト擁壁","地上高さ H=2.0ｍ",50,"ｍ","擁壁工事","擁壁工事",122,155,"擁壁工事｜プレキャスト擁壁｜地上高さ H=2.0ｍ","プレキャスト擁壁｜地上高さ H=2.0ｍ"]
[11,"排水工事","Ｌ型側溝工","Ｌ型側溝工","タイプ１",100,"ｍ","排水工事","排水工事",6,32,"排水工事｜Ｌ型側溝工｜タイプ１","Ｌ型側溝工｜タイプ１"]
[12,"排水工事","集水桝","雨水桝","ﾀｲﾌﾟ1\n",1,"箇所","排水工事","排水工事",33,57,"排水工事｜雨水桝｜ﾀｲﾌﾟ1\n","雨水桝｜ﾀｲﾌﾟ1\n"]
[13,"排水工事","組立人孔","汚水人孔設置工","組立２号人孔1箇所",1,"箇所","排水工事","排水工事",58,79,"排水工事｜汚水人孔設置工｜組立２号人孔1箇所","汚水人孔設置工｜組立２号人孔1箇所"]
[14,"付帯工事","縁石工","地先境界ブロック","120*120*600 基礎共\n",100,"ｍ","付帯工事","付帯工事",6,33,"付帯工事｜地先境界ブロック｜120*120*600 基礎共\n","地先境界ブロック｜120*120*600 基礎共\n"]
[15,"付帯工事","囲障工事","化粧CB２段積","H＝400",100,"ｍ","付帯工事","付帯工事",34,58,"付帯工事｜化粧CB２段積｜H＝400","化粧CB２段積｜H＝400"]
[16,"舗装工事","舗装打換工","道路舗装打換工","AS：t=50 表層のみ\n廃材運搬処分共",100,"ｍ2","舗装工事","舗装工事",6,39,"舗装工事｜道路舗装打換工｜AS：t=50 表層のみ\n廃材運搬処分共","道路舗装打換工｜AS：t=50 表層のみ\n廃材運搬処分共"]
[17,"舗装工事","車道舗装","下層路盤(車道・路肩部)","再生ｸﾗｯｼｬﾗﾝ RC-40 仕上り厚 400ｍｍ\n",100,"ｍ2","舗装工事","舗装工事",40,56,"舗装工事｜下層路盤(車道・路肩部)｜再生ｸﾗｯｼｬﾗﾝ RC-40 仕上り厚 400ｍｍ\n","下層路盤(車道・路肩部)｜再生ｸﾗｯｼｬﾗﾝ RC-40 仕上り厚 400ｍｍ\n"]
[18,"舗装工事","歩道及び小規模舗装","下層路盤(歩道部)","再生ｸﾗｯｼｬﾗﾝ RC-40 仕上り厚 100ｍｍ\n",100,"ｍ2","舗装工事","舗装工事",57,71,"舗装工事｜下層路盤(歩道部)｜再生ｸﾗｯｼｬﾗﾝ RC-40 仕上り厚 100ｍｍ\n","下層路盤(歩道部)｜再生ｸﾗｯｼｬﾗﾝ RC-40 仕上り厚 100ｍｍ\n"]
[19,"舗装工事","コンクリート舗装","歩道コンクリート舗装工","CO：t=100 RC-40：t=100",100,"ｍ2","舗装工事","舗装工事",72,96,"舗装工事｜歩道コンクリート舗装工｜CO：t=100 RC-40：t=100","歩道コンクリート舗装工｜CO：t=100 RC-40：t=100"]
[20,"仮設工事","仮囲工","仮囲万能鋼板設置工","安全鋼板(塗装品) H=2000 資材購入\n",100,"ｍ","仮設工事","仮設工事",6,24,"仮設工事｜仮囲万能鋼板設置工｜安全鋼板(塗装品) H=2000 資材購入\n","仮囲万能鋼板設置工｜安全鋼板(塗装品) H=2000 資材購入\n"]
[21,"仮設工事","山留め","H鋼横矢板土留","H=3000 L=8.0ｍ\n",100,"ｍ","仮設工事","仮設工事",25,46,"仮設工事｜H鋼横矢板土留｜H=3000 L=8.0ｍ\n","H鋼横矢板土留｜H=3000 L=8.0ｍ\n"]
[22,"仮設工事","その他仮設","木柵工","H=1300",100,"ｍ","仮設工事","仮設工事",47,55,"仮設工事｜木柵工｜H=1300","木柵工｜H=1300"]
[23,"景観金物","メッシュフェンス","メッシュフェンス","H=1500　CB上施工",100,"ｍ","景観金物","景観金物",6,19,"景観金物｜メッシュフェンス｜H=1500　CB上施工","メッシュフェンス｜H=1500　CB上施工"]
[24,"景観金物","ネットフェンス","ネットフェンス","H=1200　□180*450独立基礎共",100,"ｍ","景観金物","景観金物",20,26,"景観金物｜ネットフェンス｜H=1200　□180*450独立基礎共","ネットフェンス｜H=1200　□180*450独立基礎共"]
[25,"景観金物","独立基礎築造","フェンス独立基礎設置","\n□300*500 独立基礎共",100,"ｍ","景観金物","景観金物",27,39,"景観金物｜フェンス独立基礎設置｜\n□300*500 独立基礎共","フェンス独立基礎設置｜\n□300*500 独立基礎共"]
[26,"景観金物","バリカー設置","車止めバリカー設置工","H800 φ89.1\n基礎共",10,"箇所","景観金物","景観金物",40,60,"景観金物｜車止めバリカー設置工｜H800 φ89.1\n基礎共","車止めバリカー設置工｜H800 φ89.1\n基礎共"]
[27,"景観金物","横断防止柵","ガードパイプ柵",null,37.5,"ｍ","景観金物","景観金物",61,83,"景観金物｜ガードパイプ柵｜","ガードパイプ柵｜"]
[28,"植栽工事","客土工","客土","T300 良質土\n",100,"ｍ2","植栽工事","植栽工事",7,16,"植栽工事｜客土｜T300 良質土\n","客土｜T300 良質土\n"]
[29,"法面工事","法面保護工","法面整形工","1:1.5～1:1.8 バックホウ整形(参考値・要精査)",100,"ｍ2","法面工事","法面工事",8,13,"法面工事｜法面整形工｜1:1.5～1:1.8 バックホウ整形(参考値・要精査)","法面整形工｜1:1.5～1:1.8 バックホウ整形(参考値・要精査)"]
[30,"法面工事","法枠工","現場打法枠工","プレキャスト法枠 1.0×1.0m格子(参考値・要精査)",100,"ｍ2","法面工事","法面工事",14,19,"法面工事｜現場打法枠工｜プレキャスト法枠 1.0×1.0m格子(参考値・要精査)","現場打法枠工｜プレキャスト法枠 1.0×1.0m格子(参考値・要精査)"]
[31,"地盤改良工事","浅層・表層改良工","表層地盤改良工","セメント系固化材 t=50cm 混合攪拌(参考値・要精査)",100,"ｍ2","地盤改良工事","地盤改良工事",8,16,"地盤改良工事｜表層地盤改良工｜セメント系固化材 t=50cm 混合攪拌(参考値・要精査)","表層地盤改良工｜セメント系固化材 t=50cm 混合攪拌(参考値・要精査)"]
[32,"地盤改良工事","深層混合処理工","深層混合処理工","機械攪拌工法 L=8.0m(参考値・要精査)",10,"本","地盤改良工事","地盤改良工事",17,25,"地盤改良工事｜深層混合処理工｜機械攪拌工法 L=8.0m(参考値・要精査)","深層混合処理工｜機械攪拌工法 L=8.0m(参考値・要精査)"]
[33,"地盤改良工事","サンドコンパクションパイル工","サンドコンパクションパイル工","φ400 L=6.0m(参考値・要精査)",10,"本","地盤改良工事","地盤改良工事",26,31,"地盤改良工事｜サンドコンパクションパイル工｜φ400 L=6.0m(参考値・要精査)","サンドコンパクションパイル工｜φ400 L=6.0m(参考値・要精査)"]

{"sheet":"撤去工事","index":5,"n_rows":36,"n_cols":8,"rows_kept":36,"cut":false,"hidden":false,"merged":[]}
[1]
[]
["コード","中分類","工　種","詳　細","数量","単位","単価","金額"]
[null,null,"撤去工事"]
[]
[1,"舗装版撤去","既設舗装版撤去","AS：t=5cm AS廃材運搬処分共",100,"ｍ2",{"$f":"ROUND(H6/E6,0)","v":895},{"$f":"SUM(H7:INDEX(H7:H$36,IFERROR(MATCH(1,$A7:$A$36,0),ROWS($A7:$A$36)+1)-1))","v":89495}]
[null,null,"既設舗装版撤去","　",{"$f":"+E6","v":100},"ｍ2",{"$f":"IF(E7=0,\"\",ROUND(SUM(H8:H13)/E7,0))","v":354}]
[80000,null,{"$f":"IF(ISBLANK($A8),\"\",LOOKUP($A8,単価表!$A$5:$A$1162,単価表!$B$5:$B$1162))","v":"所要日数"},300,{"$f":"CEILING(E7/D8,0.01)","v":0.34},"日",{"$f":"IF(ISBLANK($A8),\"\",LOOKUP($A8,単価表!$A$5:$A$1162,単価表!$G$5:$G$1162))","v":0},{"$f":"IF(ISBLANK($A8),\"\",ROUND(E8*G8,0))","v":0}]
[90003,null,{"$f":"IF(ISBLANK($A9),\"\",LOOKUP($A9,単価表!$A$5:$A$1162,単価表!$B$5:$B$1162))","v":"ＡＳガラ（ｍ3）"},0.05,{"$f":"E7*D9","v":5},"ｍ3",{"$f":"IF(ISBLANK($A9),\"\",LOOKUP($A9,単価表!$A$5:$A$1162,単価表!$G$5:$G$1162))","v":0},0]
[40012,null,{"$f":"IF(ISBLANK($A10),\"\",LOOKUP($A10,単価表!$A$5:$A$1162,単価表!$B$5:$B$1162))","v":"小旋回0.18ﾊﾞｯｸﾎｳ"},{"$f":"IF(ISBLANK($A10),\"\",IF(LOOKUP($A10,単価表!$A$5:$A$1162,単価表!$C$5:$C$1162)=0,\"\",LOOKUP($A10,単価表!$A$5:$A$1162,単価表!$C$5:$C$1162)))","v":""},{"$f":"+E8","v":0.34},"台",{"$f":"IF(ISBLANK($A10),\"\",LOOKUP($A10,単価表!$A$5:$A$1162,単価表!$G$5:$G$1162))","v":11250},3825]
[41002,null,{"$f":"IF(ISBLANK($A11),\"\",LOOKUP($A11,単価表!$A$5:$A$1162,単価表!$B$5:$B$1162))","v":"自社ﾀﾞﾝﾌﾟ"},{"$f":"IF(ISBLANK($A11),\"\",IF(LOOKUP($A11,単価表!$A$5:$A$1162,単価表!$C$5:$C$1162)=0,\"\",LOOKUP($A11,単価表!$A$5:$A$1162,単価表!$C$5:$C$1162)))","v":""},{"$f":"+E8","v":0.34},"台",{"$f":"IF(ISBLANK($A11),\"\",LOOKUP($A11,単価表!$A$5:$A$1162,単価表!$G$5:$G$1162))","v":9000},3060]
[40000,null,{"$f":"IF(ISBLANK($A12),\"\",LOOKUP($A12,単価表!$A$5:$A$1162,単価表!$B$5:$B$1162))","v":"油脂燃料"},{"$f":"IF(ISBLANK($A12),\"\",IF(LOOKUP($A12,単価表!$A$5:$A$1162,単価表!$C$5:$C$1162)=0,\"\",LOOKUP($A12,単価表!$A$5:$A$1162,単価表!$C$5:$C$1162)))","v":""},{"$f":"SUM(E10:E11)","v":0.68},"台日",{"$f":"IF(ISBLANK($A12),\"\",LOOKUP($A12,単価表!$A$5:$A$1162,単価表!$G$5:$G$1162))","v":1500},1020]
[20100,null,{"$f":"IF(ISBLANK($A13),\"\",LOOKUP($A13,単価表!$A$5:$A$1162,単価表!$B$5:$B$1162))","v":"作業員　昼間"},2,{"$f":"E8*D13","v":0.68},"人",{"$f":"IF(ISBLANK($A13),\"\",LOOKUP($A13,単価表!$A$5:$A$1162,単価表!$G$5:$G$1162))","v":40500},27540]
[null,null,"運搬処分費","ＡＳ殻 最終処分地へ",{"$f":"+E9","v":5},"ｍ3",{"$f":"IF(E14=0,\"\",ROUND(SUM(H15:H20)/E14,0))","v":10810}]
[30207,null,{"$f":"IF(ISBLANK($A15),\"\",LOOKUP($A15,単価表!$A$5:$A$1162,単価表!$B$5:$B$1162))","v":"AS殻処分"},{"$f":"TEXT(E15/3,\"0.0台分　　3ｔダンプ\")","v":"3.9台分  3tダンプ"},{"$f":"E14*2.35","v":11.75},"ｔ",{"$f":"IF(ISBLANK($A15),\"\",LOOKUP($A15,単価表!$A$5:$A$1162,単価表!$G$5:$G$1162))","v":1200},{"$f":"IF(ISBLANK($A15),\"\",ROUND(E15*G15,0))","v":14100}]
[41002,null,{"$f":"IF(ISBLANK($A16),\"\",LOOKUP($A16,単価表!$A$5:$A$1162,単価表!$B$5:$B$1162))","v":"自社ﾀﾞﾝﾌﾟ"},5,{"$f":"+E15/3/D16","v":0.78333333333333333},"台",{"$f":"IF(ISBLANK($A16),\"\",LOOKUP($A16,単価表!$A$5:$A$1162,単価表!$G$5:$G$1162))","v":9000},{"$f":"IF(ISBLANK($A16),\"\",ROUND(E16*G16,0))","v":7050}]
[40000,null,{"$f":"IF(ISBLANK($A17),\"\",LOOKUP($A17,単価表!$A$5:$A$1162,単価表!$B$5:$B$1162))","v":"油脂燃料"},{"$f":"IF(ISBLANK($A17),\"\",IF(LOOKUP($A17,単価表!$A$5:$A$1162,単価表!$C$5:$C$1162)=0,\"\",LOOKUP($A17,単価表!$A$5:$A$1162,単価表!$C$5:$C$1162)))","v":""},{"$f":"SUM(E16)","v":0.78333333333333333},"台日",{"$f":"IF(ISBLANK($A17),\"\",LOOKUP($A17,単価表!$A$5:$A$1162,単価表!$G$5:$G$1162))","v":1500},{"$f":"IF(ISBLANK($A17),\"\",ROUND(E17*G17,0))","v":1175}]
[20100,null,{"$f":"IF(ISBLANK($A18),\"\",LOOKUP($A18,単価表!$A$5:$A$1162,単価表!$B$5:$B$1162))","v":"作業員　昼間"},"運転手",{"$f":"+E16","v":0.78333333333333333},"人",{"$f":"IF(ISBLANK($A18),\"\",LOOKUP($A18,単価表!$A$5:$A$1162,単価表!$G$5:$G$1162))","v":40500},{"$f":"IF(ISBLANK($A18),\"\",ROUND(E18*G18,0))","v":31725}]
[]
[]
[1,"構造物取壊し","構造物取壊し","\n廃材運搬処分共",100,"ｍ3",{"$f":"ROUND(H21/E21,0)","v":28796},{"$f":"SUM(H22:INDEX(H22:H$36,IFERROR(MATCH(1,$A22:$A$36,0),ROWS($A22:$A$36)+1)-1))","v":2879615}]
[null,null,"構造物取壊し",null,{"$f":"+E21","v":100},"ｍ3",{"$f":"IF(E22=0,\"\",ROUND(SUM(H23:H30)/E22,0))","v":6839}]
[80000,null,{"$f":"IF(ISBLANK($A23),\"\",LOOKUP($A23,単価表!$A$5:$A$1162,単価表!$B$5:$B$1162))","v":"所要日数"},30,{"$f":"CEILING(E22/D23,0.01)","v":3.34},"日",{"$f":"IF(ISBLANK($A23),\"\",LOOKUP($A23,単価表!$A$5:$A$1162,単価表!$G$5:$G$1162))","v":0},{"$f":"IF(ISBLANK($A23),\"\",ROUND(E23*G23,0))","v":0}]
[90004,null,{"$f":"IF(ISBLANK($A24),\"\",LOOKUP($A24,単価表!$A$5:$A$1162,単価表!$B$5:$B$1162))","v":"ＣＯガラ（ｍ3）"},{"$f":"TEXT(E24*2.35/3,\"0.0台分　　3ｔダンプ\")","v":"78.3台分  3tダンプ"},{"$f":"E22","v":100},"ｍ3",{"$f":"IF(ISBLANK($A24),\"\",LOOKUP($A24,単価表!$A$5:$A$1162,単価表!$G$5:$G$1162))","v":0},0]
[40012,null,{"$f":"IF(ISBLANK($A25),\"\",LOOKUP($A25,単価表!$A$5:$A$1162,単価表!$B$5:$B$1162))","v":"小旋回0.18ﾊﾞｯｸﾎｳ"},1,{"$f":"+E23*D25","v":3.34},"台",{"$f":"IF(ISBLANK($A25),\"\",LOOKUP($A25,単価表!$A$5:$A$1162,単価表!$G$5:$G$1162))","v":11250},37575]
[40023,null,{"$f":"IF(ISBLANK($A26),\"\",LOOKUP($A26,単価表!$A$5:$A$1162,単価表!$B$5:$B$1162))","v":"諸機械 発電器,ｅｔｃ"},1,{"$f":"+E23*D26","v":3.34},"台",{"$f":"IF(ISBLANK($A26),\"\",LOOKUP($A26,単価表!$A$5:$A$1162,単価表!$G$5:$G$1162))","v":2250},7515]
[40022,null,{"$f":"IF(ISBLANK($A27),\"\",LOOKUP($A27,単価表!$A$5:$A$1162,単価表!$B$5:$B$1162))","v":"諸機械 ｴｱｰｺﾝﾌﾟﾚｯｻｰ　"},1,{"$f":"+E23*D27","v":3.34},"台",{"$f":"IF(ISBLANK($A27),\"\",LOOKUP($A27,単価表!$A$5:$A$1162,単価表!$G$5:$G$1162))","v":3750},12525]
[41002,null,{"$f":"IF(ISBLANK($A28),\"\",LOOKUP($A28,単価表!$A$5:$A$1162,単価表!$B$5:$B$1162))","v":"自社ﾀﾞﾝﾌﾟ"},2,{"$f":"+E23*D28","v":6.68},"台",{"$f":"IF(ISBLANK($A28),\"\",LOOKUP($A28,単価表!$A$5:$A$1162,単価表!$G$5:$G$1162))","v":9000},60120]
[40000,null,{"$f":"IF(ISBLANK($A29),\"\",LOOKUP($A29,単価表!$A$5:$A$1162,単価表!$B$5:$B$1162))","v":"油脂燃料"},{"$f":"IF(ISBLANK($A29),\"\",IF(LOOKUP($A29,単価表!$A$5:$A$1162,単価表!$C$5:$C$1162)=0,\"\",LOOKUP($A29,単価表!$A$5:$A$1162,単価表!$C$5:$C$1162)))","v":""},{"$f":"SUM(E25:E28)","v":16.7},"台日",{"$f":"IF(ISBLANK($A29),\"\",LOOKUP($A29,単価表!$A$5:$A$1162,単価表!$G$5:$G$1162))","v":1500},25050]
[20100,null,{"$f":"IF(ISBLANK($A30),\"\",LOOKUP($A30,単価表!$A$5:$A$1162,単価表!$B$5:$B$1162))","v":"作業員　昼間"},4,{"$f":"E23*D30","v":13.36},"人",{"$f":"IF(ISBLANK($A30),\"\",LOOKUP($A30,単価表!$A$5:$A$1162,単価表!$G$5:$G$1162))","v":40500},541080]
[null,null,"運搬処分費","ＣＯ殻 仮置場へ",{"$f":"+E24","v":100},"ｍ3",{"$f":"IF(E31=0,\"\",ROUND(SUM(H32:H36)/E31,0))","v":21958}]
[30205,null,{"$f":"IF(ISBLANK($A32),\"\",LOOKUP($A32,単価表!$A$5:$A$1162,単価表!$B$5:$B$1162))","v":"無筋CO殻処分(指定)"},null,{"$f":"E31*2.35","v":235},"ｔ",{"$f":"IF(ISBLANK($A32),\"\",LOOKUP($A32,単価表!$A$5:$A$1162,単価表!$G$5:$G$1162))","v":2700},{"$f":"IF(ISBLANK($A32),\"\",ROUND(E32*G32,0))","v":634500}]
[41002,null,{"$f":"IF(ISBLANK($A33),\"\",LOOKUP($A33,単価表!$A$5:$A$1162,単価表!$B$5:$B$1162))","v":"自社ﾀﾞﾝﾌﾟ"},4,{"$f":"+E32/3/D33","v":19.583333333333332},"台",{"$f":"IF(ISBLANK($A33),\"\",LOOKUP($A33,単価表!$A$5:$A$1162,単価表!$G$5:$G$1162))","v":9000},{"$f":"IF(ISBLANK($A33),\"\",ROUND(E33*G33,0))","v":176250}]
[40000,null,{"$f":"IF(ISBLANK($A34),\"\",LOOKUP($A34,単価表!$A$5:$A$1162,単価表!$B$5:$B$1162))","v":"油脂燃料"},{"$f":"IF(ISBLANK($A34),\"\",IF(LOOKUP($A34,単価表!$A$5:$A$1162,単価表!$C$5:$C$1162)=0,\"\",LOOKUP($A34,単価表!$A$5:$A$1162,単価表!$C$5:$C$1162)))","v":""},{"$f":"SUM(E33)","v":19.583333333333332},"台日",{"$f":"IF(ISBLANK($A34),\"\",LOOKUP($A34,単価表!$A$5:$A$1162,単価表!$G$5:$G$1162))","v":1500},{"$f":"IF(ISBLANK($A34),\"\",ROUND(E34*G34,0))","v":29375}]
[20100,null,{"$f":"IF(ISBLANK($A35),\"\",LOOKUP($A35,単価表!$A$5:$A$1162,単価表!$B$5:$B$1162))","v":"作業員　昼間"},"運転手",{"$f":"+E33","v":19.583333333333332},"人",{"$f":"IF(ISBLANK($A35),\"\",LOOKUP($A35,単価表!$A$5:$A$1162,単価表!$G$5:$G$1162))","v":40500},{"$f":"IF(ISBLANK($A35),\"\",ROUND(E35*G35,0))","v":793125}]
[40052,null,{"$f":"IF(ISBLANK($A36),\"\",LOOKUP($A36,単価表!$A$5:$A$1162,単価表!$B$5:$B$1162))","v":"大型ﾀﾞﾝﾌﾟ （代引）"},null,{"$f":"CEILING(E32/9.5,1)","v":25},"台",{"$f":"IF(ISBLANK($A36),\"\",LOOKUP($A36,単価表!$A$5:$A$1162,単価表!$G$5:$G$1162))","v":22500},{"$f":"IF(ISBLANK($A36),\"\",ROUND(E36*G36,0))","v":562500}]

{"sheet":"土工事","index":6,"n_rows":47,"n_cols":8,"rows_kept":47,"cut":false,"hidden":false,"merged":[]}
[1]
[]
["コード","中分類","工　種","詳　細","数量","単位","単価","金額"]
[null,null,"土工事"]
[]
[1,"切土工","残土処分","鋤取り土工含 発生土運搬処分共",100,"ｍ3",{"$f":"ROUND(H6/E6,0)","v":18309},{"$f":"SUM(H7:INDEX(H7:H$47,IFERROR(MATCH(1,$A7:$A$47,0),ROWS($A7:$A$47)+1)-1))","v":1830862}]
[null,null,"鋤取り",null,{"$f":"+E6","v":100},"ｍ3",{"$f":"IF(E7=0,\"\",ROUND(SUM(H8:H13)/E7,0))","v":3407}]
[80000,null,{"$f":"IF(ISBLANK($A8),\"\",LOOKUP($A8,単価表!$A$5:$A$1162,単価表!$B$5:$B$1162))","v":"所要日数"},30,{"$f":"CEILING(E7/D8,0.01)","v":3.34},"日",{"$f":"IF(ISBLANK($A8),\"\",LOOKUP($A8,単価表!$A$5:$A$1162,単価表!$G$5:$G$1162))","v":0},{"$f":"IF(ISBLANK($A8),\"\",ROUND(E8*G8,0))","v":0}]
[90000,null,{"$f":"IF(ISBLANK($A9),\"\",LOOKUP($A9,単価表!$A$5:$A$1162,単価表!$B$5:$B$1162))","v":"掘削・鋤取発生土（ｍ3）"},null,{"$f":"E7","v":100},"ｍ3",{"$f":"IF(ISBLANK($A9),\"\",LOOKUP($A9,単価表!$A$5:$A$1162,単価表!$G$5:$G$1162))","v":0},0]
[40011,null,{"$f":"IF(ISBLANK($A10),\"\",LOOKUP($A10,単価表!$A$5:$A$1162,単価表!$B$5:$B$1162))","v":"小旋回0.12ﾊﾞｯｸﾎｳ"},1,{"$f":"+E8*D10","v":3.34},"台",{"$f":"IF(ISBLANK($A10),\"\",LOOKUP($A10,単価表!$A$5:$A$1162,単価表!$G$5:$G$1162))","v":9000},30060]
[41002,null,{"$f":"IF(ISBLANK($A11),\"\",LOOKUP($A11,単価表!$A$5:$A$1162,単価表!$B$5:$B$1162))","v":"自社ﾀﾞﾝﾌﾟ"},1,{"$f":"+E8*D11","v":3.34},"台",{"$f":"IF(ISBLANK($A11),\"\",LOOKUP($A11,単価表!$A$5:$A$1162,単価表!$G$5:$G$1162))","v":9000},30060]
[40000,null,{"$f":"IF(ISBLANK($A12),\"\",LOOKUP($A12,単価表!$A$5:$A$1162,単価表!$B$5:$B$1162))","v":"油脂燃料"},{"$f":"IF(ISBLANK($A12),\"\",IF(LOOKUP($A12,単価表!$A$5:$A$1162,単価表!$C$5:$C$1162)=0,\"\",LOOKUP($A12,単価表!$A$5:$A$1162,単価表!$C$5:$C$1162)))","v":""},{"$f":"SUM(E10:E11)","v":6.68},"台日",{"$f":"IF(ISBLANK($A12),\"\",LOOKUP($A12,単価表!$A$5:$A$1162,単価表!$G$5:$G$1162))","v":1500},10020]
[20100,null,{"$f":"IF(ISBLANK($A13),\"\",LOOKUP($A13,単価表!$A$5:$A$1162,単価表!$B$5:$B$1162))","v":"作業員　昼間"},2,{"$f":"E8*D13","v":6.68},"人",{"$f":"IF(ISBLANK($A13),\"\",LOOKUP($A13,単価表!$A$5:$A$1162,単価表!$G$5:$G$1162))","v":40500},270540]
[null,null,"運搬処分費","残土 最終処分地へ",{"$f":"+E9","v":100},"ｍ3",{"$f":"IF(E14=0,\"\",ROUND(SUM(H15:H18)/E14,0))","v":14902}]
[30201,null,{"$f":"IF(ISBLANK($A15),\"\",LOOKUP($A15,単価表!$A$5:$A$1162,単価表!$B$5:$B$1162))","v":"残土処分　4ｔ"},null,{"$f":"E14/2.2","v":45.454545454545453},"台",{"$f":"IF(ISBLANK($A15),\"\",LOOKUP($A15,単価表!$A$5:$A$1162,単価表!$G$5:$G$1162))","v":18000},{"$f":"IF(ISBLANK($A15),\"\",ROUND(E15*G15,0))","v":818182}]
[40047,null,{"$f":"IF(ISBLANK($A16),\"\",LOOKUP($A16,単価表!$A$5:$A$1162,単価表!$B$5:$B$1162))","v":"4ｔﾀﾞﾝﾌﾟ　常傭"},3,{"$f":"CEILING(E15/D16,1)","v":16},"台",{"$f":"IF(ISBLANK($A16),\"\",LOOKUP($A16,単価表!$A$5:$A$1162,単価表!$G$5:$G$1162))","v":42000},{"$f":"IF(ISBLANK($A16),\"\",ROUND(E16*G16,0))","v":672000}]
[]
[]
[1,"床堀工","根切り","人力土工\n",10,"ｍ3",{"$f":"ROUND(H19/E19,0)","v":18753},{"$f":"SUM(H20:INDEX(H20:H$47,IFERROR(MATCH(1,$A20:$A$47,0),ROWS($A20:$A$47)+1)-1))","v":187530}]
[null,null,"人力床堀","人力のみ",{"$f":"+E19","v":10},"ｍ3",{"$f":"IF(E20=0,\"\",ROUND(SUM(H21:H27)/E20,0))","v":18753}]
[80000,null,{"$f":"IF(ISBLANK($A21),\"\",LOOKUP($A21,単価表!$A$5:$A$1162,単価表!$B$5:$B$1162))","v":"所要日数"},5,{"$f":"CEILING(E20/D21,0.01)","v":2},"日",{"$f":"IF(ISBLANK($A21),\"\",LOOKUP($A21,単価表!$A$5:$A$1162,単価表!$G$5:$G$1162))","v":0},{"$f":"IF(ISBLANK($A21),\"\",ROUND(E21*G21,0))","v":0}]
[41002,null,{"$f":"IF(ISBLANK($A22),\"\",LOOKUP($A22,単価表!$A$5:$A$1162,単価表!$B$5:$B$1162))","v":"自社ﾀﾞﾝﾌﾟ"},{"$f":"IF(ISBLANK($A22),\"\",IF(LOOKUP($A22,単価表!$A$5:$A$1162,単価表!$C$5:$C$1162)=0,\"\",LOOKUP($A22,単価表!$A$5:$A$1162,単価表!$C$5:$C$1162)))","v":""},{"$f":"+E21","v":2},"台",{"$f":"IF(ISBLANK($A22),\"\",LOOKUP($A22,単価表!$A$5:$A$1162,単価表!$G$5:$G$1162))","v":9000},{"$f":"IF(ISBLANK($A22),\"\",ROUND(E22*G22,0))","v":18000}]
[40001,null,{"$f":"IF(ISBLANK($A23),\"\",LOOKUP($A23,単価表!$A$5:$A$1162,単価表!$B$5:$B$1162))","v":"ﾗﾝﾏｰ･ﾌﾟﾚｰﾄ"},{"$f":"IF(ISBLANK($A23),\"\",IF(LOOKUP($A23,単価表!$A$5:$A$1162,単価表!$C$5:$C$1162)=0,\"\",LOOKUP($A23,単価表!$A$5:$A$1162,単価表!$C$5:$C$1162)))","v":""},{"$f":"+E21","v":2},"台",{"$f":"IF(ISBLANK($A23),\"\",LOOKUP($A23,単価表!$A$5:$A$1162,単価表!$G$5:$G$1162))","v":765},{"$f":"IF(ISBLANK($A23),\"\",ROUND(E23*G23,0))","v":1530}]
[40000,null,{"$f":"IF(ISBLANK($A24),\"\",LOOKUP($A24,単価表!$A$5:$A$1162,単価表!$B$5:$B$1162))","v":"油脂燃料"},null,{"$f":"SUM(E22:E23)","v":4},"台日",{"$f":"IF(ISBLANK($A24),\"\",LOOKUP($A24,単価表!$A$5:$A$1162,単価表!$G$5:$G$1162))","v":1500},{"$f":"IF(ISBLANK($A24),\"\",ROUND(E24*G24,0))","v":6000}]
[20100,null,{"$f":"IF(ISBLANK($A25),\"\",LOOKUP($A25,単価表!$A$5:$A$1162,単価表!$B$5:$B$1162))","v":"作業員　昼間"},2,{"$f":"E21*D25","v":4},"人",{"$f":"IF(ISBLANK($A25),\"\",LOOKUP($A25,単価表!$A$5:$A$1162,単価表!$G$5:$G$1162))","v":40500},{"$f":"IF(ISBLANK($A25),\"\",ROUND(E25*G25,0))","v":162000}]
[]
[]
[1,"盛土工","埋戻し","人力土工\n",10,"ｍ3",{"$f":"ROUND(H28/E28,0)","v":13408},{"$f":"SUM(H29:INDEX(H29:H$47,IFERROR(MATCH(1,$A29:$A$47,0),ROWS($A29:$A$47)+1)-1))","v":134084}]
[null,null,"埋戻し","人力のみ",{"$f":"+E28","v":10},"ｍ3",{"$f":"IF(E29=0,\"\",ROUND(SUM(H30:H36)/E29,0))","v":13408}]
[80000,null,{"$f":"IF(ISBLANK($A30),\"\",LOOKUP($A30,単価表!$A$5:$A$1162,単価表!$B$5:$B$1162))","v":"所要日数"},7,{"$f":"CEILING(E29/D30,0.01)","v":1.43},"日",{"$f":"IF(ISBLANK($A30),\"\",LOOKUP($A30,単価表!$A$5:$A$1162,単価表!$G$5:$G$1162))","v":0},{"$f":"IF(ISBLANK($A30),\"\",ROUND(E30*G30,0))","v":0}]
[41002,null,{"$f":"IF(ISBLANK($A31),\"\",LOOKUP($A31,単価表!$A$5:$A$1162,単価表!$B$5:$B$1162))","v":"自社ﾀﾞﾝﾌﾟ"},{"$f":"IF(ISBLANK($A31),\"\",IF(LOOKUP($A31,単価表!$A$5:$A$1162,単価表!$C$5:$C$1162)=0,\"\",LOOKUP($A31,単価表!$A$5:$A$1162,単価表!$C$5:$C$1162)))","v":""},{"$f":"+E30","v":1.43},"台",{"$f":"IF(ISBLANK($A31),\"\",LOOKUP($A31,単価表!$A$5:$A$1162,単価表!$G$5:$G$1162))","v":9000},{"$f":"IF(ISBLANK($A31),\"\",ROUND(E31*G31,0))","v":12870}]
[40001,null,{"$f":"IF(ISBLANK($A32),\"\",LOOKUP($A32,単価表!$A$5:$A$1162,単価表!$B$5:$B$1162))","v":"ﾗﾝﾏｰ･ﾌﾟﾚｰﾄ"},{"$f":"IF(ISBLANK($A32),\"\",IF(LOOKUP($A32,単価表!$A$5:$A$1162,単価表!$C$5:$C$1162)=0,\"\",LOOKUP($A32,単価表!$A$5:$A$1162,単価表!$C$5:$C$1162)))","v":""},{"$f":"+E30","v":1.43},"台",{"$f":"IF(ISBLANK($A32),\"\",LOOKUP($A32,単価表!$A$5:$A$1162,単価表!$G$5:$G$1162))","v":765},{"$f":"IF(ISBLANK($A32),\"\",ROUND(E32*G32,0))","v":1094}]
[40000,null,{"$f":"IF(ISBLANK($A33),\"\",LOOKUP($A33,単価表!$A$5:$A$1162,単価表!$B$5:$B$1162))","v":"油脂燃料"},null,{"$f":"SUM(E31:E32)","v":2.86},"台日",{"$f":"IF(ISBLANK($A33),\"\",LOOKUP($A33,単価表!$A$5:$A$1162,単価表!$G$5:$G$1162))","v":1500},{"$f":"IF(ISBLANK($A33),\"\",ROUND(E33*G33,0))","v":4290}]
[20100,null,{"$f":"IF(ISBLANK($A34),\"\",LOOKUP($A34,単価表!$A$5:$A$1162,単価表!$B$5:$B$1162))","v":"作業員　昼間"},2,{"$f":"E30*D34","v":2.86},"人",{"$f":"IF(ISBLANK($A34),\"\",LOOKUP($A34,単価表!$A$5:$A$1162,単価表!$G$5:$G$1162))","v":40500},{"$f":"IF(ISBLANK($A34),\"\",ROUND(E34*G34,0))","v":115830}]
[]
[]
[1,"埋戻工","路体（流用土）","4.0≦W\n",100,"ｍ3",{"$f":"ROUND(H37/E37,0)","v":1425},{"$f":"SUM(H38:INDEX(H38:H$47,IFERROR(MATCH(1,$A38:$A$47,0),ROWS($A38:$A$47)+1)-1))","v":142484}]
[null,null,"埋戻A 埋戻幅 W2≧4ｍ","(中規模土工)現場発生土\n振動ローラー・ブルドーザー",{"$f":"+E37","v":100},"ｍ3",{"$f":"IF(E38=0,\"\",ROUND(SUM(H39:H47)/E38,0))","v":1425}]
[80000,null,{"$f":"IF(ISBLANK($A39),\"\",LOOKUP($A39,単価表!$A$5:$A$1162,単価表!$B$5:$B$1162))","v":"所要日数"},160,{"$f":"CEILING(E38/D39,0.01)","v":0.63},"日",{"$f":"IF(ISBLANK($A39),\"\",LOOKUP($A39,単価表!$A$5:$A$1162,単価表!$G$5:$G$1162))","v":0},{"$f":"IF(ISBLANK($A39),\"\",ROUND(E39*G39,0))","v":0}]
[40021,null,{"$f":"IF(ISBLANK($A40),\"\",LOOKUP($A40,単価表!$A$5:$A$1162,単価表!$B$5:$B$1162))","v":"0.7 ﾊﾞｯｸﾎｳ"},{"$f":"IF(ISBLANK($A40),\"\",IF(LOOKUP($A40,単価表!$A$5:$A$1162,単価表!$C$5:$C$1162)=0,\"\",LOOKUP($A40,単価表!$A$5:$A$1162,単価表!$C$5:$C$1162)))","v":""},{"$f":"+E39","v":0.63},"台",{"$f":"IF(ISBLANK($A40),\"\",LOOKUP($A40,単価表!$A$5:$A$1162,単価表!$G$5:$G$1162))","v":24000},15120]
[99999,null,"大型油脂燃料",null,{"$f":"+E40","v":0.63},"台日",10000,6300]
[40008,null,{"$f":"IF(ISBLANK($A42),\"\",LOOKUP($A42,単価表!$A$5:$A$1162,単価表!$B$5:$B$1162))","v":"ﾌﾞﾙﾄﾞｰｻﾞｰ3ｔ（Ｄ20） ゴム"},{"$f":"IF(ISBLANK($A42),\"\",IF(LOOKUP($A42,単価表!$A$5:$A$1162,単価表!$C$5:$C$1162)=0,\"\",LOOKUP($A42,単価表!$A$5:$A$1162,単価表!$C$5:$C$1162)))","v":"3ｔ"},{"$f":"+E39","v":0.63},"台",{"$f":"IF(ISBLANK($A42),\"\",LOOKUP($A42,単価表!$A$5:$A$1162,単価表!$G$5:$G$1162))","v":9300},5859]
[40006,null,{"$f":"IF(ISBLANK($A43),\"\",LOOKUP($A43,単価表!$A$5:$A$1162,単価表!$B$5:$B$1162))","v":"4ｔ鉄輪ﾛｰﾗｰ"},{"$f":"IF(ISBLANK($A43),\"\",IF(LOOKUP($A43,単価表!$A$5:$A$1162,単価表!$C$5:$C$1162)=0,\"\",LOOKUP($A43,単価表!$A$5:$A$1162,単価表!$C$5:$C$1162)))","v":"４ｔ"},{"$f":"+E39","v":0.63},"台",{"$f":"IF(ISBLANK($A43),\"\",LOOKUP($A43,単価表!$A$5:$A$1162,単価表!$G$5:$G$1162))","v":5100},3213]
[40001,null,{"$f":"IF(ISBLANK($A44),\"\",LOOKUP($A44,単価表!$A$5:$A$1162,単価表!$B$5:$B$1162))","v":"ﾗﾝﾏｰ･ﾌﾟﾚｰﾄ"},{"$f":"IF(ISBLANK($A44),\"\",IF(LOOKUP($A44,単価表!$A$5:$A$1162,単価表!$C$5:$C$1162)=0,\"\",LOOKUP($A44,単価表!$A$5:$A$1162,単価表!$C$5:$C$1162)))","v":""},{"$f":"+E39","v":0.63},"台",{"$f":"IF(ISBLANK($A44),\"\",LOOKUP($A44,単価表!$A$5:$A$1162,単価表!$G$5:$G$1162))","v":765},482]
[41002,null,{"$f":"IF(ISBLANK($A45),\"\",LOOKUP($A45,単価表!$A$5:$A$1162,単価表!$B$5:$B$1162))","v":"自社ﾀﾞﾝﾌﾟ"},{"$f":"IF(ISBLANK($A45),\"\",IF(LOOKUP($A45,単価表!$A$5:$A$1162,単価表!$C$5:$C$1162)=0,\"\",LOOKUP($A45,単価表!$A$5:$A$1162,単価表!$C$5:$C$1162)))","v":""},{"$f":"+E39","v":0.63},"台",{"$f":"IF(ISBLANK($A45),\"\",LOOKUP($A45,単価表!$A$5:$A$1162,単価表!$G$5:$G$1162))","v":9000},5670]
[40000,null,{"$f":"IF(ISBLANK($A46),\"\",LOOKUP($A46,単価表!$A$5:$A$1162,単価表!$B$5:$B$1162))","v":"油脂燃料"},null,{"$f":"SUM(E42:E45)","v":2.52},"台日",{"$f":"IF(ISBLANK($A46),\"\",LOOKUP($A46,単価表!$A$5:$A$1162,単価表!$G$5:$G$1162))","v":1500},3780]
[20100,null,{"$f":"IF(ISBLANK($A47),\"\",LOOKUP($A47,単価表!$A$5:$A$1162,単価表!$B$5:$B$1162))","v":"作業員　昼間"},4,{"$f":"E39*D47","v":2.52},"人",{"$f":"IF(ISBLANK($A47),\"\",LOOKUP($A47,単価表!$A$5:$A$1162,単価表!$G$5:$G$1162))","v":40500},102060]

{"sheet":"擁壁工事","index":7,"n_rows":155,"n_cols":8,"rows_kept":155,"cut":false,"hidden":false,"merged":[]}
[1]
[]
["コード","中分類","工　種","詳　細","数量","単位","単価","金額"]
[null,null,"擁壁工事"]
[]
[1,"RC擁壁","コンクリート立上り","H=890 t=150\n打放し 掘削土工共",100,"ｍ",{"$f":"ROUND(H6/E6,0)","v":21093},{"$f":"SUM(H7:INDEX(H7:H$155,IFERROR(MATCH(1,$A7:$A$155,0),ROWS($A7:$A$155)+1)-1))","v":2109291}]
[null,null,"掘削及び基礎工","W550 RC:t=150 FC:t=50",{"$f":"+E6","v":100},"ｍ",{"$f":"IF(E7=0,\"\",ROUND(SUM(H8:H18)/E7,0))","v":4799}]
[80000,null,{"$f":"IF(ISBLANK($A8),\"\",LOOKUP($A8,単価表!$A$5:$A$1162,単価表!$B$5:$B$1162))","v":"所要日数"},50,{"$f":"CEILING(E7/D8,0.01)","v":2},"日",{"$f":"IF(ISBLANK($A8),\"\",LOOKUP($A8,単価表!$A$5:$A$1162,単価表!$G$5:$G$1162))","v":0},{"$f":"IF(ISBLANK($A8),\"\",ROUND(E8*G8,0))","v":0}]
[90000,null,{"$f":"IF(ISBLANK($A9),\"\",LOOKUP($A9,単価表!$A$5:$A$1162,単価表!$B$5:$B$1162))","v":"掘削・鋤取発生土（ｍ3）"},null,{"$f":"CEILING(E7*(0.55*0.2+0.15*0.5+0.15*0.6),0.01)","v":27.5},"ｍ3",{"$f":"IF(ISBLANK($A9),\"\",LOOKUP($A9,単価表!$A$5:$A$1162,単価表!$G$5:$G$1162))","v":0},0]
[10201,null,{"$f":"IF(ISBLANK($A10),\"\",LOOKUP($A10,単価表!$A$5:$A$1162,単価表!$B$5:$B$1162))","v":"RC-40(ﾌﾟﾗﾝﾄ)　小型"},{"$f":"0.55*0.15*1.7*1.28","v":0.17952000000000001},{"$f":"CEILING(E7*D10,0.01)","v":17.96},"ｔ",{"$f":"IF(ISBLANK($A10),\"\",LOOKUP($A10,単価表!$A$5:$A$1162,単価表!$G$5:$G$1162))","v":4500},80820]
[10514,null,{"$f":"IF(ISBLANK($A11),\"\",LOOKUP($A11,単価表!$A$5:$A$1162,単価表!$B$5:$B$1162))","v":"型枠　Ａ"},{"$f":"0.05*2","v":0.1},{"$f":"CEILING(E7*D11,0.01)","v":10},"ｍ2",{"$f":"IF(ISBLANK($A11),\"\",LOOKUP($A11,単価表!$A$5:$A$1162,単価表!$G$5:$G$1162))","v":1500},15000]
[10501,null,{"$f":"IF(ISBLANK($A12),\"\",LOOKUP($A12,単価表!$A$5:$A$1162,単価表!$B$5:$B$1162))","v":"生ｺﾝｸﾘｰﾄ　18-8　小型"},{"$f":"0.55*0.05*1.04","v":2.8600000000000004E-2},{"$f":"CEILING(E7*D12,0.01)","v":2.86},"ｍ3",{"$f":"IF(ISBLANK($A12),\"\",LOOKUP($A12,単価表!$A$5:$A$1162,単価表!$G$5:$G$1162))","v":29400},84084]
[40014,null,{"$f":"IF(ISBLANK($A13),\"\",LOOKUP($A13,単価表!$A$5:$A$1162,単価表!$B$5:$B$1162))","v":"超小旋回0.12ﾊﾞｯｸﾎｳ"},{"$f":"IF(ISBLANK($A13),\"\",IF(LOOKUP($A13,単価表!$A$5:$A$1162,単価表!$C$5:$C$1162)=0,\"\",LOOKUP($A13,単価表!$A$5:$A$1162,単価表!$C$5:$C$1162)))","v":""},{"$f":"+E8","v":2},"台",{"$f":"IF(ISBLANK($A13),\"\",LOOKUP($A13,単価表!$A$5:$A$1162,単価表!$G$5:$G$1162))","v":10500},21000]
[41002,null,{"$f":"IF(ISBLANK($A14),\"\",LOOKUP($A14,単価表!$A$5:$A$1162,単価表!$B$5:$B$1162))","v":"自社ﾀﾞﾝﾌﾟ"},{"$f":"IF(ISBLANK($A14),\"\",IF(LOOKUP($A14,単価表!$A$5:$A$1162,単価表!$C$5:$C$1162)=0,\"\",LOOKUP($A14,単価表!$A$5:$A$1162,単価表!$C$5:$C$1162)))","v":""},{"$f":"+E8","v":2},"台",{"$f":"IF(ISBLANK($A14),\"\",LOOKUP($A14,単価表!$A$5:$A$1162,単価表!$G$5:$G$1162))","v":9000},18000]
[40023,null,{"$f":"IF(ISBLANK($A15),\"\",LOOKUP($A15,単価表!$A$5:$A$1162,単価表!$B$5:$B$1162))","v":"諸機械 発電器,ｅｔｃ"},null,{"$f":"+E8","v":2},"台",{"$f":"IF(ISBLANK($A15),\"\",LOOKUP($A15,単価表!$A$5:$A$1162,単価表!$G$5:$G$1162))","v":2250},4500]
[40001,null,{"$f":"IF(ISBLANK($A16),\"\",LOOKUP($A16,単価表!$A$5:$A$1162,単価表!$B$5:$B$1162))","v":"ﾗﾝﾏｰ･ﾌﾟﾚｰﾄ"},null,{"$f":"+E8","v":2},"台",{"$f":"IF(ISBLANK($A16),\"\",LOOKUP($A16,単価表!$A$5:$A$1162,単価表!$G$5:$G$1162))","v":765},1530]
[40000,null,{"$f":"IF(ISBLANK($A17),\"\",LOOKUP($A17,単価表!$A$5:$A$1162,単価表!$B$5:$B$1162))","v":"油脂燃料"},null,{"$f":"SUM(E13:E16)","v":8},"台日",{"$f":"IF(ISBLANK($A17),\"\",LOOKUP($A17,単価表!$A$5:$A$1162,単価表!$G$5:$G$1162))","v":1500},12000]
[20100,null,{"$f":"IF(ISBLANK($A18),\"\",LOOKUP($A18,単価表!$A$5:$A$1162,単価表!$B$5:$B$1162))","v":"作業員　昼間"},3,{"$f":"+E8*D18","v":6},"人",{"$f":"IF(ISBLANK($A18),\"\",LOOKUP($A18,単価表!$A$5:$A$1162,単価表!$G$5:$G$1162))","v":40500},243000]
[null,null,"躯体打設及び埋戻",null,{"$f":"+E6","v":100},"ｍ",{"$f":"IF(E19=0,\"\",ROUND(SUM(H20:H32)/E19,0))","v":16294}]
[80000,null,{"$f":"IF(ISBLANK($A20),\"\",LOOKUP($A20,単価表!$A$5:$A$1162,単価表!$B$5:$B$1162))","v":"所要日数"},40,{"$f":"CEILING(E19/D20,0.01)","v":2.5},"日",{"$f":"IF(ISBLANK($A20),\"\",LOOKUP($A20,単価表!$A$5:$A$1162,単価表!$G$5:$G$1162))","v":0},{"$f":"IF(ISBLANK($A20),\"\",ROUND(E20*G20,0))","v":0}]
[10518,null,{"$f":"IF(ISBLANK($A21),\"\",LOOKUP($A21,単価表!$A$5:$A$1162,単価表!$B$5:$B$1162))","v":"型枠擁壁"},{"$f":"0.55*0.15*1.28","v":0.10560000000000001},{"$f":"CEILING(E19*D21,0.01)","v":10.56},"ｍ2",{"$f":"IF(ISBLANK($A21),\"\",LOOKUP($A21,単価表!$A$5:$A$1162,単価表!$G$5:$G$1162))","v":9750},102960]
[12101,null,{"$f":"IF(ISBLANK($A22),\"\",LOOKUP($A22,単価表!$A$5:$A$1162,単価表!$B$5:$B$1162))","v":"鉄筋工　小規模(kg)"},{"$f":"1.44*9.95*1.04","v":14.901119999999999},{"$f":"CEILING(E19*D22,0.01)","v":1490.1200000000001},"kg",{"$f":"IF(ISBLANK($A22),\"\",LOOKUP($A22,単価表!$A$5:$A$1162,単価表!$G$5:$G$1162))","v":300},447036]
[10507,null,{"$f":"IF(ISBLANK($A23),\"\",LOOKUP($A23,単価表!$A$5:$A$1162,単価表!$B$5:$B$1162))","v":"生ｺﾝｸﾘｰﾄ　擁壁　小型"},{"$f":"(0.55+0.89)*0.15*1.04","v":0.22464000000000001},{"$f":"CEILING(E19*D23,0.01)","v":22.47},"ｍ3",{"$f":"IF(ISBLANK($A23),\"\",LOOKUP($A23,単価表!$A$5:$A$1162,単価表!$G$5:$G$1162))","v":30900},694323]
[99999,null,"諸雑費","ボイド等",{"$f":"+E19","v":100},"ｍ",100,10000]
[40014,null,{"$f":"IF(ISBLANK($A25),\"\",LOOKUP($A25,単価表!$A$5:$A$1162,単価表!$B$5:$B$1162))","v":"超小旋回0.12ﾊﾞｯｸﾎｳ"},{"$f":"IF(ISBLANK($A25),\"\",IF(LOOKUP($A25,単価表!$A$5:$A$1162,単価表!$C$5:$C$1162)=0,\"\",LOOKUP($A25,単価表!$A$5:$A$1162,単価表!$C$5:$C$1162)))","v":""},{"$f":"+E20","v":2.5},"台",{"$f":"IF(ISBLANK($A25),\"\",LOOKUP($A25,単価表!$A$5:$A$1162,単価表!$G$5:$G$1162))","v":10500},26250]
[41002,null,{"$f":"IF(ISBLANK($A26),\"\",LOOKUP($A26,単価表!$A$5:$A$1162,単価表!$B$5:$B$1162))","v":"自社ﾀﾞﾝﾌﾟ"},{"$f":"IF(ISBLANK($A26),\"\",IF(LOOKUP($A26,単価表!$A$5:$A$1162,単価表!$C$5:$C$1162)=0,\"\",LOOKUP($A26,単価表!$A$5:$A$1162,単価表!$C$5:$C$1162)))","v":""},{"$f":"+E20","v":2.5},"台",{"$f":"IF(ISBLANK($A26),\"\",LOOKUP($A26,単価表!$A$5:$A$1162,単価表!$G$5:$G$1162))","v":9000},22500]
[40023,null,{"$f":"IF(ISBLANK($A27),\"\",LOOKUP($A27,単価表!$A$5:$A$1162,単価表!$B$5:$B$1162))","v":"諸機械 発電器,ｅｔｃ"},null,{"$f":"+E20","v":2.5},"台",{"$f":"IF(ISBLANK($A27),\"\",LOOKUP($A27,単価表!$A$5:$A$1162,単価表!$G$5:$G$1162))","v":2250},5625]
[40001,null,{"$f":"IF(ISBLANK($A28),\"\",LOOKUP($A28,単価表!$A$5:$A$1162,単価表!$B$5:$B$1162))","v":"ﾗﾝﾏｰ･ﾌﾟﾚｰﾄ"},null,{"$f":"+E20","v":2.5},"台",{"$f":"IF(ISBLANK($A28),\"\",LOOKUP($A28,単価表!$A$5:$A$1162,単価表!$G$5:$G$1162))","v":765},1913]
[40000,null,{"$f":"IF(ISBLANK($A29),\"\",LOOKUP($A29,単価表!$A$5:$A$1162,単価表!$B$5:$B$1162))","v":"油脂燃料"},null,{"$f":"SUM(E25:E28)","v":10},"台日",{"$f":"IF(ISBLANK($A29),\"\",LOOKUP($A29,単価表!$A$5:$A$1162,単価表!$G$5:$G$1162))","v":1500},15000]
[20100,null,{"$f":"IF(ISBLANK($A30),\"\",LOOKUP($A30,単価表!$A$5:$A$1162,単価表!$B$5:$B$1162))","v":"作業員　昼間"},3,{"$f":"+E20*D30","v":7.5},"人",{"$f":"IF(ISBLANK($A30),\"\",LOOKUP($A30,単価表!$A$5:$A$1162,単価表!$G$5:$G$1162))","v":40500},303750]
[]
[]
[1,"型枠CB","型枠CB擁壁","H=2.0ｍﾀｲﾌﾟ\n",10,"ｍ",{"$f":"ROUND(H33/E33,0)","v":153115},{"$f":"SUM(H34:INDEX(H34:H$155,IFERROR(MATCH(1,$A34:$A$155,0),ROWS($A34:$A$155)+1)-1))","v":1531151}]
[null,null,"基礎工","W2700 RC:t=150 FC:t=50",{"$f":"+E33","v":10},"ｍ",{"$f":"IF(E34=0,\"\",ROUND(SUM(H35:H44)/E34,0))","v":12122}]
[80000,null,{"$f":"IF(ISBLANK($A35),\"\",LOOKUP($A35,単価表!$A$5:$A$1162,単価表!$B$5:$B$1162))","v":"所要日数"},40,{"$f":"CEILING(E34/D35,0.01)","v":0.25},"日",{"$f":"IF(ISBLANK($A35),\"\",LOOKUP($A35,単価表!$A$5:$A$1162,単価表!$G$5:$G$1162))","v":0},{"$f":"IF(ISBLANK($A35),\"\",ROUND(E35*G35,0))","v":0}]
[10201,null,{"$f":"IF(ISBLANK($A36),\"\",LOOKUP($A36,単価表!$A$5:$A$1162,単価表!$B$5:$B$1162))","v":"RC-40(ﾌﾟﾗﾝﾄ)　小型"},{"$f":"2.7*0.15*1.7*1.28","v":0.88128000000000006},{"$f":"CEILING(E34*D36,0.01)","v":8.82},"ｔ",{"$f":"IF(ISBLANK($A36),\"\",LOOKUP($A36,単価表!$A$5:$A$1162,単価表!$G$5:$G$1162))","v":4500},39690]
[10514,null,{"$f":"IF(ISBLANK($A37),\"\",LOOKUP($A37,単価表!$A$5:$A$1162,単価表!$B$5:$B$1162))","v":"型枠　Ａ"},{"$f":"0.05*2","v":0.1},{"$f":"CEILING(E34*D37,0.01)","v":1},"ｍ2",{"$f":"IF(ISBLANK($A37),\"\",LOOKUP($A37,単価表!$A$5:$A$1162,単価表!$G$5:$G$1162))","v":1500},1500]
[10501,null,{"$f":"IF(ISBLANK($A38),\"\",LOOKUP($A38,単価表!$A$5:$A$1162,単価表!$B$5:$B$1162))","v":"生ｺﾝｸﾘｰﾄ　18-8　小型"},{"$f":"2.7*0.05*1.06","v":0.1431},{"$f":"CEILING(E34*D38,0.01)","v":1.44},"ｍ3",{"$f":"IF(ISBLANK($A38),\"\",LOOKUP($A38,単価表!$A$5:$A$1162,単価表!$G$5:$G$1162))","v":29400},42336]
[40012,null,{"$f":"IF(ISBLANK($A39),\"\",LOOKUP($A39,単価表!$A$5:$A$1162,単価表!$B$5:$B$1162))","v":"小旋回0.18ﾊﾞｯｸﾎｳ"},{"$f":"IF(ISBLANK($A39),\"\",IF(LOOKUP($A39,単価表!$A$5:$A$1162,単価表!$C$5:$C$1162)=0,\"\",LOOKUP($A39,単価表!$A$5:$A$1162,単価表!$C$5:$C$1162)))","v":""},{"$f":"+E35","v":0.25},"台",{"$f":"IF(ISBLANK($A39),\"\",LOOKUP($A39,単価表!$A$5:$A$1162,単価表!$G$5:$G$1162))","v":11250},2813]
[41002,null,{"$f":"IF(ISBLANK($A40),\"\",LOOKUP($A40,単価表!$A$5:$A$1162,単価表!$B$5:$B$1162))","v":"自社ﾀﾞﾝﾌﾟ"},{"$f":"IF(ISBLANK($A40),\"\",IF(LOOKUP($A40,単価表!$A$5:$A$1162,単価表!$C$5:$C$1162)=0,\"\",LOOKUP($A40,単価表!$A$5:$A$1162,単価表!$C$5:$C$1162)))","v":""},{"$f":"+E35","v":0.25},"台",{"$f":"IF(ISBLANK($A40),\"\",LOOKUP($A40,単価表!$A$5:$A$1162,単価表!$G$5:$G$1162))","v":9000},2250]
[40023,null,{"$f":"IF(ISBLANK($A41),\"\",LOOKUP($A41,単価表!$A$5:$A$1162,単価表!$B$5:$B$1162))","v":"諸機械 発電器,ｅｔｃ"},null,{"$f":"+E35","v":0.25},"台",{"$f":"IF(ISBLANK($A41),\"\",LOOKUP($A41,単価表!$A$5:$A$1162,単価表!$G$5:$G$1162))","v":2250},563]
[40001,null,{"$f":"IF(ISBLANK($A42),\"\",LOOKUP($A42,単価表!$A$5:$A$1162,単価表!$B$5:$B$1162))","v":"ﾗﾝﾏｰ･ﾌﾟﾚｰﾄ"},null,{"$f":"+E35","v":0.25},"台",{"$f":"IF(ISBLANK($A42),\"\",LOOKUP($A42,単価表!$A$5:$A$1162,単価表!$G$5:$G$1162))","v":765},191]
[40000,null,{"$f":"IF(ISBLANK($A43),\"\",LOOKUP($A43,単価表!$A$5:$A$1162,単価表!$B$5:$B$1162))","v":"油脂燃料"},null,{"$f":"SUM(E39:E42)","v":1},"台日",{"$f":"IF(ISBLANK($A43),\"\",LOOKUP($A43,単価表!$A$5:$A$1162,単価表!$G$5:$G$1162))","v":1500},1500]
[20100,null,{"$f":"IF(ISBLANK($A44),\"\",LOOKUP($A44,単価表!$A$5:$A$1162,単価表!$B$5:$B$1162))","v":"作業員　昼間"},3,{"$f":"+E35*D44","v":0.75},"人",{"$f":"IF(ISBLANK($A44),\"\",LOOKUP($A44,単価表!$A$5:$A$1162,単価表!$G$5:$G$1162))","v":40500},30375]
[null,null,"耐圧版打設",null,{"$f":"+E33","v":10},"ｍ",{"$f":"IF(E45=0,\"\",ROUND(SUM(H46:H57)/E45,0))","v":69405}]
[80000,null,{"$f":"IF(ISBLANK($A46),\"\",LOOKUP($A46,単価表!$A$5:$A$1162,単価表!$B$5:$B$1162))","v":"所要日数"},8.4,{"$f":"CEILING(E45/D46,0.01)","v":1.2},"日",{"$f":"IF(ISBLANK($A46),\"\",LOOKUP($A46,単価表!$A$5:$A$1162,単価表!$G$5:$G$1162))","v":0},{"$f":"IF(ISBLANK($A46),\"\",ROUND(E46*G46,0))","v":0}]
[10518,null,{"$f":"IF(ISBLANK($A47),\"\",LOOKUP($A47,単価表!$A$5:$A$1162,単価表!$B$5:$B$1162))","v":"型枠擁壁"},{"$f":"0.3*2*1.05","v":0.63},{"$f":"CEILING(E45*D47,0.01)","v":6.3},"ｍ2",{"$f":"IF(ISBLANK($A47),\"\",LOOKUP($A47,単価表!$A$5:$A$1162,単価表!$G$5:$G$1162))","v":9750},61425]
[12101,null,{"$f":"IF(ISBLANK($A48),\"\",LOOKUP($A48,単価表!$A$5:$A$1162,単価表!$B$5:$B$1162))","v":"鉄筋工　小規模(kg)"},{"$f":"2.5*(9.95+1.56)*1.4","v":40.284999999999997},{"$f":"CEILING(E45*D48,0.1)","v":402.90000000000003},"kg",{"$f":"IF(ISBLANK($A48),\"\",LOOKUP($A48,単価表!$A$5:$A$1162,単価表!$G$5:$G$1162))","v":300},120870]
[10501,null,{"$f":"IF(ISBLANK($A49),\"\",LOOKUP($A49,単価表!$A$5:$A$1162,単価表!$B$5:$B$1162))","v":"生ｺﾝｸﾘｰﾄ　18-8　小型"},{"$f":"2.5*0.26*1.06","v":0.68900000000000006},{"$f":"CEILING(E45*D49,0.5)","v":7},"ｍ3",{"$f":"IF(ISBLANK($A49),\"\",LOOKUP($A49,単価表!$A$5:$A$1162,単価表!$G$5:$G$1162))","v":29400},205800]
[99999,null,"諸雑費","ボイド等",{"$f":"+E45","v":10},"ｍ",100,1000]
[40049,null,{"$f":"IF(ISBLANK($A51),\"\",LOOKUP($A51,単価表!$A$5:$A$1162,単価表!$B$5:$B$1162))","v":"ﾎﾟﾝﾌﾟ車"},6,{"$f":"SUM(E49:E49)/D51","v":1.1666666666666667},"台",{"$f":"IF(ISBLANK($A51),\"\",LOOKUP($A51,単価表!$A$5:$A$1162,単価表!$G$5:$G$1162))","v":67500},78750]
[99999,null,"足場組立",{"$f":"2*2","v":4},{"$f":"CEILING(E45*D52,0.01)","v":40},"掛ｍ2",1200,48000]
[40012,null,{"$f":"IF(ISBLANK($A53),\"\",LOOKUP($A53,単価表!$A$5:$A$1162,単価表!$B$5:$B$1162))","v":"小旋回0.18ﾊﾞｯｸﾎｳ"},{"$f":"IF(ISBLANK($A53),\"\",IF(LOOKUP($A53,単価表!$A$5:$A$1162,単価表!$C$5:$C$1162)=0,\"\",LOOKUP($A53,単価表!$A$5:$A$1162,単価表!$C$5:$C$1162)))","v":""},{"$f":"+E46","v":1.2},"台",{"$f":"IF(ISBLANK($A53),\"\",LOOKUP($A53,単価表!$A$5:$A$1162,単価表!$G$5:$G$1162))","v":11250},13500]
[41002,null,{"$f":"IF(ISBLANK($A54),\"\",LOOKUP($A54,単価表!$A$5:$A$1162,単価表!$B$5:$B$1162))","v":"自社ﾀﾞﾝﾌﾟ"},{"$f":"IF(ISBLANK($A54),\"\",IF(LOOKUP($A54,単価表!$A$5:$A$1162,単価表!$C$5:$C$1162)=0,\"\",LOOKUP($A54,単価表!$A$5:$A$1162,単価表!$C$5:$C$1162)))","v":""},{"$f":"+E46","v":1.2},"台",{"$f":"IF(ISBLANK($A54),\"\",LOOKUP($A54,単価表!$A$5:$A$1162,単価表!$G$5:$G$1162))","v":9000},10800]
[40023,null,{"$f":"IF(ISBLANK($A55),\"\",LOOKUP($A55,単価表!$A$5:$A$1162,単価表!$B$5:$B$1162))","v":"諸機械 発電器,ｅｔｃ"},null,{"$f":"+E46","v":1.2},"台",{"$f":"IF(ISBLANK($A55),\"\",LOOKUP($A55,単価表!$A$5:$A$1162,単価表!$G$5:$G$1162))","v":2250},2700]
[40000,null,{"$f":"IF(ISBLANK($A56),\"\",LOOKUP($A56,単価表!$A$5:$A$1162,単価表!$B$5:$B$1162))","v":"油脂燃料"},null,{"$f":"SUM(E53:E55)","v":3.5999999999999996},"台日",{"$f":"IF(ISBLANK($A56),\"\",LOOKUP($A56,単価表!$A$5:$A$1162,単価表!$G$5:$G$1162))","v":1500},5400]
[20100,null,{"$f":"IF(ISBLANK($A57),\"\",LOOKUP($A57,単価表!$A$5:$A$1162,単価表!$B$5:$B$1162))","v":"作業員　昼間"},3,{"$f":"+E46*D57","v":3.5999999999999996},"人",{"$f":"IF(ISBLANK($A57),\"\",LOOKUP($A57,単価表!$A$5:$A$1162,単価表!$G$5:$G$1162))","v":40500},145800]
[null,null,"型枠CB積工","ｔ=270 11段積み",{"$f":"+E33","v":10},"ｍ",{"$f":"IF(E58=0,\"\",ROUND(SUM(H59:H65)/E58,0))","v":31854}]
[80000,null,{"$f":"IF(ISBLANK($A59),\"\",LOOKUP($A59,単価表!$A$5:$A$1162,単価表!$B$5:$B$1162))","v":"所要日数"},90,{"$f":"CEILING(E58/D59,0.01)","v":0.12},"日",{"$f":"IF(ISBLANK($A59),\"\",LOOKUP($A59,単価表!$A$5:$A$1162,単価表!$G$5:$G$1162))","v":0},{"$f":"IF(ISBLANK($A59),\"\",ROUND(E59*G59,0))","v":0}]
[99999,null,"型枠ＣＢ W=270 材料費 基本",9,{"$f":"CEILING(E58/0.4*D60,D60)","v":225},"個",1040,234000]
[99999,null,"型枠ＣＢ W=270 材料費 基本ﾊﾝﾁ",2,{"$f":"CEILING(E58/0.4*D61,D61)","v":50},"個",1365,68250]
[40023,null,{"$f":"IF(ISBLANK($A62),\"\",LOOKUP($A62,単価表!$A$5:$A$1162,単価表!$B$5:$B$1162))","v":"諸機械 発電器,ｅｔｃ"},{"$f":"IF(ISBLANK($A62),\"\",IF(LOOKUP($A62, 単価表!$A$5:$A$1162, 単価表!$C$5:$C$1162)=0,\"\",LOOKUP($A62, 単価表!$A$5:$A$1162, 単価表!$C$5:$C$1162)))","v":""},{"$f":"+E59","v":0.12},"台",{"$f":"IF(ISBLANK($A62),\"\",LOOKUP($A62,単価表!$A$5:$A$1162,単価表!$G$5:$G$1162))","v":2250},270]
[41002,null,{"$f":"IF(ISBLANK($A63),\"\",LOOKUP($A63,単価表!$A$5:$A$1162,単価表!$B$5:$B$1162))","v":"自社ﾀﾞﾝﾌﾟ"},{"$f":"IF(ISBLANK($A63),\"\",IF(LOOKUP($A63, 単価表!$A$5:$A$1162, 単価表!$C$5:$C$1162)=0,\"\",LOOKUP($A63, 単価表!$A$5:$A$1162, 単価表!$C$5:$C$1162)))","v":""},{"$f":"+E59","v":0.12},"台",{"$f":"IF(ISBLANK($A63),\"\",LOOKUP($A63,単価表!$A$5:$A$1162,単価表!$G$5:$G$1162))","v":9000},1080]
[40000,null,{"$f":"IF(ISBLANK($A64),\"\",LOOKUP($A64,単価表!$A$5:$A$1162,単価表!$B$5:$B$1162))","v":"油脂燃料"},{"$f":"IF(ISBLANK($A64),\"\",IF(LOOKUP($A64, 単価表!$A$5:$A$1162, 単価表!$C$5:$C$1162)=0,\"\",LOOKUP($A64, 単価表!$A$5:$A$1162, 単価表!$C$5:$C$1162)))","v":""},{"$f":"SUM(E62:E63)","v":0.24},"台日",{"$f":"IF(ISBLANK($A64),\"\",LOOKUP($A64,単価表!$A$5:$A$1162,単価表!$G$5:$G$1162))","v":1500},360]
[20100,null,{"$f":"IF(ISBLANK($A65),\"\",LOOKUP($A65,単価表!$A$5:$A$1162,単価表!$B$5:$B$1162))","v":"作業員　昼間"},3,{"$f":"+E59*D65","v":0.36},"人",{"$f":"IF(ISBLANK($A65),\"\",LOOKUP($A65,単価表!$A$5:$A$1162,単価表!$G$5:$G$1162))","v":40500},14580]
[null,null,"生コン打設",{"$f":"SUM(D60:D61)*0.2*0.1654*1.06","v":0.38571280000000008},{"$f":"CEILING(E58*D66,0.5)","v":4},"ｍ3",{"$f":"IF(E66=0,\"\",ROUND(SUM(H67:H73)/E66,0))","v":57994}]
[80000,null,{"$f":"IF(ISBLANK($A67),\"\",LOOKUP($A67,単価表!$A$5:$A$1162,単価表!$B$5:$B$1162))","v":"所要日数"},13.5,{"$f":"CEILING(E66/D67,0.01)","v":0.3},"日",{"$f":"IF(ISBLANK($A67),\"\",LOOKUP($A67,単価表!$A$5:$A$1162,単価表!$G$5:$G$1162))","v":0},{"$f":"IF(ISBLANK($A67),\"\",ROUND(E67*G67,0))","v":0}]
[10503,null,{"$f":"IF(ISBLANK($A68),\"\",LOOKUP($A68,単価表!$A$5:$A$1162,単価表!$B$5:$B$1162))","v":"生ｺﾝｸﾘｰﾄ　21-8　小型"},1,{"$f":"CEILING(E66*D68,0.5)","v":4},"ｍ3",{"$f":"IF(ISBLANK($A68),\"\",LOOKUP($A68,単価表!$A$5:$A$1162,単価表!$G$5:$G$1162))","v":30150},120600]
[40049,null,{"$f":"IF(ISBLANK($A69),\"\",LOOKUP($A69,単価表!$A$5:$A$1162,単価表!$B$5:$B$1162))","v":"ﾎﾟﾝﾌﾟ車"},15,{"$f":"CEILING(E66/D69,1)","v":1},"台",{"$f":"IF(ISBLANK($A69),\"\",LOOKUP($A69,単価表!$A$5:$A$1162,単価表!$G$5:$G$1162))","v":67500},67500]
[40023,null,{"$f":"IF(ISBLANK($A70),\"\",LOOKUP($A70,単価表!$A$5:$A$1162,単価表!$B$5:$B$1162))","v":"諸機械 発電器,ｅｔｃ"},{"$f":"IF(ISBLANK($A70),\"\",IF(LOOKUP($A70, 単価表!$A$5:$A$1162, 単価表!$C$5:$C$1162)=0,\"\",LOOKUP($A70, 単価表!$A$5:$A$1162, 単価表!$C$5:$C$1162)))","v":""},{"$f":"+E67","v":0.3},"台",{"$f":"IF(ISBLANK($A70),\"\",LOOKUP($A70,単価表!$A$5:$A$1162,単価表!$G$5:$G$1162))","v":2250},675]
[41002,null,{"$f":"IF(ISBLANK($A71),\"\",LOOKUP($A71,単価表!$A$5:$A$1162,単価表!$B$5:$B$1162))","v":"自社ﾀﾞﾝﾌﾟ"},{"$f":"IF(ISBLANK($A71),\"\",IF(LOOKUP($A71, 単価表!$A$5:$A$1162, 単価表!$C$5:$C$1162)=0,\"\",LOOKUP($A71, 単価表!$A$5:$A$1162, 単価表!$C$5:$C$1162)))","v":""},{"$f":"+E67*2","v":0.6},"台",{"$f":"IF(ISBLANK($A71),\"\",LOOKUP($A71,単価表!$A$5:$A$1162,単価表!$G$5:$G$1162))","v":9000},5400]
[40000,null,{"$f":"IF(ISBLANK($A72),\"\",LOOKUP($A72,単価表!$A$5:$A$1162,単価表!$B$5:$B$1162))","v":"油脂燃料"},{"$f":"IF(ISBLANK($A72),\"\",IF(LOOKUP($A72, 単価表!$A$5:$A$1162, 単価表!$C$5:$C$1162)=0,\"\",LOOKUP($A72, 単価表!$A$5:$A$1162, 単価表!$C$5:$C$1162)))","v":""},{"$f":"SUM(E70:E71)","v":0.89999999999999991},"台日",{"$f":"IF(ISBLANK($A72),\"\",LOOKUP($A72,単価表!$A$5:$A$1162,単価表!$G$5:$G$1162))","v":1500},1350]
[20100,null,{"$f":"IF(ISBLANK($A73),\"\",LOOKUP($A73,単価表!$A$5:$A$1162,単価表!$B$5:$B$1162))","v":"作業員　昼間"},3,{"$f":"+E67*D73","v":0.89999999999999991},"人",{"$f":"IF(ISBLANK($A73),\"\",LOOKUP($A73,単価表!$A$5:$A$1162,単価表!$G$5:$G$1162))","v":40500},36450]
[null,null,"裏込め工","W=300 FC=50 RC=1650",{"$f":"+E33","v":10},"ｍ",{"$f":"IF(E74=0,\"\",ROUND(SUM(H75:H87)/E74,0))","v":16537}]
[80000,null,{"$f":"IF(ISBLANK($A75),\"\",LOOKUP($A75,単価表!$A$5:$A$1162,単価表!$B$5:$B$1162))","v":"所要日数"},20,{"$f":"CEILING(E74/D75,0.01)","v":0.5},"日",{"$f":"IF(ISBLANK($A75),\"\",LOOKUP($A75,単価表!$A$5:$A$1162,単価表!$G$5:$G$1162))","v":0},{"$f":"IF(ISBLANK($A75),\"\",ROUND(E75*G75,0))","v":0}]
[10514,null,{"$f":"IF(ISBLANK($A76),\"\",LOOKUP($A76,単価表!$A$5:$A$1162,単価表!$B$5:$B$1162))","v":"型枠　Ａ"},0.05,{"$f":"CEILING(E74*D76,0.01)","v":0.5},"ｍ2",{"$f":"IF(ISBLANK($A76),\"\",LOOKUP($A76,単価表!$A$5:$A$1162,単価表!$G$5:$G$1162))","v":1500},750]
[10507,null,{"$f":"IF(ISBLANK($A77),\"\",LOOKUP($A77,単価表!$A$5:$A$1162,単価表!$B$5:$B$1162))","v":"生ｺﾝｸﾘｰﾄ　擁壁　小型"},{"$f":"0.3*0.05*1.04","v":1.5599999999999999E-2},{"$f":"CEILING(E74*D77,0.5)","v":0.5},"ｍ3",{"$f":"IF(ISBLANK($A77),\"\",LOOKUP($A77,単価表!$A$5:$A$1162,単価表!$G$5:$G$1162))","v":30900},15450]
[10000,null,"透水マット",{"$f":"1.65*1.2","v":1.9799999999999998},{"$f":"CEILING(E74*D78,5)","v":20},"ｍ2",2920,58400]
[10200,null,{"$f":"IF(ISBLANK($A79),\"\",LOOKUP($A79,単価表!$A$5:$A$1162,単価表!$B$5:$B$1162))","v":"RC-40(ﾌﾟﾗﾝﾄ)　大型"},{"$f":"0.3*1.65*1.28","v":0.63359999999999994},{"$f":"CEILING(E74*D79,0.01)","v":6.34},"ｔ",{"$f":"IF(ISBLANK($A79),\"\",LOOKUP($A79,単価表!$A$5:$A$1162,単価表!$G$5:$G$1162))","v":2250},14265]
[99999,null,"諸雑費","ボイド等",{"$f":"+E74","v":10},"ｍ",300,3000]
[40012,null,{"$f":"IF(ISBLANK($A81),\"\",LOOKUP($A81,単価表!$A$5:$A$1162,単価表!$B$5:$B$1162))","v":"小旋回0.18ﾊﾞｯｸﾎｳ"},{"$f":"IF(ISBLANK($A81),\"\",IF(LOOKUP($A81,単価表!$A$5:$A$1162,単価表!$C$5:$C$1162)=0,\"\",LOOKUP($A81,単価表!$A$5:$A$1162,単価表!$C$5:$C$1162)))","v":""},{"$f":"+E75","v":0.5},"台",{"$f":"IF(ISBLANK($A81),\"\",LOOKUP($A81,単価表!$A$5:$A$1162,単価表!$G$5:$G$1162))","v":11250},5625]
[41002,null,{"$f":"IF(ISBLANK($A82),\"\",LOOKUP($A82,単価表!$A$5:$A$1162,単価表!$B$5:$B$1162))","v":"自社ﾀﾞﾝﾌﾟ"},{"$f":"IF(ISBLANK($A82),\"\",IF(LOOKUP($A82,単価表!$A$5:$A$1162,単価表!$C$5:$C$1162)=0,\"\",LOOKUP($A82,単価表!$A$5:$A$1162,単価表!$C$5:$C$1162)))","v":""},{"$f":"+E75","v":0.5},"台",{"$f":"IF(ISBLANK($A82),\"\",LOOKUP($A82,単価表!$A$5:$A$1162,単価表!$G$5:$G$1162))","v":9000},4500]
[40001,null,{"$f":"IF(ISBLANK($A83),\"\",LOOKUP($A83,単価表!$A$5:$A$1162,単価表!$B$5:$B$1162))","v":"ﾗﾝﾏｰ･ﾌﾟﾚｰﾄ"},null,{"$f":"+E75","v":0.5},"台",{"$f":"IF(ISBLANK($A83),\"\",LOOKUP($A83,単価表!$A$5:$A$1162,単価表!$G$5:$G$1162))","v":765},383]
[40000,null,{"$f":"IF(ISBLANK($A84),\"\",LOOKUP($A84,単価表!$A$5:$A$1162,単価表!$B$5:$B$1162))","v":"油脂燃料"},null,{"$f":"SUM(E81:E83)","v":1.5},"台日",{"$f":"IF(ISBLANK($A84),\"\",LOOKUP($A84,単価表!$A$5:$A$1162,単価表!$G$5:$G$1162))","v":1500},2250]
[20100,null,{"$f":"IF(ISBLANK($A85),\"\",LOOKUP($A85,単価表!$A$5:$A$1162,単価表!$B$5:$B$1162))","v":"作業員　昼間"},3,{"$f":"+E75*D85","v":1.5},"人",{"$f":"IF(ISBLANK($A85),\"\",LOOKUP($A85,単価表!$A$5:$A$1162,単価表!$G$5:$G$1162))","v":40500},60750]
[]
[]
[1,"石積擁壁","石積擁壁工","H=2.00ｍ 65゜\n基礎共",50,"ｍ",{"$f":"ROUND(H88/E88,0)","v":71923},{"$f":"SUM(H89:INDEX(H89:H$155,IFERROR(MATCH(1,$A89:$A$155,0),ROWS($A89:$A$155)+1)-1))","v":3596166}]
[null,null,"基礎砕石工","H=1.0～3.0 W700 RC:t=150",{"$f":"+E88*0.7","v":35},"ｍ2",{"$f":"IF(E89=0,\"\",ROUND(SUM(H90:H96)/E89,0))","v":2608}]
[80000,null,{"$f":"IF(ISBLANK($A90),\"\",LOOKUP($A90,単価表!$A$5:$A$1162,単価表!$B$5:$B$1162))","v":"所要日数"},75.599999999999994,{"$f":"CEILING(E89/D90,0.01)","v":0.47000000000000003},"日",{"$f":"IF(ISBLANK($A90),\"\",LOOKUP($A90,単価表!$A$5:$A$1162,単価表!$G$5:$G$1162))","v":0},{"$f":"IF(ISBLANK($A90),\"\",ROUND(E90*G90,0))","v":0}]
[10200,null,{"$f":"IF(ISBLANK($A91),\"\",LOOKUP($A91,単価表!$A$5:$A$1162,単価表!$B$5:$B$1162))","v":"RC-40(ﾌﾟﾗﾝﾄ)　大型"},{"$f":"0.7*0.15","v":0.105},{"$f":"CEILING(E88*D91*1.28,0.01)","v":6.72},"ｔ",{"$f":"IF(ISBLANK($A91),\"\",LOOKUP($A91,単価表!$A$5:$A$1162,単価表!$G$5:$G$1162))","v":2250},15120]
[40013,null,{"$f":"IF(ISBLANK($A92),\"\",LOOKUP($A92,単価表!$A$5:$A$1162,単価表!$B$5:$B$1162))","v":"小旋回0.25ﾊﾞｯｸﾎｳ"},{"$f":"IF(ISBLANK($A92),\"\",IF(LOOKUP($A92,単価表!$A$5:$A$1162,単価表!$C$5:$C$1162)=0,\"\",LOOKUP($A92,単価表!$A$5:$A$1162,単価表!$C$5:$C$1162)))","v":""},{"$f":"+E90","v":0.47000000000000003},"台",{"$f":"IF(ISBLANK($A92),\"\",LOOKUP($A92,単価表!$A$5:$A$1162,単価表!$G$5:$G$1162))","v":13500},6345]
[40001,null,{"$f":"IF(ISBLANK($A93),\"\",LOOKUP($A93,単価表!$A$5:$A$1162,単価表!$B$5:$B$1162))","v":"ﾗﾝﾏｰ･ﾌﾟﾚｰﾄ"},{"$f":"IF(ISBLANK($A93),\"\",IF(LOOKUP($A93,単価表!$A$5:$A$1162,単価表!$C$5:$C$1162)=0,\"\",LOOKUP($A93,単価表!$A$5:$A$1162,単価表!$C$5:$C$1162)))","v":""},{"$f":"+E90*2","v":0.94000000000000006},"台",{"$f":"IF(ISBLANK($A93),\"\",LOOKUP($A93,単価表!$A$5:$A$1162,単価表!$G$5:$G$1162))","v":765},719]
[41002,null,{"$f":"IF(ISBLANK($A94),\"\",LOOKUP($A94,単価表!$A$5:$A$1162,単価表!$B$5:$B$1162))","v":"自社ﾀﾞﾝﾌﾟ"},{"$f":"IF(ISBLANK($A94),\"\",IF(LOOKUP($A94,単価表!$A$5:$A$1162,単価表!$C$5:$C$1162)=0,\"\",LOOKUP($A94,単価表!$A$5:$A$1162,単価表!$C$5:$C$1162)))","v":""},{"$f":"+E90*2","v":0.94000000000000006},"台",{"$f":"IF(ISBLANK($A94),\"\",LOOKUP($A94,単価表!$A$5:$A$1162,単価表!$G$5:$G$1162))","v":9000},8460]
[40000,null,{"$f":"IF(ISBLANK($A95),\"\",LOOKUP($A95,単価表!$A$5:$A$1162,単価表!$B$5:$B$1162))","v":"油脂燃料"},null,{"$f":"SUM(E92:E94)","v":2.35},"台日",{"$f":"IF(ISBLANK($A95),\"\",LOOKUP($A95,単価表!$A$5:$A$1162,単価表!$G$5:$G$1162))","v":1500},3525]
[20100,null,{"$f":"IF(ISBLANK($A96),\"\",LOOKUP($A96,単価表!$A$5:$A$1162,単価表!$B$5:$B$1162))","v":"作業員　昼間"},3,{"$f":"E90*D96","v":1.4100000000000001},"人",{"$f":"IF(ISBLANK($A96),\"\",LOOKUP($A96,単価表!$A$5:$A$1162,単価表!$G$5:$G$1162))","v":40500},57105]
[null,null,"小型構造物（基礎躯体）","FC H=350/200 W600 ",{"$f":"+E99","v":9.36},"ｍ3",{"$f":"IF(E97=0,\"\",ROUND(SUM(H98:H105)/E97,0))","v":58131}]
[80000,null,{"$f":"IF(ISBLANK($A98),\"\",LOOKUP($A98,単価表!$A$5:$A$1162,単価表!$B$5:$B$1162))","v":"所要日数"},15,{"$f":"CEILING(E97/D98,0.01)","v":0.63},"日",{"$f":"IF(ISBLANK($A98),\"\",LOOKUP($A98,単価表!$A$5:$A$1162,単価表!$G$5:$G$1162))","v":0},{"$f":"IF(ISBLANK($A98),\"\",ROUND(E98*G98,0))","v":0}]
[10500,null,{"$f":"IF(ISBLANK($A99),\"\",LOOKUP($A99,単価表!$A$5:$A$1162,単価表!$B$5:$B$1162))","v":"生ｺﾝｸﾘｰﾄ　18-8　大型"},{"$f":"(0.35+0.2)/2*0.4+0.35*0.2","v":0.18},{"$f":"CEILING(E88*D99*1.04,0.01)","v":9.36},"ｍ3",{"$f":"IF(ISBLANK($A99),\"\",LOOKUP($A99,単価表!$A$5:$A$1162,単価表!$G$5:$G$1162))","v":27900},261144]
[10516,null,{"$f":"IF(ISBLANK($A100),\"\",LOOKUP($A100,単価表!$A$5:$A$1162,単価表!$B$5:$B$1162))","v":"型枠小型構造物"},{"$f":"IF(ISBLANK($A100),\"\",IF(LOOKUP($A100,単価表!$A$5:$A$1162,単価表!$C$5:$C$1162)=0,\"\",LOOKUP($A100,単価表!$A$5:$A$1162,単価表!$C$5:$C$1162)))","v":""},{"$f":"+E88*(0.35+0.2)","v":27.500000000000004},"ｍ2",{"$f":"IF(ISBLANK($A100),\"\",LOOKUP($A100,単価表!$A$5:$A$1162,単価表!$G$5:$G$1162))","v":6750},185625]
[40013,null,{"$f":"IF(ISBLANK($A101),\"\",LOOKUP($A101,単価表!$A$5:$A$1162,単価表!$B$5:$B$1162))","v":"小旋回0.25ﾊﾞｯｸﾎｳ"},{"$f":"IF(ISBLANK($A101),\"\",IF(LOOKUP($A101,単価表!$A$5:$A$1162,単価表!$C$5:$C$1162)=0,\"\",LOOKUP($A101,単価表!$A$5:$A$1162,単価表!$C$5:$C$1162)))","v":""},{"$f":"+E98","v":0.63},"台",{"$f":"IF(ISBLANK($A101),\"\",LOOKUP($A101,単価表!$A$5:$A$1162,単価表!$G$5:$G$1162))","v":13500},8505]
[40023,null,{"$f":"IF(ISBLANK($A102),\"\",LOOKUP($A102,単価表!$A$5:$A$1162,単価表!$B$5:$B$1162))","v":"諸機械 発電器,ｅｔｃ"},{"$f":"IF(ISBLANK($A102),\"\",IF(LOOKUP($A102,単価表!$A$5:$A$1162,単価表!$C$5:$C$1162)=0,\"\",LOOKUP($A102,単価表!$A$5:$A$1162,単価表!$C$5:$C$1162)))","v":""},{"$f":"+E98*2","v":1.26},"台",{"$f":"IF(ISBLANK($A102),\"\",LOOKUP($A102,単価表!$A$5:$A$1162,単価表!$G$5:$G$1162))","v":2250},2835]
[41002,null,{"$f":"IF(ISBLANK($A103),\"\",LOOKUP($A103,単価表!$A$5:$A$1162,単価表!$B$5:$B$1162))","v":"自社ﾀﾞﾝﾌﾟ"},{"$f":"IF(ISBLANK($A103),\"\",IF(LOOKUP($A103,単価表!$A$5:$A$1162,単価表!$C$5:$C$1162)=0,\"\",LOOKUP($A103,単価表!$A$5:$A$1162,単価表!$C$5:$C$1162)))","v":""},{"$f":"+E98","v":0.63},"台",{"$f":"IF(ISBLANK($A103),\"\",LOOKUP($A103,単価表!$A$5:$A$1162,単価表!$G$5:$G$1162))","v":9000},5670]
[40000,null,{"$f":"IF(ISBLANK($A104),\"\",LOOKUP($A104,単価表!$A$5:$A$1162,単価表!$B$5:$B$1162))","v":"油脂燃料"},null,{"$f":"SUM(E101:E103)","v":2.52},"台日",{"$f":"IF(ISBLANK($A104),\"\",LOOKUP($A104,単価表!$A$5:$A$1162,単価表!$G$5:$G$1162))","v":1500},3780]
[20100,null,{"$f":"IF(ISBLANK($A105),\"\",LOOKUP($A105,単価表!$A$5:$A$1162,単価表!$B$5:$B$1162))","v":"作業員　昼間"},3,{"$f":"E98*D105","v":1.8900000000000001},"人",{"$f":"IF(ISBLANK($A105),\"\",LOOKUP($A105,単価表!$A$5:$A$1162,単価表!$G$5:$G$1162))","v":40500},76545]
[null,null,"石積工",null,{"$f":"+E88*2","v":100},"ｍ2",{"$f":"IF(E106=0,\"\",ROUND(SUM(H107:H121)/E106,0))","v":29608}]
[80000,null,{"$f":"IF(ISBLANK($A107),\"\",LOOKUP($A107,単価表!$A$5:$A$1162,単価表!$B$5:$B$1162))","v":"所要日数"},20,{"$f":"CEILING(E106/D107,0.01)","v":5},"日",{"$f":"IF(ISBLANK($A107),\"\",LOOKUP($A107,単価表!$A$5:$A$1162,単価表!$G$5:$G$1162))","v":0},{"$f":"IF(ISBLANK($A107),\"\",ROUND(E107*G107,0))","v":0}]
[99999,null,"間知ブロック",null,{"$f":"CEILING(E106*7.4*1.01,0.01)","v":747.4},"個",700,523180]
[10500,null,{"$f":"IF(ISBLANK($A109),\"\",LOOKUP($A109,単価表!$A$5:$A$1162,単価表!$B$5:$B$1162))","v":"生ｺﾝｸﾘｰﾄ　18-8　大型"},null,{"$f":"CEILING(E106*0.303*1.04,0.01)","v":31.52},"ｍ3",{"$f":"IF(ISBLANK($A109),\"\",LOOKUP($A109,単価表!$A$5:$A$1162,単価表!$G$5:$G$1162))","v":27900},879408]
[10200,null,{"$f":"IF(ISBLANK($A110),\"\",LOOKUP($A110,単価表!$A$5:$A$1162,単価表!$B$5:$B$1162))","v":"RC-40(ﾌﾟﾗﾝﾄ)　大型"},null,{"$f":"CEILING(E106*0.3*1.28,0.01)","v":38.4},"ｔ",{"$f":"IF(ISBLANK($A110),\"\",LOOKUP($A110,単価表!$A$5:$A$1162,単価表!$G$5:$G$1162))","v":2250},86400]
[99999,null,"水抜きﾊﾟｲﾌﾟ","φ75",{"$f":"+E106*0.2","v":20},"ｍ",645,12900]
[99999,null,"足場組立",null,{"$f":"CEILING(E106*1,0.1)","v":100},"掛ｍ2",1200,120000]
[40056,null,{"$f":"IF(ISBLANK($A113),\"\",LOOKUP($A113,単価表!$A$5:$A$1162,単価表!$B$5:$B$1162))","v":"ﾗﾌﾀｰｸﾚｰﾝ 13ｔ"},null,{"$f":"+E106*0.04","v":4},"台",{"$f":"IF(ISBLANK($A113),\"\",LOOKUP($A113,単価表!$A$5:$A$1162,単価表!$G$5:$G$1162))","v":90000},360000]
[40013,null,{"$f":"IF(ISBLANK($A114),\"\",LOOKUP($A114,単価表!$A$5:$A$1162,単価表!$B$5:$B$1162))","v":"小旋回0.25ﾊﾞｯｸﾎｳ"},null,{"$f":"+E107","v":5},"台",{"$f":"IF(ISBLANK($A114),\"\",LOOKUP($A114,単価表!$A$5:$A$1162,単価表!$G$5:$G$1162))","v":13500},67500]
[40023,null,{"$f":"IF(ISBLANK($A115),\"\",LOOKUP($A115,単価表!$A$5:$A$1162,単価表!$B$5:$B$1162))","v":"諸機械 発電器,ｅｔｃ"},null,{"$f":"+E107","v":5},"台",{"$f":"IF(ISBLANK($A115),\"\",LOOKUP($A115,単価表!$A$5:$A$1162,単価表!$G$5:$G$1162))","v":2250},11250]
[40001,null,{"$f":"IF(ISBLANK($A116),\"\",LOOKUP($A116,単価表!$A$5:$A$1162,単価表!$B$5:$B$1162))","v":"ﾗﾝﾏｰ･ﾌﾟﾚｰﾄ"},null,{"$f":"+E107*2","v":10},"台",{"$f":"IF(ISBLANK($A116),\"\",LOOKUP($A116,単価表!$A$5:$A$1162,単価表!$G$5:$G$1162))","v":765},7650]
[40000,null,{"$f":"IF(ISBLANK($A117),\"\",LOOKUP($A117,単価表!$A$5:$A$1162,単価表!$B$5:$B$1162))","v":"油脂燃料"},null,{"$f":"SUM(E114:E116)","v":20},"台日",{"$f":"IF(ISBLANK($A117),\"\",LOOKUP($A117,単価表!$A$5:$A$1162,単価表!$G$5:$G$1162))","v":1500},30000]
[99999,null,"石積工",2,{"$f":"CEILING(E107*D118,0.1)","v":10},"人",25500,255000]
[20100,null,{"$f":"IF(ISBLANK($A119),\"\",LOOKUP($A119,単価表!$A$5:$A$1162,単価表!$B$5:$B$1162))","v":"作業員　昼間"},3,{"$f":"+E107*D119","v":15},"人",{"$f":"IF(ISBLANK($A119),\"\",LOOKUP($A119,単価表!$A$5:$A$1162,単価表!$G$5:$G$1162))","v":40500},607500]
[]
[]
[1,"プレキャスト擁壁","プレキャスト擁壁","地上高さ H=2.0ｍ",50,"ｍ",{"$f":"ROUND(H122/E122,0)","v":69715},{"$f":"SUM(H123:INDEX(H123:H$155,IFERROR(MATCH(1,$A123:$A$155,0),ROWS($A123:$A$155)+1)-1))","v":3485734}]
[null,null,"基礎工","W=1850 RC:t=150 FC:t=100",{"$f":"+E122","v":50},"ｍ",{"$f":"IF(E123=0,\"\",ROUND(SUM(H124:H133)/E123,0))","v":9000}]
[80000,null,{"$f":"IF(ISBLANK($A124),\"\",LOOKUP($A124,単価表!$A$5:$A$1162,単価表!$B$5:$B$1162))","v":"所要日数"},60,{"$f":"CEILING(E123/D124,0.01)","v":0.84},"日",{"$f":"IF(ISBLANK($A124),\"\",LOOKUP($A124,単価表!$A$5:$A$1162,単価表!$G$5:$G$1162))","v":0},{"$f":"IF(ISBLANK($A124),\"\",ROUND(E124*G124,0))","v":0}]
[10200,null,{"$f":"IF(ISBLANK($A125),\"\",LOOKUP($A125,単価表!$A$5:$A$1162,単価表!$B$5:$B$1162))","v":"RC-40(ﾌﾟﾗﾝﾄ)　大型"},{"$f":"1.85*0.15*1.28","v":0.35520000000000002},{"$f":"CEILING(E123*D125,0.01)","v":17.760000000000002},"ｔ",{"$f":"IF(ISBLANK($A125),\"\",LOOKUP($A125,単価表!$A$5:$A$1162,単価表!$G$5:$G$1162))","v":2250},39960]
[10514,null,{"$f":"IF(ISBLANK($A126),\"\",LOOKUP($A126,単価表!$A$5:$A$1162,単価表!$B$5:$B$1162))","v":"型枠　Ａ"},{"$f":"0.1*2","v":0.2},{"$f":"CEILING(E123*D126,0.01)","v":10},"ｍ2",{"$f":"IF(ISBLANK($A126),\"\",LOOKUP($A126,単価表!$A$5:$A$1162,単価表!$G$5:$G$1162))","v":1500},15000]
[10500,null,{"$f":"IF(ISBLANK($A127),\"\",LOOKUP($A127,単価表!$A$5:$A$1162,単価表!$B$5:$B$1162))","v":"生ｺﾝｸﾘｰﾄ　18-8　大型"},{"$f":"1.85*0.1*1.04","v":0.19240000000000004},{"$f":"CEILING(E123*D127,0.01)","v":9.620000000000001},"ｍ3",{"$f":"IF(ISBLANK($A127),\"\",LOOKUP($A127,単価表!$A$5:$A$1162,単価表!$G$5:$G$1162))","v":27900},268398]
[40012,null,{"$f":"IF(ISBLANK($A128),\"\",LOOKUP($A128,単価表!$A$5:$A$1162,単価表!$B$5:$B$1162))","v":"小旋回0.18ﾊﾞｯｸﾎｳ"},{"$f":"IF(ISBLANK($A128),\"\",IF(LOOKUP($A128,単価表!$A$5:$A$1162,単価表!$C$5:$C$1162)=0,\"\",LOOKUP($A128,単価表!$A$5:$A$1162,単価表!$C$5:$C$1162)))","v":""},{"$f":"+E124","v":0.84},"台",{"$f":"IF(ISBLANK($A128),\"\",LOOKUP($A128,単価表!$A$5:$A$1162,単価表!$G$5:$G$1162))","v":11250},9450]
[41002,null,{"$f":"IF(ISBLANK($A129),\"\",LOOKUP($A129,単価表!$A$5:$A$1162,単価表!$B$5:$B$1162))","v":"自社ﾀﾞﾝﾌﾟ"},{"$f":"IF(ISBLANK($A129),\"\",IF(LOOKUP($A129,単価表!$A$5:$A$1162,単価表!$C$5:$C$1162)=0,\"\",LOOKUP($A129,単価表!$A$5:$A$1162,単価表!$C$5:$C$1162)))","v":""},{"$f":"+E124","v":0.84},"台",{"$f":"IF(ISBLANK($A129),\"\",LOOKUP($A129,単価表!$A$5:$A$1162,単価表!$G$5:$G$1162))","v":9000},7560]
[40023,null,{"$f":"IF(ISBLANK($A130),\"\",LOOKUP($A130,単価表!$A$5:$A$1162,単価表!$B$5:$B$1162))","v":"諸機械 発電器,ｅｔｃ"},null,{"$f":"+E124","v":0.84},"台",{"$f":"IF(ISBLANK($A130),\"\",LOOKUP($A130,単価表!$A$5:$A$1162,単価表!$G$5:$G$1162))","v":2250},1890]
[40001,null,{"$f":"IF(ISBLANK($A131),\"\",LOOKUP($A131,単価表!$A$5:$A$1162,単価表!$B$5:$B$1162))","v":"ﾗﾝﾏｰ･ﾌﾟﾚｰﾄ"},null,{"$f":"+E124","v":0.84},"台",{"$f":"IF(ISBLANK($A131),\"\",LOOKUP($A131,単価表!$A$5:$A$1162,単価表!$G$5:$G$1162))","v":765},643]
[40000,null,{"$f":"IF(ISBLANK($A132),\"\",LOOKUP($A132,単価表!$A$5:$A$1162,単価表!$B$5:$B$1162))","v":"油脂燃料"},null,{"$f":"SUM(E128:E131)","v":3.36},"台日",{"$f":"IF(ISBLANK($A132),\"\",LOOKUP($A132,単価表!$A$5:$A$1162,単価表!$G$5:$G$1162))","v":1500},5040]
[20100,null,{"$f":"IF(ISBLANK($A133),\"\",LOOKUP($A133,単価表!$A$5:$A$1162,単価表!$B$5:$B$1162))","v":"作業員　昼間"},3,{"$f":"+E124*D133","v":2.52},"人",{"$f":"IF(ISBLANK($A133),\"\",LOOKUP($A133,単価表!$A$5:$A$1162,単価表!$G$5:$G$1162))","v":40500},102060]
[null,null,"プレキャスト擁壁据付",null,{"$f":"+E122","v":50},"ｍ",{"$f":"IF(E134=0,\"\",ROUND(SUM(H135:H144)/E134,0))","v":55925}]
[80000,null,{"$f":"IF(ISBLANK($A135),\"\",LOOKUP($A135,単価表!$A$5:$A$1162,単価表!$B$5:$B$1162))","v":"所要日数"},40,{"$f":"CEILING(E134/D135,0.01)","v":1.25},"日",{"$f":"IF(ISBLANK($A135),\"\",LOOKUP($A135,単価表!$A$5:$A$1162,単価表!$G$5:$G$1162))","v":0},{"$f":"IF(ISBLANK($A135),\"\",ROUND(E135*G135,0))","v":0}]
[10520,null,{"$f":"IF(ISBLANK($A136),\"\",LOOKUP($A136,単価表!$A$5:$A$1162,単価表!$B$5:$B$1162))","v":"ﾓﾙﾀﾙ"},{"$f":"1.1*0.03*1.4","v":4.6199999999999998E-2},{"$f":"CEILING(E134*D136,0.01)","v":2.31},"ｍ3",{"$f":"IF(ISBLANK($A136),\"\",LOOKUP($A136,単価表!$A$5:$A$1162,単価表!$G$5:$G$1162))","v":37500},86625]
[99999,null,"ｳｫｰﾙ","H=2000",{"$f":"+E122/2","v":25},"個",95860,2396500]
[99999,null,"諸雑費",null,{"$f":"+E134","v":50},"ｍ",300,15000]
[40056,null,{"$f":"IF(ISBLANK($A139),\"\",LOOKUP($A139,単価表!$A$5:$A$1162,単価表!$B$5:$B$1162))","v":"ﾗﾌﾀｰｸﾚｰﾝ 13ｔ"},{"$f":"IF(ISBLANK($A139),\"\",IF(LOOKUP($A139,単価表!$A$5:$A$1162,単価表!$C$5:$C$1162)=0,\"\",LOOKUP($A139,単価表!$A$5:$A$1162,単価表!$C$5:$C$1162)))","v":""},{"$f":"+E135","v":1.25},"台",{"$f":"IF(ISBLANK($A139),\"\",LOOKUP($A139,単価表!$A$5:$A$1162,単価表!$G$5:$G$1162))","v":90000},112500]
[40012,null,{"$f":"IF(ISBLANK($A140),\"\",LOOKUP($A140,単価表!$A$5:$A$1162,単価表!$B$5:$B$1162))","v":"小旋回0.18ﾊﾞｯｸﾎｳ"},{"$f":"IF(ISBLANK($A140),\"\",IF(LOOKUP($A140,単価表!$A$5:$A$1162,単価表!$C$5:$C$1162)=0,\"\",LOOKUP($A140,単価表!$A$5:$A$1162,単価表!$C$5:$C$1162)))","v":""},{"$f":"+E135","v":1.25},"台",{"$f":"IF(ISBLANK($A140),\"\",LOOKUP($A140,単価表!$A$5:$A$1162,単価表!$G$5:$G$1162))","v":11250},14063]
[41002,null,{"$f":"IF(ISBLANK($A141),\"\",LOOKUP($A141,単価表!$A$5:$A$1162,単価表!$B$5:$B$1162))","v":"自社ﾀﾞﾝﾌﾟ"},{"$f":"IF(ISBLANK($A141),\"\",IF(LOOKUP($A141,単価表!$A$5:$A$1162,単価表!$C$5:$C$1162)=0,\"\",LOOKUP($A141,単価表!$A$5:$A$1162,単価表!$C$5:$C$1162)))","v":""},{"$f":"+E135","v":1.25},"台",{"$f":"IF(ISBLANK($A141),\"\",LOOKUP($A141,単価表!$A$5:$A$1162,単価表!$G$5:$G$1162))","v":9000},11250]
[40023,null,{"$f":"IF(ISBLANK($A142),\"\",LOOKUP($A142,単価表!$A$5:$A$1162,単価表!$B$5:$B$1162))","v":"諸機械 発電器,ｅｔｃ"},null,{"$f":"+E135","v":1.25},"台",{"$f":"IF(ISBLANK($A142),\"\",LOOKUP($A142,単価表!$A$5:$A$1162,単価表!$G$5:$G$1162))","v":2250},2813]
[40000,null,{"$f":"IF(ISBLANK($A143),\"\",LOOKUP($A143,単価表!$A$5:$A$1162,単価表!$B$5:$B$1162))","v":"油脂燃料"},null,{"$f":"SUM(E140:E142)","v":3.75},"台日",{"$f":"IF(ISBLANK($A143),\"\",LOOKUP($A143,単価表!$A$5:$A$1162,単価表!$G$5:$G$1162))","v":1500},5625]
[20100,null,{"$f":"IF(ISBLANK($A144),\"\",LOOKUP($A144,単価表!$A$5:$A$1162,単価表!$B$5:$B$1162))","v":"作業員　昼間"},3,{"$f":"+E135*D144","v":3.75},"人",{"$f":"IF(ISBLANK($A144),\"\",LOOKUP($A144,単価表!$A$5:$A$1162,単価表!$G$5:$G$1162))","v":40500},151875]
[null,null,"裏込砕石工","W350 FC:t=100\nW300 RC:t=1150 ",{"$f":"+E122","v":50},"ｍ",{"$f":"IF(E145=0,\"\",ROUND(SUM(H146:H155)/E145,0))","v":4790}]
[80000,null,{"$f":"IF(ISBLANK($A146),\"\",LOOKUP($A146,単価表!$A$5:$A$1162,単価表!$B$5:$B$1162))","v":"所要日数"},60,{"$f":"CEILING(E145/D146,0.01)","v":0.84},"日",{"$f":"IF(ISBLANK($A146),\"\",LOOKUP($A146,単価表!$A$5:$A$1162,単価表!$G$5:$G$1162))","v":0},{"$f":"IF(ISBLANK($A146),\"\",ROUND(E146*G146,0))","v":0}]
[10514,null,{"$f":"IF(ISBLANK($A147),\"\",LOOKUP($A147,単価表!$A$5:$A$1162,単価表!$B$5:$B$1162))","v":"型枠　Ａ"},{"$f":"0.05","v":0.05},{"$f":"CEILING(E145*D147,0.01)","v":2.5},"ｍ2",{"$f":"IF(ISBLANK($A147),\"\",LOOKUP($A147,単価表!$A$5:$A$1162,単価表!$G$5:$G$1162))","v":1500},3750]
[10500,null,{"$f":"IF(ISBLANK($A148),\"\",LOOKUP($A148,単価表!$A$5:$A$1162,単価表!$B$5:$B$1162))","v":"生ｺﾝｸﾘｰﾄ　18-8　大型"},{"$f":"0.35*0.05*1.04","v":1.8199999999999997E-2},{"$f":"CEILING(E145*D148,0.01)","v":0.91},"ｍ3",{"$f":"IF(ISBLANK($A148),\"\",LOOKUP($A148,単価表!$A$5:$A$1162,単価表!$G$5:$G$1162))","v":27900},25389]
[10200,null,{"$f":"IF(ISBLANK($A149),\"\",LOOKUP($A149,単価表!$A$5:$A$1162,単価表!$B$5:$B$1162))","v":"RC-40(ﾌﾟﾗﾝﾄ)　大型"},{"$f":"0.3*1.15*1.28","v":0.44159999999999999},{"$f":"CEILING(E145*D149,0.01)","v":22.080000000000002},"ｔ",{"$f":"IF(ISBLANK($A149),\"\",LOOKUP($A149,単価表!$A$5:$A$1162,単価表!$G$5:$G$1162))","v":2250},49680]
[40012,null,{"$f":"IF(ISBLANK($A150),\"\",LOOKUP($A150,単価表!$A$5:$A$1162,単価表!$B$5:$B$1162))","v":"小旋回0.18ﾊﾞｯｸﾎｳ"},{"$f":"IF(ISBLANK($A150),\"\",IF(LOOKUP($A150,単価表!$A$5:$A$1162,単価表!$C$5:$C$1162)=0,\"\",LOOKUP($A150,単価表!$A$5:$A$1162,単価表!$C$5:$C$1162)))","v":""},{"$f":"+E146","v":0.84},"台",{"$f":"IF(ISBLANK($A150),\"\",LOOKUP($A150,単価表!$A$5:$A$1162,単価表!$G$5:$G$1162))","v":11250},9450]
[41002,null,{"$f":"IF(ISBLANK($A151),\"\",LOOKUP($A151,単価表!$A$5:$A$1162,単価表!$B$5:$B$1162))","v":"自社ﾀﾞﾝﾌﾟ"},{"$f":"IF(ISBLANK($A151),\"\",IF(LOOKUP($A151,単価表!$A$5:$A$1162,単価表!$C$5:$C$1162)=0,\"\",LOOKUP($A151,単価表!$A$5:$A$1162,単価表!$C$5:$C$1162)))","v":""},{"$f":"+E146","v":0.84},"台",{"$f":"IF(ISBLANK($A151),\"\",LOOKUP($A151,単価表!$A$5:$A$1162,単価表!$G$5:$G$1162))","v":9000},7560]
[40023,null,{"$f":"IF(ISBLANK($A152),\"\",LOOKUP($A152,単価表!$A$5:$A$1162,単価表!$B$5:$B$1162))","v":"諸機械 発電器,ｅｔｃ"},null,{"$f":"+E146","v":0.84},"台",{"$f":"IF(ISBLANK($A152),\"\",LOOKUP($A152,単価表!$A$5:$A$1162,単価表!$G$5:$G$1162))","v":2250},1890]
[40001,null,{"$f":"IF(ISBLANK($A153),\"\",LOOKUP($A153,単価表!$A$5:$A$1162,単価表!$B$5:$B$1162))","v":"ﾗﾝﾏｰ･ﾌﾟﾚｰﾄ"},null,{"$f":"+E146","v":0.84},"台",{"$f":"IF(ISBLANK($A153),\"\",LOOKUP($A153,単価表!$A$5:$A$1162,単価表!$G$5:$G$1162))","v":765},643]
[40000,null,{"$f":"IF(ISBLANK($A154),\"\",LOOKUP($A154,単価表!$A$5:$A$1162,単価表!$B$5:$B$1162))","v":"油脂燃料"},null,{"$f":"SUM(E150:E153)","v":3.36},"台日",{"$f":"IF(ISBLANK($A154),\"\",LOOKUP($A154,単価表!$A$5:$A$1162,単価表!$G$5:$G$1162))","v":1500},5040]
[20100,null,{"$f":"IF(ISBLANK($A155),\"\",LOOKUP($A155,単価表!$A$5:$A$1162,単価表!$B$5:$B$1162))","v":"作業員　昼間"},4,{"$f":"+E146*D155","v":3.36},"人",{"$f":"IF(ISBLANK($A155),\"\",LOOKUP($A155,単価表!$A$5:$A$1162,単価表!$G$5:$G$1162))","v":40500},136080]

{"sheet":"排水工事","index":8,"n_rows":79,"n_cols":8,"rows_kept":79,"cut":false,"hidden":false,"merged":[]}
[1]
[]
["コード","中分類","工　種","詳　細","数量","単位","単価","金額"]
[null,null,"排水工事"]
[]
[1,"Ｌ型側溝工","Ｌ型側溝工","タイプ１",100,"ｍ",{"$f":"ROUND(H6/E6,0)","v":12363},{"$f":"SUM(H7:INDEX(H7:H$79,IFERROR(MATCH(1,$A7:$A$79,0),ROWS($A7:$A$79)+1)-1))","v":1236316}]
[null,null,"基礎工","W=200  FC：ｔ=110",{"$f":"+E6","v":100},"ｍ",{"$f":"IF(E7=0,\"\",ROUND(SUM(H8:H15)/E7,0))","v":2233}]
[80000,null,{"$f":"IF(ISBLANK($A8),\"\",LOOKUP($A8,単価表!$A$5:$A$1162,単価表!$B$5:$B$1162))","v":"所要日数"},100,{"$f":"CEILING(E7/D8,0.01)","v":1},"日",{"$f":"IF(ISBLANK($A8),\"\",LOOKUP($A8,単価表!$A$5:$A$1162,単価表!$G$5:$G$1162))","v":0},{"$f":"IF(ISBLANK($A8),\"\",ROUND(E8*G8,0))","v":0}]
[10514,null,{"$f":"IF(ISBLANK($A9),\"\",LOOKUP($A9,単価表!$A$5:$A$1162,単価表!$B$5:$B$1162))","v":"型枠　Ａ"},0.11,{"$f":"CEILING(E7*D9,0.01)","v":11},"ｍ2",{"$f":"IF(ISBLANK($A9),\"\",LOOKUP($A9,単価表!$A$5:$A$1162,単価表!$G$5:$G$1162))","v":1500},16500]
[10501,null,{"$f":"IF(ISBLANK($A10),\"\",LOOKUP($A10,単価表!$A$5:$A$1162,単価表!$B$5:$B$1162))","v":"生ｺﾝｸﾘｰﾄ　18-8　小型"},{"$f":"0.2*0.11","v":2.2000000000000002E-2},{"$f":"CEILING(E7*D10*1.04,0.01)","v":2.29},"ｍ3",{"$f":"IF(ISBLANK($A10),\"\",LOOKUP($A10,単価表!$A$5:$A$1162,単価表!$G$5:$G$1162))","v":29400},67326]
[40017,null,{"$f":"IF(ISBLANK($A11),\"\",LOOKUP($A11,単価表!$A$5:$A$1162,単価表!$B$5:$B$1162))","v":"ﾀｲﾔｼｮﾍﾞﾙ　WA30 0.3ｍ3"},{"$f":"IF(ISBLANK($A11),\"\",IF(LOOKUP($A11,単価表!$A$5:$A$1162,単価表!$C$5:$C$1162)=0,\"\",LOOKUP($A11,単価表!$A$5:$A$1162,単価表!$C$5:$C$1162)))","v":"0.3ｍ3"},{"$f":"+E8","v":1},"台",{"$f":"IF(ISBLANK($A11),\"\",LOOKUP($A11,単価表!$A$5:$A$1162,単価表!$G$5:$G$1162))","v":10500},10500]
[40023,null,{"$f":"IF(ISBLANK($A12),\"\",LOOKUP($A12,単価表!$A$5:$A$1162,単価表!$B$5:$B$1162))","v":"諸機械 発電器,ｅｔｃ"},{"$f":"IF(ISBLANK($A12),\"\",IF(LOOKUP($A12,単価表!$A$5:$A$1162,単価表!$C$5:$C$1162)=0,\"\",LOOKUP($A12,単価表!$A$5:$A$1162,単価表!$C$5:$C$1162)))","v":""},{"$f":"+E8","v":1},"台",{"$f":"IF(ISBLANK($A12),\"\",LOOKUP($A12,単価表!$A$5:$A$1162,単価表!$G$5:$G$1162))","v":2250},2250]
[40001,null,{"$f":"IF(ISBLANK($A13),\"\",LOOKUP($A13,単価表!$A$5:$A$1162,単価表!$B$5:$B$1162))","v":"ﾗﾝﾏｰ･ﾌﾟﾚｰﾄ"},{"$f":"IF(ISBLANK($A13),\"\",IF(LOOKUP($A13,単価表!$A$5:$A$1162,単価表!$C$5:$C$1162)=0,\"\",LOOKUP($A13,単価表!$A$5:$A$1162,単価表!$C$5:$C$1162)))","v":""},{"$f":"+E8","v":1},"台",{"$f":"IF(ISBLANK($A13),\"\",LOOKUP($A13,単価表!$A$5:$A$1162,単価表!$G$5:$G$1162))","v":765},765]
[40000,null,{"$f":"IF(ISBLANK($A14),\"\",LOOKUP($A14,単価表!$A$5:$A$1162,単価表!$B$5:$B$1162))","v":"油脂燃料"},{"$f":"IF(ISBLANK($A14),\"\",IF(LOOKUP($A14,単価表!$A$5:$A$1162,単価表!$C$5:$C$1162)=0,\"\",LOOKUP($A14,単価表!$A$5:$A$1162,単価表!$C$5:$C$1162)))","v":""},{"$f":"SUM(E11:E13)","v":3},"台日",{"$f":"IF(ISBLANK($A14),\"\",LOOKUP($A14,単価表!$A$5:$A$1162,単価表!$G$5:$G$1162))","v":1500},4500]
[20100,null,{"$f":"IF(ISBLANK($A15),\"\",LOOKUP($A15,単価表!$A$5:$A$1162,単価表!$B$5:$B$1162))","v":"作業員　昼間"},3,{"$f":"E8*D15","v":3},"人",{"$f":"IF(ISBLANK($A15),\"\",LOOKUP($A15,単価表!$A$5:$A$1162,単価表!$G$5:$G$1162))","v":40500},121500]
[null,null,"ブロック布設工",null,{"$f":"+E6","v":100},"ｍ",{"$f":"IF(E16=0,\"\",ROUND(SUM(H17:H22)/E16,0))","v":4114}]
[80000,null,{"$f":"IF(ISBLANK($A17),\"\",LOOKUP($A17,単価表!$A$5:$A$1162,単価表!$B$5:$B$1162))","v":"所要日数"},45,{"$f":"CEILING(E16/D17,0.01)","v":2.23},"日",{"$f":"IF(ISBLANK($A17),\"\",LOOKUP($A17,単価表!$A$5:$A$1162,単価表!$G$5:$G$1162))","v":0},{"$f":"IF(ISBLANK($A17),\"\",ROUND(E17*G17,0))","v":0}]
[10520,null,{"$f":"IF(ISBLANK($A18),\"\",LOOKUP($A18,単価表!$A$5:$A$1162,単価表!$B$5:$B$1162))","v":"ﾓﾙﾀﾙ"},{"$f":"0.2*0.02","v":4.0000000000000001E-3},{"$f":"CEILING(E16*D18*1.4,0.01)","v":0.56000000000000005},"ｍ3",{"$f":"IF(ISBLANK($A18),\"\",LOOKUP($A18,単価表!$A$5:$A$1162,単価表!$G$5:$G$1162))","v":37500},21000]
[13004,null,{"$f":"IF(ISBLANK($A19),\"\",LOOKUP($A19,単価表!$A$5:$A$1162,単価表!$B$5:$B$1162))","v":"歩車Aﾌﾞﾛｯｸ"},{"$f":"IF(ISBLANK($A19),\"\",IF(LOOKUP($A19,単価表!$A$5:$A$1162,単価表!$C$5:$C$1162)=0,\"\",LOOKUP($A19,単価表!$A$5:$A$1162,単価表!$C$5:$C$1162)))","v":"150/170*200*600 44kg/本"},{"$f":"CEILING(E16/0.6*1.02,1)","v":170},"本",{"$f":"IF(ISBLANK($A19),\"\",LOOKUP($A19,単価表!$A$5:$A$1162,単価表!$G$5:$G$1162))","v":1185},201450]
[40023,null,{"$f":"IF(ISBLANK($A20),\"\",LOOKUP($A20,単価表!$A$5:$A$1162,単価表!$B$5:$B$1162))","v":"諸機械 発電器,ｅｔｃ"},{"$f":"IF(ISBLANK($A20),\"\",IF(LOOKUP($A20,単価表!$A$5:$A$1162,単価表!$C$5:$C$1162)=0,\"\",LOOKUP($A20,単価表!$A$5:$A$1162,単価表!$C$5:$C$1162)))","v":""},{"$f":"+E17","v":2.23},"台",{"$f":"IF(ISBLANK($A20),\"\",LOOKUP($A20,単価表!$A$5:$A$1162,単価表!$G$5:$G$1162))","v":2250},5018]
[40000,null,{"$f":"IF(ISBLANK($A21),\"\",LOOKUP($A21,単価表!$A$5:$A$1162,単価表!$B$5:$B$1162))","v":"油脂燃料"},{"$f":"IF(ISBLANK($A21),\"\",IF(LOOKUP($A21,単価表!$A$5:$A$1162,単価表!$C$5:$C$1162)=0,\"\",LOOKUP($A21,単価表!$A$5:$A$1162,単価表!$C$5:$C$1162)))","v":""},{"$f":"SUM(E20:E20)","v":2.23},"台日",{"$f":"IF(ISBLANK($A21),\"\",LOOKUP($A21,単価表!$A$5:$A$1162,単価表!$G$5:$G$1162))","v":1500},3345]
[20100,null,{"$f":"IF(ISBLANK($A22),\"\",LOOKUP($A22,単価表!$A$5:$A$1162,単価表!$B$5:$B$1162))","v":"作業員　昼間"},2,{"$f":"E17*D22","v":4.46},"人",{"$f":"IF(ISBLANK($A22),\"\",LOOKUP($A22,単価表!$A$5:$A$1162,単価表!$G$5:$G$1162))","v":40500},180630]
[null,null,"エプロン打設工","W=500 RC：Aveｔ=190",{"$f":"+E6","v":100},"ｍ",{"$f":"IF(E23=0,\"\",ROUND(SUM(H24:H32)/E23,0))","v":6015}]
[80000,null,{"$f":"IF(ISBLANK($A24),\"\",LOOKUP($A24,単価表!$A$5:$A$1162,単価表!$B$5:$B$1162))","v":"所要日数"},50,{"$f":"CEILING(E23/D24,0.01)","v":2},"日",{"$f":"IF(ISBLANK($A24),\"\",LOOKUP($A24,単価表!$A$5:$A$1162,単価表!$G$5:$G$1162))","v":0},{"$f":"IF(ISBLANK($A24),\"\",ROUND(E24*G24,0))","v":0}]
[10515,null,{"$f":"IF(ISBLANK($A25),\"\",LOOKUP($A25,単価表!$A$5:$A$1162,単価表!$B$5:$B$1162))","v":"型枠　Ｂ"},0.2,{"$f":"CEILING(E23*D25,0.01)","v":20},"ｍ2",{"$f":"IF(ISBLANK($A25),\"\",LOOKUP($A25,単価表!$A$5:$A$1162,単価表!$G$5:$G$1162))","v":3000},60000]
[10501,null,{"$f":"IF(ISBLANK($A26),\"\",LOOKUP($A26,単価表!$A$5:$A$1162,単価表!$B$5:$B$1162))","v":"生ｺﾝｸﾘｰﾄ　18-8　小型"},{"$f":"0.5*0.19","v":9.5000000000000001E-2},{"$f":"CEILING(E23*D26*1.04,0.01)","v":9.8800000000000008},"ｍ3",{"$f":"IF(ISBLANK($A26),\"\",LOOKUP($A26,単価表!$A$5:$A$1162,単価表!$G$5:$G$1162))","v":29400},290472]
[99999,null,"伸縮目地",null,{"$f":"CEILING(E23*0.1*0.046*1.2,0.01)","v":0.56000000000000005},"ｍ2",1000,560]
[40023,null,{"$f":"IF(ISBLANK($A28),\"\",LOOKUP($A28,単価表!$A$5:$A$1162,単価表!$B$5:$B$1162))","v":"諸機械 発電器,ｅｔｃ"},{"$f":"IF(ISBLANK($A28),\"\",IF(LOOKUP($A28,単価表!$A$5:$A$1162,単価表!$C$5:$C$1162)=0,\"\",LOOKUP($A28,単価表!$A$5:$A$1162,単価表!$C$5:$C$1162)))","v":""},{"$f":"+E24","v":2},"台",{"$f":"IF(ISBLANK($A28),\"\",LOOKUP($A28,単価表!$A$5:$A$1162,単価表!$G$5:$G$1162))","v":2250},4500]
[40000,null,{"$f":"IF(ISBLANK($A29),\"\",LOOKUP($A29,単価表!$A$5:$A$1162,単価表!$B$5:$B$1162))","v":"油脂燃料"},{"$f":"IF(ISBLANK($A29),\"\",IF(LOOKUP($A29,単価表!$A$5:$A$1162,単価表!$C$5:$C$1162)=0,\"\",LOOKUP($A29,単価表!$A$5:$A$1162,単価表!$C$5:$C$1162)))","v":""},{"$f":"SUM(E28:E28)","v":2},"台日",{"$f":"IF(ISBLANK($A29),\"\",LOOKUP($A29,単価表!$A$5:$A$1162,単価表!$G$5:$G$1162))","v":1500},3000]
[20100,null,{"$f":"IF(ISBLANK($A30),\"\",LOOKUP($A30,単価表!$A$5:$A$1162,単価表!$B$5:$B$1162))","v":"作業員　昼間"},3,{"$f":"E24*D30","v":6},"人",{"$f":"IF(ISBLANK($A30),\"\",LOOKUP($A30,単価表!$A$5:$A$1162,単価表!$G$5:$G$1162))","v":40500},243000]
[]
[]
[1,"集水桝","雨水桝　","ﾀｲﾌﾟ1\n",1,"箇所",{"$f":"ROUND(H33/E33,0)","v":56404},{"$f":"SUM(H34:INDEX(H34:H$79,IFERROR(MATCH(1,$A34:$A$79,0),ROWS($A34:$A$79)+1)-1))","v":56404}]
[null,null,"基礎工","φ550  RC：ｔ=100",{"$f":"+E33","v":1},"箇所",{"$f":"IF(E34=0,\"\",ROUND(SUM(H35:H41)/E34,0))","v":4231}]
[80000,null,{"$f":"IF(ISBLANK($A35),\"\",LOOKUP($A35,単価表!$A$5:$A$1162,単価表!$B$5:$B$1162))","v":"所要日数"},40,{"$f":"CEILING(E34/D35,0.01)","v":0.03},"日",{"$f":"IF(ISBLANK($A35),\"\",LOOKUP($A35,単価表!$A$5:$A$1162,単価表!$G$5:$G$1162))","v":0},{"$f":"IF(ISBLANK($A35),\"\",ROUND(E35*G35,0))","v":0}]
[10205,null,{"$f":"IF(ISBLANK($A36),\"\",LOOKUP($A36,単価表!$A$5:$A$1162,単価表!$B$5:$B$1162))","v":"RC-40(建材店)　大型"},null,{"$f":"CEILING(E34*0.6^2*0.1*1.28,0.01)","v":0.05},0,{"$f":"IF(ISBLANK($A36),\"\",LOOKUP($A36,単価表!$A$5:$A$1162,単価表!$G$5:$G$1162))","v":1800},90]
[40011,null,{"$f":"IF(ISBLANK($A37),\"\",LOOKUP($A37,単価表!$A$5:$A$1162,単価表!$B$5:$B$1162))","v":"小旋回0.12ﾊﾞｯｸﾎｳ"},{"$f":"IF(ISBLANK($A37),\"\",IF(LOOKUP($A37,単価表!$A$5:$A$1162,単価表!$C$5:$C$1162)=0,\"\",LOOKUP($A37,単価表!$A$5:$A$1162,単価表!$C$5:$C$1162)))","v":""},{"$f":"+E35","v":0.03},"台",{"$f":"IF(ISBLANK($A37),\"\",LOOKUP($A37,単価表!$A$5:$A$1162,単価表!$G$5:$G$1162))","v":9000},270]
[40023,null,{"$f":"IF(ISBLANK($A38),\"\",LOOKUP($A38,単価表!$A$5:$A$1162,単価表!$B$5:$B$1162))","v":"諸機械 発電器,ｅｔｃ"},{"$f":"IF(ISBLANK($A38),\"\",IF(LOOKUP($A38,単価表!$A$5:$A$1162,単価表!$C$5:$C$1162)=0,\"\",LOOKUP($A38,単価表!$A$5:$A$1162,単価表!$C$5:$C$1162)))","v":""},{"$f":"+E35","v":0.03},"台",{"$f":"IF(ISBLANK($A38),\"\",LOOKUP($A38,単価表!$A$5:$A$1162,単価表!$G$5:$G$1162))","v":2250},68]
[40001,null,{"$f":"IF(ISBLANK($A39),\"\",LOOKUP($A39,単価表!$A$5:$A$1162,単価表!$B$5:$B$1162))","v":"ﾗﾝﾏｰ･ﾌﾟﾚｰﾄ"},{"$f":"IF(ISBLANK($A39),\"\",IF(LOOKUP($A39,単価表!$A$5:$A$1162,単価表!$C$5:$C$1162)=0,\"\",LOOKUP($A39,単価表!$A$5:$A$1162,単価表!$C$5:$C$1162)))","v":""},{"$f":"+E35","v":0.03},"台",{"$f":"IF(ISBLANK($A39),\"\",LOOKUP($A39,単価表!$A$5:$A$1162,単価表!$G$5:$G$1162))","v":765},23]
[40000,null,{"$f":"IF(ISBLANK($A40),\"\",LOOKUP($A40,単価表!$A$5:$A$1162,単価表!$B$5:$B$1162))","v":"油脂燃料"},{"$f":"IF(ISBLANK($A40),\"\",IF(LOOKUP($A40,単価表!$A$5:$A$1162,単価表!$C$5:$C$1162)=0,\"\",LOOKUP($A40,単価表!$A$5:$A$1162,単価表!$C$5:$C$1162)))","v":""},{"$f":"SUM(E37:E39)","v":0.09},"台日",{"$f":"IF(ISBLANK($A40),\"\",LOOKUP($A40,単価表!$A$5:$A$1162,単価表!$G$5:$G$1162))","v":1500},135]
[20100,null,{"$f":"IF(ISBLANK($A41),\"\",LOOKUP($A41,単価表!$A$5:$A$1162,単価表!$B$5:$B$1162))","v":"作業員　昼間"},3,{"$f":"E35*D41","v":0.09},"人",{"$f":"IF(ISBLANK($A41),\"\",LOOKUP($A41,単価表!$A$5:$A$1162,単価表!$G$5:$G$1162))","v":40500},3645]
[null,null,"雨水桝据付工","　",{"$f":"+E33","v":1},"箇所",{"$f":"IF(E42=0,\"\",ROUND(SUM(H43:H57)/E42,0))","v":52173}]
[80000,null,{"$f":"IF(ISBLANK($A43),\"\",LOOKUP($A43,単価表!$A$5:$A$1162,単価表!$B$5:$B$1162))","v":"所要日数"},6,{"$f":"CEILING(E42/D43,0.01)","v":0.17},"日",{"$f":"IF(ISBLANK($A43),\"\",LOOKUP($A43,単価表!$A$5:$A$1162,単価表!$G$5:$G$1162))","v":0},{"$f":"IF(ISBLANK($A43),\"\",ROUND(E43*G43,0))","v":0}]
[13004,null,{"$f":"IF(ISBLANK($A44),\"\",LOOKUP($A44,単価表!$A$5:$A$1162,単価表!$B$5:$B$1162))","v":"歩車Aﾌﾞﾛｯｸ"},null,{"$f":"+E33","v":1},"本",{"$f":"IF(ISBLANK($A44),\"\",LOOKUP($A44,単価表!$A$5:$A$1162,単価表!$G$5:$G$1162))","v":1185},1185]
[99999,null,"浜型タイプ１・２","下部側塊 450*340",{"$f":"+E33","v":1},"個",4890,4890]
[99999,null,"浜型タイプ１・２","中部側塊 450*400",{"$f":"+E33","v":1},"個",4380,4380]
[99999,null,"浜型タイプ１","上部側塊 450*150",{"$f":"+E33","v":1},"個",3970,3970]
[99999,null,"浜型タイプ１","縁塊 705*600*180",{"$f":"+E33","v":1},"個",5000,5000]
[99999,null,"ダクタイル蓋","LY-1（マーク付き）",{"$f":"CEILING(E33,1)","v":1},"枚",7500,7500]
[40011,null,{"$f":"IF(ISBLANK($A50),\"\",LOOKUP($A50,単価表!$A$5:$A$1162,単価表!$B$5:$B$1162))","v":"小旋回0.12ﾊﾞｯｸﾎｳ"},{"$f":"IF(ISBLANK($A50),\"\",IF(LOOKUP($A50,単価表!$A$5:$A$1162,単価表!$C$5:$C$1162)=0,\"\",LOOKUP($A50,単価表!$A$5:$A$1162,単価表!$C$5:$C$1162)))","v":""},{"$f":"+E43","v":0.17},"台",{"$f":"IF(ISBLANK($A50),\"\",LOOKUP($A50,単価表!$A$5:$A$1162,単価表!$G$5:$G$1162))","v":9000},1530]
[40023,null,{"$f":"IF(ISBLANK($A51),\"\",LOOKUP($A51,単価表!$A$5:$A$1162,単価表!$B$5:$B$1162))","v":"諸機械 発電器,ｅｔｃ"},{"$f":"IF(ISBLANK($A51),\"\",IF(LOOKUP($A51,単価表!$A$5:$A$1162,単価表!$C$5:$C$1162)=0,\"\",LOOKUP($A51,単価表!$A$5:$A$1162,単価表!$C$5:$C$1162)))","v":""},{"$f":"+E43","v":0.17},"台",{"$f":"IF(ISBLANK($A51),\"\",LOOKUP($A51,単価表!$A$5:$A$1162,単価表!$G$5:$G$1162))","v":2250},383]
[41002,null,{"$f":"IF(ISBLANK($A52),\"\",LOOKUP($A52,単価表!$A$5:$A$1162,単価表!$B$5:$B$1162))","v":"自社ﾀﾞﾝﾌﾟ"},{"$f":"IF(ISBLANK($A52),\"\",IF(LOOKUP($A52,単価表!$A$5:$A$1162,単価表!$C$5:$C$1162)=0,\"\",LOOKUP($A52,単価表!$A$5:$A$1162,単価表!$C$5:$C$1162)))","v":""},{"$f":"+E43","v":0.17},"台",{"$f":"IF(ISBLANK($A52),\"\",LOOKUP($A52,単価表!$A$5:$A$1162,単価表!$G$5:$G$1162))","v":9000},1530]
[40001,null,{"$f":"IF(ISBLANK($A53),\"\",LOOKUP($A53,単価表!$A$5:$A$1162,単価表!$B$5:$B$1162))","v":"ﾗﾝﾏｰ･ﾌﾟﾚｰﾄ"},{"$f":"IF(ISBLANK($A53),\"\",IF(LOOKUP($A53,単価表!$A$5:$A$1162,単価表!$C$5:$C$1162)=0,\"\",LOOKUP($A53,単価表!$A$5:$A$1162,単価表!$C$5:$C$1162)))","v":""},{"$f":"+E43","v":0.17},"台",{"$f":"IF(ISBLANK($A53),\"\",LOOKUP($A53,単価表!$A$5:$A$1162,単価表!$G$5:$G$1162))","v":765},130]
[40000,null,{"$f":"IF(ISBLANK($A54),\"\",LOOKUP($A54,単価表!$A$5:$A$1162,単価表!$B$5:$B$1162))","v":"油脂燃料"},{"$f":"IF(ISBLANK($A54),\"\",IF(LOOKUP($A54,単価表!$A$5:$A$1162,単価表!$C$5:$C$1162)=0,\"\",LOOKUP($A54,単価表!$A$5:$A$1162,単価表!$C$5:$C$1162)))","v":""},{"$f":"SUM(E50:E53)","v":0.68},"台日",{"$f":"IF(ISBLANK($A54),\"\",LOOKUP($A54,単価表!$A$5:$A$1162,単価表!$G$5:$G$1162))","v":1500},1020]
[20100,null,{"$f":"IF(ISBLANK($A55),\"\",LOOKUP($A55,単価表!$A$5:$A$1162,単価表!$B$5:$B$1162))","v":"作業員　昼間"},3,{"$f":"E43*D55","v":0.51},"人",{"$f":"IF(ISBLANK($A55),\"\",LOOKUP($A55,単価表!$A$5:$A$1162,単価表!$G$5:$G$1162))","v":40500},20655]
[]
[]
[1,"組立人孔","汚水人孔設置工","組立２号人孔1箇所",1,"箇所",{"$f":"ROUND(H58/E58,0)","v":370341},{"$f":"SUM(H59:INDEX(H59:H$79,IFERROR(MATCH(1,$A59:$A$79,0),ROWS($A59:$A$79)+1)-1))","v":370341}]
[null,null,"汚水人孔設置工","AveH=3.02m",1,"箇所",{"$f":"IF(E59=0,\"\",ROUND(SUM(H60:H79)/E59,0))","v":370341}]
[80000,null,{"$f":"IF(ISBLANK($A60),\"\",LOOKUP($A60,単価表!$A$5:$A$1162,単価表!$B$5:$B$1162))","v":"所要日数"},2,{"$f":"CEILING(E59/D60,0.01)","v":0.5},"日",{"$f":"IF(ISBLANK($A60),\"\",LOOKUP($A60,単価表!$A$5:$A$1162,単価表!$G$5:$G$1162))","v":0}]
[99999,null,"底版",null,{"$f":"+E59","v":1},"個",24330,{"$f":"IF(ISBLANK($A61),\"\",ROUND(E61*G61,0))","v":24330}]
[99999,null,"管取付壁",null,1,"個",71830,71830]
[99999,null,"直壁",null,1,"個",30690,30690]
[99999,null,"斜壁",null,1,"個",36990,36990]
[99999,null,"調整リング",null,1,"個",4290,4290]
[99999,null,"調整金具",null,2,"Set",2080,4160]
[99999,null,"足掛金具","樹脂ｽﾃｯﾌﾟ",8,"個",2400,19200]
[99999,null,"人孔ダクタイル蓋","T-25",{"$f":"+E59","v":1},"Set",35000,35000]
[99999,null,"削孔費","φ250",4,"箇所",4320,17280]
[99999,null,"ｲﾝﾊﾞｰﾄ仕上げ","材工共",{"$f":"E59","v":1},"箇所",28000,28000]
[99999,null,"雑工","止水モルタルetc",{"$f":"CEILING(E59,0.01)","v":1},"箇所",2000,2000]
[10200,null,{"$f":"IF(ISBLANK($A72),\"\",LOOKUP($A72,単価表!$A$5:$A$1162,単価表!$B$5:$B$1162))","v":"RC-40(ﾌﾟﾗﾝﾄ)　大型"},{"$f":"TEXT(E72/3.5,\"0.0台分　　小型\")","v":"0.1台分  小型"},{"$f":"CEILING(E59*(0.2*1.1^2*PI()/4)*1.28,0.01)","v":0.25},"ｍ3",{"$f":"IF(ISBLANK($A72),\"\",LOOKUP($A72,単価表!$A$5:$A$1162,単価表!$G$5:$G$1162))","v":2250},563]
[40019,null,{"$f":"IF(ISBLANK($A73),\"\",LOOKUP($A73,単価表!$A$5:$A$1162,単価表!$B$5:$B$1162))","v":"0.4 ﾊﾞｯｸﾎｳ"},{"$f":"IF(ISBLANK($A73),\"\",IF(LOOKUP($A73,単価表!$A$5:$A$1162,単価表!$C$5:$C$1162)=0,\"\",LOOKUP($A73,単価表!$A$5:$A$1162,単価表!$C$5:$C$1162)))","v":""},{"$f":"+E60","v":0.5},"台",{"$f":"IF(ISBLANK($A73),\"\",LOOKUP($A73,単価表!$A$5:$A$1162,単価表!$G$5:$G$1162))","v":12000},6000]
[40023,null,{"$f":"IF(ISBLANK($A74),\"\",LOOKUP($A74,単価表!$A$5:$A$1162,単価表!$B$5:$B$1162))","v":"諸機械 発電器,ｅｔｃ"},{"$f":"IF(ISBLANK($A74),\"\",IF(LOOKUP($A74,単価表!$A$5:$A$1162,単価表!$C$5:$C$1162)=0,\"\",LOOKUP($A74,単価表!$A$5:$A$1162,単価表!$C$5:$C$1162)))","v":""},{"$f":"+E60","v":0.5},"台",{"$f":"IF(ISBLANK($A74),\"\",LOOKUP($A74,単価表!$A$5:$A$1162,単価表!$G$5:$G$1162))","v":2250},1125]
[41002,null,{"$f":"IF(ISBLANK($A75),\"\",LOOKUP($A75,単価表!$A$5:$A$1162,単価表!$B$5:$B$1162))","v":"自社ﾀﾞﾝﾌﾟ"},{"$f":"IF(ISBLANK($A75),\"\",IF(LOOKUP($A75,単価表!$A$5:$A$1162,単価表!$C$5:$C$1162)=0,\"\",LOOKUP($A75,単価表!$A$5:$A$1162,単価表!$C$5:$C$1162)))","v":""},{"$f":"+E60","v":0.5},"台",{"$f":"IF(ISBLANK($A75),\"\",LOOKUP($A75,単価表!$A$5:$A$1162,単価表!$G$5:$G$1162))","v":9000},4500]
[40001,null,{"$f":"IF(ISBLANK($A76),\"\",LOOKUP($A76,単価表!$A$5:$A$1162,単価表!$B$5:$B$1162))","v":"ﾗﾝﾏｰ･ﾌﾟﾚｰﾄ"},{"$f":"IF(ISBLANK($A76),\"\",IF(LOOKUP($A76,単価表!$A$5:$A$1162,単価表!$C$5:$C$1162)=0,\"\",LOOKUP($A76,単価表!$A$5:$A$1162,単価表!$C$5:$C$1162)))","v":""},{"$f":"+E60","v":0.5},"台",{"$f":"IF(ISBLANK($A76),\"\",LOOKUP($A76,単価表!$A$5:$A$1162,単価表!$G$5:$G$1162))","v":765},383]
[40000,null,{"$f":"IF(ISBLANK($A77),\"\",LOOKUP($A77,単価表!$A$5:$A$1162,単価表!$B$5:$B$1162))","v":"油脂燃料"},{"$f":"IF(ISBLANK($A77),\"\",IF(LOOKUP($A77,単価表!$A$5:$A$1162,単価表!$C$5:$C$1162)=0,\"\",LOOKUP($A77,単価表!$A$5:$A$1162,単価表!$C$5:$C$1162)))","v":""},{"$f":"SUM(E73:E76)","v":2},"台日",{"$f":"IF(ISBLANK($A77),\"\",LOOKUP($A77,単価表!$A$5:$A$1162,単価表!$G$5:$G$1162))","v":1500},3000]
[20100,null,{"$f":"IF(ISBLANK($A78),\"\",LOOKUP($A78,単価表!$A$5:$A$1162,単価表!$B$5:$B$1162))","v":"作業員　昼間"},4,{"$f":"+E60*D78","v":2},"人",{"$f":"IF(ISBLANK($A78),\"\",LOOKUP($A78,単価表!$A$5:$A$1162,単価表!$G$5:$G$1162))","v":40500},81000]
[null,null,null,{"$f":"IF(ISBLANK($A79),\"\",IF(LOOKUP($A79,単価表!$A$5:$A$1162,単価表!$C$5:$C$1162)=0,\"\",LOOKUP($A79,単価表!$A$5:$A$1162,単価表!$C$5:$C$1162)))","v":""},null,null,null,""]

{"sheet":"付帯工事","index":9,"n_rows":58,"n_cols":8,"rows_kept":58,"cut":false,"hidden":false,"merged":[]}
[1]
[]
["コード","中分類","工　種","詳　細","数量","単位","単価","金額"]
[null,null,"付帯工事"]
[]
[1,"縁石工","地先境界ブロック","120*120*600 基礎共\n",100,"ｍ",{"$f":"ROUND(H6/E6,0)","v":7096},{"$f":"SUM(H7:INDEX(H7:H$58,IFERROR(MATCH(1,$A7:$A$58,0),ROWS($A7:$A$58)+1)-1))","v":709640}]
[null,null,"掘削土工",{"$f":"0.15*0.2+0.12*0.13","v":4.5600000000000002E-2},{"$f":"CEILING(E6*D7,0.01)","v":4.5600000000000005},"ｍ3",{"$f":"IF(E7=0,\"\",ROUND(SUM(H8:H13)/E7,0))","v":4762}]
[80000,null,{"$f":"IF(ISBLANK($A8),\"\",LOOKUP($A8,単価表!$A$5:$A$1162,単価表!$B$5:$B$1162))","v":"所要日数"},31.2,{"$f":"CEILING(E7/D8,0.01)","v":0.15},"日",{"$f":"IF(ISBLANK($A8),\"\",LOOKUP($A8,単価表!$A$5:$A$1162,単価表!$G$5:$G$1162))","v":0},{"$f":"IF(ISBLANK($A8),\"\",ROUND(E8*G8,0))","v":0}]
[40011,null,{"$f":"IF(ISBLANK($A9),\"\",LOOKUP($A9,単価表!$A$5:$A$1162,単価表!$B$5:$B$1162))","v":"小旋回0.12ﾊﾞｯｸﾎｳ"},{"$f":"IF(ISBLANK($A9),\"\",IF(LOOKUP($A9,単価表!$A$5:$A$1162,単価表!$C$5:$C$1162)=0,\"\",LOOKUP($A9,単価表!$A$5:$A$1162,単価表!$C$5:$C$1162)))","v":""},{"$f":"+E8","v":0.15},"台",{"$f":"IF(ISBLANK($A9),\"\",LOOKUP($A9,単価表!$A$5:$A$1162,単価表!$G$5:$G$1162))","v":9000},1350]
[40001,null,{"$f":"IF(ISBLANK($A10),\"\",LOOKUP($A10,単価表!$A$5:$A$1162,単価表!$B$5:$B$1162))","v":"ﾗﾝﾏｰ･ﾌﾟﾚｰﾄ"},{"$f":"IF(ISBLANK($A10),\"\",IF(LOOKUP($A10,単価表!$A$5:$A$1162,単価表!$C$5:$C$1162)=0,\"\",LOOKUP($A10,単価表!$A$5:$A$1162,単価表!$C$5:$C$1162)))","v":""},{"$f":"+E8","v":0.15},"台",{"$f":"IF(ISBLANK($A10),\"\",LOOKUP($A10,単価表!$A$5:$A$1162,単価表!$G$5:$G$1162))","v":765},115]
[41002,null,{"$f":"IF(ISBLANK($A11),\"\",LOOKUP($A11,単価表!$A$5:$A$1162,単価表!$B$5:$B$1162))","v":"自社ﾀﾞﾝﾌﾟ"},{"$f":"IF(ISBLANK($A11),\"\",IF(LOOKUP($A11,単価表!$A$5:$A$1162,単価表!$C$5:$C$1162)=0,\"\",LOOKUP($A11,単価表!$A$5:$A$1162,単価表!$C$5:$C$1162)))","v":""},{"$f":"+E8","v":0.15},"台",{"$f":"IF(ISBLANK($A11),\"\",LOOKUP($A11,単価表!$A$5:$A$1162,単価表!$G$5:$G$1162))","v":9000},1350]
[40000,null,{"$f":"IF(ISBLANK($A12),\"\",LOOKUP($A12,単価表!$A$5:$A$1162,単価表!$B$5:$B$1162))","v":"油脂燃料"},{"$f":"IF(ISBLANK($A12),\"\",IF(LOOKUP($A12,単価表!$A$5:$A$1162,単価表!$C$5:$C$1162)=0,\"\",LOOKUP($A12,単価表!$A$5:$A$1162,単価表!$C$5:$C$1162)))","v":""},{"$f":"SUM(E9:E11)","v":0.44999999999999996},"台日",{"$f":"IF(ISBLANK($A12),\"\",LOOKUP($A12,単価表!$A$5:$A$1162,単価表!$G$5:$G$1162))","v":1500},675]
[20100,null,{"$f":"IF(ISBLANK($A13),\"\",LOOKUP($A13,単価表!$A$5:$A$1162,単価表!$B$5:$B$1162))","v":"作業員　昼間"},3,{"$f":"+E8*D13","v":0.44999999999999996},"人",{"$f":"IF(ISBLANK($A13),\"\",LOOKUP($A13,単価表!$A$5:$A$1162,単価表!$G$5:$G$1162))","v":40500},18225]
[null,null,"基礎工","Ｗ150 ＲＣ100 ＣＯ100",{"$f":"+E6","v":100},"ｍ",{"$f":"IF(E14=0,\"\",ROUND(SUM(H15:H23)/E14,0))","v":2797}]
[80000,null,{"$f":"IF(ISBLANK($A15),\"\",LOOKUP($A15,単価表!$A$5:$A$1162,単価表!$B$5:$B$1162))","v":"所要日数"},80,{"$f":"CEILING(E14/D15,0.01)","v":1.25},"日",{"$f":"IF(ISBLANK($A15),\"\",LOOKUP($A15,単価表!$A$5:$A$1162,単価表!$G$5:$G$1162))","v":0},{"$f":"IF(ISBLANK($A15),\"\",ROUND(E15*G15,0))","v":0}]
[10200,null,{"$f":"IF(ISBLANK($A16),\"\",LOOKUP($A16,単価表!$A$5:$A$1162,単価表!$B$5:$B$1162))","v":"RC-40(ﾌﾟﾗﾝﾄ)　大型"},{"$f":"0.15*0.1*1.7*1.28","v":3.2639999999999995E-2},{"$f":"CEILING(E14*D16,0.01)","v":3.27},"ｔ",{"$f":"IF(ISBLANK($A16),\"\",LOOKUP($A16,単価表!$A$5:$A$1162,単価表!$G$5:$G$1162))","v":2250},7358]
[10514,null,{"$f":"IF(ISBLANK($A17),\"\",LOOKUP($A17,単価表!$A$5:$A$1162,単価表!$B$5:$B$1162))","v":"型枠　Ａ"},{"$f":"0.15*2","v":0.3},{"$f":"CEILING(E14*D17,0.01)","v":30},"ｍ2",{"$f":"IF(ISBLANK($A17),\"\",LOOKUP($A17,単価表!$A$5:$A$1162,単価表!$G$5:$G$1162))","v":1500},45000]
[10500,null,{"$f":"IF(ISBLANK($A18),\"\",LOOKUP($A18,単価表!$A$5:$A$1162,単価表!$B$5:$B$1162))","v":"生ｺﾝｸﾘｰﾄ　18-8　大型"},{"$f":"0.15*0.1*1.04","v":1.5599999999999999E-2},{"$f":"CEILING(E14*D18,0.01)","v":1.56},"ｍ3",{"$f":"IF(ISBLANK($A18),\"\",LOOKUP($A18,単価表!$A$5:$A$1162,単価表!$G$5:$G$1162))","v":27900},43524]
[41002,null,{"$f":"IF(ISBLANK($A19),\"\",LOOKUP($A19,単価表!$A$5:$A$1162,単価表!$B$5:$B$1162))","v":"自社ﾀﾞﾝﾌﾟ"},{"$f":"IF(ISBLANK($A19),\"\",IF(LOOKUP($A19,単価表!$A$5:$A$1162,単価表!$C$5:$C$1162)=0,\"\",LOOKUP($A19,単価表!$A$5:$A$1162,単価表!$C$5:$C$1162)))","v":""},{"$f":"+E15","v":1.25},"台",{"$f":"IF(ISBLANK($A19),\"\",LOOKUP($A19,単価表!$A$5:$A$1162,単価表!$G$5:$G$1162))","v":9000},11250]
[40011,null,{"$f":"IF(ISBLANK($A20),\"\",LOOKUP($A20,単価表!$A$5:$A$1162,単価表!$B$5:$B$1162))","v":"小旋回0.12ﾊﾞｯｸﾎｳ"},{"$f":"IF(ISBLANK($A20),\"\",IF(LOOKUP($A20,単価表!$A$5:$A$1162,単価表!$C$5:$C$1162)=0,\"\",LOOKUP($A20,単価表!$A$5:$A$1162,単価表!$C$5:$C$1162)))","v":""},{"$f":"+E15","v":1.25},"台",{"$f":"IF(ISBLANK($A20),\"\",LOOKUP($A20,単価表!$A$5:$A$1162,単価表!$G$5:$G$1162))","v":9000},11250]
[40001,null,{"$f":"IF(ISBLANK($A21),\"\",LOOKUP($A21,単価表!$A$5:$A$1162,単価表!$B$5:$B$1162))","v":"ﾗﾝﾏｰ･ﾌﾟﾚｰﾄ"},{"$f":"IF(ISBLANK($A21),\"\",IF(LOOKUP($A21,単価表!$A$5:$A$1162,単価表!$C$5:$C$1162)=0,\"\",LOOKUP($A21,単価表!$A$5:$A$1162,単価表!$C$5:$C$1162)))","v":""},{"$f":"+E15*2","v":2.5},"台",{"$f":"IF(ISBLANK($A21),\"\",LOOKUP($A21,単価表!$A$5:$A$1162,単価表!$G$5:$G$1162))","v":765},1913]
[40000,null,{"$f":"IF(ISBLANK($A22),\"\",LOOKUP($A22,単価表!$A$5:$A$1162,単価表!$B$5:$B$1162))","v":"油脂燃料"},{"$f":"IF(ISBLANK($A22),\"\",IF(LOOKUP($A22,単価表!$A$5:$A$1162,単価表!$C$5:$C$1162)=0,\"\",LOOKUP($A22,単価表!$A$5:$A$1162,単価表!$C$5:$C$1162)))","v":""},{"$f":"SUM(E19:E21)","v":5},"台日",{"$f":"IF(ISBLANK($A22),\"\",LOOKUP($A22,単価表!$A$5:$A$1162,単価表!$G$5:$G$1162))","v":1500},7500]
[20100,null,{"$f":"IF(ISBLANK($A23),\"\",LOOKUP($A23,単価表!$A$5:$A$1162,単価表!$B$5:$B$1162))","v":"作業員　昼間"},3,{"$f":"E15*D23","v":3.75},"人",{"$f":"IF(ISBLANK($A23),\"\",LOOKUP($A23,単価表!$A$5:$A$1162,単価表!$G$5:$G$1162))","v":40500},151875]
[null,null,"ブロック布設工","地先A",{"$f":"+E6","v":100},"ｍ",{"$f":"IF(E24=0,\"\",ROUND(SUM(H25:H33)/E24,0))","v":4083}]
[80000,null,{"$f":"IF(ISBLANK($A25),\"\",LOOKUP($A25,単価表!$A$5:$A$1162,単価表!$B$5:$B$1162))","v":"所要日数"},46.8,{"$f":"CEILING(E24/D25,0.01)","v":2.14},"日",{"$f":"IF(ISBLANK($A25),\"\",LOOKUP($A25,単価表!$A$5:$A$1162,単価表!$G$5:$G$1162))","v":0},{"$f":"IF(ISBLANK($A25),\"\",ROUND(E25*G25,0))","v":0}]
[10520,null,{"$f":"IF(ISBLANK($A26),\"\",LOOKUP($A26,単価表!$A$5:$A$1162,単価表!$B$5:$B$1162))","v":"ﾓﾙﾀﾙ"},{"$f":"0.15*0.02*1.4","v":4.1999999999999997E-3},{"$f":"CEILING(E24*D26,0.01)","v":0.42},"ｍ3",{"$f":"IF(ISBLANK($A26),\"\",LOOKUP($A26,単価表!$A$5:$A$1162,単価表!$G$5:$G$1162))","v":37500},15750]
[13000,null,{"$f":"IF(ISBLANK($A27),\"\",LOOKUP($A27,単価表!$A$5:$A$1162,単価表!$B$5:$B$1162))","v":"地先Aﾌﾞﾛｯｸ"},{"$f":"IF(ISBLANK($A27),\"\",IF(LOOKUP($A27,単価表!$A$5:$A$1162,単価表!$C$5:$C$1162)=0,\"\",LOOKUP($A27,単価表!$A$5:$A$1162,単価表!$C$5:$C$1162)))","v":"120*120*600 19kg/本"},{"$f":"CEILING(E24/0.6*1.02,1)","v":170},"本",{"$f":"IF(ISBLANK($A27),\"\",LOOKUP($A27,単価表!$A$5:$A$1162,単価表!$G$5:$G$1162))","v":600},102000]
[41002,null,{"$f":"IF(ISBLANK($A28),\"\",LOOKUP($A28,単価表!$A$5:$A$1162,単価表!$B$5:$B$1162))","v":"自社ﾀﾞﾝﾌﾟ"},{"$f":"IF(ISBLANK($A28),\"\",IF(LOOKUP($A28,単価表!$A$5:$A$1162,単価表!$C$5:$C$1162)=0,\"\",LOOKUP($A28,単価表!$A$5:$A$1162,単価表!$C$5:$C$1162)))","v":""},{"$f":"+E25","v":2.14},"台",{"$f":"IF(ISBLANK($A28),\"\",LOOKUP($A28,単価表!$A$5:$A$1162,単価表!$G$5:$G$1162))","v":9000},19260]
[40023,null,{"$f":"IF(ISBLANK($A29),\"\",LOOKUP($A29,単価表!$A$5:$A$1162,単価表!$B$5:$B$1162))","v":"諸機械 発電器,ｅｔｃ"},{"$f":"IF(ISBLANK($A29),\"\",IF(LOOKUP($A29,単価表!$A$5:$A$1162,単価表!$C$5:$C$1162)=0,\"\",LOOKUP($A29,単価表!$A$5:$A$1162,単価表!$C$5:$C$1162)))","v":""},{"$f":"+E25","v":2.14},"台",{"$f":"IF(ISBLANK($A29),\"\",LOOKUP($A29,単価表!$A$5:$A$1162,単価表!$G$5:$G$1162))","v":2250},4815]
[40000,null,{"$f":"IF(ISBLANK($A30),\"\",LOOKUP($A30,単価表!$A$5:$A$1162,単価表!$B$5:$B$1162))","v":"油脂燃料"},{"$f":"IF(ISBLANK($A30),\"\",IF(LOOKUP($A30,単価表!$A$5:$A$1162,単価表!$C$5:$C$1162)=0,\"\",LOOKUP($A30,単価表!$A$5:$A$1162,単価表!$C$5:$C$1162)))","v":""},{"$f":"SUM(E28:E29)","v":4.28},"台日",{"$f":"IF(ISBLANK($A30),\"\",LOOKUP($A30,単価表!$A$5:$A$1162,単価表!$G$5:$G$1162))","v":1500},6420]
[20100,null,{"$f":"IF(ISBLANK($A31),\"\",LOOKUP($A31,単価表!$A$5:$A$1162,単価表!$B$5:$B$1162))","v":"作業員　昼間"},3,{"$f":"E25*D31","v":6.42},"人",{"$f":"IF(ISBLANK($A31),\"\",LOOKUP($A31,単価表!$A$5:$A$1162,単価表!$G$5:$G$1162))","v":40500},260010]
[]
[]
[1,"囲障工事","化粧CB２段積","H＝400",100,"ｍ",{"$f":"ROUND(H34/E34,0)","v":10466},{"$f":"SUM(H35:INDEX(H35:H$58,IFERROR(MATCH(1,$A35:$A$58,0),ROWS($A35:$A$58)+1)-1))","v":1046630}]
[null,null,"基礎工","W=400 RC=100 FC=150",{"$f":"+E34","v":100},"ｍ",{"$f":"IF(E35=0,\"\",ROUND(SUM(H36:H45)/E35,0))","v":4371}]
[80000,null,{"$f":"IF(ISBLANK($A36),\"\",LOOKUP($A36,単価表!$A$5:$A$1162,単価表!$B$5:$B$1162))","v":"所要日数"},80,{"$f":"CEILING(E35/D36,0.01)","v":1.25},"日",{"$f":"IF(ISBLANK($A36),\"\",LOOKUP($A36,単価表!$A$5:$A$1162,単価表!$G$5:$G$1162))","v":0},{"$f":"IF(ISBLANK($A36),\"\",ROUND(E36*G36,0))","v":0}]
[10201,null,{"$f":"IF(ISBLANK($A37),\"\",LOOKUP($A37,単価表!$A$5:$A$1162,単価表!$B$5:$B$1162))","v":"RC-40(ﾌﾟﾗﾝﾄ)　小型"},{"$f":"0.4*0.1*1.28","v":5.1200000000000009E-2},{"$f":"CEILING(E35*D37,0.01)","v":5.12},"ｔ",{"$f":"IF(ISBLANK($A37),\"\",LOOKUP($A37,単価表!$A$5:$A$1162,単価表!$G$5:$G$1162))","v":4500},23040]
[10514,null,{"$f":"IF(ISBLANK($A38),\"\",LOOKUP($A38,単価表!$A$5:$A$1162,単価表!$B$5:$B$1162))","v":"型枠　Ａ"},{"$f":"0.15*2","v":0.3},{"$f":"CEILING(E35*D38,0.01)","v":30},"ｍ2",{"$f":"IF(ISBLANK($A38),\"\",LOOKUP($A38,単価表!$A$5:$A$1162,単価表!$G$5:$G$1162))","v":1500},45000]
[10501,null,{"$f":"IF(ISBLANK($A39),\"\",LOOKUP($A39,単価表!$A$5:$A$1162,単価表!$B$5:$B$1162))","v":"生ｺﾝｸﾘｰﾄ　18-8　小型"},{"$f":"0.4*0.15*1.04","v":6.2399999999999997E-2},{"$f":"CEILING(E35*D39,0.01)","v":6.24},"ｍ3",{"$f":"IF(ISBLANK($A39),\"\",LOOKUP($A39,単価表!$A$5:$A$1162,単価表!$G$5:$G$1162))","v":29400},183456]
[40023,null,{"$f":"IF(ISBLANK($A40),\"\",LOOKUP($A40,単価表!$A$5:$A$1162,単価表!$B$5:$B$1162))","v":"諸機械 発電器,ｅｔｃ"},{"$f":"IF(ISBLANK($A40),\"\",IF(LOOKUP($A40,単価表!$A$5:$A$1162,単価表!$C$5:$C$1162)=0,\"\",LOOKUP($A40,単価表!$A$5:$A$1162,単価表!$C$5:$C$1162)))","v":""},{"$f":"+E36","v":1.25},"台",{"$f":"IF(ISBLANK($A40),\"\",LOOKUP($A40,単価表!$A$5:$A$1162,単価表!$G$5:$G$1162))","v":2250},2813]
[40011,null,{"$f":"IF(ISBLANK($A41),\"\",LOOKUP($A41,単価表!$A$5:$A$1162,単価表!$B$5:$B$1162))","v":"小旋回0.12ﾊﾞｯｸﾎｳ"},{"$f":"IF(ISBLANK($A41),\"\",IF(LOOKUP($A41,単価表!$A$5:$A$1162,単価表!$C$5:$C$1162)=0,\"\",LOOKUP($A41,単価表!$A$5:$A$1162,単価表!$C$5:$C$1162)))","v":""},{"$f":"+E36","v":1.25},"台",{"$f":"IF(ISBLANK($A41),\"\",LOOKUP($A41,単価表!$A$5:$A$1162,単価表!$G$5:$G$1162))","v":9000},11250]
[41002,null,{"$f":"IF(ISBLANK($A42),\"\",LOOKUP($A42,単価表!$A$5:$A$1162,単価表!$B$5:$B$1162))","v":"自社ﾀﾞﾝﾌﾟ"},{"$f":"IF(ISBLANK($A42),\"\",IF(LOOKUP($A42,単価表!$A$5:$A$1162,単価表!$C$5:$C$1162)=0,\"\",LOOKUP($A42,単価表!$A$5:$A$1162,単価表!$C$5:$C$1162)))","v":""},{"$f":"+E36","v":1.25},"台",{"$f":"IF(ISBLANK($A42),\"\",LOOKUP($A42,単価表!$A$5:$A$1162,単価表!$G$5:$G$1162))","v":9000},11250]
[40001,null,{"$f":"IF(ISBLANK($A43),\"\",LOOKUP($A43,単価表!$A$5:$A$1162,単価表!$B$5:$B$1162))","v":"ﾗﾝﾏｰ･ﾌﾟﾚｰﾄ"},{"$f":"IF(ISBLANK($A43),\"\",IF(LOOKUP($A43,単価表!$A$5:$A$1162,単価表!$C$5:$C$1162)=0,\"\",LOOKUP($A43,単価表!$A$5:$A$1162,単価表!$C$5:$C$1162)))","v":""},{"$f":"+E36","v":1.25},"台",{"$f":"IF(ISBLANK($A43),\"\",LOOKUP($A43,単価表!$A$5:$A$1162,単価表!$G$5:$G$1162))","v":765},956]
[40000,null,{"$f":"IF(ISBLANK($A44),\"\",LOOKUP($A44,単価表!$A$5:$A$1162,単価表!$B$5:$B$1162))","v":"油脂燃料"},{"$f":"IF(ISBLANK($A44),\"\",IF(LOOKUP($A44,単価表!$A$5:$A$1162,単価表!$C$5:$C$1162)=0,\"\",LOOKUP($A44,単価表!$A$5:$A$1162,単価表!$C$5:$C$1162)))","v":""},{"$f":"SUM(E40:E43)","v":5},"台日",{"$f":"IF(ISBLANK($A44),\"\",LOOKUP($A44,単価表!$A$5:$A$1162,単価表!$G$5:$G$1162))","v":1500},7500]
[20100,null,{"$f":"IF(ISBLANK($A45),\"\",LOOKUP($A45,単価表!$A$5:$A$1162,単価表!$B$5:$B$1162))","v":"作業員　昼間"},3,{"$f":"+E36*D45","v":3.75},"人",{"$f":"IF(ISBLANK($A45),\"\",LOOKUP($A45,単価表!$A$5:$A$1162,単価表!$G$5:$G$1162))","v":40500},151875]
[null,null,"化粧CB積工","ｔ=140 2段積み",{"$f":"+E34","v":100},"ｍ",{"$f":"IF(E46=0,\"\",ROUND(SUM(H47:H58)/E46,0))","v":6095}]
[80000,null,{"$f":"IF(ISBLANK($A47),\"\",LOOKUP($A47,単価表!$A$5:$A$1162,単価表!$B$5:$B$1162))","v":"所要日数"},120,{"$f":"CEILING(E46/D47,0.01)","v":0.84},"日",{"$f":"IF(ISBLANK($A47),\"\",LOOKUP($A47,単価表!$A$5:$A$1162,単価表!$G$5:$G$1162))","v":0},{"$f":"IF(ISBLANK($A47),\"\",ROUND(E47*G47,0))","v":0}]
[99999,null,"諸雑費 ﾓﾙﾀﾙ・鉄筋",0.4,{"$f":"+E46*D48","v":40},"ｍ2",1400,56000]
[99999,null,"化粧ＣＢ  W=140　材料費",2,{"$f":"CEILING(E46/0.4*D49,D49)","v":500},"個",450,225000]
[99999,null,"化粧ＣＢ  W=140","積手間",{"$f":"+E49","v":500},"個",500,250000]
[99999,null,"化粧ＣＢ  W=140","モルタル詰手間",{"$f":"+E50","v":500},"個",65,32500]
[40023,null,{"$f":"IF(ISBLANK($A52),\"\",LOOKUP($A52,単価表!$A$5:$A$1162,単価表!$B$5:$B$1162))","v":"諸機械 発電器,ｅｔｃ"},{"$f":"IF(ISBLANK($A52),\"\",IF(LOOKUP($A52,単価表!$A$5:$A$1162,単価表!$C$5:$C$1162)=0,\"\",LOOKUP($A52,単価表!$A$5:$A$1162,単価表!$C$5:$C$1162)))","v":""},{"$f":"+E47","v":0.84},"台",{"$f":"IF(ISBLANK($A52),\"\",LOOKUP($A52,単価表!$A$5:$A$1162,単価表!$G$5:$G$1162))","v":2250},1890]
[41002,null,{"$f":"IF(ISBLANK($A53),\"\",LOOKUP($A53,単価表!$A$5:$A$1162,単価表!$B$5:$B$1162))","v":"自社ﾀﾞﾝﾌﾟ"},{"$f":"IF(ISBLANK($A53),\"\",IF(LOOKUP($A53,単価表!$A$5:$A$1162,単価表!$C$5:$C$1162)=0,\"\",LOOKUP($A53,単価表!$A$5:$A$1162,単価表!$C$5:$C$1162)))","v":""},{"$f":"+E47","v":0.84},"台",{"$f":"IF(ISBLANK($A53),\"\",LOOKUP($A53,単価表!$A$5:$A$1162,単価表!$G$5:$G$1162))","v":9000},7560]
[40000,null,{"$f":"IF(ISBLANK($A54),\"\",LOOKUP($A54,単価表!$A$5:$A$1162,単価表!$B$5:$B$1162))","v":"油脂燃料"},{"$f":"IF(ISBLANK($A54),\"\",IF(LOOKUP($A54,単価表!$A$5:$A$1162,単価表!$C$5:$C$1162)=0,\"\",LOOKUP($A54,単価表!$A$5:$A$1162,単価表!$C$5:$C$1162)))","v":""},{"$f":"SUM(E52:E53)","v":1.68},"台日",{"$f":"IF(ISBLANK($A54),\"\",LOOKUP($A54,単価表!$A$5:$A$1162,単価表!$G$5:$G$1162))","v":1500},2520]
[20100,null,{"$f":"IF(ISBLANK($A55),\"\",LOOKUP($A55,単価表!$A$5:$A$1162,単価表!$B$5:$B$1162))","v":"作業員　昼間"},1,{"$f":"+E47*D55","v":0.84},"人",{"$f":"IF(ISBLANK($A55),\"\",LOOKUP($A55,単価表!$A$5:$A$1162,単価表!$G$5:$G$1162))","v":40500},34020]
[]
[]
[null,null,null,{"$f":"IF(ISBLANK($A58),\"\",IF(LOOKUP($A58,単価表!$A$5:$A$1162,単価表!$C$5:$C$1162)=0,\"\",LOOKUP($A58,単価表!$A$5:$A$1162,単価表!$C$5:$C$1162)))","v":""}]

{"sheet":"舗装工事","index":10,"n_rows":96,"n_cols":8,"rows_kept":96,"cut":false,"hidden":false,"merged":[]}
[1]
[]
["コード","中分類","工　種","詳　細","数量","単位","単価","金額"]
[null,null,"舗装工事"]
[]
[1,"舗装打換工","道路舗装打換工","AS：t=50 表層のみ\n廃材運搬処分共",100,"ｍ2",{"$f":"ROUND(H6/E6,0)","v":5883},{"$f":"SUM(H7:INDEX(H7:H$96,IFERROR(MATCH(1,$A7:$A$96,0),ROWS($A7:$A$96)+1)-1))","v":588272}]
[null,null,"既設舗装版撤去","AS：t=50 廃材運搬処分共",{"$f":"+E6","v":100},"ｍ2",{"$f":"IF(E7=0,\"\",ROUND(SUM(H8:H15)/E7,0))","v":1090},{"$f":"IF(ISBLANK($A7),\"\",ROUND(E7*G7,0))","v":""}]
[80000,null,{"$f":"IF(ISBLANK($A8),\"\",LOOKUP($A8,単価表!$A$5:$A$1162,単価表!$B$5:$B$1162))","v":"所要日数"},350,{"$f":"CEILING(E7/D8,0.01)","v":0.28999999999999998},"日",{"$f":"IF(ISBLANK($A8),\"\",LOOKUP($A8,単価表!$A$5:$A$1162,単価表!$G$5:$G$1162))","v":0},0]
[30100,null,{"$f":"IF(ISBLANK($A9),\"\",LOOKUP($A9,単価表!$A$5:$A$1162,単価表!$B$5:$B$1162))","v":"ＡＳ舗装切断(半日)"},{"$f":"IF(ISBLANK($A9),\"\",IF(LOOKUP($A9,単価表!$A$5:$A$1162,単価表!$C$5:$C$1162)=0,\"\",LOOKUP($A9,単価表!$A$5:$A$1162,単価表!$C$5:$C$1162)))","v":"半日常傭"},1,"式",{"$f":"IF(ISBLANK($A9),\"\",LOOKUP($A9,単価表!$A$5:$A$1162,単価表!$G$5:$G$1162))","v":22500},22500]
[30207,null,{"$f":"IF(ISBLANK($A10),\"\",LOOKUP($A10,単価表!$A$5:$A$1162,単価表!$B$5:$B$1162))","v":"AS殻処分"},{"$f":"0.05*2.35","v":0.11750000000000001},{"$f":"CEILING(E7*D10,0.1)","v":11.8},"ｔ",{"$f":"IF(ISBLANK($A10),\"\",LOOKUP($A10,単価表!$A$5:$A$1162,単価表!$G$5:$G$1162))","v":1200},14160]
[40047,null,{"$f":"IF(ISBLANK($A11),\"\",LOOKUP($A11,単価表!$A$5:$A$1162,単価表!$B$5:$B$1162))","v":"4ｔﾀﾞﾝﾌﾟ　常傭"},4,{"$f":"+E10/4/D11","v":0.73750000000000004},"台",{"$f":"IF(ISBLANK($A11),\"\",LOOKUP($A11,単価表!$A$5:$A$1162,単価表!$G$5:$G$1162))","v":42000},30975]
[40011,null,{"$f":"IF(ISBLANK($A12),\"\",LOOKUP($A12,単価表!$A$5:$A$1162,単価表!$B$5:$B$1162))","v":"小旋回0.12ﾊﾞｯｸﾎｳ"},{"$f":"IF(ISBLANK($A12),\"\",IF(LOOKUP($A12,単価表!$A$5:$A$1162,単価表!$C$5:$C$1162)=0,\"\",LOOKUP($A12,単価表!$A$5:$A$1162,単価表!$C$5:$C$1162)))","v":""},{"$f":"+E8","v":0.28999999999999998},"台",{"$f":"IF(ISBLANK($A12),\"\",LOOKUP($A12,単価表!$A$5:$A$1162,単価表!$G$5:$G$1162))","v":9000},2610]
[41002,null,{"$f":"IF(ISBLANK($A13),\"\",LOOKUP($A13,単価表!$A$5:$A$1162,単価表!$B$5:$B$1162))","v":"自社ﾀﾞﾝﾌﾟ"},{"$f":"IF(ISBLANK($A13),\"\",IF(LOOKUP($A13,単価表!$A$5:$A$1162,単価表!$C$5:$C$1162)=0,\"\",LOOKUP($A13,単価表!$A$5:$A$1162,単価表!$C$5:$C$1162)))","v":""},{"$f":"+E8","v":0.28999999999999998},"台",{"$f":"IF(ISBLANK($A13),\"\",LOOKUP($A13,単価表!$A$5:$A$1162,単価表!$G$5:$G$1162))","v":9000},2610]
[40000,null,{"$f":"IF(ISBLANK($A14),\"\",LOOKUP($A14,単価表!$A$5:$A$1162,単価表!$B$5:$B$1162))","v":"油脂燃料"},null,{"$f":"SUM(E12:E13)","v":0.57999999999999996},"台日",{"$f":"IF(ISBLANK($A14),\"\",LOOKUP($A14,単価表!$A$5:$A$1162,単価表!$G$5:$G$1162))","v":1500},870]
[20100,null,{"$f":"IF(ISBLANK($A15),\"\",LOOKUP($A15,単価表!$A$5:$A$1162,単価表!$B$5:$B$1162))","v":"作業員　昼間"},3,{"$f":"E8*D15","v":0.86999999999999988},"人",{"$f":"IF(ISBLANK($A15),\"\",LOOKUP($A15,単価表!$A$5:$A$1162,単価表!$G$5:$G$1162))","v":40500},35235]
[null,null,"路盤不陸整正　RC-40 t=3cm",null,{"$f":"+E6","v":100},"ｍ2",{"$f":"IF(E16=0,\"\",ROUND(SUM(H17:H24)/E16,0))","v":395},""]
[80000,null,{"$f":"IF(ISBLANK($A17),\"\",LOOKUP($A17,単価表!$A$5:$A$1162,単価表!$B$5:$B$1162))","v":"所要日数"},800,{"$f":"CEILING(E16/D17,0.01)","v":0.13},"日",{"$f":"IF(ISBLANK($A17),\"\",LOOKUP($A17,単価表!$A$5:$A$1162,単価表!$G$5:$G$1162))","v":0},0]
[10301,null,{"$f":"IF(ISBLANK($A18),\"\",LOOKUP($A18,単価表!$A$5:$A$1162,単価表!$B$5:$B$1162))","v":"RM-40(ﾌﾟﾗﾝﾄ)　小型"},{"$f":"0.03*1.28","v":3.8399999999999997E-2},{"$f":"CEILING(E16*D18,0.01)","v":3.84},"ｍ3",{"$f":"IF(ISBLANK($A18),\"\",LOOKUP($A18,単価表!$A$5:$A$1162,単価表!$G$5:$G$1162))","v":4800},18432]
[40011,null,{"$f":"IF(ISBLANK($A19),\"\",LOOKUP($A19,単価表!$A$5:$A$1162,単価表!$B$5:$B$1162))","v":"小旋回0.12ﾊﾞｯｸﾎｳ"},{"$f":"IF(ISBLANK($A19),\"\",IF(LOOKUP($A19,単価表!$A$5:$A$1162,単価表!$C$5:$C$1162)=0,\"\",LOOKUP($A19,単価表!$A$5:$A$1162,単価表!$C$5:$C$1162)))","v":""},{"$f":"+E17","v":0.13},"台",{"$f":"IF(ISBLANK($A19),\"\",LOOKUP($A19,単価表!$A$5:$A$1162,単価表!$G$5:$G$1162))","v":9000},1170]
[40003,null,{"$f":"IF(ISBLANK($A20),\"\",LOOKUP($A20,単価表!$A$5:$A$1162,単価表!$B$5:$B$1162))","v":"2.5ｔｺﾝﾊﾞｲﾝﾄﾞﾛｰﾗｰ"},{"$f":"IF(ISBLANK($A20),\"\",IF(LOOKUP($A20,単価表!$A$5:$A$1162,単価表!$C$5:$C$1162)=0,\"\",LOOKUP($A20,単価表!$A$5:$A$1162,単価表!$C$5:$C$1162)))","v":"4ｔ"},{"$f":"+E17","v":0.13},"台",{"$f":"IF(ISBLANK($A20),\"\",LOOKUP($A20,単価表!$A$5:$A$1162,単価表!$G$5:$G$1162))","v":3300},429]
[41002,null,{"$f":"IF(ISBLANK($A21),\"\",LOOKUP($A21,単価表!$A$5:$A$1162,単価表!$B$5:$B$1162))","v":"自社ﾀﾞﾝﾌﾟ"},{"$f":"IF(ISBLANK($A21),\"\",IF(LOOKUP($A21,単価表!$A$5:$A$1162,単価表!$C$5:$C$1162)=0,\"\",LOOKUP($A21,単価表!$A$5:$A$1162,単価表!$C$5:$C$1162)))","v":""},{"$f":"+E17*2","v":0.26},"台",{"$f":"IF(ISBLANK($A21),\"\",LOOKUP($A21,単価表!$A$5:$A$1162,単価表!$G$5:$G$1162))","v":9000},2340]
[40001,null,{"$f":"IF(ISBLANK($A22),\"\",LOOKUP($A22,単価表!$A$5:$A$1162,単価表!$B$5:$B$1162))","v":"ﾗﾝﾏｰ･ﾌﾟﾚｰﾄ"},{"$f":"IF(ISBLANK($A22),\"\",IF(LOOKUP($A22,単価表!$A$5:$A$1162,単価表!$C$5:$C$1162)=0,\"\",LOOKUP($A22,単価表!$A$5:$A$1162,単価表!$C$5:$C$1162)))","v":""},{"$f":"+E17*2","v":0.26},"台",{"$f":"IF(ISBLANK($A22),\"\",LOOKUP($A22,単価表!$A$5:$A$1162,単価表!$G$5:$G$1162))","v":765},199]
[40000,null,{"$f":"IF(ISBLANK($A23),\"\",LOOKUP($A23,単価表!$A$5:$A$1162,単価表!$B$5:$B$1162))","v":"油脂燃料"},{"$f":"IF(ISBLANK($A23),\"\",IF(LOOKUP($A23,単価表!$A$5:$A$1162,単価表!$C$5:$C$1162)=0,\"\",LOOKUP($A23,単価表!$A$5:$A$1162,単価表!$C$5:$C$1162)))","v":""},{"$f":"SUM(E19:E22)","v":0.78},"台日",{"$f":"IF(ISBLANK($A23),\"\",LOOKUP($A23,単価表!$A$5:$A$1162,単価表!$G$5:$G$1162))","v":1500},1170]
[20100,null,{"$f":"IF(ISBLANK($A24),\"\",LOOKUP($A24,単価表!$A$5:$A$1162,単価表!$B$5:$B$1162))","v":"作業員　昼間"},3,{"$f":"+E17*D24","v":0.39},"人",{"$f":"IF(ISBLANK($A24),\"\",LOOKUP($A24,単価表!$A$5:$A$1162,単価表!$G$5:$G$1162))","v":40500},15795]
[null,null,"表層　密粒 t=5cm",null,{"$f":"+E6","v":100},"ｍ2",{"$f":"IF(E25=0,\"\",ROUND(SUM(H26:H39)/E25,0))","v":4398},""]
[80000,null,{"$f":"IF(ISBLANK($A26),\"\",LOOKUP($A26,単価表!$A$5:$A$1162,単価表!$B$5:$B$1162))","v":"所要日数"},300,{"$f":"CEILING(E25/D26,0.01)","v":0.34},"日",{"$f":"IF(ISBLANK($A26),\"\",LOOKUP($A26,単価表!$A$5:$A$1162,単価表!$G$5:$G$1162))","v":0},0]
[10100,null,{"$f":"IF(ISBLANK($A27),\"\",LOOKUP($A27,単価表!$A$5:$A$1162,単価表!$B$5:$B$1162))","v":"密粒13･20mm"},{"$f":"0.05*2.35*1.08","v":0.12690000000000001},{"$f":"CEILING(E25*D27,0.5)","v":13},"ｔ",{"$f":"IF(ISBLANK($A27),\"\",LOOKUP($A27,単価表!$A$5:$A$1162,単価表!$G$5:$G$1162))","v":21000},273000]
[10114,null,{"$f":"IF(ISBLANK($A28),\"\",LOOKUP($A28,単価表!$A$5:$A$1162,単価表!$B$5:$B$1162))","v":"小型割増"},1,{"$f":"CEILING(E27*D28,0.5)","v":13},"ｔ",{"$f":"IF(ISBLANK($A28),\"\",LOOKUP($A28,単価表!$A$5:$A$1162,単価表!$G$5:$G$1162))","v":2250},29250]
[10400,null,{"$f":"IF(ISBLANK($A29),\"\",LOOKUP($A29,単価表!$A$5:$A$1162,単価表!$B$5:$B$1162))","v":"乳剤PK-3"},1.26,{"$f":"CEILING(E25*D29,1)","v":126},"㍑",{"$f":"IF(ISBLANK($A29),\"\",LOOKUP($A29,単価表!$A$5:$A$1162,単価表!$G$5:$G$1162))","v":150},18900]
[10113,null,{"$f":"IF(ISBLANK($A30),\"\",LOOKUP($A30,単価表!$A$5:$A$1162,単価表!$B$5:$B$1162))","v":"諸雑費"},null,{"$f":"CEILING(E25,1)","v":100},"ｍ2",{"$f":"IF(ISBLANK($A30),\"\",LOOKUP($A30,単価表!$A$5:$A$1162,単価表!$G$5:$G$1162))","v":30},3000]
[40003,null,{"$f":"IF(ISBLANK($A31),\"\",LOOKUP($A31,単価表!$A$5:$A$1162,単価表!$B$5:$B$1162))","v":"2.5ｔｺﾝﾊﾞｲﾝﾄﾞﾛｰﾗｰ"},{"$f":"IF(ISBLANK($A31),\"\",IF(LOOKUP($A31,単価表!$A$5:$A$1162,単価表!$C$5:$C$1162)=0,\"\",LOOKUP($A31,単価表!$A$5:$A$1162,単価表!$C$5:$C$1162)))","v":"4ｔ"},{"$f":"+E26","v":0.34},"台",{"$f":"IF(ISBLANK($A31),\"\",LOOKUP($A31,単価表!$A$5:$A$1162,単価表!$G$5:$G$1162))","v":3300},1122]
[40011,null,{"$f":"IF(ISBLANK($A32),\"\",LOOKUP($A32,単価表!$A$5:$A$1162,単価表!$B$5:$B$1162))","v":"小旋回0.12ﾊﾞｯｸﾎｳ"},{"$f":"IF(ISBLANK($A32),\"\",IF(LOOKUP($A32,単価表!$A$5:$A$1162,単価表!$C$5:$C$1162)=0,\"\",LOOKUP($A32,単価表!$A$5:$A$1162,単価表!$C$5:$C$1162)))","v":""},{"$f":"+E26","v":0.34},"台",{"$f":"IF(ISBLANK($A32),\"\",LOOKUP($A32,単価表!$A$5:$A$1162,単価表!$G$5:$G$1162))","v":9000},3060]
[40026,null,{"$f":"IF(ISBLANK($A33),\"\",LOOKUP($A33,単価表!$A$5:$A$1162,単価表!$B$5:$B$1162))","v":"諸機械 ｽﾌﾟﾚｰﾔｰ"},{"$f":"IF(ISBLANK($A33),\"\",IF(LOOKUP($A33,単価表!$A$5:$A$1162,単価表!$C$5:$C$1162)=0,\"\",LOOKUP($A33,単価表!$A$5:$A$1162,単価表!$C$5:$C$1162)))","v":""},{"$f":"+E26","v":0.34},"台",{"$f":"IF(ISBLANK($A33),\"\",LOOKUP($A33,単価表!$A$5:$A$1162,単価表!$G$5:$G$1162))","v":3750},1275]
[41002,null,{"$f":"IF(ISBLANK($A34),\"\",LOOKUP($A34,単価表!$A$5:$A$1162,単価表!$B$5:$B$1162))","v":"自社ﾀﾞﾝﾌﾟ"},{"$f":"IF(ISBLANK($A34),\"\",IF(LOOKUP($A34,単価表!$A$5:$A$1162,単価表!$C$5:$C$1162)=0,\"\",LOOKUP($A34,単価表!$A$5:$A$1162,単価表!$C$5:$C$1162)))","v":""},{"$f":"+E26*3","v":1.02},"台",{"$f":"IF(ISBLANK($A34),\"\",LOOKUP($A34,単価表!$A$5:$A$1162,単価表!$G$5:$G$1162))","v":9000},9180]
[40001,null,{"$f":"IF(ISBLANK($A35),\"\",LOOKUP($A35,単価表!$A$5:$A$1162,単価表!$B$5:$B$1162))","v":"ﾗﾝﾏｰ･ﾌﾟﾚｰﾄ"},{"$f":"IF(ISBLANK($A35),\"\",IF(LOOKUP($A35,単価表!$A$5:$A$1162,単価表!$C$5:$C$1162)=0,\"\",LOOKUP($A35,単価表!$A$5:$A$1162,単価表!$C$5:$C$1162)))","v":""},{"$f":"+E26*2","v":0.68},"台",{"$f":"IF(ISBLANK($A35),\"\",LOOKUP($A35,単価表!$A$5:$A$1162,単価表!$G$5:$G$1162))","v":765},520]
[40000,null,{"$f":"IF(ISBLANK($A36),\"\",LOOKUP($A36,単価表!$A$5:$A$1162,単価表!$B$5:$B$1162))","v":"油脂燃料"},{"$f":"IF(ISBLANK($A36),\"\",IF(LOOKUP($A36,単価表!$A$5:$A$1162,単価表!$C$5:$C$1162)=0,\"\",LOOKUP($A36,単価表!$A$5:$A$1162,単価表!$C$5:$C$1162)))","v":""},{"$f":"SUM(E31:E35)","v":2.72},"台日",{"$f":"IF(ISBLANK($A36),\"\",LOOKUP($A36,単価表!$A$5:$A$1162,単価表!$G$5:$G$1162))","v":1500},4080]
[20100,null,{"$f":"IF(ISBLANK($A37),\"\",LOOKUP($A37,単価表!$A$5:$A$1162,単価表!$B$5:$B$1162))","v":"作業員　昼間"},7,{"$f":"+E26*D37","v":2.3800000000000003},"人",{"$f":"IF(ISBLANK($A37),\"\",LOOKUP($A37,単価表!$A$5:$A$1162,単価表!$G$5:$G$1162))","v":40500},96390]
[]
[null,null,null,null,null,null,null,{"$f":"IF(ISBLANK($A39),\"\",ROUND(E39*G39,0))","v":""}]
[1,"車道舗装","下層路盤(車道・路肩部)","再生ｸﾗｯｼｬﾗﾝ RC-40 仕上り厚 400ｍｍ\n",100,"ｍ2",{"$f":"ROUND(H40/E40,0)","v":2264},{"$f":"SUM(H41:INDEX(H41:H$96,IFERROR(MATCH(1,$A41:$A$96,0),ROWS($A41:$A$96)+1)-1))","v":226368}]
[null,null,"下層路盤　RC-40 t=40cm",null,{"$f":"+E40","v":100},"ｍ2",{"$f":"IF(E41=0,\"\",ROUND(SUM(H42:H56)/E41,0))","v":2264},{"$f":"IF(ISBLANK($A41),\"\",ROUND(E41*G41,0))","v":""}]
[80000,null,{"$f":"IF(ISBLANK($A42),\"\",LOOKUP($A42,単価表!$A$5:$A$1162,単価表!$B$5:$B$1162))","v":"所要日数"},341.25,{"$f":"CEILING(E41/D42,0.01)","v":0.3},"日",{"$f":"IF(ISBLANK($A42),\"\",LOOKUP($A42,単価表!$A$5:$A$1162,単価表!$G$5:$G$1162))","v":0},0]
[10200,null,{"$f":"IF(ISBLANK($A43),\"\",LOOKUP($A43,単価表!$A$5:$A$1162,単価表!$B$5:$B$1162))","v":"RC-40(ﾌﾟﾗﾝﾄ)　大型"},{"$f":"0.4*1.28","v":0.51200000000000001},{"$f":"CEILING(E41*D43,0.1)","v":51.2},"ｍ3",{"$f":"IF(ISBLANK($A43),\"\",LOOKUP($A43,単価表!$A$5:$A$1162,単価表!$G$5:$G$1162))","v":2250},115200]
[40048,null,{"$f":"IF(ISBLANK($A44),\"\",LOOKUP($A44,単価表!$A$5:$A$1162,単価表!$B$5:$B$1162))","v":"8ｔﾀﾞﾝﾌﾟ　常傭"},1,{"$f":"+E42*D44","v":0.3},"台",{"$f":"IF(ISBLANK($A44),\"\",LOOKUP($A44,単価表!$A$5:$A$1162,単価表!$G$5:$G$1162))","v":54000},16200]
[40008,null,{"$f":"IF(ISBLANK($A45),\"\",LOOKUP($A45,単価表!$A$5:$A$1162,単価表!$B$5:$B$1162))","v":"ﾌﾞﾙﾄﾞｰｻﾞｰ3ｔ（Ｄ20） ゴム"},1,{"$f":"+E42*D45","v":0.3},"台",{"$f":"IF(ISBLANK($A45),\"\",LOOKUP($A45,単価表!$A$5:$A$1162,単価表!$G$5:$G$1162))","v":9300},2790]
[40018,null,{"$f":"IF(ISBLANK($A46),\"\",LOOKUP($A46,単価表!$A$5:$A$1162,単価表!$B$5:$B$1162))","v":"ﾀｲﾔｼｮﾍﾞﾙ　WA40 0.5ｍ3"},1,{"$f":"+E42*D46","v":0.3},"台",{"$f":"IF(ISBLANK($A46),\"\",LOOKUP($A46,単価表!$A$5:$A$1162,単価表!$G$5:$G$1162))","v":13500},4050]
[40004,null,{"$f":"IF(ISBLANK($A47),\"\",LOOKUP($A47,単価表!$A$5:$A$1162,単価表!$B$5:$B$1162))","v":"3ｔﾀｲﾔﾛｰﾗｰ"},1,{"$f":"+E42*D47","v":0.3},"台",{"$f":"IF(ISBLANK($A47),\"\",LOOKUP($A47,単価表!$A$5:$A$1162,単価表!$G$5:$G$1162))","v":5100},1530]
[40005,null,{"$f":"IF(ISBLANK($A48),\"\",LOOKUP($A48,単価表!$A$5:$A$1162,単価表!$B$5:$B$1162))","v":"10ｔﾀｲﾔﾛｰﾗｰ"},1,{"$f":"+E42*D48","v":0.3},"台",{"$f":"IF(ISBLANK($A48),\"\",LOOKUP($A48,単価表!$A$5:$A$1162,単価表!$G$5:$G$1162))","v":9750},2925]
[40006,null,{"$f":"IF(ISBLANK($A49),\"\",LOOKUP($A49,単価表!$A$5:$A$1162,単価表!$B$5:$B$1162))","v":"4ｔ鉄輪ﾛｰﾗｰ"},1,{"$f":"+E42*D49","v":0.3},"台",{"$f":"IF(ISBLANK($A49),\"\",LOOKUP($A49,単価表!$A$5:$A$1162,単価表!$G$5:$G$1162))","v":5100},1530]
[40007,null,{"$f":"IF(ISBLANK($A50),\"\",LOOKUP($A50,単価表!$A$5:$A$1162,単価表!$B$5:$B$1162))","v":"10ｔ鉄輪ﾛｰﾗｰ"},1,{"$f":"+E42*D50","v":0.3},"台",{"$f":"IF(ISBLANK($A50),\"\",LOOKUP($A50,単価表!$A$5:$A$1162,単価表!$G$5:$G$1162))","v":9750},2925]
[41002,null,{"$f":"IF(ISBLANK($A51),\"\",LOOKUP($A51,単価表!$A$5:$A$1162,単価表!$B$5:$B$1162))","v":"自社ﾀﾞﾝﾌﾟ"},2,{"$f":"+E42*2*D51","v":1.2},"台",{"$f":"IF(ISBLANK($A51),\"\",LOOKUP($A51,単価表!$A$5:$A$1162,単価表!$G$5:$G$1162))","v":9000},10800]
[40001,null,{"$f":"IF(ISBLANK($A52),\"\",LOOKUP($A52,単価表!$A$5:$A$1162,単価表!$B$5:$B$1162))","v":"ﾗﾝﾏｰ･ﾌﾟﾚｰﾄ"},2,{"$f":"+E42*2*D52","v":1.2},"台",{"$f":"IF(ISBLANK($A52),\"\",LOOKUP($A52,単価表!$A$5:$A$1162,単価表!$G$5:$G$1162))","v":765},918]
[40000,null,{"$f":"IF(ISBLANK($A53),\"\",LOOKUP($A53,単価表!$A$5:$A$1162,単価表!$B$5:$B$1162))","v":"油脂燃料"},{"$f":"IF(ISBLANK($A53),\"\",IF(LOOKUP($A53,単価表!$A$5:$A$1162,単価表!$C$5:$C$1162)=0,\"\",LOOKUP($A53,単価表!$A$5:$A$1162,単価表!$C$5:$C$1162)))","v":""},{"$f":"SUM(E44:E52)","v":4.5},"台日",{"$f":"IF(ISBLANK($A53),\"\",LOOKUP($A53,単価表!$A$5:$A$1162,単価表!$G$5:$G$1162))","v":1500},6750]
[20100,null,{"$f":"IF(ISBLANK($A54),\"\",LOOKUP($A54,単価表!$A$5:$A$1162,単価表!$B$5:$B$1162))","v":"作業員　昼間"},5,{"$f":"+E42*D54","v":1.5},"人",{"$f":"IF(ISBLANK($A54),\"\",LOOKUP($A54,単価表!$A$5:$A$1162,単価表!$G$5:$G$1162))","v":40500},60750]
[]
[]
[1,"歩道及び小規模舗装","下層路盤(歩道部)","再生ｸﾗｯｼｬﾗﾝ RC-40 仕上り厚 100ｍｍ\n",100,"ｍ2",{"$f":"ROUND(H57/E57,0)","v":1054},{"$f":"SUM(H58:INDEX(H58:H$96,IFERROR(MATCH(1,$A58:$A$96,0),ROWS($A58:$A$96)+1)-1))","v":105363}]
[null,null,"下層路盤　RC-40 t=10cm",null,{"$f":"+E57","v":100},"ｍ2",{"$f":"IF(E58=0,\"\",ROUND(SUM(H59:H71)/E58,0))","v":1054},{"$f":"IF(ISBLANK($A58),\"\",ROUND(E58*G58,0))","v":""}]
[80000,null,{"$f":"IF(ISBLANK($A59),\"\",LOOKUP($A59,単価表!$A$5:$A$1162,単価表!$B$5:$B$1162))","v":"所要日数"},341.25,{"$f":"CEILING(E58/D59,0.01)","v":0.3},"日",{"$f":"IF(ISBLANK($A59),\"\",LOOKUP($A59,単価表!$A$5:$A$1162,単価表!$G$5:$G$1162))","v":0},0]
[10200,null,{"$f":"IF(ISBLANK($A60),\"\",LOOKUP($A60,単価表!$A$5:$A$1162,単価表!$B$5:$B$1162))","v":"RC-40(ﾌﾟﾗﾝﾄ)　大型"},{"$f":"0.1*1.28","v":0.128},{"$f":"CEILING(E58*D60,0.1)","v":12.8},"ｍ3",{"$f":"IF(ISBLANK($A60),\"\",LOOKUP($A60,単価表!$A$5:$A$1162,単価表!$G$5:$G$1162))","v":2250},28800]
[40011,null,{"$f":"IF(ISBLANK($A61),\"\",LOOKUP($A61,単価表!$A$5:$A$1162,単価表!$B$5:$B$1162))","v":"小旋回0.12ﾊﾞｯｸﾎｳ"},1,{"$f":"+E59*D61","v":0.3},"台",{"$f":"IF(ISBLANK($A61),\"\",LOOKUP($A61,単価表!$A$5:$A$1162,単価表!$G$5:$G$1162))","v":9000},2700]
[40018,null,{"$f":"IF(ISBLANK($A62),\"\",LOOKUP($A62,単価表!$A$5:$A$1162,単価表!$B$5:$B$1162))","v":"ﾀｲﾔｼｮﾍﾞﾙ　WA40 0.5ｍ3"},1,{"$f":"+E59*D62","v":0.3},"台",{"$f":"IF(ISBLANK($A62),\"\",LOOKUP($A62,単価表!$A$5:$A$1162,単価表!$G$5:$G$1162))","v":13500},4050]
[40004,null,{"$f":"IF(ISBLANK($A63),\"\",LOOKUP($A63,単価表!$A$5:$A$1162,単価表!$B$5:$B$1162))","v":"3ｔﾀｲﾔﾛｰﾗｰ"},1,{"$f":"+E59*D63","v":0.3},"台",{"$f":"IF(ISBLANK($A63),\"\",LOOKUP($A63,単価表!$A$5:$A$1162,単価表!$G$5:$G$1162))","v":5100},1530]
[40006,null,{"$f":"IF(ISBLANK($A64),\"\",LOOKUP($A64,単価表!$A$5:$A$1162,単価表!$B$5:$B$1162))","v":"4ｔ鉄輪ﾛｰﾗｰ"},1,{"$f":"+E59*D64","v":0.3},"台",{"$f":"IF(ISBLANK($A64),\"\",LOOKUP($A64,単価表!$A$5:$A$1162,単価表!$G$5:$G$1162))","v":5100},1530]
[40002,null,{"$f":"IF(ISBLANK($A65),\"\",LOOKUP($A65,単価表!$A$5:$A$1162,単価表!$B$5:$B$1162))","v":"ﾊﾝﾄﾞﾛｰﾗｰ"},1,{"$f":"+E59*D65","v":0.3},"台",{"$f":"IF(ISBLANK($A65),\"\",LOOKUP($A65,単価表!$A$5:$A$1162,単価表!$G$5:$G$1162))","v":1950},585]
[41002,null,{"$f":"IF(ISBLANK($A66),\"\",LOOKUP($A66,単価表!$A$5:$A$1162,単価表!$B$5:$B$1162))","v":"自社ﾀﾞﾝﾌﾟ"},2,{"$f":"+E59*2*D66","v":1.2},"台",{"$f":"IF(ISBLANK($A66),\"\",LOOKUP($A66,単価表!$A$5:$A$1162,単価表!$G$5:$G$1162))","v":9000},10800]
[40001,null,{"$f":"IF(ISBLANK($A67),\"\",LOOKUP($A67,単価表!$A$5:$A$1162,単価表!$B$5:$B$1162))","v":"ﾗﾝﾏｰ･ﾌﾟﾚｰﾄ"},2,{"$f":"+E59*2*D67","v":1.2},"台",{"$f":"IF(ISBLANK($A67),\"\",LOOKUP($A67,単価表!$A$5:$A$1162,単価表!$G$5:$G$1162))","v":765},918]
[40000,null,{"$f":"IF(ISBLANK($A68),\"\",LOOKUP($A68,単価表!$A$5:$A$1162,単価表!$B$5:$B$1162))","v":"油脂燃料"},{"$f":"IF(ISBLANK($A68),\"\",IF(LOOKUP($A68,単価表!$A$5:$A$1162,単価表!$C$5:$C$1162)=0,\"\",LOOKUP($A68,単価表!$A$5:$A$1162,単価表!$C$5:$C$1162)))","v":""},{"$f":"SUM(E61:E67)","v":3.9000000000000004},"台日",{"$f":"IF(ISBLANK($A68),\"\",LOOKUP($A68,単価表!$A$5:$A$1162,単価表!$G$5:$G$1162))","v":1500},5850]
[20100,null,{"$f":"IF(ISBLANK($A69),\"\",LOOKUP($A69,単価表!$A$5:$A$1162,単価表!$B$5:$B$1162))","v":"作業員　昼間"},4,{"$f":"+E59*D69","v":1.2},"人",{"$f":"IF(ISBLANK($A69),\"\",LOOKUP($A69,単価表!$A$5:$A$1162,単価表!$G$5:$G$1162))","v":40500},48600]
[]
[]
[1,"コンクリート舗装","歩道コンクリート舗装工","CO：t=100 RC-40：t=100",100,"ｍ2",{"$f":"ROUND(H72/E72,0)","v":6893},{"$f":"SUM(H73:INDEX(H73:H$96,IFERROR(MATCH(1,$A73:$A$96,0),ROWS($A73:$A$96)+1)-1))","v":689343}]
[null,null,"路床整正及び下層路盤工","RC-40　t=100",{"$f":"+E72","v":100},"ｍ2",{"$f":"IF(E73=0,\"\",ROUND(SUM(H74:H81)/E73,0))","v":1001}]
[80000,null,{"$f":"IF(ISBLANK($A74),\"\",LOOKUP($A74,単価表!$A$5:$A$1162,単価表!$B$5:$B$1162))","v":"所要日数"},500,{"$f":"CEILING(E73/D74,0.01)","v":0.2},"日",{"$f":"IF(ISBLANK($A74),\"\",LOOKUP($A74,単価表!$A$5:$A$1162,単価表!$G$5:$G$1162))","v":0},{"$f":"IF(ISBLANK($A74),\"\",ROUND(E74*G74,0))","v":0}]
[10200,null,{"$f":"IF(ISBLANK($A75),\"\",LOOKUP($A75,単価表!$A$5:$A$1162,単価表!$B$5:$B$1162))","v":"RC-40(ﾌﾟﾗﾝﾄ)　大型"},{"$f":"0.1*1.28","v":0.128},{"$f":"CEILING(E72*D75,0.1)","v":12.8},"ｍ3",{"$f":"IF(ISBLANK($A75),\"\",LOOKUP($A75,単価表!$A$5:$A$1162,単価表!$G$5:$G$1162))","v":2250},28800]
[40018,null,{"$f":"IF(ISBLANK($A76),\"\",LOOKUP($A76,単価表!$A$5:$A$1162,単価表!$B$5:$B$1162))","v":"ﾀｲﾔｼｮﾍﾞﾙ　WA40 0.5ｍ3"},{"$f":"IF(ISBLANK($A76),\"\",IF(LOOKUP($A76,単価表!$A$5:$A$1162,単価表!$C$5:$C$1162)=0,\"\",LOOKUP($A76,単価表!$A$5:$A$1162,単価表!$C$5:$C$1162)))","v":"0.5ｍ3"},{"$f":"+E74","v":0.2},"台",{"$f":"IF(ISBLANK($A76),\"\",LOOKUP($A76,単価表!$A$5:$A$1162,単価表!$G$5:$G$1162))","v":13500},2700]
[40011,null,{"$f":"IF(ISBLANK($A77),\"\",LOOKUP($A77,単価表!$A$5:$A$1162,単価表!$B$5:$B$1162))","v":"小旋回0.12ﾊﾞｯｸﾎｳ"},{"$f":"IF(ISBLANK($A77),\"\",IF(LOOKUP($A77,単価表!$A$5:$A$1162,単価表!$C$5:$C$1162)=0,\"\",LOOKUP($A77,単価表!$A$5:$A$1162,単価表!$C$5:$C$1162)))","v":""},{"$f":"+E74","v":0.2},"台",{"$f":"IF(ISBLANK($A77),\"\",LOOKUP($A77,単価表!$A$5:$A$1162,単価表!$G$5:$G$1162))","v":9000},1800]
[40003,null,{"$f":"IF(ISBLANK($A78),\"\",LOOKUP($A78,単価表!$A$5:$A$1162,単価表!$B$5:$B$1162))","v":"2.5ｔｺﾝﾊﾞｲﾝﾄﾞﾛｰﾗｰ"},{"$f":"IF(ISBLANK($A78),\"\",IF(LOOKUP($A78,単価表!$A$5:$A$1162,単価表!$C$5:$C$1162)=0,\"\",LOOKUP($A78,単価表!$A$5:$A$1162,単価表!$C$5:$C$1162)))","v":"4ｔ"},{"$f":"+E74","v":0.2},"台",{"$f":"IF(ISBLANK($A78),\"\",LOOKUP($A78,単価表!$A$5:$A$1162,単価表!$G$5:$G$1162))","v":3300},660]
[40001,null,{"$f":"IF(ISBLANK($A79),\"\",LOOKUP($A79,単価表!$A$5:$A$1162,単価表!$B$5:$B$1162))","v":"ﾗﾝﾏｰ･ﾌﾟﾚｰﾄ"},{"$f":"IF(ISBLANK($A79),\"\",IF(LOOKUP($A79,単価表!$A$5:$A$1162,単価表!$C$5:$C$1162)=0,\"\",LOOKUP($A79,単価表!$A$5:$A$1162,単価表!$C$5:$C$1162)))","v":""},{"$f":"+E74","v":0.2},"台",{"$f":"IF(ISBLANK($A79),\"\",LOOKUP($A79,単価表!$A$5:$A$1162,単価表!$G$5:$G$1162))","v":765},153]
[40000,null,{"$f":"IF(ISBLANK($A80),\"\",LOOKUP($A80,単価表!$A$5:$A$1162,単価表!$B$5:$B$1162))","v":"油脂燃料"},{"$f":"IF(ISBLANK($A80),\"\",IF(LOOKUP($A80,単価表!$A$5:$A$1162,単価表!$C$5:$C$1162)=0,\"\",LOOKUP($A80,単価表!$A$5:$A$1162,単価表!$C$5:$C$1162)))","v":""},{"$f":"SUM(E76:E79)","v":0.8},"台日",{"$f":"IF(ISBLANK($A80),\"\",LOOKUP($A80,単価表!$A$5:$A$1162,単価表!$G$5:$G$1162))","v":1500},1200]
[20100,null,{"$f":"IF(ISBLANK($A81),\"\",LOOKUP($A81,単価表!$A$5:$A$1162,単価表!$B$5:$B$1162))","v":"作業員　昼間"},8,{"$f":"+E74*D81","v":1.6},"人",{"$f":"IF(ISBLANK($A81),\"\",LOOKUP($A81,単価表!$A$5:$A$1162,単価表!$G$5:$G$1162))","v":40500},64800]
[null,null,"目地工",null,{"$f":"CEILING((E72/5/5*5)+(E72),0.1)","v":120},"ｍ",{"$f":"IF(E82=0,\"\",ROUND(SUM(H83:H84)/E82,0))","v":1169}]
[99999,null,"目地板",null,{"$f":"+E82","v":120},"ｍ2",1000,{"$f":"IF(ISBLANK($A83),\"\",ROUND(E83*G83,0))","v":120000}]
[20100,null,{"$f":"IF(ISBLANK($A84),\"\",LOOKUP($A84,単価表!$A$5:$A$1162,単価表!$B$5:$B$1162))","v":"作業員　昼間"},{"$f":"IF(ISBLANK($A84),\"\",IF(LOOKUP($A84,単価表!$A$5:$A$1162,単価表!$C$5:$C$1162)=0,\"\",LOOKUP($A84,単価表!$A$5:$A$1162,単価表!$C$5:$C$1162)))","v":"社外"},0.5,"人",{"$f":"IF(ISBLANK($A84),\"\",LOOKUP($A84,単価表!$A$5:$A$1162,単価表!$G$5:$G$1162))","v":40500},{"$f":"IF(ISBLANK($A84),\"\",ROUND(E84*G84,0))","v":20250}]
[null,null,"表層工","CO　ｔ＝100",{"$f":"+E72","v":100},"ｍ2",{"$f":"IF(E85=0,\"\",ROUND(SUM(H86:H96)/E85,0))","v":4490}]
[80000,null,{"$f":"IF(ISBLANK($A86),\"\",LOOKUP($A86,単価表!$A$5:$A$1162,単価表!$B$5:$B$1162))","v":"所要日数"},300,{"$f":"CEILING(E85/D86,0.01)","v":0.34},"日",{"$f":"IF(ISBLANK($A86),\"\",LOOKUP($A86,単価表!$A$5:$A$1162,単価表!$G$5:$G$1162))","v":0},{"$f":"IF(ISBLANK($A86),\"\",ROUND(E86*G86,0))","v":0}]
[10502,null,{"$f":"IF(ISBLANK($A87),\"\",LOOKUP($A87,単価表!$A$5:$A$1162,単価表!$B$5:$B$1162))","v":"生ｺﾝｸﾘｰﾄ　　21-8　大型"},{"$f":"0.1*1.04","v":0.10400000000000001},{"$f":"CEILING(E72*D87,0.5)","v":10.5},"ｍ3",{"$f":"IF(ISBLANK($A87),\"\",LOOKUP($A87,単価表!$A$5:$A$1162,単価表!$G$5:$G$1162))","v":28650},300825]
[99999,null,"鉄筋　材工共","Ｄ13　＠250Ｗ",{"$f":"E85*5.6","v":560},"kg",110,61600]
[99999,null,"諸雑費","ﾚｰﾙ、型枠",{"$f":"+E85","v":100},"ｍ2",200,20000]
[40049,null,{"$f":"IF(ISBLANK($A90),\"\",LOOKUP($A90,単価表!$A$5:$A$1162,単価表!$B$5:$B$1162))","v":"ﾎﾟﾝﾌﾟ車"},{"$f":"IF(ISBLANK($A90),\"\",IF(LOOKUP($A90,単価表!$A$5:$A$1162,単価表!$C$5:$C$1162)=0,\"\",LOOKUP($A90,単価表!$A$5:$A$1162,単価表!$C$5:$C$1162)))","v":"4ｔ"},{"$f":"+E86","v":0.34},"台",{"$f":"IF(ISBLANK($A90),\"\",LOOKUP($A90,単価表!$A$5:$A$1162,単価表!$G$5:$G$1162))","v":67500},22950]
[40023,null,{"$f":"IF(ISBLANK($A91),\"\",LOOKUP($A91,単価表!$A$5:$A$1162,単価表!$B$5:$B$1162))","v":"諸機械 発電器,ｅｔｃ"},{"$f":"IF(ISBLANK($A91),\"\",IF(LOOKUP($A91,単価表!$A$5:$A$1162,単価表!$C$5:$C$1162)=0,\"\",LOOKUP($A91,単価表!$A$5:$A$1162,単価表!$C$5:$C$1162)))","v":""},{"$f":"+E86","v":0.34},"台",{"$f":"IF(ISBLANK($A91),\"\",LOOKUP($A91,単価表!$A$5:$A$1162,単価表!$G$5:$G$1162))","v":2250},765]
[40000,null,{"$f":"IF(ISBLANK($A92),\"\",LOOKUP($A92,単価表!$A$5:$A$1162,単価表!$B$5:$B$1162))","v":"油脂燃料"},{"$f":"IF(ISBLANK($A92),\"\",IF(LOOKUP($A92,単価表!$A$5:$A$1162,単価表!$C$5:$C$1162)=0,\"\",LOOKUP($A92,単価表!$A$5:$A$1162,単価表!$C$5:$C$1162)))","v":""},{"$f":"SUM(E91:E91)","v":0.34},"台日",{"$f":"IF(ISBLANK($A92),\"\",LOOKUP($A92,単価表!$A$5:$A$1162,単価表!$G$5:$G$1162))","v":1500},510]
[30108,null,{"$f":"IF(ISBLANK($A93),\"\",LOOKUP($A93,単価表!$A$5:$A$1162,単価表!$B$5:$B$1162))","v":"左官仕上げ（ｍ2）"},4,{"$f":"+E86*D93","v":1.36},"ｍ2",{"$f":"IF(ISBLANK($A93),\"\",LOOKUP($A93,単価表!$A$5:$A$1162,単価表!$G$5:$G$1162))","v":750},1020]
[20100,null,{"$f":"IF(ISBLANK($A94),\"\",LOOKUP($A94,単価表!$A$5:$A$1162,単価表!$B$5:$B$1162))","v":"作業員　昼間"},3,{"$f":"+E86*D94","v":1.02},"人",{"$f":"IF(ISBLANK($A94),\"\",LOOKUP($A94,単価表!$A$5:$A$1162,単価表!$G$5:$G$1162))","v":40500},41310]
[null,null,null,{"$f":"IF(ISBLANK($A95),\"\",IF(LOOKUP($A95,単価表!$A$5:$A$1162,単価表!$C$5:$C$1162)=0,\"\",LOOKUP($A95,単価表!$A$5:$A$1162,単価表!$C$5:$C$1162)))","v":""},null,null,null,""]
[null,null,null,{"$f":"IF(ISBLANK($A96),\"\",IF(LOOKUP($A96,単価表!$A$5:$A$1162,単価表!$C$5:$C$1162)=0,\"\",LOOKUP($A96,単価表!$A$5:$A$1162,単価表!$C$5:$C$1162)))","v":""},null,null,null,""]

{"sheet":"仮設工事","index":11,"n_rows":55,"n_cols":8,"rows_kept":55,"cut":false,"hidden":false,"merged":[]}
[1]
[]
["コード","中分類","工　種","詳　細","数量","単位","単価","金額"]
[null,null,"仮設工事"]
[]
[1,"仮囲工","仮囲万能鋼板設置工","安全鋼板(塗装品) H=2000 資材購入\n",100,"ｍ",{"$f":"ROUND(H6/E6,0)","v":16540},{"$f":"SUM(H7:INDEX(H7:H$55,IFERROR(MATCH(1,$A7:$A$55,0),ROWS($A7:$A$55)+1)-1))","v":1654040}]
[80000,null,{"$f":"IF(ISBLANK($A7),\"\",LOOKUP($A7,単価表!$A$5:$A$1162,単価表!$B$5:$B$1162))","v":"所要日数"},30,{"$f":"CEILING(E6/D7,0.01)","v":3.34},"日",{"$f":"IF(ISBLANK($A7),\"\",LOOKUP($A7,単価表!$A$5:$A$1162,単価表!$G$5:$G$1162))","v":0},{"$f":"IF(ISBLANK($A7),\"\",ROUND(E7*G7,0))","v":0}]
[99999,null,"万能鋼板（白塗装品）","H=2.0m W=500 亜鉛ﾒｯｷ\\2050/枚",{"$f":"CEILING(E6*0.1*19.2,1)","v":192},"枚",2900,556800]
[99999,null,"フックボルト","１型",{"$f":"CEILING(E6*8,1)","v":800},"組",26,20800]
[99999,null,"単管パイプ","L=5.0m ",{"$f":"CEILING(E6*0.387,1)","v":39},"本",2170,84630]
[99999,null,"単管パイプ","L=2.0m",{"$f":"CEILING(E6*1.28,1)","v":128},"本",880,112640]
[99999,null,"単管パイプ","L=1.5m",{"$f":"CEILING(E6*1.24,1)","v":124},"本",655,81220]
[99999,null,"単管パイプ","L=1.0m",{"$f":"CEILING(E6*0.62,1)","v":62},"本",435,26970]
[99999,null,"切断費",null,{"$f":"SUM(E11:E13)","v":314},"本",50,15700]
[99999,null,"クランプ","自在",{"$f":"CEILING(E6*5,1)","v":500},"個",180,90000]
[99999,null,"ジョイント",null,{"$f":"+E10","v":39},"個",180,7020]
[99999,null,"上記運搬費",null,1,"式",27000,27000]
[40012,null,{"$f":"IF(ISBLANK($A18),\"\",LOOKUP($A18,単価表!$A$5:$A$1162,単価表!$B$5:$B$1162))","v":"小旋回0.18ﾊﾞｯｸﾎｳ"},{"$f":"IF(ISBLANK($A18),\"\",IF(LOOKUP($A18,単価表!$A$5:$A$1162,単価表!$C$5:$C$1162)=0,\"\",LOOKUP($A18,単価表!$A$5:$A$1162,単価表!$C$5:$C$1162)))","v":""},{"$f":"+E7","v":3.34},"台",{"$f":"IF(ISBLANK($A18),\"\",LOOKUP($A18,単価表!$A$5:$A$1162,単価表!$G$5:$G$1162))","v":11250},37575]
[40023,null,{"$f":"IF(ISBLANK($A19),\"\",LOOKUP($A19,単価表!$A$5:$A$1162,単価表!$B$5:$B$1162))","v":"諸機械 発電器,ｅｔｃ"},{"$f":"IF(ISBLANK($A19),\"\",IF(LOOKUP($A19, 単価表!$A$5:$A$1162, 単価表!$C$5:$C$1162)=0,\"\",LOOKUP($A19, 単価表!$A$5:$A$1162, 単価表!$C$5:$C$1162)))","v":""},{"$f":"+E7","v":3.34},"台",{"$f":"IF(ISBLANK($A19),\"\",LOOKUP($A19,単価表!$A$5:$A$1162,単価表!$G$5:$G$1162))","v":2250},7515]
[41002,null,{"$f":"IF(ISBLANK($A20),\"\",LOOKUP($A20,単価表!$A$5:$A$1162,単価表!$B$5:$B$1162))","v":"自社ﾀﾞﾝﾌﾟ"},{"$f":"IF(ISBLANK($A20),\"\",IF(LOOKUP($A20, 単価表!$A$5:$A$1162, 単価表!$C$5:$C$1162)=0,\"\",LOOKUP($A20, 単価表!$A$5:$A$1162, 単価表!$C$5:$C$1162)))","v":""},{"$f":"+E7","v":3.34},"台",{"$f":"IF(ISBLANK($A20),\"\",LOOKUP($A20,単価表!$A$5:$A$1162,単価表!$G$5:$G$1162))","v":9000},30060]
[40000,null,{"$f":"IF(ISBLANK($A21),\"\",LOOKUP($A21,単価表!$A$5:$A$1162,単価表!$B$5:$B$1162))","v":"油脂燃料"},{"$f":"IF(ISBLANK($A21),\"\",IF(LOOKUP($A21, 単価表!$A$5:$A$1162, 単価表!$C$5:$C$1162)=0,\"\",LOOKUP($A21, 単価表!$A$5:$A$1162, 単価表!$C$5:$C$1162)))","v":""},{"$f":"SUM(E18:E20)","v":10.02},"台日",{"$f":"IF(ISBLANK($A21),\"\",LOOKUP($A21,単価表!$A$5:$A$1162,単価表!$G$5:$G$1162))","v":1500},15030]
[20100,null,{"$f":"IF(ISBLANK($A22),\"\",LOOKUP($A22,単価表!$A$5:$A$1162,単価表!$B$5:$B$1162))","v":"作業員　昼間"},4,{"$f":"+E7*D22","v":13.36},"人",{"$f":"IF(ISBLANK($A22),\"\",LOOKUP($A22,単価表!$A$5:$A$1162,単価表!$G$5:$G$1162))","v":40500},541080]
[]
[]
[1,"山留め","H鋼横矢板土留","H=3000 L=8.0ｍ\n",100,"ｍ",{"$f":"ROUND(H25/E25,0)","v":25993},{"$f":"SUM(H26:INDEX(H26:H$55,IFERROR(MATCH(1,$A26:$A$55,0),ROWS($A26:$A$55)+1)-1))","v":2599289}]
[null,null,"H鋼打込工","H鋼 L=8.0m 間詰ﾓﾙﾀﾙ",{"$f":"CEILING(7/1.5,1)*2","v":10},"箇所",{"$f":"IF(E26=0,\"\",ROUND(SUM(H27:H35)/E26,0))","v":94448}]
[80000,null,{"$f":"IF(ISBLANK($A27),\"\",LOOKUP($A27,単価表!$A$5:$A$1162,単価表!$B$5:$B$1162))","v":"所要日数"},5,{"$f":"CEILING(E26/D27,0.01)","v":2},"日",{"$f":"IF(ISBLANK($A27),\"\",LOOKUP($A27,単価表!$A$5:$A$1162,単価表!$G$5:$G$1162))","v":0},{"$f":"IF(ISBLANK($A27),\"\",ROUND(E27*G27,0))","v":0}]
[99999,null,"Ｈ鋼","幅広 150 L=8000",{"$f":"CEILING(E26*8*0.0311*1.05,0.001)","v":2.613},"Ton",127000,331851]
[10501,null,{"$f":"IF(ISBLANK($A29),\"\",LOOKUP($A29,単価表!$A$5:$A$1162,単価表!$B$5:$B$1162))","v":"生ｺﾝｸﾘｰﾄ　18-8　小型"},null,{"$f":"CEILING(E26*0.3^2*PI()/4*5*1.06,0.5)","v":4},"ｍ3",{"$f":"IF(ISBLANK($A29),\"\",LOOKUP($A29,単価表!$A$5:$A$1162,単価表!$G$5:$G$1162))","v":29400},117600]
[40023,null,{"$f":"IF(ISBLANK($A30),\"\",LOOKUP($A30,単価表!$A$5:$A$1162,単価表!$B$5:$B$1162))","v":"諸機械 発電器,ｅｔｃ"},{"$f":"IF(ISBLANK($A30),\"\",IF(LOOKUP($A30, 単価表!$A$5:$A$1162, 単価表!$C$5:$C$1162)=0,\"\",LOOKUP($A30, 単価表!$A$5:$A$1162, 単価表!$C$5:$C$1162)))","v":""},{"$f":"+E27","v":2},"台",{"$f":"IF(ISBLANK($A30),\"\",LOOKUP($A30,単価表!$A$5:$A$1162,単価表!$G$5:$G$1162))","v":2250},4500]
[41002,null,{"$f":"IF(ISBLANK($A31),\"\",LOOKUP($A31,単価表!$A$5:$A$1162,単価表!$B$5:$B$1162))","v":"自社ﾀﾞﾝﾌﾟ"},{"$f":"IF(ISBLANK($A31),\"\",IF(LOOKUP($A31, 単価表!$A$5:$A$1162, 単価表!$C$5:$C$1162)=0,\"\",LOOKUP($A31, 単価表!$A$5:$A$1162, 単価表!$C$5:$C$1162)))","v":""},{"$f":"+E27","v":2},"台",{"$f":"IF(ISBLANK($A31),\"\",LOOKUP($A31,単価表!$A$5:$A$1162,単価表!$G$5:$G$1162))","v":9000},18000]
[40001,null,{"$f":"IF(ISBLANK($A32),\"\",LOOKUP($A32,単価表!$A$5:$A$1162,単価表!$B$5:$B$1162))","v":"ﾗﾝﾏｰ･ﾌﾟﾚｰﾄ"},{"$f":"IF(ISBLANK($A32),\"\",IF(LOOKUP($A32, 単価表!$A$5:$A$1162, 単価表!$C$5:$C$1162)=0,\"\",LOOKUP($A32, 単価表!$A$5:$A$1162, 単価表!$C$5:$C$1162)))","v":""},{"$f":"+E27","v":2},"台",{"$f":"IF(ISBLANK($A32),\"\",LOOKUP($A32,単価表!$A$5:$A$1162,単価表!$G$5:$G$1162))","v":765},1530]
[40000,null,{"$f":"IF(ISBLANK($A33),\"\",LOOKUP($A33,単価表!$A$5:$A$1162,単価表!$B$5:$B$1162))","v":"油脂燃料"},{"$f":"IF(ISBLANK($A33),\"\",IF(LOOKUP($A33, 単価表!$A$5:$A$1162, 単価表!$C$5:$C$1162)=0,\"\",LOOKUP($A33, 単価表!$A$5:$A$1162, 単価表!$C$5:$C$1162)))","v":""},{"$f":"SUM(E30:E32)","v":6},"台日",{"$f":"IF(ISBLANK($A33),\"\",LOOKUP($A33,単価表!$A$5:$A$1162,単価表!$G$5:$G$1162))","v":1500},9000]
[20100,null,{"$f":"IF(ISBLANK($A34),\"\",LOOKUP($A34,単価表!$A$5:$A$1162,単価表!$B$5:$B$1162))","v":"作業員　昼間"},2,{"$f":"+E27*D34","v":4},"人",{"$f":"IF(ISBLANK($A34),\"\",LOOKUP($A34,単価表!$A$5:$A$1162,単価表!$G$5:$G$1162))","v":40500},162000]
[99999,null,"H鋼打込","ｵｰｶﾞｰ掘削 H鋼建込",{"$f":"+E27","v":2},"式",150000,300000]
[null,null,"横矢板設置工",null,{"$f":"+E25","v":100},"ｍ",{"$f":"IF(E36=0,\"\",ROUND(SUM(H37:H46)/E36,0))","v":16548}]
[80000,null,{"$f":"IF(ISBLANK($A37),\"\",LOOKUP($A37,単価表!$A$5:$A$1162,単価表!$B$5:$B$1162))","v":"所要日数"},14,{"$f":"CEILING(E36/D37,0.01)","v":7.15},"日",{"$f":"IF(ISBLANK($A37),\"\",LOOKUP($A37,単価表!$A$5:$A$1162,単価表!$G$5:$G$1162))","v":0},{"$f":"IF(ISBLANK($A37),\"\",ROUND(E37*G37,0))","v":0}]
[99999,null,"雑矢板 50ｍｍ",3.3,{"$f":"CEILING(E36*D38,1)","v":330},"ｍ2",2000,660000]
[99999,null,"諸雑費","木材",1,"式",8000,8000]
[40023,null,{"$f":"IF(ISBLANK($A40),\"\",LOOKUP($A40,単価表!$A$5:$A$1162,単価表!$B$5:$B$1162))","v":"諸機械 発電器,ｅｔｃ"},{"$f":"IF(ISBLANK($A40),\"\",IF(LOOKUP($A40, 単価表!$A$5:$A$1162, 単価表!$C$5:$C$1162)=0,\"\",LOOKUP($A40, 単価表!$A$5:$A$1162, 単価表!$C$5:$C$1162)))","v":""},{"$f":"+E37","v":7.15},"台",{"$f":"IF(ISBLANK($A40),\"\",LOOKUP($A40,単価表!$A$5:$A$1162,単価表!$G$5:$G$1162))","v":2250},16088]
[41002,null,{"$f":"IF(ISBLANK($A41),\"\",LOOKUP($A41,単価表!$A$5:$A$1162,単価表!$B$5:$B$1162))","v":"自社ﾀﾞﾝﾌﾟ"},{"$f":"IF(ISBLANK($A41),\"\",IF(LOOKUP($A41, 単価表!$A$5:$A$1162, 単価表!$C$5:$C$1162)=0,\"\",LOOKUP($A41, 単価表!$A$5:$A$1162, 単価表!$C$5:$C$1162)))","v":""},{"$f":"+E37","v":7.15},"台",{"$f":"IF(ISBLANK($A41),\"\",LOOKUP($A41,単価表!$A$5:$A$1162,単価表!$G$5:$G$1162))","v":9000},64350]
[40001,null,{"$f":"IF(ISBLANK($A42),\"\",LOOKUP($A42,単価表!$A$5:$A$1162,単価表!$B$5:$B$1162))","v":"ﾗﾝﾏｰ･ﾌﾟﾚｰﾄ"},{"$f":"IF(ISBLANK($A42),\"\",IF(LOOKUP($A42, 単価表!$A$5:$A$1162, 単価表!$C$5:$C$1162)=0,\"\",LOOKUP($A42, 単価表!$A$5:$A$1162, 単価表!$C$5:$C$1162)))","v":""},{"$f":"+E37","v":7.15},"台",{"$f":"IF(ISBLANK($A42),\"\",LOOKUP($A42,単価表!$A$5:$A$1162,単価表!$G$5:$G$1162))","v":765},5470]
[40000,null,{"$f":"IF(ISBLANK($A43),\"\",LOOKUP($A43,単価表!$A$5:$A$1162,単価表!$B$5:$B$1162))","v":"油脂燃料"},{"$f":"IF(ISBLANK($A43),\"\",IF(LOOKUP($A43, 単価表!$A$5:$A$1162, 単価表!$C$5:$C$1162)=0,\"\",LOOKUP($A43, 単価表!$A$5:$A$1162, 単価表!$C$5:$C$1162)))","v":""},{"$f":"SUM(E40:E42)","v":21.450000000000003},"台日",{"$f":"IF(ISBLANK($A43),\"\",LOOKUP($A43,単価表!$A$5:$A$1162,単価表!$G$5:$G$1162))","v":1500},32175]
[20100,null,{"$f":"IF(ISBLANK($A44),\"\",LOOKUP($A44,単価表!$A$5:$A$1162,単価表!$B$5:$B$1162))","v":"作業員　昼間"},3,{"$f":"+E37*D44","v":21.450000000000003},"人",{"$f":"IF(ISBLANK($A44),\"\",LOOKUP($A44,単価表!$A$5:$A$1162,単価表!$G$5:$G$1162))","v":40500},868725]
[]
[]
[1,"その他仮設","木柵工","H=1300",100,"ｍ",{"$f":"ROUND(H47/E47,0)","v":1817},{"$f":"SUM(H48:INDEX(H48:H$55,IFERROR(MATCH(1,$A48:$A$55,0),ROWS($A48:$A$55)+1)-1))","v":181688}]
[80000,null,{"$f":"IF(ISBLANK($A48),\"\",LOOKUP($A48,単価表!$A$5:$A$1162,単価表!$B$5:$B$1162))","v":"所要日数"},150,{"$f":"CEILING(E47/D48,0.01)","v":0.67},"日",{"$f":"IF(ISBLANK($A48),\"\",LOOKUP($A48,単価表!$A$5:$A$1162,単価表!$G$5:$G$1162))","v":0},{"$f":"IF(ISBLANK($A48),\"\",ROUND(E48*G48,0))","v":0}]
[99999,null,"杉丸太","末口7.5cm　L=2.0m",{"$f":"CEILING(E47/10*7.4+6,1)","v":80},"本",700,56000]
[99999,null,"亜鉛引鉄線","＃10　25kg/巻",{"$f":"CEILING(E47/10*4.7/25,1)","v":2},"巻",3400,6800]
[99999,null,"又くぎ",null,{"$f":"CEILING(E49*5/100,1)","v":4},"袋",200,800]
[40011,null,{"$f":"IF(ISBLANK($A52),\"\",LOOKUP($A52,単価表!$A$5:$A$1162,単価表!$B$5:$B$1162))","v":"小旋回0.12ﾊﾞｯｸﾎｳ"},{"$f":"IF(ISBLANK($A52),\"\",IF(LOOKUP($A52,単価表!$A$5:$A$1162,単価表!$C$5:$C$1162)=0,\"\",LOOKUP($A52,単価表!$A$5:$A$1162,単価表!$C$5:$C$1162)))","v":""},{"$f":"+E48","v":0.67},"台",{"$f":"IF(ISBLANK($A52),\"\",LOOKUP($A52,単価表!$A$5:$A$1162,単価表!$G$5:$G$1162))","v":9000},6030]
[40023,null,{"$f":"IF(ISBLANK($A53),\"\",LOOKUP($A53,単価表!$A$5:$A$1162,単価表!$B$5:$B$1162))","v":"諸機械 発電器,ｅｔｃ"},{"$f":"IF(ISBLANK($A53),\"\",IF(LOOKUP($A53,単価表!$A$5:$A$1162,単価表!$C$5:$C$1162)=0,\"\",LOOKUP($A53,単価表!$A$5:$A$1162,単価表!$C$5:$C$1162)))","v":""},{"$f":"+E48","v":0.67},"台",{"$f":"IF(ISBLANK($A53),\"\",LOOKUP($A53,単価表!$A$5:$A$1162,単価表!$G$5:$G$1162))","v":2250},1508]
[40000,null,{"$f":"IF(ISBLANK($A54),\"\",LOOKUP($A54,単価表!$A$5:$A$1162,単価表!$B$5:$B$1162))","v":"油脂燃料"},{"$f":"IF(ISBLANK($A54),\"\",IF(LOOKUP($A54,単価表!$A$5:$A$1162,単価表!$C$5:$C$1162)=0,\"\",LOOKUP($A54,単価表!$A$5:$A$1162,単価表!$C$5:$C$1162)))","v":""},{"$f":"SUM(E52:E53)","v":1.34},"台日",{"$f":"IF(ISBLANK($A54),\"\",LOOKUP($A54,単価表!$A$5:$A$1162,単価表!$G$5:$G$1162))","v":1500},2010]
[20100,null,{"$f":"IF(ISBLANK($A55),\"\",LOOKUP($A55,単価表!$A$5:$A$1162,単価表!$B$5:$B$1162))","v":"作業員　昼間"},4,{"$f":"E48*D55","v":2.68},"人",{"$f":"IF(ISBLANK($A55),\"\",LOOKUP($A55,単価表!$A$5:$A$1162,単価表!$G$5:$G$1162))","v":40500},108540]

{"sheet":"景観金物","index":12,"n_rows":83,"n_cols":8,"rows_kept":83,"cut":false,"hidden":false,"merged":[]}
[1]
[]
["コード","中分類","工　種","詳　細","数量","単位","単価","金額"]
[null,null,"メッシュフェンス"]
[]
[1,"メッシュフェンス","メッシュフェンス","H=1500　CB上施工",100,"ｍ",{"$f":"ROUND(H6/E6,0)","v":7287},{"$f":"SUM(H7:INDEX(H7:H$83,IFERROR(MATCH(1,$A7:$A$83,0),ROWS($A7:$A$83)+1)-1))","v":728717}]
[null,null,"フェンス材料費","定価の60%",{"$f":"+E6","v":100},"ｍ",{"$f":"IF(E7=0,\"\",ROUND(SUM(H8:H9)/E7,0))","v":4543}]
[99999,null,"ﾒｯｼｭﾌｪﾝｽ H=1500",6950,{"$f":"CEILING(E7*1.05,2)","v":106},"ｍ",4200,{"$f":"IF(ISBLANK($A8),\"\",ROUND(E8*G8,0))","v":445200}]
[99999,null,"諸雑費",0.02,1,"式",9072,{"$f":"IF(ISBLANK($A9),\"\",ROUND(E9*G9,0))","v":9072}]
[null,null,"建込工・組立",null,{"$f":"+E6","v":100},"ｍ",{"$f":"IF(E10=0,\"\",ROUND(SUM(H11:H19)/E10,0))","v":2744}]
[80000,null,{"$f":"IF(ISBLANK($A11),\"\",LOOKUP($A11,単価表!$A$5:$A$1162,単価表!$B$5:$B$1162))","v":"所要日数"},39,{"$f":"CEILING(E10/D11,0.01)","v":2.57},"日",{"$f":"IF(ISBLANK($A11),\"\",LOOKUP($A11,単価表!$A$5:$A$1162,単価表!$G$5:$G$1162))","v":0},{"$f":"IF(ISBLANK($A11),\"\",ROUND(E11*G11,0))","v":0}]
[10520,null,{"$f":"IF(ISBLANK($A12),\"\",LOOKUP($A12,単価表!$A$5:$A$1162,単価表!$B$5:$B$1162))","v":"ﾓﾙﾀﾙ"},{"$f":"0.5*0.1^2*0.45*1.4","v":3.1500000000000009E-3},{"$f":"CEILING(E10*D12,0.01)","v":0.32},"ｍ3",{"$f":"IF(ISBLANK($A12),\"\",LOOKUP($A12,単価表!$A$5:$A$1162,単価表!$G$5:$G$1162))","v":37500},12000]
[41002,null,{"$f":"IF(ISBLANK($A13),\"\",LOOKUP($A13,単価表!$A$5:$A$1162,単価表!$B$5:$B$1162))","v":"自社ﾀﾞﾝﾌﾟ"},1,{"$f":"+E11*D13","v":2.57},"台",{"$f":"IF(ISBLANK($A13),\"\",LOOKUP($A13,単価表!$A$5:$A$1162,単価表!$G$5:$G$1162))","v":9000},23130]
[40023,null,{"$f":"IF(ISBLANK($A14),\"\",LOOKUP($A14,単価表!$A$5:$A$1162,単価表!$B$5:$B$1162))","v":"諸機械 発電器,ｅｔｃ"},1,{"$f":"+E11*D14","v":2.57},"台",{"$f":"IF(ISBLANK($A14),\"\",LOOKUP($A14,単価表!$A$5:$A$1162,単価表!$G$5:$G$1162))","v":2250},5783]
[40000,null,{"$f":"IF(ISBLANK($A15),\"\",LOOKUP($A15,単価表!$A$5:$A$1162,単価表!$B$5:$B$1162))","v":"油脂燃料"},null,{"$f":"SUM(E13:E14)","v":5.14},"台日",{"$f":"IF(ISBLANK($A15),\"\",LOOKUP($A15,単価表!$A$5:$A$1162,単価表!$G$5:$G$1162))","v":1500},7710]
[20100,null,{"$f":"IF(ISBLANK($A16),\"\",LOOKUP($A16,単価表!$A$5:$A$1162,単価表!$B$5:$B$1162))","v":"作業員　昼間"},2,{"$f":"E11*D16","v":5.14},"人",{"$f":"IF(ISBLANK($A16),\"\",LOOKUP($A16,単価表!$A$5:$A$1162,単価表!$G$5:$G$1162))","v":40500},208170]
[99999,null,"諸雑費",0.12,1,"式",17652,17652]
[]
[]
[1,"ネットフェンス","ネットフェンス","H=1200　□180*450独立基礎共",100,"ｍ",{"$f":"ROUND(H20/E20,0)","v":4452},{"$f":"SUM(H21:INDEX(H21:H$83,IFERROR(MATCH(1,$A21:$A$83,0),ROWS($A21:$A$83)+1)-1))","v":445210}]
[80000,null,{"$f":"IF(ISBLANK($A21),\"\",LOOKUP($A21,単価表!$A$5:$A$1162,単価表!$B$5:$B$1162))","v":"所要日数"},40,{"$f":"CEILING(E20/D21,0.01)","v":2.5},"日",{"$f":"IF(ISBLANK($A21),\"\",LOOKUP($A21,単価表!$A$5:$A$1162,単価表!$G$5:$G$1162))","v":0},{"$f":"IF(ISBLANK($A21),\"\",ROUND(E21*G21,0))","v":0}]
[99999,null,"ネットフェンス",{"$f":"IF(ISBLANK($A22),\"\",IF(LOOKUP($A22,単価表!$A$5:$A$1162,単価表!$C$5:$C$1162)=0,\"\",LOOKUP($A22,単価表!$A$5:$A$1162,単価表!$C$5:$C$1162)))","v":""},{"$f":"+E20","v":100},"ｍ",2564.1,{"$f":"IF(ISBLANK($A22),\"\",ROUND(E22*G22,0))","v":256410}]
[99999,null,"設置・組立",null,{"$f":"+E20","v":100},"ｍ",1600,{"$f":"IF(ISBLANK($A23),\"\",ROUND(E23*G23,0))","v":160000}]
[99999,null,"独立基礎","□180*450",16,"箇所",1800,{"$f":"IF(ISBLANK($A24),\"\",ROUND(E24*G24,0))","v":28800}]
[]
[]
[1,"独立基礎築造","フェンス独立基礎設置","\n□300*500 独立基礎共",100,"ｍ",{"$f":"ROUND(H27/E27,0)","v":4240},{"$f":"SUM(H28:INDEX(H28:H$83,IFERROR(MATCH(1,$A28:$A$83,0),ROWS($A28:$A$83)+1)-1))","v":423993}]
[null,null,"独立基礎工","□400 RC：ｔ=100 ﾓﾙﾀﾙ：ｔ=30\n基礎ﾌﾞﾛｯｸ□300*500 ",{"$f":"CEILING(E27/2+2,1)","v":52},"箇所",{"$f":"IF(E28=0,\"\",ROUND(SUM(H29:H39)/E28,0))","v":8154}]
[80000,null,{"$f":"IF(ISBLANK($A29),\"\",LOOKUP($A29,単価表!$A$5:$A$1162,単価表!$B$5:$B$1162))","v":"所要日数"},26,{"$f":"CEILING(E28/D29,0.01)","v":2},"日",{"$f":"IF(ISBLANK($A29),\"\",LOOKUP($A29,単価表!$A$5:$A$1162,単価表!$G$5:$G$1162))","v":0},{"$f":"IF(ISBLANK($A29),\"\",ROUND(E29*G29,0))","v":0}]
[10200,null,{"$f":"IF(ISBLANK($A30),\"\",LOOKUP($A30,単価表!$A$5:$A$1162,単価表!$B$5:$B$1162))","v":"RC-40(ﾌﾟﾗﾝﾄ)　大型"},{"$f":"0.4^2*0.1*1.28","v":2.0480000000000005E-2},{"$f":"CEILING(E28*D30,0.01)","v":1.07},"ｔ",{"$f":"IF(ISBLANK($A30),\"\",LOOKUP($A30,単価表!$A$5:$A$1162,単価表!$G$5:$G$1162))","v":2250},2408]
[10520,null,{"$f":"IF(ISBLANK($A31),\"\",LOOKUP($A31,単価表!$A$5:$A$1162,単価表!$B$5:$B$1162))","v":"ﾓﾙﾀﾙ"},{"$f":"0.4^2*0.03*1.4","v":6.7200000000000003E-3},{"$f":"CEILING(E28*D31,0.01)","v":0.35000000000000003},"ｍ3",{"$f":"IF(ISBLANK($A31),\"\",LOOKUP($A31,単価表!$A$5:$A$1162,単価表!$G$5:$G$1162))","v":37500},13125]
[99999,null,"独立基礎ﾌﾞﾛｯｸ","□300*500 79kg/個",{"$f":"CEILING(E28*1,1)","v":52},"本",2200,114400]
[40011,null,{"$f":"IF(ISBLANK($A33),\"\",LOOKUP($A33,単価表!$A$5:$A$1162,単価表!$B$5:$B$1162))","v":"小旋回0.12ﾊﾞｯｸﾎｳ"},{"$f":"IF(ISBLANK($A33),\"\",IF(LOOKUP($A33,単価表!$A$5:$A$1162,単価表!$C$5:$C$1162)=0,\"\",LOOKUP($A33,単価表!$A$5:$A$1162,単価表!$C$5:$C$1162)))","v":""},{"$f":"+E29","v":2},"台",{"$f":"IF(ISBLANK($A33),\"\",LOOKUP($A33,単価表!$A$5:$A$1162,単価表!$G$5:$G$1162))","v":9000},18000]
[41002,null,{"$f":"IF(ISBLANK($A34),\"\",LOOKUP($A34,単価表!$A$5:$A$1162,単価表!$B$5:$B$1162))","v":"自社ﾀﾞﾝﾌﾟ"},{"$f":"IF(ISBLANK($A34),\"\",IF(LOOKUP($A34,単価表!$A$5:$A$1162,単価表!$C$5:$C$1162)=0,\"\",LOOKUP($A34,単価表!$A$5:$A$1162,単価表!$C$5:$C$1162)))","v":""},{"$f":"+E29","v":2},"台",{"$f":"IF(ISBLANK($A34),\"\",LOOKUP($A34,単価表!$A$5:$A$1162,単価表!$G$5:$G$1162))","v":9000},18000]
[40001,null,{"$f":"IF(ISBLANK($A35),\"\",LOOKUP($A35,単価表!$A$5:$A$1162,単価表!$B$5:$B$1162))","v":"ﾗﾝﾏｰ･ﾌﾟﾚｰﾄ"},{"$f":"IF(ISBLANK($A35),\"\",IF(LOOKUP($A35,単価表!$A$5:$A$1162,単価表!$C$5:$C$1162)=0,\"\",LOOKUP($A35,単価表!$A$5:$A$1162,単価表!$C$5:$C$1162)))","v":""},{"$f":"+E29*2","v":4},"台",{"$f":"IF(ISBLANK($A35),\"\",LOOKUP($A35,単価表!$A$5:$A$1162,単価表!$G$5:$G$1162))","v":765},3060]
[40000,null,{"$f":"IF(ISBLANK($A36),\"\",LOOKUP($A36,単価表!$A$5:$A$1162,単価表!$B$5:$B$1162))","v":"油脂燃料"},{"$f":"IF(ISBLANK($A36),\"\",IF(LOOKUP($A36,単価表!$A$5:$A$1162,単価表!$C$5:$C$1162)=0,\"\",LOOKUP($A36,単価表!$A$5:$A$1162,単価表!$C$5:$C$1162)))","v":""},{"$f":"SUM(E33:E35)","v":8},"台日",{"$f":"IF(ISBLANK($A36),\"\",LOOKUP($A36,単価表!$A$5:$A$1162,単価表!$G$5:$G$1162))","v":1500},12000]
[20100,null,{"$f":"IF(ISBLANK($A37),\"\",LOOKUP($A37,単価表!$A$5:$A$1162,単価表!$B$5:$B$1162))","v":"作業員　昼間"},3,{"$f":"E29*D37","v":6},"人",{"$f":"IF(ISBLANK($A37),\"\",LOOKUP($A37,単価表!$A$5:$A$1162,単価表!$G$5:$G$1162))","v":40500},243000]
[]
[]
[1,"バリカー設置","車止めバリカー設置工","H800 φ89.1\n基礎共",10,"箇所",{"$f":"ROUND(H40/E40,0)","v":44795},{"$f":"SUM(H41:INDEX(H41:H$83,IFERROR(MATCH(1,$A41:$A$83,0),ROWS($A41:$A$83)+1)-1))","v":447950}]
[null,null,"基礎工","□400 RC：ｔ=50 \nＦＣ=□400*400 ",{"$f":"+E40*2","v":20},"箇所",{"$f":"IF(E41=0,\"\",ROUND(SUM(H42:H50)/E41,0))","v":11385}]
[80000,null,{"$f":"IF(ISBLANK($A42),\"\",LOOKUP($A42,単価表!$A$5:$A$1162,単価表!$B$5:$B$1162))","v":"所要日数"},19.5,{"$f":"CEILING(E41/D42,0.01)","v":1.03},"日",{"$f":"IF(ISBLANK($A42),\"\",LOOKUP($A42,単価表!$A$5:$A$1162,単価表!$G$5:$G$1162))","v":0},{"$f":"IF(ISBLANK($A42),\"\",ROUND(E42*G42,0))","v":0}]
[10200,null,{"$f":"IF(ISBLANK($A43),\"\",LOOKUP($A43,単価表!$A$5:$A$1162,単価表!$B$5:$B$1162))","v":"RC-40(ﾌﾟﾗﾝﾄ)　大型"},{"$f":"0.4^2*0.05*1.28","v":1.0240000000000003E-2},{"$f":"CEILING(E41*D43,0.01)","v":0.21},"ｔ",{"$f":"IF(ISBLANK($A43),\"\",LOOKUP($A43,単価表!$A$5:$A$1162,単価表!$G$5:$G$1162))","v":2250},473]
[10515,null,{"$f":"IF(ISBLANK($A44),\"\",LOOKUP($A44,単価表!$A$5:$A$1162,単価表!$B$5:$B$1162))","v":"型枠　Ｂ"},{"$f":"0.4*0.4*4","v":0.64000000000000012},{"$f":"CEILING(E41*D44,0.01)","v":12.8},"ｍ2",{"$f":"IF(ISBLANK($A44),\"\",LOOKUP($A44,単価表!$A$5:$A$1162,単価表!$G$5:$G$1162))","v":3000},38400]
[10500,null,{"$f":"IF(ISBLANK($A45),\"\",LOOKUP($A45,単価表!$A$5:$A$1162,単価表!$B$5:$B$1162))","v":"生ｺﾝｸﾘｰﾄ　18-8　大型"},{"$f":"0.4^2*0.4*1.04","v":6.6560000000000022E-2},{"$f":"CEILING(E41*D45,0.01)","v":1.34},"ｍ3",{"$f":"IF(ISBLANK($A45),\"\",LOOKUP($A45,単価表!$A$5:$A$1162,単価表!$G$5:$G$1162))","v":27900},37386]
[40011,null,{"$f":"IF(ISBLANK($A46),\"\",LOOKUP($A46,単価表!$A$5:$A$1162,単価表!$B$5:$B$1162))","v":"小旋回0.12ﾊﾞｯｸﾎｳ"},{"$f":"IF(ISBLANK($A46),\"\",IF(LOOKUP($A46,単価表!$A$5:$A$1162,単価表!$C$5:$C$1162)=0,\"\",LOOKUP($A46,単価表!$A$5:$A$1162,単価表!$C$5:$C$1162)))","v":""},{"$f":"+E42","v":1.03},"台",{"$f":"IF(ISBLANK($A46),\"\",LOOKUP($A46,単価表!$A$5:$A$1162,単価表!$G$5:$G$1162))","v":9000},9270]
[41002,null,{"$f":"IF(ISBLANK($A47),\"\",LOOKUP($A47,単価表!$A$5:$A$1162,単価表!$B$5:$B$1162))","v":"自社ﾀﾞﾝﾌﾟ"},{"$f":"IF(ISBLANK($A47),\"\",IF(LOOKUP($A47,単価表!$A$5:$A$1162,単価表!$C$5:$C$1162)=0,\"\",LOOKUP($A47,単価表!$A$5:$A$1162,単価表!$C$5:$C$1162)))","v":""},{"$f":"+E42","v":1.03},"台",{"$f":"IF(ISBLANK($A47),\"\",LOOKUP($A47,単価表!$A$5:$A$1162,単価表!$G$5:$G$1162))","v":9000},9270]
[40001,null,{"$f":"IF(ISBLANK($A48),\"\",LOOKUP($A48,単価表!$A$5:$A$1162,単価表!$B$5:$B$1162))","v":"ﾗﾝﾏｰ･ﾌﾟﾚｰﾄ"},{"$f":"IF(ISBLANK($A48),\"\",IF(LOOKUP($A48,単価表!$A$5:$A$1162,単価表!$C$5:$C$1162)=0,\"\",LOOKUP($A48,単価表!$A$5:$A$1162,単価表!$C$5:$C$1162)))","v":""},{"$f":"+E42*2","v":2.06},"台",{"$f":"IF(ISBLANK($A48),\"\",LOOKUP($A48,単価表!$A$5:$A$1162,単価表!$G$5:$G$1162))","v":765},1576]
[40000,null,{"$f":"IF(ISBLANK($A49),\"\",LOOKUP($A49,単価表!$A$5:$A$1162,単価表!$B$5:$B$1162))","v":"油脂燃料"},{"$f":"IF(ISBLANK($A49),\"\",IF(LOOKUP($A49,単価表!$A$5:$A$1162,単価表!$C$5:$C$1162)=0,\"\",LOOKUP($A49,単価表!$A$5:$A$1162,単価表!$C$5:$C$1162)))","v":""},{"$f":"SUM(E46:E48)","v":4.12},"台日",{"$f":"IF(ISBLANK($A49),\"\",LOOKUP($A49,単価表!$A$5:$A$1162,単価表!$G$5:$G$1162))","v":1500},6180]
[20100,null,{"$f":"IF(ISBLANK($A50),\"\",LOOKUP($A50,単価表!$A$5:$A$1162,単価表!$B$5:$B$1162))","v":"作業員　昼間"},3,{"$f":"E42*D50","v":3.09},"人",{"$f":"IF(ISBLANK($A50),\"\",LOOKUP($A50,単価表!$A$5:$A$1162,単価表!$G$5:$G$1162))","v":40500},125145]
[null,null,"ﾊﾞﾘｶｰ設置","　",{"$f":"+E40","v":10},"箇所",{"$f":"IF(E51=0,\"\",ROUND(SUM(H52:H60)/E51,0))","v":22025}]
[80000,null,{"$f":"IF(ISBLANK($A52),\"\",LOOKUP($A52,単価表!$A$5:$A$1162,単価表!$B$5:$B$1162))","v":"所要日数"},10,{"$f":"CEILING(E51/D52,0.01)","v":1},"日",{"$f":"IF(ISBLANK($A52),\"\",LOOKUP($A52,単価表!$A$5:$A$1162,単価表!$G$5:$G$1162))","v":0},{"$f":"IF(ISBLANK($A52),\"\",ROUND(E52*G52,0))","v":0}]
[99999,null,"ﾊﾞﾘｶｰ本体","　",{"$f":"+E51","v":10},"基",12000,120000]
[99999,null,"諸雑費",null,{"$f":"+E51","v":10},"箇所",500,5000]
[40023,null,{"$f":"IF(ISBLANK($A55),\"\",LOOKUP($A55,単価表!$A$5:$A$1162,単価表!$B$5:$B$1162))","v":"諸機械 発電器,ｅｔｃ"},{"$f":"IF(ISBLANK($A55),\"\",IF(LOOKUP($A55,単価表!$A$5:$A$1162,単価表!$C$5:$C$1162)=0,\"\",LOOKUP($A55,単価表!$A$5:$A$1162,単価表!$C$5:$C$1162)))","v":""},{"$f":"+E52","v":1},"台",{"$f":"IF(ISBLANK($A55),\"\",LOOKUP($A55,単価表!$A$5:$A$1162,単価表!$G$5:$G$1162))","v":2250},2250]
[41002,null,{"$f":"IF(ISBLANK($A56),\"\",LOOKUP($A56,単価表!$A$5:$A$1162,単価表!$B$5:$B$1162))","v":"自社ﾀﾞﾝﾌﾟ"},{"$f":"IF(ISBLANK($A56),\"\",IF(LOOKUP($A56,単価表!$A$5:$A$1162,単価表!$C$5:$C$1162)=0,\"\",LOOKUP($A56,単価表!$A$5:$A$1162,単価表!$C$5:$C$1162)))","v":""},{"$f":"+E52","v":1},"台",{"$f":"IF(ISBLANK($A56),\"\",LOOKUP($A56,単価表!$A$5:$A$1162,単価表!$G$5:$G$1162))","v":9000},9000]
[40000,null,{"$f":"IF(ISBLANK($A57),\"\",LOOKUP($A57,単価表!$A$5:$A$1162,単価表!$B$5:$B$1162))","v":"油脂燃料"},{"$f":"IF(ISBLANK($A57),\"\",IF(LOOKUP($A57,単価表!$A$5:$A$1162,単価表!$C$5:$C$1162)=0,\"\",LOOKUP($A57,単価表!$A$5:$A$1162,単価表!$C$5:$C$1162)))","v":""},{"$f":"SUM(E55:E56)","v":2},"台日",{"$f":"IF(ISBLANK($A57),\"\",LOOKUP($A57,単価表!$A$5:$A$1162,単価表!$G$5:$G$1162))","v":1500},3000]
[20100,null,{"$f":"IF(ISBLANK($A58),\"\",LOOKUP($A58,単価表!$A$5:$A$1162,単価表!$B$5:$B$1162))","v":"作業員　昼間"},2,{"$f":"E52*D58","v":2},"人",{"$f":"IF(ISBLANK($A58),\"\",LOOKUP($A58,単価表!$A$5:$A$1162,単価表!$G$5:$G$1162))","v":40500},81000]
[]
[]
[1,"横断防止柵","ガードパイプ柵","　",37.5,"ｍ",{"$f":"ROUND(H61/E61,0)","v":14603},{"$f":"SUM(H62:INDEX(H62:H$83,IFERROR(MATCH(1,$A62:$A$83,0),ROWS($A62:$A$83)+1)-1))","v":547604}]
[null,null,"基礎工","□400 RC：ｔ=100 \nＦＣ=□300*400 ",{"$f":"CEILING(E61/3+3,1)","v":16},"箇所",{"$f":"IF(E62=0,\"\",ROUND(SUM(H63:H71)/E62,0))","v":10184}]
[80000,null,{"$f":"IF(ISBLANK($A63),\"\",LOOKUP($A63,単価表!$A$5:$A$1162,単価表!$B$5:$B$1162))","v":"所要日数"},19.5,{"$f":"CEILING(E62/D63,0.01)","v":0.83000000000000007},"日",{"$f":"IF(ISBLANK($A63),\"\",LOOKUP($A63,単価表!$A$5:$A$1162,単価表!$G$5:$G$1162))","v":0},{"$f":"IF(ISBLANK($A63),\"\",ROUND(E63*G63,0))","v":0}]
[10200,null,{"$f":"IF(ISBLANK($A64),\"\",LOOKUP($A64,単価表!$A$5:$A$1162,単価表!$B$5:$B$1162))","v":"RC-40(ﾌﾟﾗﾝﾄ)　大型"},{"$f":"0.3^2*0.05*1.28","v":5.7599999999999995E-3},{"$f":"CEILING(E62*D64,0.01)","v":0.1},"ｔ",{"$f":"IF(ISBLANK($A64),\"\",LOOKUP($A64,単価表!$A$5:$A$1162,単価表!$G$5:$G$1162))","v":2250},225]
[10515,null,{"$f":"IF(ISBLANK($A65),\"\",LOOKUP($A65,単価表!$A$5:$A$1162,単価表!$B$5:$B$1162))","v":"型枠　Ｂ"},{"$f":"0.3*0.4*4","v":0.48},{"$f":"CEILING(E62*D65,0.01)","v":7.68},"ｍ2",{"$f":"IF(ISBLANK($A65),\"\",LOOKUP($A65,単価表!$A$5:$A$1162,単価表!$G$5:$G$1162))","v":3000},23040]
[10501,null,{"$f":"IF(ISBLANK($A66),\"\",LOOKUP($A66,単価表!$A$5:$A$1162,単価表!$B$5:$B$1162))","v":"生ｺﾝｸﾘｰﾄ　18-8　小型"},{"$f":"0.3^2*0.4*1.04","v":3.7440000000000001E-2},{"$f":"CEILING(E62*D66,0.01)","v":0.6},"ｍ3",{"$f":"IF(ISBLANK($A66),\"\",LOOKUP($A66,単価表!$A$5:$A$1162,単価表!$G$5:$G$1162))","v":29400},17640]
[40011,null,{"$f":"IF(ISBLANK($A67),\"\",LOOKUP($A67,単価表!$A$5:$A$1162,単価表!$B$5:$B$1162))","v":"小旋回0.12ﾊﾞｯｸﾎｳ"},{"$f":"IF(ISBLANK($A67),\"\",IF(LOOKUP($A67,単価表!$A$5:$A$1162,単価表!$C$5:$C$1162)=0,\"\",LOOKUP($A67,単価表!$A$5:$A$1162,単価表!$C$5:$C$1162)))","v":""},{"$f":"+E63","v":0.83000000000000007},"台",{"$f":"IF(ISBLANK($A67),\"\",LOOKUP($A67,単価表!$A$5:$A$1162,単価表!$G$5:$G$1162))","v":9000},7470]
[41002,null,{"$f":"IF(ISBLANK($A68),\"\",LOOKUP($A68,単価表!$A$5:$A$1162,単価表!$B$5:$B$1162))","v":"自社ﾀﾞﾝﾌﾟ"},{"$f":"IF(ISBLANK($A68),\"\",IF(LOOKUP($A68,単価表!$A$5:$A$1162,単価表!$C$5:$C$1162)=0,\"\",LOOKUP($A68,単価表!$A$5:$A$1162,単価表!$C$5:$C$1162)))","v":""},{"$f":"+E63","v":0.83000000000000007},"台",{"$f":"IF(ISBLANK($A68),\"\",LOOKUP($A68,単価表!$A$5:$A$1162,単価表!$G$5:$G$1162))","v":9000},7470]
[40001,null,{"$f":"IF(ISBLANK($A69),\"\",LOOKUP($A69,単価表!$A$5:$A$1162,単価表!$B$5:$B$1162))","v":"ﾗﾝﾏｰ･ﾌﾟﾚｰﾄ"},{"$f":"IF(ISBLANK($A69),\"\",IF(LOOKUP($A69,単価表!$A$5:$A$1162,単価表!$C$5:$C$1162)=0,\"\",LOOKUP($A69,単価表!$A$5:$A$1162,単価表!$C$5:$C$1162)))","v":""},{"$f":"+E63*2","v":1.6600000000000001},"台",{"$f":"IF(ISBLANK($A69),\"\",LOOKUP($A69,単価表!$A$5:$A$1162,単価表!$G$5:$G$1162))","v":765},1270]
[40000,null,{"$f":"IF(ISBLANK($A70),\"\",LOOKUP($A70,単価表!$A$5:$A$1162,単価表!$B$5:$B$1162))","v":"油脂燃料"},{"$f":"IF(ISBLANK($A70),\"\",IF(LOOKUP($A70,単価表!$A$5:$A$1162,単価表!$C$5:$C$1162)=0,\"\",LOOKUP($A70,単価表!$A$5:$A$1162,単価表!$C$5:$C$1162)))","v":""},{"$f":"SUM(E67:E69)","v":3.3200000000000003},"台日",{"$f":"IF(ISBLANK($A70),\"\",LOOKUP($A70,単価表!$A$5:$A$1162,単価表!$G$5:$G$1162))","v":1500},4980]
[20100,null,{"$f":"IF(ISBLANK($A71),\"\",LOOKUP($A71,単価表!$A$5:$A$1162,単価表!$B$5:$B$1162))","v":"作業員　昼間"},3,{"$f":"E63*D71","v":2.4900000000000002},"人",{"$f":"IF(ISBLANK($A71),\"\",LOOKUP($A71,単価表!$A$5:$A$1162,単価表!$G$5:$G$1162))","v":40500},100845]
[null,null,"横断防止柵設置","　",{"$f":"+E61","v":37.5},"ｍ",{"$f":"IF(E72=0,\"\",ROUND(SUM(H73:H83)/E72,0))","v":10258}]
[80000,null,{"$f":"IF(ISBLANK($A73),\"\",LOOKUP($A73,単価表!$A$5:$A$1162,単価表!$B$5:$B$1162))","v":"所要日数"},58.5,{"$f":"CEILING(E72/D73,0.01)","v":0.65},"日",{"$f":"IF(ISBLANK($A73),\"\",LOOKUP($A73,単価表!$A$5:$A$1162,単価表!$G$5:$G$1162))","v":0},{"$f":"IF(ISBLANK($A73),\"\",ROUND(E73*G73,0))","v":0}]
[99999,null,"横断防止柵","　",{"$f":"+E72","v":37.5},"ｍ",7800,292500]
[40023,null,{"$f":"IF(ISBLANK($A75),\"\",LOOKUP($A75,単価表!$A$5:$A$1162,単価表!$B$5:$B$1162))","v":"諸機械 発電器,ｅｔｃ"},{"$f":"IF(ISBLANK($A75),\"\",IF(LOOKUP($A75,単価表!$A$5:$A$1162,単価表!$C$5:$C$1162)=0,\"\",LOOKUP($A75,単価表!$A$5:$A$1162,単価表!$C$5:$C$1162)))","v":""},{"$f":"+E73","v":0.65},"台",{"$f":"IF(ISBLANK($A75),\"\",LOOKUP($A75,単価表!$A$5:$A$1162,単価表!$G$5:$G$1162))","v":2250},1463]
[41002,null,{"$f":"IF(ISBLANK($A76),\"\",LOOKUP($A76,単価表!$A$5:$A$1162,単価表!$B$5:$B$1162))","v":"自社ﾀﾞﾝﾌﾟ"},{"$f":"IF(ISBLANK($A76),\"\",IF(LOOKUP($A76,単価表!$A$5:$A$1162,単価表!$C$5:$C$1162)=0,\"\",LOOKUP($A76,単価表!$A$5:$A$1162,単価表!$C$5:$C$1162)))","v":""},{"$f":"+E73","v":0.65},"台",{"$f":"IF(ISBLANK($A76),\"\",LOOKUP($A76,単価表!$A$5:$A$1162,単価表!$G$5:$G$1162))","v":9000},5850]
[40000,null,{"$f":"IF(ISBLANK($A77),\"\",LOOKUP($A77,単価表!$A$5:$A$1162,単価表!$B$5:$B$1162))","v":"油脂燃料"},{"$f":"IF(ISBLANK($A77),\"\",IF(LOOKUP($A77,単価表!$A$5:$A$1162,単価表!$C$5:$C$1162)=0,\"\",LOOKUP($A77,単価表!$A$5:$A$1162,単価表!$C$5:$C$1162)))","v":""},{"$f":"SUM(E75:E76)","v":1.3},"台日",{"$f":"IF(ISBLANK($A77),\"\",LOOKUP($A77,単価表!$A$5:$A$1162,単価表!$G$5:$G$1162))","v":1500},1950]
[20100,null,{"$f":"IF(ISBLANK($A78),\"\",LOOKUP($A78,単価表!$A$5:$A$1162,単価表!$B$5:$B$1162))","v":"作業員　昼間"},3,{"$f":"E73*D78","v":1.9500000000000002},"人",{"$f":"IF(ISBLANK($A78),\"\",LOOKUP($A78,単価表!$A$5:$A$1162,単価表!$G$5:$G$1162))","v":40500},78975]
[99999,null,"諸経費",0.08,1,"式",3926,3926]
[]
[]
[null,null,null,{"$f":"IF(ISBLANK($A82),\"\",IF(LOOKUP($A82,単価表!$A$5:$A$1162,単価表!$C$5:$C$1162)=0,\"\",LOOKUP($A82,単価表!$A$5:$A$1162,単価表!$C$5:$C$1162)))","v":""},null,null,null,{"$f":"IF(ISBLANK($A82),\"\",ROUND(E82*G82,0))","v":""}]
[null,null,null,{"$f":"IF(ISBLANK($A83),\"\",IF(LOOKUP($A83,単価表!$A$5:$A$1162,単価表!$C$5:$C$1162)=0,\"\",LOOKUP($A83,単価表!$A$5:$A$1162,単価表!$C$5:$C$1162)))","v":""},null,null,null,{"$f":"IF(ISBLANK($A83),\"\",ROUND(E83*G83,0))","v":""}]

{"sheet":"植栽工事","index":13,"n_rows":16,"n_cols":8,"rows_kept":16,"cut":false,"hidden":false,"merged":[]}
[1]
[]
["コード","中分類","工　種","詳　細","数量","単位","単価","金額"]
[null,null,"植栽工事"]
[null,null,"客土工"]
[]
[1,"客土工","客土","T300 良質土\n",100,"ｍ2",{"$f":"ROUND(H7/E7,0)","v":5306},{"$f":"SUM(H8:INDEX(H8:H$16,IFERROR(MATCH(1,$A8:$A$16,0),ROWS($A8:$A$16)+1)-1))","v":530565}]
[null,null,"材料及び処分費",{"$f":"0.3","v":0.3},{"$f":"+E7*D8","v":30},"ｍ3",{"$f":"IF(E8=0,\"\",ROUND(SUM(H9:H9)/E8,0))","v":7560}]
[99999,null,"黒土購入　10ｔDT",{"$f":"0.3*1.2","v":0.36},{"$f":"CEILING(E7*D9,0.1)","v":36},"ｍ3",6300,{"$f":"IF(ISBLANK($A9),\"\",ROUND(E9*G9,0))","v":226800}]
[null,null,"施工及び機械","昼間工事",{"$f":"+E9","v":36},"ｍ3",{"$f":"IF(E10=0,\"\",ROUND(SUM(H11:H16)/E10,0))","v":8438}]
[80000,null,{"$f":"IF(ISBLANK($A11),\"\",LOOKUP($A11,単価表!$A$5:$A$1162,単価表!$B$5:$B$1162))","v":"所要日数"},23.4,{"$f":"CEILING(E10/D11,0.01)","v":1.54},"日",{"$f":"IF(ISBLANK($A11),\"\",LOOKUP($A11,単価表!$A$5:$A$1162,単価表!$G$5:$G$1162))","v":0},{"$f":"IF(ISBLANK($A11),\"\",ROUND(E11*G11,0))","v":0}]
[41002,null,{"$f":"IF(ISBLANK($A12),\"\",LOOKUP($A12,単価表!$A$5:$A$1162,単価表!$B$5:$B$1162))","v":"自社ﾀﾞﾝﾌﾟ"},2,{"$f":"+E11*D12","v":3.08},"台",{"$f":"IF(ISBLANK($A12),\"\",LOOKUP($A12,単価表!$A$5:$A$1162,単価表!$G$5:$G$1162))","v":9000},27720]
[40011,null,{"$f":"IF(ISBLANK($A13),\"\",LOOKUP($A13,単価表!$A$5:$A$1162,単価表!$B$5:$B$1162))","v":"小旋回0.12ﾊﾞｯｸﾎｳ"},1,{"$f":"+E11*D13","v":1.54},"台",{"$f":"IF(ISBLANK($A13),\"\",LOOKUP($A13,単価表!$A$5:$A$1162,単価表!$G$5:$G$1162))","v":9000},13860]
[40023,null,{"$f":"IF(ISBLANK($A14),\"\",LOOKUP($A14,単価表!$A$5:$A$1162,単価表!$B$5:$B$1162))","v":"諸機械 発電器,ｅｔｃ"},1,{"$f":"+E11*D14","v":1.54},"台",{"$f":"IF(ISBLANK($A14),\"\",LOOKUP($A14,単価表!$A$5:$A$1162,単価表!$G$5:$G$1162))","v":2250},3465]
[40000,null,{"$f":"IF(ISBLANK($A15),\"\",LOOKUP($A15,単価表!$A$5:$A$1162,単価表!$B$5:$B$1162))","v":"油脂燃料"},{"$f":"IF(ISBLANK($A15),\"\",IF(LOOKUP($A15,単価表!$A$5:$A$1162,単価表!$C$5:$C$1162)=0,\"\",LOOKUP($A15,単価表!$A$5:$A$1162,単価表!$C$5:$C$1162)))","v":""},{"$f":"SUM(E12:E14)","v":6.16},"台日",{"$f":"IF(ISBLANK($A15),\"\",LOOKUP($A15,単価表!$A$5:$A$1162,単価表!$G$5:$G$1162))","v":1500},9240]
[20100,null,{"$f":"IF(ISBLANK($A16),\"\",LOOKUP($A16,単価表!$A$5:$A$1162,単価表!$B$5:$B$1162))","v":"作業員　昼間"},4,{"$f":"E11*D16","v":6.16},"人",{"$f":"IF(ISBLANK($A16),\"\",LOOKUP($A16,単価表!$A$5:$A$1162,単価表!$G$5:$G$1162))","v":40500},249480]

{"sheet":"法面工事","index":14,"n_rows":19,"n_cols":8,"rows_kept":19,"cut":false,"hidden":false,"merged":[]}
[1]
[]
["コード","中分類","工　種","詳　細","数量","単位","単価","金額"]
[null,null,"法面工事"]
[]
[]
[null,null,"法面保護工"]
[1,"法面保護工","法面整形工","1:1.5～1:1.8 バックホウ整形(参考値・要精査)",100,"ｍ2",{"$f":"ROUND(H8/E8,0)","v":915},{"$f":"SUM(H9:INDEX(H9:H$19,IFERROR(MATCH(1,$A9:$A$19,0),ROWS($A9:$A$19)+1)-1))","v":91500}]
[80000,null,{"$f":"IF(ISBLANK($A9),\"\",LOOKUP($A9,単価表!$A$5:$A$1162,単価表!$B$5:$B$1162))","v":"所要日数"},400,{"$f":"CEILING(E8/D9,0.01)","v":0.25},"日",{"$f":"IF(ISBLANK($A9),\"\",LOOKUP($A9,単価表!$A$5:$A$1162,単価表!$G$5:$G$1162))","v":0},{"$f":"IF(ISBLANK($A9),\"\",ROUND(E9*G9,0))","v":0}]
[40011,null,{"$f":"IF(ISBLANK($A10),\"\",LOOKUP($A10,単価表!$A$5:$A$1162,単価表!$B$5:$B$1162))","v":"小旋回0.12ﾊﾞｯｸﾎｳ"},1,1,"台",{"$f":"IF(ISBLANK($A10),\"\",LOOKUP($A10,単価表!$A$5:$A$1162,単価表!$G$5:$G$1162))","v":9000},{"$f":"IF(ISBLANK($A10),\"\",ROUND(E10*G10,0))","v":9000}]
[40000,null,{"$f":"IF(ISBLANK($A11),\"\",LOOKUP($A11,単価表!$A$5:$A$1162,単価表!$B$5:$B$1162))","v":"油脂燃料"},null,{"$f":"SUM(E10:E10)","v":1},"台日",{"$f":"IF(ISBLANK($A11),\"\",LOOKUP($A11,単価表!$A$5:$A$1162,単価表!$G$5:$G$1162))","v":1500},{"$f":"IF(ISBLANK($A11),\"\",ROUND(E11*G11,0))","v":1500}]
[20100,null,{"$f":"IF(ISBLANK($A12),\"\",LOOKUP($A12,単価表!$A$5:$A$1162,単価表!$B$5:$B$1162))","v":"作業員　昼間"},2,2,"人",{"$f":"IF(ISBLANK($A12),\"\",LOOKUP($A12,単価表!$A$5:$A$1162,単価表!$G$5:$G$1162))","v":40500},{"$f":"IF(ISBLANK($A12),\"\",ROUND(E12*G12,0))","v":81000}]
[]
[1,"法枠工","現場打法枠工","プレキャスト法枠 1.0×1.0m格子(参考値・要精査)",100,"ｍ2",{"$f":"ROUND(H14/E14,0)","v":11963},{"$f":"SUM(H15:INDEX(H15:H$19,IFERROR(MATCH(1,$A15:$A$19,0),ROWS($A15:$A$19)+1)-1))","v":1196300}]
[80000,null,{"$f":"IF(ISBLANK($A15),\"\",LOOKUP($A15,単価表!$A$5:$A$1162,単価表!$B$5:$B$1162))","v":"所要日数"},60,{"$f":"CEILING(E14/D15,0.01)","v":1.67},"日",{"$f":"IF(ISBLANK($A15),\"\",LOOKUP($A15,単価表!$A$5:$A$1162,単価表!$G$5:$G$1162))","v":0},{"$f":"IF(ISBLANK($A15),\"\",ROUND(E15*G15,0))","v":0}]
[40049,null,{"$f":"IF(ISBLANK($A16),\"\",LOOKUP($A16,単価表!$A$5:$A$1162,単価表!$B$5:$B$1162))","v":"ﾎﾟﾝﾌﾟ車"},0.2,0.2,"台",{"$f":"IF(ISBLANK($A16),\"\",LOOKUP($A16,単価表!$A$5:$A$1162,単価表!$G$5:$G$1162))","v":67500},{"$f":"IF(ISBLANK($A16),\"\",ROUND(E16*G16,0))","v":13500}]
[40000,null,{"$f":"IF(ISBLANK($A17),\"\",LOOKUP($A17,単価表!$A$5:$A$1162,単価表!$B$5:$B$1162))","v":"油脂燃料"},null,{"$f":"SUM(E16:E16)","v":0.2},"台日",{"$f":"IF(ISBLANK($A17),\"\",LOOKUP($A17,単価表!$A$5:$A$1162,単価表!$G$5:$G$1162))","v":1500},{"$f":"IF(ISBLANK($A17),\"\",ROUND(E17*G17,0))","v":300}]
[20100,null,{"$f":"IF(ISBLANK($A18),\"\",LOOKUP($A18,単価表!$A$5:$A$1162,単価表!$B$5:$B$1162))","v":"作業員　昼間"},5,5,"人",{"$f":"IF(ISBLANK($A18),\"\",LOOKUP($A18,単価表!$A$5:$A$1162,単価表!$G$5:$G$1162))","v":40500},{"$f":"IF(ISBLANK($A18),\"\",ROUND(E18*G18,0))","v":202500}]
[99999,null,"プレキャスト法枠材料",null,{"$f":"+E14","v":100},"ｍ2",9800,{"$f":"IF(ISBLANK($A19),\"\",ROUND(E19*G19,0))","v":980000}]

{"sheet":"地盤改良工事","index":15,"n_rows":31,"n_cols":8,"rows_kept":31,"cut":false,"hidden":false,"merged":[]}
[1]
[]
["コード","中分類","工　種","詳　細","数量","単位","単価","金額"]
[null,null,"地盤改良工事"]
[]
[]
[null,null,"浅層・表層改良工"]
[1,"浅層・表層改良工","表層地盤改良工","セメント系固化材 t=50cm 混合攪拌(参考値・要精査)",100,"ｍ2",{"$f":"ROUND(H8/E8,0)","v":3146},{"$f":"SUM(H9:INDEX(H9:H$31,IFERROR(MATCH(1,$A9:$A$31,0),ROWS($A9:$A$31)+1)-1))","v":314550}]
[80000,null,{"$f":"IF(ISBLANK($A9),\"\",LOOKUP($A9,単価表!$A$5:$A$1162,単価表!$B$5:$B$1162))","v":"所要日数"},500,{"$f":"CEILING(E8/D9,0.01)","v":0.2},"日",{"$f":"IF(ISBLANK($A9),\"\",LOOKUP($A9,単価表!$A$5:$A$1162,単価表!$G$5:$G$1162))","v":0},{"$f":"IF(ISBLANK($A9),\"\",ROUND(E9*G9,0))","v":0}]
[40010,null,{"$f":"IF(ISBLANK($A10),\"\",LOOKUP($A10,単価表!$A$5:$A$1162,単価表!$B$5:$B$1162))","v":"ﾌﾞﾙﾄﾞｰｻﾞｰ（6ｔ）"},1,1,"台",{"$f":"IF(ISBLANK($A10),\"\",LOOKUP($A10,単価表!$A$5:$A$1162,単価表!$G$5:$G$1162))","v":11550},{"$f":"IF(ISBLANK($A10),\"\",ROUND(E10*G10,0))","v":11550}]
[40000,null,{"$f":"IF(ISBLANK($A11),\"\",LOOKUP($A11,単価表!$A$5:$A$1162,単価表!$B$5:$B$1162))","v":"油脂燃料"},null,{"$f":"SUM(E10:E10)","v":1},"台日",{"$f":"IF(ISBLANK($A11),\"\",LOOKUP($A11,単価表!$A$5:$A$1162,単価表!$G$5:$G$1162))","v":1500},{"$f":"IF(ISBLANK($A11),\"\",ROUND(E11*G11,0))","v":1500}]
[20100,null,{"$f":"IF(ISBLANK($A12),\"\",LOOKUP($A12,単価表!$A$5:$A$1162,単価表!$B$5:$B$1162))","v":"作業員　昼間"},3,3,"人",{"$f":"IF(ISBLANK($A12),\"\",LOOKUP($A12,単価表!$A$5:$A$1162,単価表!$G$5:$G$1162))","v":40500},{"$f":"IF(ISBLANK($A12),\"\",ROUND(E12*G12,0))","v":121500}]
[99999,null,"セメント系固化材 100kg/m2",null,{"$f":"+E8","v":100},"ｍ2",1800,{"$f":"IF(ISBLANK($A13),\"\",ROUND(E13*G13,0))","v":180000}]
[]
[]
[null,null,"深層混合処理工"]
[1,"深層混合処理工","深層混合処理工","機械攪拌工法 L=8.0m(参考値・要精査)",10,"本",{"$f":"ROUND(H17/E17,0)","v":182700},{"$f":"SUM(H18:INDEX(H18:H$31,IFERROR(MATCH(1,$A18:$A$31,0),ROWS($A18:$A$31)+1)-1))","v":1827000}]
[80000,null,{"$f":"IF(ISBLANK($A18),\"\",LOOKUP($A18,単価表!$A$5:$A$1162,単価表!$B$5:$B$1162))","v":"所要日数"},8,{"$f":"CEILING(E17/D18,0.01)","v":1.25},"日",{"$f":"IF(ISBLANK($A18),\"\",LOOKUP($A18,単価表!$A$5:$A$1162,単価表!$G$5:$G$1162))","v":0},{"$f":"IF(ISBLANK($A18),\"\",ROUND(E18*G18,0))","v":0}]
[99999,null,"深層混合処理機 リース",1,{"$f":"+E17","v":10},"台",120000,{"$f":"IF(ISBLANK($A19),\"\",ROUND(E19*G19,0))","v":1200000}]
[40000,null,{"$f":"IF(ISBLANK($A20),\"\",LOOKUP($A20,単価表!$A$5:$A$1162,単価表!$B$5:$B$1162))","v":"油脂燃料"},null,{"$f":"+E17","v":10},"台日",{"$f":"IF(ISBLANK($A20),\"\",LOOKUP($A20,単価表!$A$5:$A$1162,単価表!$G$5:$G$1162))","v":1500},{"$f":"IF(ISBLANK($A20),\"\",ROUND(E20*G20,0))","v":15000}]
[20100,null,{"$f":"IF(ISBLANK($A21),\"\",LOOKUP($A21,単価表!$A$5:$A$1162,単価表!$B$5:$B$1162))","v":"作業員　昼間"},4,4,"人",{"$f":"IF(ISBLANK($A21),\"\",LOOKUP($A21,単価表!$A$5:$A$1162,単価表!$G$5:$G$1162))","v":40500},{"$f":"IF(ISBLANK($A21),\"\",ROUND(E21*G21,0))","v":162000}]
[99999,null,"セメント系固化材",null,{"$f":"+E17","v":10},"本",45000,{"$f":"IF(ISBLANK($A22),\"\",ROUND(E22*G22,0))","v":450000}]
[]
[]
[null,null,"サンドコンパクションパイル工"]
[1,"サンドコンパクションパイル工","サンドコンパクションパイル工","φ400 L=6.0m(参考値・要精査)",10,"本",{"$f":"ROUND(H26/E26,0)","v":181650},{"$f":"SUM(H27:INDEX(H27:H$31,IFERROR(MATCH(1,$A27:$A$31,0),ROWS($A27:$A$31)+1)-1))","v":1816500}]
[80000,null,{"$f":"IF(ISBLANK($A27),\"\",LOOKUP($A27,単価表!$A$5:$A$1162,単価表!$B$5:$B$1162))","v":"所要日数"},10,{"$f":"CEILING(E26/D27,0.01)","v":1},"日",{"$f":"IF(ISBLANK($A27),\"\",LOOKUP($A27,単価表!$A$5:$A$1162,単価表!$G$5:$G$1162))","v":0},{"$f":"IF(ISBLANK($A27),\"\",ROUND(E27*G27,0))","v":0}]
[99999,null,"SCP専用機 リース",1,{"$f":"+E26","v":10},"台",150000,{"$f":"IF(ISBLANK($A28),\"\",ROUND(E28*G28,0))","v":1500000}]
[40000,null,{"$f":"IF(ISBLANK($A29),\"\",LOOKUP($A29,単価表!$A$5:$A$1162,単価表!$B$5:$B$1162))","v":"油脂燃料"},null,{"$f":"+E26","v":10},"台日",{"$f":"IF(ISBLANK($A29),\"\",LOOKUP($A29,単価表!$A$5:$A$1162,単価表!$G$5:$G$1162))","v":1500},{"$f":"IF(ISBLANK($A29),\"\",ROUND(E29*G29,0))","v":15000}]
[20100,null,{"$f":"IF(ISBLANK($A30),\"\",LOOKUP($A30,単価表!$A$5:$A$1162,単価表!$B$5:$B$1162))","v":"作業員　昼間"},3,3,"人",{"$f":"IF(ISBLANK($A30),\"\",LOOKUP($A30,単価表!$A$5:$A$1162,単価表!$G$5:$G$1162))","v":40500},{"$f":"IF(ISBLANK($A30),\"\",ROUND(E30*G30,0))","v":121500}]
[99999,null,"砂材料",null,{"$f":"+E26","v":10},"本",18000,{"$f":"IF(ISBLANK($A31),\"\",ROUND(E31*G31,0))","v":180000}]

{"sheet":"選択リスト","index":16,"n_rows":37,"n_cols":4032,"rows_kept":37,"cut":false,"hidden":true,"merged":[]}
["大分類マスタ",null,null,null,null,null,null,null,null,null,null,null,null,null,null,null,null,null,null,null,null,null,null,null,null,null,null,null,null,null,null,null,null,null,null,null,null,null,null,null,null,null,null,null,null,null,null,null,null,null,null,null,null,null,null,null,null,null,null,null,null,null,null,null,null,null,null,null,null,null,null,null,null,null,null,null,null,null,null,null,null,null,null,null,null,null,null,null,null,null,null,null,null,null,null,null,null,null,null,null,null,null,null,null,null,null,null,null,null,null,null,null,null,null,null,null,null,null,null,null,null,null,null,null,null,null,null,null,null,null,null,null,null,null,null,null,null,null,null,null,null,null,null,null,null,null,null,null,null,null,null,null,null,null,null,null,null,null,null,null,null,null,null,null,null,null,null,null,null,null,null,null,null,null,null,null,null,null,null,null,null,null,null,null,null,null,null,null,null,null,null,null,null,null,null,null,null,null,null,null,null,null,null,null,null,null,null,null,null,null,null,null,null,null,null,null,null,null,null,null,null,null,null,null,null,null,null,null,null,null,null,null,null,null,null,null,null,null,null,null,null,null,null,null,null,null,null,null,null,null,null,null,null,null,null,null,null,null,null,null,null,null,null,null,null,null,null,null,null,null,null,null,null,null,null,null,null,null,null,null,null,null,null,null,null,null,null,null,null,null,null,null,null,null,null,null,null,null,null,null,null,null,null,null,null,null,null,null,null,null,null,null,null,null,null,null,null,null,null,null,null,null,null,null,null,null,null,null,null,null,null,null,null,null,null,null,null,null,null,null,null,null,null,null,null,null,null,null,null,null,null,null,null,null,null,null,null,null,null,null,null,null,null,null,null,null,null,null,null,null,null,null,null,null,null,null,null,null,null,null,null,null,null,null,null,null,null,null,null,null,null,null,null,null,null,null,null,null,null,null,null,null,null,null,null,null,null,null,null,null,null,null,null,null,null,null,null,null,null,null,null,null,null,null,null,null,null,null,null,null,null,null,null,null,null,null,null,null,null,null,null,null,null,null,null,null,null,null,null,null,null,null,null,null,null,null,null,null,null,null,null,null,null,null,null,null,null,null,null,null,null,null,null,null,null,null,null,null,null,null,null,null,null,null,null,null,null,null,null,null,null,null,null,null,null,null,null,null,null,null,null,null,null,null,null,null,null,null,null,null,null,null,null,null,null,null,null,null,null,null,null,null,null,null,null,null,null,null,null,null,null,null,null,null,null,null,null,null,null,null,null,null,null,null,null,null,null,null,null,null,null,null,null,null,null,null,null,null,null,null,null,null,null,null,null,null,null,null,null,null,null,null,null,null,null,null,null,null,null,null,null,null,null,null,null,null,null,null,null,null,null,null,null,null,null,null,null,null,null,null,null,null,null,null,null,null,null,null,null,"仮設工事リスト",null,null,null,null,null,null,null,null,null,null,null,null,null,null,null,null,null,null,null,null,null,null,null,null,null,null,null,null,null,null,null,null,null,null,null,null,null,null,null,null,null,null,null,null,null,null,null,null,null,null,null,null,null,null,null,null,null,null,null,null,null,null,null,null,null,null,null,null,null,null,null,null,null,null,null,null,null,null,null,null,null,null,null,null,null,null,null,null,null,"中分類_撤去工事","中分類_土工事","中分類_擁壁工事","中分類_排水工事","中分類_付帯工事","中分類_舗装工事","中分類_仮設工事","中分類_景観金物","中分類_植栽工事","中分類_法面工事","中分類_地盤改良工事",null,null,null,null,null,null,null,null,null,null,null,null,null,null,null,null,null,null,null,null,null,null,null,null,null,null,null,null,null,null,null,null,null,null,null,null,null,null,null,null,null,null,null,null,null,null,null,null,null,null,null,null,null,null,null,null,null,null,null,null,null,null,null,null,null,null,null,null,null,null,null,null,null,null,null,null,null,null,null,null,null,null,null,null,null,null,null,null,null,null,null,null,null,null,null,null,null,null,null,null,null,null,null,null,null,null,null,null,null,null,null,null,null,null,null,null,null,null,null,null,null,null,null,null,null,null,null,null,null,null,null,null,null,null,null,null,null,null,null,null,null,null,null,null,null,null,null,null,null,null,null,null,null,null,null,null,null,null,null,null,null,null,null,null,null,null,null,null,null,null,null,null,null,null,null,null,null,null,null,null,null,null,null,null,null,null,null,null,null,null,null,null,null,null,null,null,null,null,null,null,null,null,null,null,null,null,null,null,null,null,null,null,null,null,null,null,null,null,null,null,null,null,null,null,null,null,null,null,null,null,null,null,null,null,null,null,null,null,null,null,null,null,null,null,null,null,null,null,null,null,null,null,null,null,null,null,null,null,null,null,null,null,null,null,null,null,null,null,null,null,null,null,null,null,null,null,null,null,null,null,null,null,null,null,null,null,null,null,null,null,null,null,null,null,null,null,null,null,null,null,null,null,null,null,null,null,null,null,null,null,null,null,null,null,null,null,null,null,null,null,null,null,null,null,null,null,null,null,null,null,null,null,null,null,null,null,null,null,null,null,null,null,null,null,null,null,null,null,null,null,null,null,null,null,null,null,null,null,null,null,null,null,null,null,null,null,null,null,null,null,null,null,null,null,null,null,null,null,null,null,null,null,null,null,null,null,null,null,null,null,null,null,null,null,null,null,null,null,null,null,null,null,null,null,null,null,null,null,null,null,null,null,null,null,null,null,null,null,null,null,null,null,null,null,null,null,null,null,null,null,null,null,null,null,null,null,null,null,null,null,null,null,null,null,null,null,null,null,null,null,null,null,null,null,null,null,null,null,null,null,null,null,null,null,null,null,null,null,null,null,null,null,null,null,null,null,null,null,null,null,null,null,null,null,null,null,null,null,null,null,null,null,null,null,null,null,null,null,null,null,null,null,null,null,null,null,null,null,null,null,null,null,null,null,null,null,null,null,null,null,null,null,null,null,null,null,null,null,null,null,null,null,null,null,null,null,null,null,null,null,null,null,null,null,null,null,null,null,null,null,null,null,null,null,null,null,null,null,null,null,null,null,null,null,null,null,null,null,null,null,null,null,null,null,null,null,null,null,null,null,null,null,null,null,null,null,null,null,null,null,null,null,null,null,null,null,null,null,null,null,null,null,null,null,null,null,null,null,null,null,null,null,null,null,null,null,null,null,null,null,null,null,null,null,null,null,null,null,null,null,null,null,null,null,null,null,null,null,null,null,null,null,null,null,null,null,null,null,null,null,null,null,null,null,null,null,null,null,null,null,null,null,null,null,null,null,null,null,null,null,null,null,null,null,null,null,null,null,null,null,null,null,null,null,null,null,null,null,null,null,null,null,null,null,null,null,null,null,null,null,null,null,null,null,null,null,null,null,null,null,null,null,null,null,null,null,null,null,null,null,null,null,null,null,null,null,null,null,null,null,null,null,null,null,null,null,null,null,null,null,null,null,null,null,null,null,null,null,null,null,null,null,null,null,null,null,null,null,null,null,null,null,null,null,null,null,null,null,null,null,null,null,null,null,null,null,null,null,null,null,null,null,null,null,null,null,null,null,null,null,null,null,null,null,null,null,null,null,null,null,null,null,null,null,null,null,null,null,null,null,null,null,null,null,null,null,null,null,null,null,null,null,null,null,null,null,null,null,null,null,null,null,null,null,null,null,null,null,null,null,null,null,null,null,null,null,null,null,null,null,null,null,null,null,null,null,null,null,null,null,null,null,null,null,null,null,null,null,null,null,null,null,null,null,null,null,null,null,null,null,null,null,null,null,null,null,null,null,null,null,null,null,null,null,null,null,null,null,null,null,null,null,null,null,null,null,null,null,null,null,null,null,null,null,null,null,null,null,null,null,null,null,null,null,null,null,null,null,null,null,null,null,null,null,null,null,null,null,null,null,null,null,null,null,null,null,null,null,null,null,null,null,null,null,null,null,null,null,null,null,null,null,null,null,null,null,null,null,null,null,null,null,null,null,null,null,null,null,null,null,null,null,null,null,null,null,null,null,null,null,null,null,null,null,null,null,null,null,null,null,null,null,null,null,null,null,null,null,null,null,null,null,null,null,null,null,null,null,null,null,null,null,null,null,null,null,null,null,null,null,null,null,null,null,null,null,null,null,null,null,null,null,null,null,null,null,null,null,null,null,null,null,null,null,null,null,null,null,null,null,null,null,null,null,null,null,null,null,null,null,null,null,null,null,null,null,null,null,null,null,null,null,null,null,null,null,null,null,null,null,null,null,null,null,null,null,null,null,null,null,null,null,null,null,null,null,null,null,null,null,null,null,null,null,null,null,null,null,null,null,null,null,null,null,null,null,null,null,null,null,null,null,null,null,null,null,null,null,null,null,null,null,null,null,null,null,null,null,null,null,null,null,null,null,null,null,null,null,null,null,null,null,null,null,null,null,null,null,null,null,null,null,null,null,null,null,null,null,null,null,null,null,null,null,null,null,null,null,null,null,null,null,null,null,null,null,null,null,null,null,null,null,null,null,null,null,null,null,null,null,null,null,null,null,null,null,null,null,null,null,null,null,null,null,null,null,null,null,null,null,null,null,null,null,null,null,null,null,null,null,null,null,null,null,null,null,null,null,null,null,null,null,null,null,null,null,null,null,null,null,null,null,null,null,null,null,null,null,null,null,null,null,null,null,null,null,null,null,null,null,null,null,null,null,null,null,null,null,null,"工種名_撤去工事_舗装版撤去","工種名_撤去工事_構造物取壊し","工種名_土工事_切土工","工種名_土工事_床堀工","工種名_土工事_盛土工","工種名_土工事_埋戻工","工種名_擁壁工事_RC擁壁","工種名_擁壁工事_型枠CB","工種名_擁壁工事_石積擁壁","工種名_擁壁工事_プレキャスト擁壁","工種名_排水工事_Ｌ型側溝工","工種名_排水工事_集水桝","工種名_排水工事_組立人孔","工種名_付帯工事_縁石工","工種名_付帯工事_囲障工事","工種名_舗装工事_舗装打換工","工種名_舗装工事_車道舗装","工種名_舗装工事_歩道及び小規模舗装","工種名_舗装工事_コンクリート舗装","工種名_仮設工事_仮囲工","工種名_仮設工事_山留め","工種名_仮設工事_その他仮設","工種名_景観金物_メッシュフェンス","工種名_景観金物_ネットフェンス","工種名_景観金物_独立基礎築造","工種名_景観金物_バリカー設置","工種名_景観金物_横断防止柵","工種名_植栽工事_客土工","工種名_法面工事_法面保護工","工種名_法面工事_法枠工","工種名_地盤改良工事_浅層・表層改良工","工種名_地盤改良工事_深層混合処理工","工種名_地盤改良工事_サンドコンパクションパイル工",null,null,null,null,null,null,null,null,null,null,null,null,null,null,null,null,null,null,null,null,null,null,null,null,null,null,null,null,null,null,null,null,null,null,null,null,null,null,null,null,null,null,null,null,null,null,null,null,null,null,null,null,null,null,null,null,null,null,null,null,null,null,null,null,null,null,null,null,null,null,null,null,null,null,null,null,null,null,null,null,null,null,null,null,null,null,null,null,null,null,null,null,null,null,null,null,null,null,null,null,null,null,null,null,null,null,null,null,null,null,null,null,null,null,null,null,null,null,null,null,null,null,null,null,null,null,null,null,null,null,null,null,null,null,null,null,null,null,null,null,null,null,null,null,null,null,null,null,null,null,null,null,null,null,null,null,null,null,null,null,null,null,null,null,null,null,null,null,null,null,null,null,null,null,null,null,null,null,null,null,null,null,null,null,null,null,null,null,null,null,null,null,null,null,null,null,null,null,null,null,null,null,null,null,null,null,null,null,null,null,null,null,null,null,null,null,null,null,null,null,null,null,null,null,null,null,null,null,null,null,null,null,null,null,null,null,null,null,null,null,null,null,null,null,null,null,null,null,null,null,null,null,null,null,null,null,null,null,null,null,null,null,null,null,null,null,null,null,null,null,null,null,null,null,null,null,null,null,null,null,null,null,null,null,null,null,null,null,null,null,null,null,null,null,null,null,null,null,null,null,null,null,null,null,null,null,null,null,null,null,null,null,null,null,null,null,null,null,null,null,null,null,null,null,null,null,null,null,null,null,null,null,null,null,null,null,null,null,null,null,null,null,null,null,null,null,null,null,null,null,null,null,null,null,null,null,null,null,null,null,null,null,null,null,null,null,null,null,null,null,null,null,null,null,null,null,null,null,null,null,null,null,null,null,null,null,null,null,null,null,null,null,null,null,null,null,null,null,null,null,null,null,null,null,null,null,null,null,null,null,null,null,null,null,null,null,null,null,null,null,null,null,null,null,null,null,null,null,null,null,null,null,null,null,null,null,null,null,null,null,null,null,null,null,null,null,null,null,null,null,null,null,null,null,null,null,null,null,null,null,null,null,null,null,null,null,null,null,null,null,null,null,null,null,null,null,null,null,null,null,null,null,null,null,null,null,null,null,null,null,null,null,null,null,null,null,null,null,null,null,null,null,null,null,null,null,null,null,null,null,null,null,null,null,null,null,null,null,null,null,null,null,null,null,null,null,null,null,null,null,null,null,null,null,null,null,null,null,null,null,null,null,null,null,null,null,null,null,null,null,null,null,null,null,null,null,null,null,null,null,null,null,null,null,null,null,null,null,null,null,null,null,null,null,null,null,null,null,null,null,null,null,null,null,null,null,null,null,null,null,null,null,null,null,null,null,null,null,null,null,null,null,null,null,null,null,null,null,null,null,null,null,null,null,null,null,null,null,null,null,null,null,null,null,null,null,null,null,null,null,null,null,null,null,null,null,null,null,null,null,null,null,null,null,null,null,null,null,null,null,null,null,null,null,null,null,null,null,null,null,null,null,null,null,null,null,null,null,null,null,null,null,null,null,null,null,null,null,null,null,null,null,null,null,null,null,null,null,null,null,null,null,null,null,null,null,null,null,null,null,null,null,null,null,null,null,null,null,null,null,null,null,null,null,null,null,null,null,null,null,null,null,null,null,null,null,null,null,null,null,null,null,null,null,null,null,null,null,null,null,null,null,null,null,null,null,null,null,null,null,null,null,null,null,null,null,null,null,null,null,null,null,null,null,null,null,null,null,null,null,null,null,null,null,null,null,null,null,null,null,null,null,null,null,null,null,null,null,null,null,null,null,null,null,null,null,null,null,null,null,null,null,null,null,null,null,null,null,null,null,null,null,null,null,null,null,null,null,null,null,null,null,null,null,null,null,null,null,null,null,null,null,null,null,null,null,null,null,null,null,null,null,null,null,null,null,null,null,null,null,null,null,null,null,null,null,null,null,null,null,null,null,null,null,null,null,null,null,null,null,null,null,null,null,null,null,null,null,null,null,null,null,null,null,null,null,null,null,null,null,null,null,null,null,null,null,null,null,null,null,null,null,null,null,null,null,null,null,null,null,null,null,null,null,null,null,null,null,null,null,null,null,null,null,null,null,null,null,null,null,null,null,null,null,null,null,null,null,null,null,null,null,null,null,null,null,null,null,null,null,null,null,null,null,null,null,null,null,null,null,null,null,null,null,null,null,null,null,null,null,null,null,null,null,null,null,null,null,null,null,null,null,null,null,null,null,null,null,null,null,null,null,null,null,null,null,null,null,null,null,null,null,null,null,null,null,null,null,null,null,null,null,null,null,null,null,null,null,null,null,null,null,null,null,null,null,null,null,null,null,null,null,null,null,null,null,null,null,null,null,null,null,null,null,null,null,null,null,null,null,null,null,null,null,null,null,null,null,null,null,null,null,null,null,null,null,null,null,null,null,null,null,null,null,null,null,null,null,null,null,null,null,null,null,null,null,null,null,null,null,null,null,null,null,null,null,null,null,null,null,null,null,null,null,null,null,null,null,null,null,null,null,null,null,null,null,null,null,null,null,null,null,null,null,null,null,null,null,null,null,null,null,null,null,null,null,null,null,null,null,null,null,null,null,null,null,null,null,null,null,null,null,null,null,null,null,null,null,null,null,null,null,null,null,null,null,null,null,null,null,null,null,null,null,null,null,null,null,null,null,null,null,null,null,null,null,null,null,null,null,null,null,null,null,null,null,null,null,null,null,null,null,null,null,null,null,null,null,null,null,null,null,null,null,null,null,null,null,null,null,null,null,null,null,null,null,null,null,null,null,null,null,null,null,null,null,null,null,null,null,null,null,null,null,null,null,null,null,null,null,null,null,null,null,null,null,null,null,null,null,null,null,null,null,null,null,null,null,null,null,null,null,null,null,null,null,null,null,null,null,null,null,null,null,null,null,null,null,null,null,null,null,null,null,null,null,null,null,null,null,null,null,null,null,null,null,null,null,null,null,null,null,null,null,null,null,null,null,null,null,null,null,null,null,null,null,null,null,null,null,null,null,null,null,null,null,null,null,null,null,null,null,null,null,null,null,null,null,null,null,null,null,null,null,null,null,null,null,null,null,null,null,null,null,null,null,null,null,null,null,null,null,null,null,null,null,null,null,null,null,null,null,null,null,null,null,null,null,null,null,null,null,null,null,null,null,null,null,null,null,null,null,null,null,null,null,null,null,null,null,null,null,null,null,null,null,null,null,null,null,null,null,null,null,null,null,null,null,null,null,null,null,null,null,null,null,null,null,null,null,null,null,null,null,null,null,null,null,null,null,null,null,null,null,null,null,null,null,null,null,null,null,null,null,null,null,null,null,null,null,null,null,null,null,null,null,null,null,null,null,null,null,null,null,null,null,null,null,null,null,null,null,null,null,null,null,null,null,null,null,null,null,null,null,null,null,null,null,null,null,null,null,null,null,null,null,null,null,null,null,null,null,null,null,null,null,null,null,null,null,null,null,null,null,null,null,null,null,null,null,null,null,null,null,null,null,null,null,null,null,null,null,null,null,null,null,null,null,null,null,null,null,null,null,null,null,null,null,null,null,null,null,null,null,null,null,null,null,null,null,null,null,null,null,null,null,null,null,null,null,null,null,null,null,null,null,null,null,null,null,null,null,null,null,null,null,null,null,null,null,null,null,null,null,null,null,null,null,null,null,null,null,null,null,null,null,null,null,null,null,null,null,null,null,null,null,null,null,null,null,null,null,null,null,null,null,null,null,null,null,null,null,null,null,null,null,null,null,null,null,null,null,null,null,null,null,null,null,null,null,null,null,null,null,null,null,null,null,null,null,null,null,null,null,null,null,null,null,null,null,null,null,null,null,null,null,null,null,null,null,null,null,null,null,null,null,null,null,null,null,null,null,null,null,null,null,null,null,null,null,null,null,null,null,null,null,null,null,null,null,null,null,null,null,null,null,null,null,null,null,null,null,null,null,null,null,null,null,null,null,null,null,null,null,null,null,null,null,null,null,null,null,null,null,null,null,null,null,null,null,null,null,null,null,null,null,null,null,null,null,null,null,null,null,null,null,null,null,null,null,null,null,null,null,null,null,null,null,null,null,null,null,null,null,null,null,null,null,null,null,null,null,null,null,null,null,null,null,null,null,null,null,null,null,null,null,null,null,null,null,null,null,null,null,null,null,null,null,null,null,null,null,null,null,null,null,null,null,null,null,null,null,null,null,null,null,null,null,null,null,null,null,null,null,null,null,null,null,null,null,null,null,null,null,null,null,null,null,null,null,null,null,null,null,null,null,null,null,null,null,null,null,null,null,null,null,null,null,null,null,null,null,null,null,null,null,null,null,null,null,null,null,null,null,null,null,null,null,null,null,null,null,null,null,null,null,null,null,null,null,null,null,null,null,null,null,null,null,null,null,null,null,null,null,null,null,null,null,null,null,null,null,null,null,null,null,null,null,null,null,null,null,null,null,null,null,null,"詳細_撤去工事_舗装版撤去_既設舗装版撤去","詳細_撤去工事_構造物取壊し_構造物取壊し","詳細_土工事_切土工_残土処分","詳細_土工事_床堀工_根切り","詳細_土工事_盛土工_埋戻し","詳細_土工事_埋戻工_路体（流用土）","詳細_擁壁工事_RC擁壁_コンクリート立上り","詳細_擁壁工事_型枠CB_型枠CB擁壁","詳細_擁壁工事_石積擁壁_石積擁壁工","詳細_擁壁工事_プレキャスト擁壁_プレキャスト擁壁","詳細_排水工事_Ｌ型側溝工_Ｌ型側溝工","詳細_排水工事_集水桝_雨水桝","詳細_排水工事_組立人孔_汚水人孔設置工","詳細_付帯工事_縁石工_地先境界ブロック","詳細_付帯工事_囲障工事_化粧CB２段積","詳細_舗装工事_舗装打換工_道路舗装打換工","詳細_舗装工事_車道舗装_下層路盤(車道・路肩部)","詳細_舗装工事_歩道及び小規模舗装_下層路盤(歩道部)","詳細_舗装工事_コンクリート舗装_歩道コンクリート舗装工","詳細_仮設工事_仮囲工_仮囲万能鋼板設置工","詳細_仮設工事_山留め_H鋼横矢板土留","詳細_仮設工事_その他仮設_木柵工","詳細_景観金物_メッシュフェンス_メッシュフェンス","詳細_景観金物_ネットフェンス_ネットフェンス","詳細_景観金物_独立基礎築造_フェンス独立基礎設置","詳細_景観金物_バリカー設置_車止めバリカー設置工","詳細_景観金物_横断防止柵_ガードパイプ柵","詳細_植栽工事_客土工_客土","詳細_法面工事_法面保護工_法面整形工","詳細_法面工事_法枠工_現場打法枠工","詳細_地盤改良工事_浅層・表層改良工_表層地盤改良工","詳細_地盤改良工事_深層混合処理工_深層混合処理工","詳細_地盤改良工事_サンドコンパクションパイル工_サンドコンパクションパイル工"]
["撤去工事",null,null,null,null,null,null,null,null,null,null,null,null,null,null,null,null,null,null,null,null,null,null,null,null,null,null,null,null,null,null,null,null,null,null,null,null,null,null,null,null,null,null,null,null,null,null,null,null,null,null,null,null,null,null,null,null,null,null,null,null,null,null,null,null,null,null,null,null,null,null,null,null,null,null,null,null,null,null,null,null,null,null,null,null,null,null,null,null,null,null,null,null,null,null,null,null,null,null,null,null,null,null,null,null,null,null,null,null,null,null,null,null,null,null,null,null,null,null,null,null,null,null,null,null,null,null,null,null,null,null,null,null,null,null,null,null,null,null,null,null,null,null,null,null,null,null,null,null,null,null,null,null,null,null,null,null,null,null,null,null,null,null,null,null,null,null,null,null,null,null,null,null,null,null,null,null,null,null,null,null,null,null,null,null,null,null,null,null,null,null,null,null,null,null,null,null,null,null,null,null,null,null,null,null,null,null,null,null,null,null,null,null,null,null,null,null,null,null,null,null,null,null,null,null,null,null,null,null,null,null,null,null,null,null,null,null,null,null,null,null,null,null,null,null,null,null,null,null,null,null,null,null,null,null,null,null,null,null,null,null,null,null,null,null,null,null,null,null,null,null,null,null,null,null,null,null,null,null,null,null,null,null,null,null,null,null,null,null,null,null,null,null,null,null,null,null,null,null,null,null,null,null,null,null,null,null,null,null,null,null,null,null,null,null,null,null,null,null,null,null,null,null,null,null,null,null,null,null,null,null,null,null,null,null,null,null,null,null,null,null,null,null,null,null,null,null,null,null,null,null,null,null,null,null,null,null,null,null,null,null,null,null,null,null,null,null,null,null,null,null,null,null,null,null,null,null,null,null,null,null,null,null,null,null,null,null,null,null,null,null,null,null,null,null,null,null,null,null,null,null,null,null,null,null,null,null,null,null,null,null,null,null,null,null,null,null,null,null,null,null,null,null,null,null,null,null,null,null,null,null,null,null,null,null,null,null,null,null,null,null,null,null,null,null,null,null,null,null,null,null,null,null,null,null,null,null,null,null,null,null,null,null,null,null,null,null,null,null,null,null,null,null,null,null,null,null,null,null,null,null,null,null,null,null,null,null,null,null,null,null,null,null,null,null,null,null,null,null,null,null,null,null,null,null,null,null,null,null,null,null,null,null,null,null,null,null,null,null,null,null,null,null,null,null,null,null,null,null,null,null,null,null,null,null,null,null,null,null,null,null,null,null,null,null,null,null,null,null,null,null,null,null,null,null,null,null,null,null,null,null,null,null,null,null,null,null,null,null,null,null,null,null,null,null,null,null,null,null,null,null,null,null,null,null,null,null,null,null,null,null,null,null,null,null,null,null,null,null,null,null,null,null,null,null,null,null,null,null,"機械回送（ﾄﾚｰﾗｰ）｜スタビライザー｜回｜300000",null,null,null,null,null,null,null,null,null,null,null,null,null,null,null,null,null,null,null,null,null,null,null,null,null,null,null,null,null,null,null,null,null,null,null,null,null,null,null,null,null,null,null,null,null,null,null,null,null,null,null,null,null,null,null,null,null,null,null,null,null,null,null,null,null,null,null,null,null,null,null,null,null,null,null,null,null,null,null,null,null,null,null,null,null,null,null,null,null,"舗装版撤去","切土工","RC擁壁","Ｌ型側溝工","縁石工","舗装打換工","仮囲工","メッシュフェンス","客土工","法面保護工","浅層・表層改良工",null,null,null,null,null,null,null,null,null,null,null,null,null,null,null,null,null,null,null,null,null,null,null,null,null,null,null,null,null,null,null,null,null,null,null,null,null,null,null,null,null,null,null,null,null,null,null,null,null,null,null,null,null,null,null,null,null,null,null,null,null,null,null,null,null,null,null,null,null,null,null,null,null,null,null,null,null,null,null,null,null,null,null,null,null,null,null,null,null,null,null,null,null,null,null,null,null,null,null,null,null,null,null,null,null,null,null,null,null,null,null,null,null,null,null,null,null,null,null,null,null,null,null,null,null,null,null,null,null,null,null,null,null,null,null,null,null,null,null,null,null,null,null,null,null,null,null,null,null,null,null,null,null,null,null,null,null,null,null,null,null,null,null,null,null,null,null,null,null,null,null,null,null,null,null,null,null,null,null,null,null,null,null,null,null,null,null,null,null,null,null,null,null,null,null,null,null,null,null,null,null,null,null,null,null,null,null,null,null,null,null,null,null,null,null,null,null,null,null,null,null,null,null,null,null,null,null,null,null,null,null,null,null,null,null,null,null,null,null,null,null,null,null,null,null,null,null,null,null,null,null,null,null,null,null,null,null,null,null,null,null,null,null,null,null,null,null,null,null,null,null,null,null,null,null,null,null,null,null,null,null,null,null,null,null,null,null,null,null,null,null,null,null,null,null,null,null,null,null,null,null,null,null,null,null,null,null,null,null,null,null,null,null,null,null,null,null,null,null,null,null,null,null,null,null,null,null,null,null,null,null,null,null,null,null,null,null,null,null,null,null,null,null,null,null,null,null,null,null,null,null,null,null,null,null,null,null,null,null,null,null,null,null,null,null,null,null,null,null,null,null,null,null,null,null,null,null,null,null,null,null,null,null,null,null,null,null,null,null,null,null,null,null,null,null,null,null,null,null,null,null,null,null,null,null,null,null,null,null,null,null,null,null,null,null,null,null,null,null,null,null,null,null,null,null,null,null,null,null,null,null,null,null,null,null,null,null,null,null,null,null,null,null,null,null,null,null,null,null,null,null,null,null,null,null,null,null,null,null,null,null,null,null,null,null,null,null,null,null,null,null,null,null,null,null,null,null,null,null,null,null,null,null,null,null,null,null,null,null,null,null,null,null,null,null,null,null,null,null,null,null,null,null,null,null,null,null,null,null,null,null,null,null,null,null,null,null,null,null,null,null,null,null,null,null,null,null,null,null,null,null,null,null,null,null,null,null,null,null,null,null,null,null,null,null,null,null,null,null,null,null,null,null,null,null,null,null,null,null,null,null,null,null,null,null,null,null,null,null,null,null,null,null,null,null,null,null,null,null,null,null,null,null,null,null,null,null,null,null,null,null,null,null,null,null,null,null,null,null,null,null,null,null,null,null,null,null,null,null,null,null,null,null,null,null,null,null,null,null,null,null,null,null,null,null,null,null,null,null,null,null,null,null,null,null,null,null,null,null,null,null,null,null,null,null,null,null,null,null,null,null,null,null,null,null,null,null,null,null,null,null,null,null,null,null,null,null,null,null,null,null,null,null,null,null,null,null,null,null,null,null,null,null,null,null,null,null,null,null,null,null,null,null,null,null,null,null,null,null,null,null,null,null,null,null,null,null,null,null,null,null,null,null,null,null,null,null,null,null,null,null,null,null,null,null,null,null,null,null,null,null,null,null,null,null,null,null,null,null,null,null,null,null,null,null,null,null,null,null,null,null,null,null,null,null,null,null,null,null,null,null,null,null,null,null,null,null,null,null,null,null,null,null,null,null,null,null,null,null,null,null,null,null,null,null,null,null,null,null,null,null,null,null,null,null,null,null,null,null,null,null,null,null,null,null,null,null,null,null,null,null,null,null,null,null,null,null,null,null,null,null,null,null,null,null,null,null,null,null,null,null,null,null,null,null,null,null,null,null,null,null,null,null,null,null,null,null,null,null,null,null,null,null,null,null,null,null,null,null,null,null,null,null,null,null,null,null,null,null,null,null,null,null,null,null,null,null,null,null,null,null,null,null,null,null,null,null,null,null,null,null,null,null,null,null,null,null,null,null,null,null,null,null,null,null,null,null,null,null,null,null,null,null,null,null,null,null,null,null,null,null,null,null,null,null,null,null,null,null,null,null,null,null,null,null,null,null,null,null,null,null,null,null,null,null,null,null,null,null,null,null,null,null,null,null,null,null,null,null,null,null,null,null,null,null,null,null,null,null,null,null,null,null,null,null,null,null,null,null,null,null,null,null,null,null,null,null,null,null,null,null,null,null,null,null,null,null,null,null,null,null,null,null,null,null,null,null,null,null,null,null,null,null,null,null,null,null,null,null,null,null,null,null,null,null,null,null,null,null,null,null,null,null,null,null,null,null,null,null,null,null,null,null,null,null,null,null,null,null,null,null,null,null,null,null,null,null,null,null,null,null,null,null,null,null,null,null,null,null,null,null,null,null,null,null,null,null,null,null,null,null,null,null,null,null,null,null,null,null,null,null,null,null,null,null,null,null,null,null,null,null,null,null,null,null,null,null,null,null,null,null,null,null,null,null,null,null,null,null,null,null,null,null,null,null,null,null,null,null,null,null,null,null,null,null,null,null,null,null,null,null,null,null,null,null,null,null,null,null,null,null,null,null,null,null,null,null,null,null,null,null,null,null,null,null,null,null,null,null,null,null,null,null,null,null,null,null,null,null,null,null,null,null,null,null,null,null,null,null,null,null,null,null,null,null,null,null,null,null,null,null,null,null,null,null,null,null,null,null,null,null,null,null,null,null,null,null,null,null,null,null,null,null,null,null,null,null,null,null,null,null,null,null,null,null,null,null,null,null,null,null,null,null,null,null,null,null,null,null,null,null,null,null,null,null,null,null,null,null,null,null,null,null,null,null,null,null,null,null,null,null,null,null,null,null,null,null,null,null,null,null,null,null,null,null,null,null,null,null,"既設舗装版撤去","構造物取壊し","残土処分","根切り","埋戻し","路体（流用土）","コンクリート立上り","型枠CB擁壁","石積擁壁工","プレキャスト擁壁","Ｌ型側溝工","雨水桝","汚水人孔設置工","地先境界ブロック","化粧CB２段積","道路舗装打換工","下層路盤(車道・路肩部)","下層路盤(歩道部)","歩道コンクリート舗装工","仮囲万能鋼板設置工","H鋼横矢板土留","木柵工","メッシュフェンス","ネットフェンス","フェンス独立基礎設置","車止めバリカー設置工","ガードパイプ柵","客土","法面整形工","現場打法枠工","表層地盤改良工","深層混合処理工","サンドコンパクションパイル工",null,null,null,null,null,null,null,null,null,null,null,null,null,null,null,null,null,null,null,null,null,null,null,null,null,null,null,null,null,null,null,null,null,null,null,null,null,null,null,null,null,null,null,null,null,null,null,null,null,null,null,null,null,null,null,null,null,null,null,null,null,null,null,null,null,null,null,null,null,null,null,null,null,null,null,null,null,null,null,null,null,null,null,null,null,null,null,null,null,null,null,null,null,null,null,null,null,null,null,null,null,null,null,null,null,null,null,null,null,null,null,null,null,null,null,null,null,null,null,null,null,null,null,null,null,null,null,null,null,null,null,null,null,null,null,null,null,null,null,null,null,null,null,null,null,null,null,null,null,null,null,null,null,null,null,null,null,null,null,null,null,null,null,null,null,null,null,null,null,null,null,null,null,null,null,null,null,null,null,null,null,null,null,null,null,null,null,null,null,null,null,null,null,null,null,null,null,null,null,null,null,null,null,null,null,null,null,null,null,null,null,null,null,null,null,null,null,null,null,null,null,null,null,null,null,null,null,null,null,null,null,null,null,null,null,null,null,null,null,null,null,null,null,null,null,null,null,null,null,null,null,null,null,null,null,null,null,null,null,null,null,null,null,null,null,null,null,null,null,null,null,null,null,null,null,null,null,null,null,null,null,null,null,null,null,null,null,null,null,null,null,null,null,null,null,null,null,null,null,null,null,null,null,null,null,null,null,null,null,null,null,null,null,null,null,null,null,null,null,null,null,null,null,null,null,null,null,null,null,null,null,null,null,null,null,null,null,null,null,null,null,null,null,null,null,null,null,null,null,null,null,null,null,null,null,null,null,null,null,null,null,null,null,null,null,null,null,null,null,null,null,null,null,null,null,null,null,null,null,null,null,null,null,null,null,null,null,null,null,null,null,null,null,null,null,null,null,null,null,null,null,null,null,null,null,null,null,null,null,null,null,null,null,null,null,null,null,null,null,null,null,null,null,null,null,null,null,null,null,null,null,null,null,null,null,null,null,null,null,null,null,null,null,null,null,null,null,null,null,null,null,null,null,null,null,null,null,null,null,null,null,null,null,null,null,null,null,null,null,null,null,null,null,null,null,null,null,null,null,null,null,null,null,null,null,null,null,null,null,null,null,null,null,null,null,null,null,null,null,null,null,null,null,null,null,null,null,null,null,null,null,null,null,null,null,null,null,null,null,null,null,null,null,null,null,null,null,null,null,null,null,null,null,null,null,null,null,null,null,null,null,null,null,null,null,null,null,null,null,null,null,null,null,null,null,null,null,null,null,null,null,null,null,null,null,null,null,null,null,null,null,null,null,null,null,null,null,null,null,null,null,null,null,null,null,null,null,null,null,null,null,null,null,null,null,null,null,null,null,null,null,null,null,null,null,null,null,null,null,null,null,null,null,null,null,null,null,null,null,null,null,null,null,null,null,null,null,null,null,null,null,null,null,null,null,null,null,null,null,null,null,null,null,null,null,null,null,null,null,null,null,null,null,null,null,null,null,null,null,null,null,null,null,null,null,null,null,null,null,null,null,null,null,null,null,null,null,null,null,null,null,null,null,null,null,null,null,null,null,null,null,null,null,null,null,null,null,null,null,null,null,null,null,null,null,null,null,null,null,null,null,null,null,null,null,null,null,null,null,null,null,null,null,null,null,null,null,null,null,null,null,null,null,null,null,null,null,null,null,null,null,null,null,null,null,null,null,null,null,null,null,null,null,null,null,null,null,null,null,null,null,null,null,null,null,null,null,null,null,null,null,null,null,null,null,null,null,null,null,null,null,null,null,null,null,null,null,null,null,null,null,null,null,null,null,null,null,null,null,null,null,null,null,null,null,null,null,null,null,null,null,null,null,null,null,null,null,null,null,null,null,null,null,null,null,null,null,null,null,null,null,null,null,null,null,null,null,null,null,null,null,null,null,null,null,null,null,null,null,null,null,null,null,null,null,null,null,null,null,null,null,null,null,null,null,null,null,null,null,null,null,null,null,null,null,null,null,null,null,null,null,null,null,null,null,null,null,null,null,null,null,null,null,null,null,null,null,null,null,null,null,null,null,null,null,null,null,null,null,null,null,null,null,null,null,null,null,null,null,null,null,null,null,null,null,null,null,null,null,null,null,null,null,null,null,null,null,null,null,null,null,null,null,null,null,null,null,null,null,null,null,null,null,null,null,null,null,null,null,null,null,null,null,null,null,null,null,null,null,null,null,null,null,null,null,null,null,null,null,null,null,null,null,null,null,null,null,null,null,null,null,null,null,null,null,null,null,null,null,null,null,null,null,null,null,null,null,null,null,null,null,null,null,null,null,null,null,null,null,null,null,null,null,null,null,null,null,null,null,null,null,null,null,null,null,null,null,null,null,null,null,null,null,null,null,null,null,null,null,null,null,null,null,null,null,null,null,null,null,null,null,null,null,null,null,null,null,null,null,null,null,null,null,null,null,null,null,null,null,null,null,null,null,null,null,null,null,null,null,null,null,null,null,null,null,null,null,null,null,null,null,null,null,null,null,null,null,null,null,null,null,null,null,null,null,null,null,null,null,null,null,null,null,null,null,null,null,null,null,null,null,null,null,null,null,null,null,null,null,null,null,null,null,null,null,null,null,null,null,null,null,null,null,null,null,null,null,null,null,null,null,null,null,null,null,null,null,null,null,null,null,null,null,null,null,null,null,null,null,null,null,null,null,null,null,null,null,null,null,null,null,null,null,null,null,null,null,null,null,null,null,null,null,null,null,null,null,null,null,null,null,null,null,null,null,null,null,null,null,null,null,null,null,null,null,null,null,null,null,null,null,null,null,null,null,null,null,null,null,null,null,null,null,null,null,null,null,null,null,null,null,null,null,null,null,null,null,null,null,null,null,null,null,null,null,null,null,null,null,null,null,null,null,null,null,null,null,null,null,null,null,null,null,null,null,null,null,null,null,null,null,null,null,null,null,null,null,null,null,null,null,null,null,null,null,null,null,null,null,null,null,null,null,null,null,null,null,null,null,null,null,null,null,null,null,null,null,null,null,null,null,null,null,null,null,null,null,null,null,null,null,null,null,null,null,null,null,null,null,null,null,null,null,null,null,null,null,null,null,null,null,null,null,null,null,null,null,null,null,null,null,null,null,null,null,null,null,null,null,null,null,null,null,null,null,null,null,null,null,null,null,null,null,null,null,null,null,null,null,null,null,null,null,null,null,null,null,null,null,null,null,null,null,null,null,null,null,null,null,null,null,null,null,null,null,null,null,null,null,null,null,null,null,null,null,null,null,null,null,null,null,null,null,null,null,null,null,null,null,null,null,null,null,null,null,null,null,null,null,null,null,null,null,null,null,null,null,null,null,null,null,null,null,null,null,null,null,null,null,null,null,null,null,null,null,null,null,null,null,null,null,null,null,null,null,null,null,null,null,null,null,null,null,null,null,null,null,null,null,null,null,null,null,null,null,null,null,null,null,null,null,null,null,null,null,null,null,null,null,null,null,null,null,null,null,null,null,null,null,null,null,null,null,null,null,null,null,null,null,null,null,null,null,null,null,null,null,null,null,null,null,null,null,null,null,null,null,null,null,null,null,null,null,null,null,null,null,null,null,null,null,null,null,null,null,null,null,null,null,null,null,null,null,null,null,null,null,null,null,null,null,null,null,null,null,null,null,null,null,null,null,null,null,null,null,null,null,null,null,null,null,null,null,null,null,null,null,null,null,null,null,null,null,null,null,null,null,null,null,null,null,null,null,null,null,null,null,null,null,null,null,null,null,null,null,null,null,null,null,null,null,null,null,null,null,null,null,null,null,null,null,null,null,null,null,null,null,null,null,null,null,null,null,null,null,null,null,null,null,null,null,null,null,null,null,null,null,null,null,null,null,null,null,null,null,null,null,null,null,null,null,null,null,null,null,null,null,null,null,null,null,null,null,null,null,null,null,null,null,null,null,null,null,null,null,null,null,null,null,null,null,null,null,null,null,null,null,null,null,null,null,null,null,null,null,null,null,null,null,null,null,null,null,null,null,null,null,null,null,null,null,null,null,null,null,null,null,null,null,null,null,null,null,null,null,null,null,null,null,null,null,null,null,null,null,null,null,null,null,null,null,null,null,null,null,null,null,null,null,null,null,null,null,null,null,null,null,null,null,null,null,null,null,null,null,null,null,null,null,null,null,null,null,null,null,null,null,null,null,null,null,null,null,null,null,null,null,null,null,null,null,null,null,null,null,null,null,null,null,null,null,null,null,null,null,null,null,null,null,null,null,null,null,null,null,null,null,null,null,null,null,null,null,null,null,null,null,null,null,null,null,null,null,null,null,null,null,null,null,null,null,null,null,null,null,null,null,null,null,null,null,null,null,null,null,null,null,null,null,null,null,null,null,null,null,null,null,null,null,null,null,null,null,null,null,null,null,null,null,null,null,null,null,null,null,null,null,null,null,null,null,null,null,null,null,null,null,null,null,null,null,null,null,null,null,null,null,"AS：t=5cm AS廃材運搬処分共","\n廃材運搬処分共","鋤取り土工含 発生土運搬処分共","人力土工\n","人力土工\n","4.0≦W\n","H=890 t=150\n打放し 掘削土工共","H=2.0ｍﾀｲﾌﾟ\n","H=2.00ｍ 65゜\n基礎共","地上高さ H=2.0ｍ","タイプ１","ﾀｲﾌﾟ1\n","組立２号人孔1箇所","120*120*600 基礎共\n","H＝400","AS：t=50 表層のみ\n廃材運搬処分共","再生ｸﾗｯｼｬﾗﾝ RC-40 仕上り厚 400ｍｍ\n","再生ｸﾗｯｼｬﾗﾝ RC-40 仕上り厚 100ｍｍ\n","CO：t=100 RC-40：t=100","安全鋼板(塗装品) H=2000 資材購入\n","H=3000 L=8.0ｍ\n","H=1300","H=1500　CB上施工","H=1200　□180*450独立基礎共","\n□300*500 独立基礎共","H800 φ89.1\n基礎共",null,"T300 良質土\n","1:1.5～1:1.8 バックホウ整形(参考値・要精査)","プレキャスト法枠 1.0×1.0m格子(参考値・要精査)","セメント系固化材 t=50cm 混合攪拌(参考値・要精査)","機械攪拌工法 L=8.0m(参考値・要精査)","φ400 L=6.0m(参考値・要精査)"]
["土工事",null,null,null,null,null,null,null,null,null,null,null,null,null,null,null,null,null,null,null,null,null,null,null,null,null,null,null,null,null,null,null,null,null,null,null,null,null,null,null,null,null,null,null,null,null,null,null,null,null,null,null,null,null,null,null,null,null,null,null,null,null,null,null,null,null,null,null,null,null,null,null,null,null,null,null,null,null,null,null,null,null,null,null,null,null,null,null,null,null,null,null,null,null,null,null,null,null,null,null,null,null,null,null,null,null,null,null,null,null,null,null,null,null,null,null,null,null,null,null,null,null,null,null,null,null,null,null,null,null,null,null,null,null,null,null,null,null,null,null,null,null,null,null,null,null,null,null,null,null,null,null,null,null,null,null,null,null,null,null,null,null,null,null,null,null,null,null,null,null,null,null,null,null,null,null,null,null,null,null,null,null,null,null,null,null,null,null,null,null,null,null,null,null,null,null,null,null,null,null,null,null,null,null,null,null,null,null,null,null,null,null,null,null,null,null,null,null,null,null,null,null,null,null,null,null,null,null,null,null,null,null,null,null,null,null,null,null,null,null,null,null,null,null,null,null,null,null,null,null,null,null,null,null,null,null,null,null,null,null,null,null,null,null,null,null,null,null,null,null,null,null,null,null,null,null,null,null,null,null,null,null,null,null,null,null,null,null,null,null,null,null,null,null,null,null,null,null,null,null,null,null,null,null,null,null,null,null,null,null,null,null,null,null,null,null,null,null,null,null,null,null,null,null,null,null,null,null,null,null,null,null,null,null,null,null,null,null,null,null,null,null,null,null,null,null,null,null,null,null,null,null,null,null,null,null,null,null,null,null,null,null,null,null,null,null,null,null,null,null,null,null,null,null,null,null,null,null,null,null,null,null,null,null,null,null,null,null,null,null,null,null,null,null,null,null,null,null,null,null,null,null,null,null,null,null,null,null,null,null,null,null,null,null,null,null,null,null,null,null,null,null,null,null,null,null,null,null,null,null,null,null,null,null,null,null,null,null,null,null,null,null,null,null,null,null,null,null,null,null,null,null,null,null,null,null,null,null,null,null,null,null,null,null,null,null,null,null,null,null,null,null,null,null,null,null,null,null,null,null,null,null,null,null,null,null,null,null,null,null,null,null,null,null,null,null,null,null,null,null,null,null,null,null,null,null,null,null,null,null,null,null,null,null,null,null,null,null,null,null,null,null,null,null,null,null,null,null,null,null,null,null,null,null,null,null,null,null,null,null,null,null,null,null,null,null,null,null,null,null,null,null,null,null,null,null,null,null,null,null,null,null,null,null,null,null,null,null,null,null,null,null,null,null,null,null,null,null,null,null,null,null,null,null,null,null,null,null,null,null,null,null,null,null,null,null,null,null,null,null,null,null,null,null,null,null,null,null,null,"機械回送（ﾄﾚｰﾗｰ）｜ASF｜回｜60000",null,null,null,null,null,null,null,null,null,null,null,null,null,null,null,null,null,null,null,null,null,null,null,null,null,null,null,null,null,null,null,null,null,null,null,null,null,null,null,null,null,null,null,null,null,null,null,null,null,null,null,null,null,null,null,null,null,null,null,null,null,null,null,null,null,null,null,null,null,null,null,null,null,null,null,null,null,null,null,null,null,null,null,null,null,null,null,null,null,"構造物取壊し","床堀工","型枠CB","集水桝","囲障工事","車道舗装","山留め","ネットフェンス",null,"法枠工","深層混合処理工"]
["擁壁工事",null,null,null,null,null,null,null,null,null,null,null,null,null,null,null,null,null,null,null,null,null,null,null,null,null,null,null,null,null,null,null,null,null,null,null,null,null,null,null,null,null,null,null,null,null,null,null,null,null,null,null,null,null,null,null,null,null,null,null,null,null,null,null,null,null,null,null,null,null,null,null,null,null,null,null,null,null,null,null,null,null,null,null,null,null,null,null,null,null,null,null,null,null,null,null,null,null,null,null,null,null,null,null,null,null,null,null,null,null,null,null,null,null,null,null,null,null,null,null,null,null,null,null,null,null,null,null,null,null,null,null,null,null,null,null,null,null,null,null,null,null,null,null,null,null,null,null,null,null,null,null,null,null,null,null,null,null,null,null,null,null,null,null,null,null,null,null,null,null,null,null,null,null,null,null,null,null,null,null,null,null,null,null,null,null,null,null,null,null,null,null,null,null,null,null,null,null,null,null,null,null,null,null,null,null,null,null,null,null,null,null,null,null,null,null,null,null,null,null,null,null,null,null,null,null,null,null,null,null,null,null,null,null,null,null,null,null,null,null,null,null,null,null,null,null,null,null,null,null,null,null,null,null,null,null,null,null,null,null,null,null,null,null,null,null,null,null,null,null,null,null,null,null,null,null,null,null,null,null,null,null,null,null,null,null,null,null,null,null,null,null,null,null,null,null,null,null,null,null,null,null,null,null,null,null,null,null,null,null,null,null,null,null,null,null,null,null,null,null,null,null,null,null,null,null,null,null,null,null,null,null,null,null,null,null,null,null,null,null,null,null,null,null,null,null,null,null,null,null,null,null,null,null,null,null,null,null,null,null,null,null,null,null,null,null,null,null,null,null,null,null,null,null,null,null,null,null,null,null,null,null,null,null,null,null,null,null,null,null,null,null,null,null,null,null,null,null,null,null,null,null,null,null,null,null,null,null,null,null,null,null,null,null,null,null,null,null,null,null,null,null,null,null,null,null,null,null,null,null,null,null,null,null,null,null,null,null,null,null,null,null,null,null,null,null,null,null,null,null,null,null,null,null,null,null,null,null,null,null,null,null,null,null,null,null,null,null,null,null,null,null,null,null,null,null,null,null,null,null,null,null,null,null,null,null,null,null,null,null,null,null,null,null,null,null,null,null,null,null,null,null,null,null,null,null,null,null,null,null,null,null,null,null,null,null,null,null,null,null,null,null,null,null,null,null,null,null,null,null,null,null,null,null,null,null,null,null,null,null,null,null,null,null,null,null,null,null,null,null,null,null,null,null,null,null,null,null,null,null,null,null,null,null,null,null,null,null,null,null,null,null,null,null,null,null,null,null,null,null,null,null,null,null,null,null,null,null,null,null,null,null,null,null,null,null,null,null,null,null,null,null,null,null,null,null,null,null,null,"機械回送（ｾﾐﾄﾚｰﾗｰ）｜MASF｜回｜40000",null,null,null,null,null,null,null,null,null,null,null,null,null,null,null,null,null,null,null,null,null,null,null,null,null,null,null,null,null,null,null,null,null,null,null,null,null,null,null,null,null,null,null,null,null,null,null,null,null,null,null,null,null,null,null,null,null,null,null,null,null,null,null,null,null,null,null,null,null,null,null,null,null,null,null,null,null,null,null,null,null,null,null,null,null,null,null,null,null,null,"盛土工","石積擁壁","組立人孔",null,"歩道及び小規模舗装","その他仮設","独立基礎築造",null,null,"サンドコンパクションパイル工"]
["排水工事",null,null,null,null,null,null,null,null,null,null,null,null,null,null,null,null,null,null,null,null,null,null,null,null,null,null,null,null,null,null,null,null,null,null,null,null,null,null,null,null,null,null,null,null,null,null,null,null,null,null,null,null,null,null,null,null,null,null,null,null,null,null,null,null,null,null,null,null,null,null,null,null,null,null,null,null,null,null,null,null,null,null,null,null,null,null,null,null,null,null,null,null,null,null,null,null,null,null,null,null,null,null,null,null,null,null,null,null,null,null,null,null,null,null,null,null,null,null,null,null,null,null,null,null,null,null,null,null,null,null,null,null,null,null,null,null,null,null,null,null,null,null,null,null,null,null,null,null,null,null,null,null,null,null,null,null,null,null,null,null,null,null,null,null,null,null,null,null,null,null,null,null,null,null,null,null,null,null,null,null,null,null,null,null,null,null,null,null,null,null,null,null,null,null,null,null,null,null,null,null,null,null,null,null,null,null,null,null,null,null,null,null,null,null,null,null,null,null,null,null,null,null,null,null,null,null,null,null,null,null,null,null,null,null,null,null,null,null,null,null,null,null,null,null,null,null,null,null,null,null,null,null,null,null,null,null,null,null,null,null,null,null,null,null,null,null,null,null,null,null,null,null,null,null,null,null,null,null,null,null,null,null,null,null,null,null,null,null,null,null,null,null,null,null,null,null,null,null,null,null,null,null,null,null,null,null,null,null,null,null,null,null,null,null,null,null,null,null,null,null,null,null,null,null,null,null,null,null,null,null,null,null,null,null,null,null,null,null,null,null,null,null,null,null,null,null,null,null,null,null,null,null,null,null,null,null,null,null,null,null,null,null,null,null,null,null,null,null,null,null,null,null,null,null,null,null,null,null,null,null,null,null,null,null,null,null,null,null,null,null,null,null,null,null,null,null,null,null,null,null,null,null,null,null,null,null,null,null,null,null,null,null,null,null,null,null,null,null,null,null,null,null,null,null,null,null,null,null,null,null,null,null,null,null,null,null,null,null,null,null,null,null,null,null,null,null,null,null,null,null,null,null,null,null,null,null,null,null,null,null,null,null,null,null,null,null,null,null,null,null,null,null,null,null,null,null,null,null,null,null,null,null,null,null,null,null,null,null,null,null,null,null,null,null,null,null,null,null,null,null,null,null,null,null,null,null,null,null,null,null,null,null,null,null,null,null,null,null,null,null,null,null,null,null,null,null,null,null,null,null,null,null,null,null,null,null,null,null,null,null,null,null,null,null,null,null,null,null,null,null,null,null,null,null,null,null,null,null,null,null,null,null,null,null,null,null,null,null,null,null,null,null,null,null,null,null,null,null,null,null,null,null,null,null,null,null,null,null,null,null,null,null,null,null,null,null,null,null,null,null,null,null,null,null,null,null,null,null,"機械回送（自走）｜グレーダー｜回｜45000",null,null,null,null,null,null,null,null,null,null,null,null,null,null,null,null,null,null,null,null,null,null,null,null,null,null,null,null,null,null,null,null,null,null,null,null,null,null,null,null,null,null,null,null,null,null,null,null,null,null,null,null,null,null,null,null,null,null,null,null,null,null,null,null,null,null,null,null,null,null,null,null,null,null,null,null,null,null,null,null,null,null,null,null,null,null,null,null,null,null,"埋戻工","プレキャスト擁壁",null,null,"コンクリート舗装",null,"バリカー設置"]
["付帯工事",null,null,null,null,null,null,null,null,null,null,null,null,null,null,null,null,null,null,null,null,null,null,null,null,null,null,null,null,null,null,null,null,null,null,null,null,null,null,null,null,null,null,null,null,null,null,null,null,null,null,null,null,null,null,null,null,null,null,null,null,null,null,null,null,null,null,null,null,null,null,null,null,null,null,null,null,null,null,null,null,null,null,null,null,null,null,null,null,null,null,null,null,null,null,null,null,null,null,null,null,null,null,null,null,null,null,null,null,null,null,null,null,null,null,null,null,null,null,null,null,null,null,null,null,null,null,null,null,null,null,null,null,null,null,null,null,null,null,null,null,null,null,null,null,null,null,null,null,null,null,null,null,null,null,null,null,null,null,null,null,null,null,null,null,null,null,null,null,null,null,null,null,null,null,null,null,null,null,null,null,null,null,null,null,null,null,null,null,null,null,null,null,null,null,null,null,null,null,null,null,null,null,null,null,null,null,null,null,null,null,null,null,null,null,null,null,null,null,null,null,null,null,null,null,null,null,null,null,null,null,null,null,null,null,null,null,null,null,null,null,null,null,null,null,null,null,null,null,null,null,null,null,null,null,null,null,null,null,null,null,null,null,null,null,null,null,null,null,null,null,null,null,null,null,null,null,null,null,null,null,null,null,null,null,null,null,null,null,null,null,null,null,null,null,null,null,null,null,null,null,null,null,null,null,null,null,null,null,null,null,null,null,null,null,null,null,null,null,null,null,null,null,null,null,null,null,null,null,null,null,null,null,null,null,null,null,null,null,null,null,null,null,null,null,null,null,null,null,null,null,null,null,null,null,null,null,null,null,null,null,null,null,null,null,null,null,null,null,null,null,null,null,null,null,null,null,null,null,null,null,null,null,null,null,null,null,null,null,null,null,null,null,null,null,null,null,null,null,null,null,null,null,null,null,null,null,null,null,null,null,null,null,null,null,null,null,null,null,null,null,null,null,null,null,null,null,null,null,null,null,null,null,null,null,null,null,null,null,null,null,null,null,null,null,null,null,null,null,null,null,null,null,null,null,null,null,null,null,null,null,null,null,null,null,null,null,null,null,null,null,null,null,null,null,null,null,null,null,null,null,null,null,null,null,null,null,null,null,null,null,null,null,null,null,null,null,null,null,null,null,null,null,null,null,null,null,null,null,null,null,null,null,null,null,null,null,null,null,null,null,null,null,null,null,null,null,null,null,null,null,null,null,null,null,null,null,null,null,null,null,null,null,null,null,null,null,null,null,null,null,null,null,null,null,null,null,null,null,null,null,null,null,null,null,null,null,null,null,null,null,null,null,null,null,null,null,null,null,null,null,null,null,null,null,null,null,null,null,null,null,null,null,null,null,null,null,null,null,null,null,null,null,null,null,null,null,null,null,"機械回送（ﾄﾚｰﾗｰ）｜0.7BH｜回｜80000",null,null,null,null,null,null,null,null,null,null,null,null,null,null,null,null,null,null,null,null,null,null,null,null,null,null,null,null,null,null,null,null,null,null,null,null,null,null,null,null,null,null,null,null,null,null,null,null,null,null,null,null,null,null,null,null,null,null,null,null,null,null,null,null,null,null,null,null,null,null,null,null,null,null,null,null,null,null,null,null,null,null,null,null,null,null,null,null,null,null,null,null,null,null,null,null,"横断防止柵"]
["舗装工事",null,null,null,null,null,null,null,null,null,null,null,null,null,null,null,null,null,null,null,null,null,null,null,null,null,null,null,null,null,null,null,null,null,null,null,null,null,null,null,null,null,null,null,null,null,null,null,null,null,null,null,null,null,null,null,null,null,null,null,null,null,null,null,null,null,null,null,null,null,null,null,null,null,null,null,null,null,null,null,null,null,null,null,null,null,null,null,null,null,null,null,null,null,null,null,null,null,null,null,null,null,null,null,null,null,null,null,null,null,null,null,null,null,null,null,null,null,null,null,null,null,null,null,null,null,null,null,null,null,null,null,null,null,null,null,null,null,null,null,null,null,null,null,null,null,null,null,null,null,null,null,null,null,null,null,null,null,null,null,null,null,null,null,null,null,null,null,null,null,null,null,null,null,null,null,null,null,null,null,null,null,null,null,null,null,null,null,null,null,null,null,null,null,null,null,null,null,null,null,null,null,null,null,null,null,null,null,null,null,null,null,null,null,null,null,null,null,null,null,null,null,null,null,null,null,null,null,null,null,null,null,null,null,null,null,null,null,null,null,null,null,null,null,null,null,null,null,null,null,null,null,null,null,null,null,null,null,null,null,null,null,null,null,null,null,null,null,null,null,null,null,null,null,null,null,null,null,null,null,null,null,null,null,null,null,null,null,null,null,null,null,null,null,null,null,null,null,null,null,null,null,null,null,null,null,null,null,null,null,null,null,null,null,null,null,null,null,null,null,null,null,null,null,null,null,null,null,null,null,null,null,null,null,null,null,null,null,null,null,null,null,null,null,null,null,null,null,null,null,null,null,null,null,null,null,null,null,null,null,null,null,null,null,null,null,null,null,null,null,null,null,null,null,null,null,null,null,null,null,null,null,null,null,null,null,null,null,null,null,null,null,null,null,null,null,null,null,null,null,null,null,null,null,null,null,null,null,null,null,null,null,null,null,null,null,null,null,null,null,null,null,null,null,null,null,null,null,null,null,null,null,null,null,null,null,null,null,null,null,null,null,null,null,null,null,null,null,null,null,null,null,null,null,null,null,null,null,null,null,null,null,null,null,null,null,null,null,null,null,null,null,null,null,null,null,null,null,null,null,null,null,null,null,null,null,null,null,null,null,null,null,null,null,null,null,null,null,null,null,null,null,null,null,null,null,null,null,null,null,null,null,null,null,null,null,null,null,null,null,null,null,null,null,null,null,null,null,null,null,null,null,null,null,null,null,null,null,null,null,null,null,null,null,null,null,null,null,null,null,null,null,null,null,null,null,null,null,null,null,null,null,null,null,null,null,null,null,null,null,null,null,null,null,null,null,null,null,null,null,null,null,null,null,null,null,null,null,null,null,null,null,null,null,null,null,null,null,null,null,null,null,null,null,null,null,null,null,null,"機械回送（ﾄﾚｰﾗｰ）｜6ｔブル｜回｜80000"]
["仮設工事",null,null,null,null,null,null,null,null,null,null,null,null,null,null,null,null,null,null,null,null,null,null,null,null,null,null,null,null,null,null,null,null,null,null,null,null,null,null,null,null,null,null,null,null,null,null,null,null,null,null,null,null,null,null,null,null,null,null,null,null,null,null,null,null,null,null,null,null,null,null,null,null,null,null,null,null,null,null,null,null,null,null,null,null,null,null,null,null,null,null,null,null,null,null,null,null,null,null,null,null,null,null,null,null,null,null,null,null,null,null,null,null,null,null,null,null,null,null,null,null,null,null,null,null,null,null,null,null,null,null,null,null,null,null,null,null,null,null,null,null,null,null,null,null,null,null,null,null,null,null,null,null,null,null,null,null,null,null,null,null,null,null,null,null,null,null,null,null,null,null,null,null,null,null,null,null,null,null,null,null,null,null,null,null,null,null,null,null,null,null,null,null,null,null,null,null,null,null,null,null,null,null,null,null,null,null,null,null,null,null,null,null,null,null,null,null,null,null,null,null,null,null,null,null,null,null,null,null,null,null,null,null,null,null,null,null,null,null,null,null,null,null,null,null,null,null,null,null,null,null,null,null,null,null,null,null,null,null,null,null,null,null,null,null,null,null,null,null,null,null,null,null,null,null,null,null,null,null,null,null,null,null,null,null,null,null,null,null,null,null,null,null,null,null,null,null,null,null,null,null,null,null,null,null,null,null,null,null,null,null,null,null,null,null,null,null,null,null,null,null,null,null,null,null,null,null,null,null,null,null,null,null,null,null,null,null,null,null,null,null,null,null,null,null,null,null,null,null,null,null,null,null,null,null,null,null,null,null,null,null,null,null,null,null,null,null,null,null,null,null,null,null,null,null,null,null,null,null,null,null,null,null,null,null,null,null,null,null,null,null,null,null,null,null,null,null,null,null,null,null,null,null,null,null,null,null,null,null,null,null,null,null,null,null,null,null,null,null,null,null,null,null,null,null,null,null,null,null,null,null,null,null,null,null,null,null,null,null,null,null,null,null,null,null,null,null,null,null,null,null,null,null,null,null,null,null,null,null,null,null,null,null,null,null,null,null,null,null,null,null,null,null,null,null,null,null,null,null,null,null,null,null,null,null,null,null,null,null,null,null,null,null,null,null,null,null,null,null,null,null,null,null,null,null,null,null,null,null,null,null,null,null,null,null,null,null,null,null,null,null,null,null,null,null,null,null,null,null,null,null,null,null,null,null,null,null,null,null,null,null,null,null,null,null,null,null,null,null,null,null,null,null,null,null,null,null,null,null,null,null,null,null,null,null,null,null,null,null,null,null,null,null,null,null,null,null,null,null,null,null,null,null,null,null,null,null,null,null,null,null,null,null,null,null,null,null,null,null,null,null,null,null,null,null,null,null,null,null,"機械回送（ﾄﾚｰﾗｰ）｜0.45BH｜回｜70000"]
["景観金物",null,null,null,null,null,null,null,null,null,null,null,null,null,null,null,null,null,null,null,null,null,null,null,null,null,null,null,null,null,null,null,null,null,null,null,null,null,null,null,null,null,null,null,null,null,null,null,null,null,null,null,null,null,null,null,null,null,null,null,null,null,null,null,null,null,null,null,null,null,null,null,null,null,null,null,null,null,null,null,null,null,null,null,null,null,null,null,null,null,null,null,null,null,null,null,null,null,null,null,null,null,null,null,null,null,null,null,null,null,null,null,null,null,null,null,null,null,null,null,null,null,null,null,null,null,null,null,null,null,null,null,null,null,null,null,null,null,null,null,null,null,null,null,null,null,null,null,null,null,null,null,null,null,null,null,null,null,null,null,null,null,null,null,null,null,null,null,null,null,null,null,null,null,null,null,null,null,null,null,null,null,null,null,null,null,null,null,null,null,null,null,null,null,null,null,null,null,null,null,null,null,null,null,null,null,null,null,null,null,null,null,null,null,null,null,null,null,null,null,null,null,null,null,null,null,null,null,null,null,null,null,null,null,null,null,null,null,null,null,null,null,null,null,null,null,null,null,null,null,null,null,null,null,null,null,null,null,null,null,null,null,null,null,null,null,null,null,null,null,null,null,null,null,null,null,null,null,null,null,null,null,null,null,null,null,null,null,null,null,null,null,null,null,null,null,null,null,null,null,null,null,null,null,null,null,null,null,null,null,null,null,null,null,null,null,null,null,null,null,null,null,null,null,null,null,null,null,null,null,null,null,null,null,null,null,null,null,null,null,null,null,null,null,null,null,null,null,null,null,null,null,null,null,null,null,null,null,null,null,null,null,null,null,null,null,null,null,null,null,null,null,null,null,null,null,null,null,null,null,null,null,null,null,null,null,null,null,null,null,null,null,null,null,null,null,null,null,null,null,null,null,null,null,null,null,null,null,null,null,null,null,null,null,null,null,null,null,null,null,null,null,null,null,null,null,null,null,null,null,null,null,null,null,null,null,null,null,null,null,null,null,null,null,null,null,null,null,null,null,null,null,null,null,null,null,null,null,null,null,null,null,null,null,null,null,null,null,null,null,null,null,null,null,null,null,null,null,null,null,null,null,null,null,null,null,null,null,null,null,null,null,null,null,null,null,null,null,null,null,null,null,null,null,null,null,null,null,null,null,null,null,null,null,null,null,null,null,null,null,null,null,null,null,null,null,null,null,null,null,null,null,null,null,null,null,null,null,null,null,null,null,null,null,null,null,null,null,null,null,null,null,null,null,null,null,null,null,null,null,null,null,null,null,null,null,null,null,null,null,null,null,null,null,null,null,null,null,null,null,null,null,null,null,null,null,null,null,null,null,null,null,null,null,null,null,null,null,null,null,null,null,null,null,null,null,null,null,null,"機械回送（大）｜0.25BH｜回｜50000"]
["植栽工事",null,null,null,null,null,null,null,null,null,null,null,null,null,null,null,null,null,null,null,null,null,null,null,null,null,null,null,null,null,null,null,null,null,null,null,null,null,null,null,null,null,null,null,null,null,null,null,null,null,null,null,null,null,null,null,null,null,null,null,null,null,null,null,null,null,null,null,null,null,null,null,null,null,null,null,null,null,null,null,null,null,null,null,null,null,null,null,null,null,null,null,null,null,null,null,null,null,null,null,null,null,null,null,null,null,null,null,null,null,null,null,null,null,null,null,null,null,null,null,null,null,null,null,null,null,null,null,null,null,null,null,null,null,null,null,null,null,null,null,null,null,null,null,null,null,null,null,null,null,null,null,null,null,null,null,null,null,null,null,null,null,null,null,null,null,null,null,null,null,null,null,null,null,null,null,null,null,null,null,null,null,null,null,null,null,null,null,null,null,null,null,null,null,null,null,null,null,null,null,null,null,null,null,null,null,null,null,null,null,null,null,null,null,null,null,null,null,null,null,null,null,null,null,null,null,null,null,null,null,null,null,null,null,null,null,null,null,null,null,null,null,null,null,null,null,null,null,null,null,null,null,null,null,null,null,null,null,null,null,null,null,null,null,null,null,null,null,null,null,null,null,null,null,null,null,null,null,null,null,null,null,null,null,null,null,null,null,null,null,null,null,null,null,null,null,null,null,null,null,null,null,null,null,null,null,null,null,null,null,null,null,null,null,null,null,null,null,null,null,null,null,null,null,null,null,null,null,null,null,null,null,null,null,null,null,null,null,null,null,null,null,null,null,null,null,null,null,null,null,null,null,null,null,null,null,null,null,null,null,null,null,null,null,null,null,null,null,null,null,null,null,null,null,null,null,null,null,null,null,null,null,null,null,null,null,null,null,null,null,null,null,null,null,null,null,null,null,null,null,null,null,null,null,null,null,null,null,null,null,null,null,null,null,null,null,null,null,null,null,null,null,null,null,null,null,null,null,null,null,null,null,null,null,null,null,null,null,null,null,null,null,null,null,null,null,null,null,null,null,null,null,null,null,null,null,null,null,null,null,null,null,null,null,null,null,null,null,null,null,null,null,null,null,null,null,null,null,null,null,null,null,null,null,null,null,null,null,null,null,null,null,null,null,null,null,null,null,null,null,null,null,null,null,null,null,null,null,null,null,null,null,null,null,null,null,null,null,null,null,null,null,null,null,null,null,null,null,null,null,null,null,null,null,null,null,null,null,null,null,null,null,null,null,null,null,null,null,null,null,null,null,null,null,null,null,null,null,null,null,null,null,null,null,null,null,null,null,null,null,null,null,null,null,null,null,null,null,null,null,null,null,null,null,null,null,null,null,null,null,null,null,null,null,null,null,null,null,null,null,null,null,null,null,null,null,null,null,null,"機械回送（大）｜TS+4ｔMR、3ｔTR+0.2｜回｜40000"]
["法面工事",null,null,null,null,null,null,null,null,null,null,null,null,null,null,null,null,null,null,null,null,null,null,null,null,null,null,null,null,null,null,null,null,null,null,null,null,null,null,null,null,null,null,null,null,null,null,null,null,null,null,null,null,null,null,null,null,null,null,null,null,null,null,null,null,null,null,null,null,null,null,null,null,null,null,null,null,null,null,null,null,null,null,null,null,null,null,null,null,null,null,null,null,null,null,null,null,null,null,null,null,null,null,null,null,null,null,null,null,null,null,null,null,null,null,null,null,null,null,null,null,null,null,null,null,null,null,null,null,null,null,null,null,null,null,null,null,null,null,null,null,null,null,null,null,null,null,null,null,null,null,null,null,null,null,null,null,null,null,null,null,null,null,null,null,null,null,null,null,null,null,null,null,null,null,null,null,null,null,null,null,null,null,null,null,null,null,null,null,null,null,null,null,null,null,null,null,null,null,null,null,null,null,null,null,null,null,null,null,null,null,null,null,null,null,null,null,null,null,null,null,null,null,null,null,null,null,null,null,null,null,null,null,null,null,null,null,null,null,null,null,null,null,null,null,null,null,null,null,null,null,null,null,null,null,null,null,null,null,null,null,null,null,null,null,null,null,null,null,null,null,null,null,null,null,null,null,null,null,null,null,null,null,null,null,null,null,null,null,null,null,null,null,null,null,null,null,null,null,null,null,null,null,null,null,null,null,null,null,null,null,null,null,null,null,null,null,null,null,null,null,null,null,null,null,null,null,null,null,null,null,null,null,null,null,null,null,null,null,null,null,null,null,null,null,null,null,null,null,null,null,null,null,null,null,null,null,null,null,null,null,null,null,null,null,null,null,null,null,null,null,null,null,null,null,null,null,null,null,null,null,null,null,null,null,null,null,null,null,null,null,null,null,null,null,null,null,null,null,null,null,null,null,null,null,null,null,null,null,null,null,null,null,null,null,null,null,null,null,null,null,null,null,null,null,null,null,null,null,null,null,null,null,null,null,null,null,null,null,null,null,null,null,null,null,null,null,null,null,null,null,null,null,null,null,null,null,null,null,null,null,null,null,null,null,null,null,null,null,null,null,null,null,null,null,null,null,null,null,null,null,null,null,null,null,null,null,null,null,null,null,null,null,null,null,null,null,null,null,null,null,null,null,null,null,null,null,null,null,null,null,null,null,null,null,null,null,null,null,null,null,null,null,null,null,null,null,null,null,null,null,null,null,null,null,null,null,null,null,null,null,null,null,null,null,null,null,null,null,null,null,null,null,null,null,null,null,null,null,null,null,null,null,null,null,null,null,null,null,null,null,null,null,null,null,null,null,null,null,null,null,null,null,null,null,null,null,null,null,null,null,null,null,null,null,null,null,null,null,null,null,null,null,null,null,null,null,null,null,"機械回送（中）｜0.18BH、TS｜回｜18000"]
["地盤改良工事",null,null,null,null,null,null,null,null,null,null,null,null,null,null,null,null,null,null,null,null,null,null,null,null,null,null,null,null,null,null,null,null,null,null,null,null,null,null,null,null,null,null,null,null,null,null,null,null,null,null,null,null,null,null,null,null,null,null,null,null,null,null,null,null,null,null,null,null,null,null,null,null,null,null,null,null,null,null,null,null,null,null,null,null,null,null,null,null,null,null,null,null,null,null,null,null,null,null,null,null,null,null,null,null,null,null,null,null,null,null,null,null,null,null,null,null,null,null,null,null,null,null,null,null,null,null,null,null,null,null,null,null,null,null,null,null,null,null,null,null,null,null,null,null,null,null,null,null,null,null,null,null,null,null,null,null,null,null,null,null,null,null,null,null,null,null,null,null,null,null,null,null,null,null,null,null,null,null,null,null,null,null,null,null,null,null,null,null,null,null,null,null,null,null,null,null,null,null,null,null,null,null,null,null,null,null,null,null,null,null,null,null,null,null,null,null,null,null,null,null,null,null,null,null,null,null,null,null,null,null,null,null,null,null,null,null,null,null,null,null,null,null,null,null,null,null,null,null,null,null,null,null,null,null,null,null,null,null,null,null,null,null,null,null,null,null,null,null,null,null,null,null,null,null,null,null,null,null,null,null,null,null,null,null,null,null,null,null,null,null,null,null,null,null,null,null,null,null,null,null,null,null,null,null,null,null,null,null,null,null,null,null,null,null,null,null,null,null,null,null,null,null,null,null,null,null,null,null,null,null,null,null,null,null,null,null,null,null,null,null,null,null,null,null,null,null,null,null,null,null,null,null,null,null,null,null,null,null,null,null,null,null,null,null,null,null,null,null,null,null,null,null,null,null,null,null,null,null,null,null,null,null,null,null,null,null,null,null,null,null,null,null,null,null,null,null,null,null,null,null,null,null,null,null,null,null,null,null,null,null,null,null,null,null,null,null,null,null,null,null,null,null,null,null,null,null,null,null,null,null,null,null,null,null,null,null,null,null,null,null,null,null,null,null,null,null,null,null,null,null,null,null,null,null,null,null,null,null,null,null,null,null,null,null,null,null,null,null,null,null,null,null,null,null,null,null,null,null,null,null,null,null,null,null,null,null,null,null,null,null,null,null,null,null,null,null,null,null,null,null,null,null,null,null,null,null,null,null,null,null,null,null,null,null,null,null,null,null,null,null,null,null,null,null,null,null,null,null,null,null,null,null,null,null,null,null,null,null,null,null,null,null,null,null,null,null,null,null,null,null,null,null,null,null,null,null,null,null,null,null,null,null,null,null,null,null,null,null,null,null,null,null,null,null,null,null,null,null,null,null,null,null,null,null,null,null,null,null,null,null,null,null,null,null,null,null,null,null,null,null,null,null,null,null,null,null,null,null,"資材運搬｜｜式｜100000"]
[null,null,null,null,null,null,null,null,null,null,null,null,null,null,null,null,null,null,null,null,null,null,null,null,null,null,null,null,null,null,null,null,null,null,null,null,null,null,null,null,null,null,null,null,null,null,null,null,null,null,null,null,null,null,null,null,null,null,null,null,null,null,null,null,null,null,null,null,null,null,null,null,null,null,null,null,null,null,null,null,null,null,null,null,null,null,null,null,null,null,null,null,null,null,null,null,null,null,null,null,null,null,null,null,null,null,null,null,null,null,null,null,null,null,null,null,null,null,null,null,null,null,null,null,null,null,null,null,null,null,null,null,null,null,null,null,null,null,null,null,null,null,null,null,null,null,null,null,null,null,null,null,null,null,null,null,null,null,null,null,null,null,null,null,null,null,null,null,null,null,null,null,null,null,null,null,null,null,null,null,null,null,null,null,null,null,null,null,null,null,null,null,null,null,null,null,null,null,null,null,null,null,null,null,null,null,null,null,null,null,null,null,null,null,null,null,null,null,null,null,null,null,null,null,null,null,null,null,null,null,null,null,null,null,null,null,null,null,null,null,null,null,null,null,null,null,null,null,null,null,null,null,null,null,null,null,null,null,null,null,null,null,null,null,null,null,null,null,null,null,null,null,null,null,null,null,null,null,null,null,null,null,null,null,null,null,null,null,null,null,null,null,null,null,null,null,null,null,null,null,null,null,null,null,null,null,null,null,null,null,null,null,null,null,null,null,null,null,null,null,null,null,null,null,null,null,null,null,null,null,null,null,null,null,null,null,null,null,null,null,null,null,null,null,null,null,null,null,null,null,null,null,null,null,null,null,null,null,null,null,null,null,null,null,null,null,null,null,null,null,null,null,null,null,null,null,null,null,null,null,null,null,null,null,null,null,null,null,null,null,null,null,null,null,null,null,null,null,null,null,null,null,null,null,null,null,null,null,null,null,null,null,null,null,null,null,null,null,null,null,null,null,null,null,null,null,null,null,null,null,null,null,null,null,null,null,null,null,null,null,null,null,null,null,null,null,null,null,null,null,null,null,null,null,null,null,null,null,null,null,null,null,null,null,null,null,null,null,null,null,null,null,null,null,null,null,null,null,null,null,null,null,null,null,null,null,null,null,null,null,null,null,null,null,null,null,null,null,null,null,null,null,null,null,null,null,null,null,null,null,null,null,null,null,null,null,null,null,null,null,null,null,null,null,null,null,null,null,null,null,null,null,null,null,null,null,null,null,null,null,null,null,null,null,null,null,null,null,null,null,null,null,null,null,null,null,null,null,null,null,null,null,null,null,null,null,null,null,null,null,null,null,null,null,null,null,null,null,null,null,null,null,null,null,null,null,null,null,null,null,null,null,null,null,null,null,null,null,null,null,null,null,null,null,null,null,null,null,null,"仮設資材運搬｜｜式｜=430000+120000"]
[null,null,null,null,null,null,null,null,null,null,null,null,null,null,null,null,null,null,null,null,null,null,null,null,null,null,null,null,null,null,null,null,null,null,null,null,null,null,null,null,null,null,null,null,null,null,null,null,null,null,null,null,null,null,null,null,null,null,null,null,null,null,null,null,null,null,null,null,null,null,null,null,null,null,null,null,null,null,null,null,null,null,null,null,null,null,null,null,null,null,null,null,null,null,null,null,null,null,null,null,null,null,null,null,null,null,null,null,null,null,null,null,null,null,null,null,null,null,null,null,null,null,null,null,null,null,null,null,null,null,null,null,null,null,null,null,null,null,null,null,null,null,null,null,null,null,null,null,null,null,null,null,null,null,null,null,null,null,null,null,null,null,null,null,null,null,null,null,null,null,null,null,null,null,null,null,null,null,null,null,null,null,null,null,null,null,null,null,null,null,null,null,null,null,null,null,null,null,null,null,null,null,null,null,null,null,null,null,null,null,null,null,null,null,null,null,null,null,null,null,null,null,null,null,null,null,null,null,null,null,null,null,null,null,null,null,null,null,null,null,null,null,null,null,null,null,null,null,null,null,null,null,null,null,null,null,null,null,null,null,null,null,null,null,null,null,null,null,null,null,null,null,null,null,null,null,null,null,null,null,null,null,null,null,null,null,null,null,null,null,null,null,null,null,null,null,null,null,null,null,null,null,null,null,null,null,null,null,null,null,null,null,null,null,null,null,null,null,null,null,null,null,null,null,null,null,null,null,null,null,null,null,null,null,null,null,null,null,null,null,null,null,null,null,null,null,null,null,null,null,null,null,null,null,null,null,null,null,null,null,null,null,null,null,null,null,null,null,null,null,null,null,null,null,null,null,null,null,null,null,null,null,null,null,null,null,null,null,null,null,null,null,null,null,null,null,null,null,null,null,null,null,null,null,null,null,null,null,null,null,null,null,null,null,null,null,null,null,null,null,null,null,null,null,null,null,null,null,null,null,null,null,null,null,null,null,null,null,null,null,null,null,null,null,null,null,null,null,null,null,null,null,null,null,null,null,null,null,null,null,null,null,null,null,null,null,null,null,null,null,null,null,null,null,null,null,null,null,null,null,null,null,null,null,null,null,null,null,null,null,null,null,null,null,null,null,null,null,null,null,null,null,null,null,null,null,null,null,null,null,null,null,null,null,null,null,null,null,null,null,null,null,null,null,null,null,null,null,null,null,null,null,null,null,null,null,null,null,null,null,null,null,null,null,null,null,null,null,null,null,null,null,null,null,null,null,null,null,null,null,null,null,null,null,null,null,null,null,null,null,null,null,null,null,null,null,null,null,null,null,null,null,null,null,null,null,null,null,null,null,null,null,null,null,null,null,null,null,null,null,null,null,null,null,null,null,null,null,null,"機械回送｜小機械｜回｜8000"]
[null,null,null,null,null,null,null,null,null,null,null,null,null,null,null,null,null,null,null,null,null,null,null,null,null,null,null,null,null,null,null,null,null,null,null,null,null,null,null,null,null,null,null,null,null,null,null,null,null,null,null,null,null,null,null,null,null,null,null,null,null,null,null,null,null,null,null,null,null,null,null,null,null,null,null,null,null,null,null,null,null,null,null,null,null,null,null,null,null,null,null,null,null,null,null,null,null,null,null,null,null,null,null,null,null,null,null,null,null,null,null,null,null,null,null,null,null,null,null,null,null,null,null,null,null,null,null,null,null,null,null,null,null,null,null,null,null,null,null,null,null,null,null,null,null,null,null,null,null,null,null,null,null,null,null,null,null,null,null,null,null,null,null,null,null,null,null,null,null,null,null,null,null,null,null,null,null,null,null,null,null,null,null,null,null,null,null,null,null,null,null,null,null,null,null,null,null,null,null,null,null,null,null,null,null,null,null,null,null,null,null,null,null,null,null,null,null,null,null,null,null,null,null,null,null,null,null,null,null,null,null,null,null,null,null,null,null,null,null,null,null,null,null,null,null,null,null,null,null,null,null,null,null,null,null,null,null,null,null,null,null,null,null,null,null,null,null,null,null,null,null,null,null,null,null,null,null,null,null,null,null,null,null,null,null,null,null,null,null,null,null,null,null,null,null,null,null,null,null,null,null,null,null,null,null,null,null,null,null,null,null,null,null,null,null,null,null,null,null,null,null,null,null,null,null,null,null,null,null,null,null,null,null,null,null,null,null,null,null,null,null,null,null,null,null,null,null,null,null,null,null,null,null,null,null,null,null,null,null,null,null,null,null,null,null,null,null,null,null,null,null,null,null,null,null,null,null,null,null,null,null,null,null,null,null,null,null,null,null,null,null,null,null,null,null,null,null,null,null,null,null,null,null,null,null,null,null,null,null,null,null,null,null,null,null,null,null,null,null,null,null,null,null,null,null,null,null,null,null,null,null,null,null,null,null,null,null,null,null,null,null,null,null,null,null,null,null,null,null,null,null,null,null,null,null,null,null,null,null,null,null,null,null,null,null,null,null,null,null,null,null,null,null,null,null,null,null,null,null,null,null,null,null,null,null,null,null,null,null,null,null,null,null,null,null,null,null,null,null,null,null,null,null,null,null,null,null,null,null,null,null,null,null,null,null,null,null,null,null,null,null,null,null,null,null,null,null,null,null,null,null,null,null,null,null,null,null,null,null,null,null,null,null,null,null,null,null,null,null,null,null,null,null,null,null,null,null,null,null,null,null,null,null,null,null,null,null,null,null,null,null,null,null,null,null,null,null,null,null,null,null,null,null,null,null,null,null,null,null,null,null,null,null,null,null,null,null,null,null,null,null,null,null,null,null,null,null,null,null,"資材運搬費※別途集計表より｜｜式｜"]
[null,null,null,null,null,null,null,null,null,null,null,null,null,null,null,null,null,null,null,null,null,null,null,null,null,null,null,null,null,null,null,null,null,null,null,null,null,null,null,null,null,null,null,null,null,null,null,null,null,null,null,null,null,null,null,null,null,null,null,null,null,null,null,null,null,null,null,null,null,null,null,null,null,null,null,null,null,null,null,null,null,null,null,null,null,null,null,null,null,null,null,null,null,null,null,null,null,null,null,null,null,null,null,null,null,null,null,null,null,null,null,null,null,null,null,null,null,null,null,null,null,null,null,null,null,null,null,null,null,null,null,null,null,null,null,null,null,null,null,null,null,null,null,null,null,null,null,null,null,null,null,null,null,null,null,null,null,null,null,null,null,null,null,null,null,null,null,null,null,null,null,null,null,null,null,null,null,null,null,null,null,null,null,null,null,null,null,null,null,null,null,null,null,null,null,null,null,null,null,null,null,null,null,null,null,null,null,null,null,null,null,null,null,null,null,null,null,null,null,null,null,null,null,null,null,null,null,null,null,null,null,null,null,null,null,null,null,null,null,null,null,null,null,null,null,null,null,null,null,null,null,null,null,null,null,null,null,null,null,null,null,null,null,null,null,null,null,null,null,null,null,null,null,null,null,null,null,null,null,null,null,null,null,null,null,null,null,null,null,null,null,null,null,null,null,null,null,null,null,null,null,null,null,null,null,null,null,null,null,null,null,null,null,null,null,null,null,null,null,null,null,null,null,null,null,null,null,null,null,null,null,null,null,null,null,null,null,null,null,null,null,null,null,null,null,null,null,null,null,null,null,null,null,null,null,null,null,null,null,null,null,null,null,null,null,null,null,null,null,null,null,null,null,null,null,null,null,null,null,null,null,null,null,null,null,null,null,null,null,null,null,null,null,null,null,null,null,null,null,null,null,null,null,null,null,null,null,null,null,null,null,null,null,null,null,null,null,null,null,null,null,null,null,null,null,null,null,null,null,null,null,null,null,null,null,null,null,null,null,null,null,null,null,null,null,null,null,null,null,null,null,null,null,null,null,null,null,null,null,null,null,null,null,null,null,null,null,null,null,null,null,null,null,null,null,null,null,null,null,null,null,null,null,null,null,null,null,null,null,null,null,null,null,null,null,null,null,null,null,null,null,null,null,null,null,null,null,null,null,null,null,null,null,null,null,null,null,null,null,null,null,null,null,null,null,null,null,null,null,null,null,null,null,null,null,null,null,null,null,null,null,null,null,null,null,null,null,null,null,null,null,null,null,null,null,null,null,null,null,null,null,null,null,null,null,null,null,null,null,null,null,null,null,null,null,null,null,null,null,null,null,null,null,null,null,null,null,null,null,null,null,null,null,null,null,null,null,null,null,null,null,null,null,null,null,null,null,null,null,"保安要員｜ｶﾞｰﾄﾞﾏﾝ｜名｜20000"]
[null,null,null,null,null,null,null,null,null,null,null,null,null,null,null,null,null,null,null,null,null,null,null,null,null,null,null,null,null,null,null,null,null,null,null,null,null,null,null,null,null,null,null,null,null,null,null,null,null,null,null,null,null,null,null,null,null,null,null,null,null,null,null,null,null,null,null,null,null,null,null,null,null,null,null,null,null,null,null,null,null,null,null,null,null,null,null,null,null,null,null,null,null,null,null,null,null,null,null,null,null,null,null,null,null,null,null,null,null,null,null,null,null,null,null,null,null,null,null,null,null,null,null,null,null,null,null,null,null,null,null,null,null,null,null,null,null,null,null,null,null,null,null,null,null,null,null,null,null,null,null,null,null,null,null,null,null,null,null,null,null,null,null,null,null,null,null,null,null,null,null,null,null,null,null,null,null,null,null,null,null,null,null,null,null,null,null,null,null,null,null,null,null,null,null,null,null,null,null,null,null,null,null,null,null,null,null,null,null,null,null,null,null,null,null,null,null,null,null,null,null,null,null,null,null,null,null,null,null,null,null,null,null,null,null,null,null,null,null,null,null,null,null,null,null,null,null,null,null,null,null,null,null,null,null,null,null,null,null,null,null,null,null,null,null,null,null,null,null,null,null,null,null,null,null,null,null,null,null,null,null,null,null,null,null,null,null,null,null,null,null,null,null,null,null,null,null,null,null,null,null,null,null,null,null,null,null,null,null,null,null,null,null,null,null,null,null,null,null,null,null,null,null,null,null,null,null,null,null,null,null,null,null,null,null,null,null,null,null,null,null,null,null,null,null,null,null,null,null,null,null,null,null,null,null,null,null,null,null,null,null,null,null,null,null,null,null,null,null,null,null,null,null,null,null,null,null,null,null,null,null,null,null,null,null,null,null,null,null,null,null,null,null,null,null,null,null,null,null,null,null,null,null,null,null,null,null,null,null,null,null,null,null,null,null,null,null,null,null,null,null,null,null,null,null,null,null,null,null,null,null,null,null,null,null,null,null,null,null,null,null,null,null,null,null,null,null,null,null,null,null,null,null,null,null,null,null,null,null,null,null,null,null,null,null,null,null,null,null,null,null,null,null,null,null,null,null,null,null,null,null,null,null,null,null,null,null,null,null,null,null,null,null,null,null,null,null,null,null,null,null,null,null,null,null,null,null,null,null,null,null,null,null,null,null,null,null,null,null,null,null,null,null,null,null,null,null,null,null,null,null,null,null,null,null,null,null,null,null,null,null,null,null,null,null,null,null,null,null,null,null,null,null,null,null,null,null,null,null,null,null,null,null,null,null,null,null,null,null,null,null,null,null,null,null,null,null,null,null,null,null,null,null,null,null,null,null,null,null,null,null,null,null,null,null,null,null,null,null,null,null,null,null,null,null,null,null,null,null,"安全対策費｜｜名｜22000"]
[null,null,null,null,null,null,null,null,null,null,null,null,null,null,null,null,null,null,null,null,null,null,null,null,null,null,null,null,null,null,null,null,null,null,null,null,null,null,null,null,null,null,null,null,null,null,null,null,null,null,null,null,null,null,null,null,null,null,null,null,null,null,null,null,null,null,null,null,null,null,null,null,null,null,null,null,null,null,null,null,null,null,null,null,null,null,null,null,null,null,null,null,null,null,null,null,null,null,null,null,null,null,null,null,null,null,null,null,null,null,null,null,null,null,null,null,null,null,null,null,null,null,null,null,null,null,null,null,null,null,null,null,null,null,null,null,null,null,null,null,null,null,null,null,null,null,null,null,null,null,null,null,null,null,null,null,null,null,null,null,null,null,null,null,null,null,null,null,null,null,null,null,null,null,null,null,null,null,null,null,null,null,null,null,null,null,null,null,null,null,null,null,null,null,null,null,null,null,null,null,null,null,null,null,null,null,null,null,null,null,null,null,null,null,null,null,null,null,null,null,null,null,null,null,null,null,null,null,null,null,null,null,null,null,null,null,null,null,null,null,null,null,null,null,null,null,null,null,null,null,null,null,null,null,null,null,null,null,null,null,null,null,null,null,null,null,null,null,null,null,null,null,null,null,null,null,null,null,null,null,null,null,null,null,null,null,null,null,null,null,null,null,null,null,null,null,null,null,null,null,null,null,null,null,null,null,null,null,null,null,null,null,null,null,null,null,null,null,null,null,null,null,null,null,null,null,null,null,null,null,null,null,null,null,null,null,null,null,null,null,null,null,null,null,null,null,null,null,null,null,null,null,null,null,null,null,null,null,null,null,null,null,null,null,null,null,null,null,null,null,null,null,null,null,null,null,null,null,null,null,null,null,null,null,null,null,null,null,null,null,null,null,null,null,null,null,null,null,null,null,null,null,null,null,null,null,null,null,null,null,null,null,null,null,null,null,null,null,null,null,null,null,null,null,null,null,null,null,null,null,null,null,null,null,null,null,null,null,null,null,null,null,null,null,null,null,null,null,null,null,null,null,null,null,null,null,null,null,null,null,null,null,null,null,null,null,null,null,null,null,null,null,null,null,null,null,null,null,null,null,null,null,null,null,null,null,null,null,null,null,null,null,null,null,null,null,null,null,null,null,null,null,null,null,null,null,null,null,null,null,null,null,null,null,null,null,null,null,null,null,null,null,null,null,null,null,null,null,null,null,null,null,null,null,null,null,null,null,null,null,null,null,null,null,null,null,null,null,null,null,null,null,null,null,null,null,null,null,null,null,null,null,null,null,null,null,null,null,null,null,null,null,null,null,null,null,null,null,null,null,null,null,null,null,null,null,null,null,null,null,null,null,null,null,null,null,null,null,null,null,null,null,null,null,null,null,null,null,null,"安全対策費（下請）｜｜名｜22000"]
[null,null,null,null,null,null,null,null,null,null,null,null,null,null,null,null,null,null,null,null,null,null,null,null,null,null,null,null,null,null,null,null,null,null,null,null,null,null,null,null,null,null,null,null,null,null,null,null,null,null,null,null,null,null,null,null,null,null,null,null,null,null,null,null,null,null,null,null,null,null,null,null,null,null,null,null,null,null,null,null,null,null,null,null,null,null,null,null,null,null,null,null,null,null,null,null,null,null,null,null,null,null,null,null,null,null,null,null,null,null,null,null,null,null,null,null,null,null,null,null,null,null,null,null,null,null,null,null,null,null,null,null,null,null,null,null,null,null,null,null,null,null,null,null,null,null,null,null,null,null,null,null,null,null,null,null,null,null,null,null,null,null,null,null,null,null,null,null,null,null,null,null,null,null,null,null,null,null,null,null,null,null,null,null,null,null,null,null,null,null,null,null,null,null,null,null,null,null,null,null,null,null,null,null,null,null,null,null,null,null,null,null,null,null,null,null,null,null,null,null,null,null,null,null,null,null,null,null,null,null,null,null,null,null,null,null,null,null,null,null,null,null,null,null,null,null,null,null,null,null,null,null,null,null,null,null,null,null,null,null,null,null,null,null,null,null,null,null,null,null,null,null,null,null,null,null,null,null,null,null,null,null,null,null,null,null,null,null,null,null,null,null,null,null,null,null,null,null,null,null,null,null,null,null,null,null,null,null,null,null,null,null,null,null,null,null,null,null,null,null,null,null,null,null,null,null,null,null,null,null,null,null,null,null,null,null,null,null,null,null,null,null,null,null,null,null,null,null,null,null,null,null,null,null,null,null,null,null,null,null,null,null,null,null,null,null,null,null,null,null,null,null,null,null,null,null,null,null,null,null,null,null,null,null,null,null,null,null,null,null,null,null,null,null,null,null,null,null,null,null,null,null,null,null,null,null,null,null,null,null,null,null,null,null,null,null,null,null,null,null,null,null,null,null,null,null,null,null,null,null,null,null,null,null,null,null,null,null,null,null,null,null,null,null,null,null,null,null,null,null,null,null,null,null,null,null,null,null,null,null,null,null,null,null,null,null,null,null,null,null,null,null,null,null,null,null,null,null,null,null,null,null,null,null,null,null,null,null,null,null,null,null,null,null,null,null,null,null,null,null,null,null,null,null,null,null,null,null,null,null,null,null,null,null,null,null,null,null,null,null,null,null,null,null,null,null,null,null,null,null,null,null,null,null,null,null,null,null,null,null,null,null,null,null,null,null,null,null,null,null,null,null,null,null,null,null,null,null,null,null,null,null,null,null,null,null,null,null,null,null,null,null,null,null,null,null,null,null,null,null,null,null,null,null,null,null,null,null,null,null,null,null,null,null,null,null,null,null,null,null,null,null,null,null,null,null,null,null,null,"道路清掃｜｜名｜22000"]
[null,null,null,null,null,null,null,null,null,null,null,null,null,null,null,null,null,null,null,null,null,null,null,null,null,null,null,null,null,null,null,null,null,null,null,null,null,null,null,null,null,null,null,null,null,null,null,null,null,null,null,null,null,null,null,null,null,null,null,null,null,null,null,null,null,null,null,null,null,null,null,null,null,null,null,null,null,null,null,null,null,null,null,null,null,null,null,null,null,null,null,null,null,null,null,null,null,null,null,null,null,null,null,null,null,null,null,null,null,null,null,null,null,null,null,null,null,null,null,null,null,null,null,null,null,null,null,null,null,null,null,null,null,null,null,null,null,null,null,null,null,null,null,null,null,null,null,null,null,null,null,null,null,null,null,null,null,null,null,null,null,null,null,null,null,null,null,null,null,null,null,null,null,null,null,null,null,null,null,null,null,null,null,null,null,null,null,null,null,null,null,null,null,null,null,null,null,null,null,null,null,null,null,null,null,null,null,null,null,null,null,null,null,null,null,null,null,null,null,null,null,null,null,null,null,null,null,null,null,null,null,null,null,null,null,null,null,null,null,null,null,null,null,null,null,null,null,null,null,null,null,null,null,null,null,null,null,null,null,null,null,null,null,null,null,null,null,null,null,null,null,null,null,null,null,null,null,null,null,null,null,null,null,null,null,null,null,null,null,null,null,null,null,null,null,null,null,null,null,null,null,null,null,null,null,null,null,null,null,null,null,null,null,null,null,null,null,null,null,null,null,null,null,null,null,null,null,null,null,null,null,null,null,null,null,null,null,null,null,null,null,null,null,null,null,null,null,null,null,null,null,null,null,null,null,null,null,null,null,null,null,null,null,null,null,null,null,null,null,null,null,null,null,null,null,null,null,null,null,null,null,null,null,null,null,null,null,null,null,null,null,null,null,null,null,null,null,null,null,null,null,null,null,null,null,null,null,null,null,null,null,null,null,null,null,null,null,null,null,null,null,null,null,null,null,null,null,null,null,null,null,null,null,null,null,null,null,null,null,null,null,null,null,null,null,null,null,null,null,null,null,null,null,null,null,null,null,null,null,null,null,null,null,null,null,null,null,null,null,null,null,null,null,null,null,null,null,null,null,null,null,null,null,null,null,null,null,null,null,null,null,null,null,null,null,null,null,null,null,null,null,null,null,null,null,null,null,null,null,null,null,null,null,null,null,null,null,null,null,null,null,null,null,null,null,null,null,null,null,null,null,null,null,null,null,null,null,null,null,null,null,null,null,null,null,null,null,null,null,null,null,null,null,null,null,null,null,null,null,null,null,null,null,null,null,null,null,null,null,null,null,null,null,null,null,null,null,null,null,null,null,null,null,null,null,null,null,null,null,null,null,null,null,null,null,null,null,null,null,null,null,null,null,null,null,null,null,null,null,"仮囲い設置撤去｜｜名｜22000"]
[null,null,null,null,null,null,null,null,null,null,null,null,null,null,null,null,null,null,null,null,null,null,null,null,null,null,null,null,null,null,null,null,null,null,null,null,null,null,null,null,null,null,null,null,null,null,null,null,null,null,null,null,null,null,null,null,null,null,null,null,null,null,null,null,null,null,null,null,null,null,null,null,null,null,null,null,null,null,null,null,null,null,null,null,null,null,null,null,null,null,null,null,null,null,null,null,null,null,null,null,null,null,null,null,null,null,null,null,null,null,null,null,null,null,null,null,null,null,null,null,null,null,null,null,null,null,null,null,null,null,null,null,null,null,null,null,null,null,null,null,null,null,null,null,null,null,null,null,null,null,null,null,null,null,null,null,null,null,null,null,null,null,null,null,null,null,null,null,null,null,null,null,null,null,null,null,null,null,null,null,null,null,null,null,null,null,null,null,null,null,null,null,null,null,null,null,null,null,null,null,null,null,null,null,null,null,null,null,null,null,null,null,null,null,null,null,null,null,null,null,null,null,null,null,null,null,null,null,null,null,null,null,null,null,null,null,null,null,null,null,null,null,null,null,null,null,null,null,null,null,null,null,null,null,null,null,null,null,null,null,null,null,null,null,null,null,null,null,null,null,null,null,null,null,null,null,null,null,null,null,null,null,null,null,null,null,null,null,null,null,null,null,null,null,null,null,null,null,null,null,null,null,null,null,null,null,null,null,null,null,null,null,null,null,null,null,null,null,null,null,null,null,null,null,null,null,null,null,null,null,null,null,null,null,null,null,null,null,null,null,null,null,null,null,null,null,null,null,null,null,null,null,null,null,null,null,null,null,null,null,null,null,null,null,null,null,null,null,null,null,null,null,null,null,null,null,null,null,null,null,null,null,null,null,null,null,null,null,null,null,null,null,null,null,null,null,null,null,null,null,null,null,null,null,null,null,null,null,null,null,null,null,null,null,null,null,null,null,null,null,null,null,null,null,null,null,null,null,null,null,null,null,null,null,null,null,null,null,null,null,null,null,null,null,null,null,null,null,null,null,null,null,null,null,null,null,null,null,null,null,null,null,null,null,null,null,null,null,null,null,null,null,null,null,null,null,null,null,null,null,null,null,null,null,null,null,null,null,null,null,null,null,null,null,null,null,null,null,null,null,null,null,null,null,null,null,null,null,null,null,null,null,null,null,null,null,null,null,null,null,null,null,null,null,null,null,null,null,null,null,null,null,null,null,null,null,null,null,null,null,null,null,null,null,null,null,null,null,null,null,null,null,null,null,null,null,null,null,null,null,null,null,null,null,null,null,null,null,null,null,null,null,null,null,null,null,null,null,null,null,null,null,null,null,null,null,null,null,null,null,null,null,null,null,null,null,null,null,null,null,null,null,null,null,null,null,null,null,null,"安全費｜保安資材｜月｜80000"]
[null,null,null,null,null,null,null,null,null,null,null,null,null,null,null,null,null,null,null,null,null,null,null,null,null,null,null,null,null,null,null,null,null,null,null,null,null,null,null,null,null,null,null,null,null,null,null,null,null,null,null,null,null,null,null,null,null,null,null,null,null,null,null,null,null,null,null,null,null,null,null,null,null,null,null,null,null,null,null,null,null,null,null,null,null,null,null,null,null,null,null,null,null,null,null,null,null,null,null,null,null,null,null,null,null,null,null,null,null,null,null,null,null,null,null,null,null,null,null,null,null,null,null,null,null,null,null,null,null,null,null,null,null,null,null,null,null,null,null,null,null,null,null,null,null,null,null,null,null,null,null,null,null,null,null,null,null,null,null,null,null,null,null,null,null,null,null,null,null,null,null,null,null,null,null,null,null,null,null,null,null,null,null,null,null,null,null,null,null,null,null,null,null,null,null,null,null,null,null,null,null,null,null,null,null,null,null,null,null,null,null,null,null,null,null,null,null,null,null,null,null,null,null,null,null,null,null,null,null,null,null,null,null,null,null,null,null,null,null,null,null,null,null,null,null,null,null,null,null,null,null,null,null,null,null,null,null,null,null,null,null,null,null,null,null,null,null,null,null,null,null,null,null,null,null,null,null,null,null,null,null,null,null,null,null,null,null,null,null,null,null,null,null,null,null,null,null,null,null,null,null,null,null,null,null,null,null,null,null,null,null,null,null,null,null,null,null,null,null,null,null,null,null,null,null,null,null,null,null,null,null,null,null,null,null,null,null,null,null,null,null,null,null,null,null,null,null,null,null,null,null,null,null,null,null,null,null,null,null,null,null,null,null,null,null,null,null,null,null,null,null,null,null,null,null,null,null,null,null,null,null,null,null,null,null,null,null,null,null,null,null,null,null,null,null,null,null,null,null,null,null,null,null,null,null,null,null,null,null,null,null,null,null,null,null,null,null,null,null,null,null,null,null,null,null,null,null,null,null,null,null,null,null,null,null,null,null,null,null,null,null,null,null,null,null,null,null,null,null,null,null,null,null,null,null,null,null,null,null,null,null,null,null,null,null,null,null,null,null,null,null,null,null,null,null,null,null,null,null,null,null,null,null,null,null,null,null,null,null,null,null,null,null,null,null,null,null,null,null,null,null,null,null,null,null,null,null,null,null,null,null,null,null,null,null,null,null,null,null,null,null,null,null,null,null,null,null,null,null,null,null,null,null,null,null,null,null,null,null,null,null,null,null,null,null,null,null,null,null,null,null,null,null,null,null,null,null,null,null,null,null,null,null,null,null,null,null,null,null,null,null,null,null,null,null,null,null,null,null,null,null,null,null,null,null,null,null,null,null,null,null,null,null,null,null,null,null,null,null,null,null,null,null,null,null,null,null,null,null,"仮設機械｜｜月｜150000"]
[null,null,null,null,null,null,null,null,null,null,null,null,null,null,null,null,null,null,null,null,null,null,null,null,null,null,null,null,null,null,null,null,null,null,null,null,null,null,null,null,null,null,null,null,null,null,null,null,null,null,null,null,null,null,null,null,null,null,null,null,null,null,null,null,null,null,null,null,null,null,null,null,null,null,null,null,null,null,null,null,null,null,null,null,null,null,null,null,null,null,null,null,null,null,null,null,null,null,null,null,null,null,null,null,null,null,null,null,null,null,null,null,null,null,null,null,null,null,null,null,null,null,null,null,null,null,null,null,null,null,null,null,null,null,null,null,null,null,null,null,null,null,null,null,null,null,null,null,null,null,null,null,null,null,null,null,null,null,null,null,null,null,null,null,null,null,null,null,null,null,null,null,null,null,null,null,null,null,null,null,null,null,null,null,null,null,null,null,null,null,null,null,null,null,null,null,null,null,null,null,null,null,null,null,null,null,null,null,null,null,null,null,null,null,null,null,null,null,null,null,null,null,null,null,null,null,null,null,null,null,null,null,null,null,null,null,null,null,null,null,null,null,null,null,null,null,null,null,null,null,null,null,null,null,null,null,null,null,null,null,null,null,null,null,null,null,null,null,null,null,null,null,null,null,null,null,null,null,null,null,null,null,null,null,null,null,null,null,null,null,null,null,null,null,null,null,null,null,null,null,null,null,null,null,null,null,null,null,null,null,null,null,null,null,null,null,null,null,null,null,null,null,null,null,null,null,null,null,null,null,null,null,null,null,null,null,null,null,null,null,null,null,null,null,null,null,null,null,null,null,null,null,null,null,null,null,null,null,null,null,null,null,null,null,null,null,null,null,null,null,null,null,null,null,null,null,null,null,null,null,null,null,null,null,null,null,null,null,null,null,null,null,null,null,null,null,null,null,null,null,null,null,null,null,null,null,null,null,null,null,null,null,null,null,null,null,null,null,null,null,null,null,null,null,null,null,null,null,null,null,null,null,null,null,null,null,null,null,null,null,null,null,null,null,null,null,null,null,null,null,null,null,null,null,null,null,null,null,null,null,null,null,null,null,null,null,null,null,null,null,null,null,null,null,null,null,null,null,null,null,null,null,null,null,null,null,null,null,null,null,null,null,null,null,null,null,null,null,null,null,null,null,null,null,null,null,null,null,null,null,null,null,null,null,null,null,null,null,null,null,null,null,null,null,null,null,null,null,null,null,null,null,null,null,null,null,null,null,null,null,null,null,null,null,null,null,null,null,null,null,null,null,null,null,null,null,null,null,null,null,null,null,null,null,null,null,null,null,null,null,null,null,null,null,null,null,null,null,null,null,null,null,null,null,null,null,null,null,null,null,null,null,null,null,null,null,null,null,null,null,null,null,null,null,null,null,null,null,null,"産廃処分費｜8ｍ3コンテナ（廃ﾌﾟﾗｽﾁｯｸ）｜台｜=10000+21000+7000*8"]
[null,null,null,null,null,null,null,null,null,null,null,null,null,null,null,null,null,null,null,null,null,null,null,null,null,null,null,null,null,null,null,null,null,null,null,null,null,null,null,null,null,null,null,null,null,null,null,null,null,null,null,null,null,null,null,null,null,null,null,null,null,null,null,null,null,null,null,null,null,null,null,null,null,null,null,null,null,null,null,null,null,null,null,null,null,null,null,null,null,null,null,null,null,null,null,null,null,null,null,null,null,null,null,null,null,null,null,null,null,null,null,null,null,null,null,null,null,null,null,null,null,null,null,null,null,null,null,null,null,null,null,null,null,null,null,null,null,null,null,null,null,null,null,null,null,null,null,null,null,null,null,null,null,null,null,null,null,null,null,null,null,null,null,null,null,null,null,null,null,null,null,null,null,null,null,null,null,null,null,null,null,null,null,null,null,null,null,null,null,null,null,null,null,null,null,null,null,null,null,null,null,null,null,null,null,null,null,null,null,null,null,null,null,null,null,null,null,null,null,null,null,null,null,null,null,null,null,null,null,null,null,null,null,null,null,null,null,null,null,null,null,null,null,null,null,null,null,null,null,null,null,null,null,null,null,null,null,null,null,null,null,null,null,null,null,null,null,null,null,null,null,null,null,null,null,null,null,null,null,null,null,null,null,null,null,null,null,null,null,null,null,null,null,null,null,null,null,null,null,null,null,null,null,null,null,null,null,null,null,null,null,null,null,null,null,null,null,null,null,null,null,null,null,null,null,null,null,null,null,null,null,null,null,null,null,null,null,null,null,null,null,null,null,null,null,null,null,null,null,null,null,null,null,null,null,null,null,null,null,null,null,null,null,null,null,null,null,null,null,null,null,null,null,null,null,null,null,null,null,null,null,null,null,null,null,null,null,null,null,null,null,null,null,null,null,null,null,null,null,null,null,null,null,null,null,null,null,null,null,null,null,null,null,null,null,null,null,null,null,null,null,null,null,null,null,null,null,null,null,null,null,null,null,null,null,null,null,null,null,null,null,null,null,null,null,null,null,null,null,null,null,null,null,null,null,null,null,null,null,null,null,null,null,null,null,null,null,null,null,null,null,null,null,null,null,null,null,null,null,null,null,null,null,null,null,null,null,null,null,null,null,null,null,null,null,null,null,null,null,null,null,null,null,null,null,null,null,null,null,null,null,null,null,null,null,null,null,null,null,null,null,null,null,null,null,null,null,null,null,null,null,null,null,null,null,null,null,null,null,null,null,null,null,null,null,null,null,null,null,null,null,null,null,null,null,null,null,null,null,null,null,null,null,null,null,null,null,null,null,null,null,null,null,null,null,null,null,null,null,null,null,null,null,null,null,null,null,null,null,null,null,null,null,null,null,null,null,null,null,null,null,null,null,null,null,null,null,null,null,"産廃処分費｜8ｍ3コンテナ（木くず）｜台｜=10000+21000+5000*8"]
[null,null,null,null,null,null,null,null,null,null,null,null,null,null,null,null,null,null,null,null,null,null,null,null,null,null,null,null,null,null,null,null,null,null,null,null,null,null,null,null,null,null,null,null,null,null,null,null,null,null,null,null,null,null,null,null,null,null,null,null,null,null,null,null,null,null,null,null,null,null,null,null,null,null,null,null,null,null,null,null,null,null,null,null,null,null,null,null,null,null,null,null,null,null,null,null,null,null,null,null,null,null,null,null,null,null,null,null,null,null,null,null,null,null,null,null,null,null,null,null,null,null,null,null,null,null,null,null,null,null,null,null,null,null,null,null,null,null,null,null,null,null,null,null,null,null,null,null,null,null,null,null,null,null,null,null,null,null,null,null,null,null,null,null,null,null,null,null,null,null,null,null,null,null,null,null,null,null,null,null,null,null,null,null,null,null,null,null,null,null,null,null,null,null,null,null,null,null,null,null,null,null,null,null,null,null,null,null,null,null,null,null,null,null,null,null,null,null,null,null,null,null,null,null,null,null,null,null,null,null,null,null,null,null,null,null,null,null,null,null,null,null,null,null,null,null,null,null,null,null,null,null,null,null,null,null,null,null,null,null,null,null,null,null,null,null,null,null,null,null,null,null,null,null,null,null,null,null,null,null,null,null,null,null,null,null,null,null,null,null,null,null,null,null,null,null,null,null,null,null,null,null,null,null,null,null,null,null,null,null,null,null,null,null,null,null,null,null,null,null,null,null,null,null,null,null,null,null,null,null,null,null,null,null,null,null,null,null,null,null,null,null,null,null,null,null,null,null,null,null,null,null,null,null,null,null,null,null,null,null,null,null,null,null,null,null,null,null,null,null,null,null,null,null,null,null,null,null,null,null,null,null,null,null,null,null,null,null,null,null,null,null,null,null,null,null,null,null,null,null,null,null,null,null,null,null,null,null,null,null,null,null,null,null,null,null,null,null,null,null,null,null,null,null,null,null,null,null,null,null,null,null,null,null,null,null,null,null,null,null,null,null,null,null,null,null,null,null,null,null,null,null,null,null,null,null,null,null,null,null,null,null,null,null,null,null,null,null,null,null,null,null,null,null,null,null,null,null,null,null,null,null,null,null,null,null,null,null,null,null,null,null,null,null,null,null,null,null,null,null,null,null,null,null,null,null,null,null,null,null,null,null,null,null,null,null,null,null,null,null,null,null,null,null,null,null,null,null,null,null,null,null,null,null,null,null,null,null,null,null,null,null,null,null,null,null,null,null,null,null,null,null,null,null,null,null,null,null,null,null,null,null,null,null,null,null,null,null,null,null,null,null,null,null,null,null,null,null,null,null,null,null,null,null,null,null,null,null,null,null,null,null,null,null,null,null,null,null,null,null,null,null,null,null,null,null,null,null,null,"産廃処分費｜8ｍ3コンテナ（混合廃棄物）｜台｜=10000+21000+15000*8"]
[null,null,null,null,null,null,null,null,null,null,null,null,null,null,null,null,null,null,null,null,null,null,null,null,null,null,null,null,null,null,null,null,null,null,null,null,null,null,null,null,null,null,null,null,null,null,null,null,null,null,null,null,null,null,null,null,null,null,null,null,null,null,null,null,null,null,null,null,null,null,null,null,null,null,null,null,null,null,null,null,null,null,null,null,null,null,null,null,null,null,null,null,null,null,null,null,null,null,null,null,null,null,null,null,null,null,null,null,null,null,null,null,null,null,null,null,null,null,null,null,null,null,null,null,null,null,null,null,null,null,null,null,null,null,null,null,null,null,null,null,null,null,null,null,null,null,null,null,null,null,null,null,null,null,null,null,null,null,null,null,null,null,null,null,null,null,null,null,null,null,null,null,null,null,null,null,null,null,null,null,null,null,null,null,null,null,null,null,null,null,null,null,null,null,null,null,null,null,null,null,null,null,null,null,null,null,null,null,null,null,null,null,null,null,null,null,null,null,null,null,null,null,null,null,null,null,null,null,null,null,null,null,null,null,null,null,null,null,null,null,null,null,null,null,null,null,null,null,null,null,null,null,null,null,null,null,null,null,null,null,null,null,null,null,null,null,null,null,null,null,null,null,null,null,null,null,null,null,null,null,null,null,null,null,null,null,null,null,null,null,null,null,null,null,null,null,null,null,null,null,null,null,null,null,null,null,null,null,null,null,null,null,null,null,null,null,null,null,null,null,null,null,null,null,null,null,null,null,null,null,null,null,null,null,null,null,null,null,null,null,null,null,null,null,null,null,null,null,null,null,null,null,null,null,null,null,null,null,null,null,null,null,null,null,null,null,null,null,null,null,null,null,null,null,null,null,null,null,null,null,null,null,null,null,null,null,null,null,null,null,null,null,null,null,null,null,null,null,null,null,null,null,null,null,null,null,null,null,null,null,null,null,null,null,null,null,null,null,null,null,null,null,null,null,null,null,null,null,null,null,null,null,null,null,null,null,null,null,null,null,null,null,null,null,null,null,null,null,null,null,null,null,null,null,null,null,null,null,null,null,null,null,null,null,null,null,null,null,null,null,null,null,null,null,null,null,null,null,null,null,null,null,null,null,null,null,null,null,null,null,null,null,null,null,null,null,null,null,null,null,null,null,null,null,null,null,null,null,null,null,null,null,null,null,null,null,null,null,null,null,null,null,null,null,null,null,null,null,null,null,null,null,null,null,null,null,null,null,null,null,null,null,null,null,null,null,null,null,null,null,null,null,null,null,null,null,null,null,null,null,null,null,null,null,null,null,null,null,null,null,null,null,null,null,null,null,null,null,null,null,null,null,null,null,null,null,null,null,null,null,null,null,null,null,null,null,null,null,null,null,null,null,null,null,null,null,null,null,null,"試験費｜ＣＯ試験150ｍ3/回｜回｜30000"]
[null,null,null,null,null,null,null,null,null,null,null,null,null,null,null,null,null,null,null,null,null,null,null,null,null,null,null,null,null,null,null,null,null,null,null,null,null,null,null,null,null,null,null,null,null,null,null,null,null,null,null,null,null,null,null,null,null,null,null,null,null,null,null,null,null,null,null,null,null,null,null,null,null,null,null,null,null,null,null,null,null,null,null,null,null,null,null,null,null,null,null,null,null,null,null,null,null,null,null,null,null,null,null,null,null,null,null,null,null,null,null,null,null,null,null,null,null,null,null,null,null,null,null,null,null,null,null,null,null,null,null,null,null,null,null,null,null,null,null,null,null,null,null,null,null,null,null,null,null,null,null,null,null,null,null,null,null,null,null,null,null,null,null,null,null,null,null,null,null,null,null,null,null,null,null,null,null,null,null,null,null,null,null,null,null,null,null,null,null,null,null,null,null,null,null,null,null,null,null,null,null,null,null,null,null,null,null,null,null,null,null,null,null,null,null,null,null,null,null,null,null,null,null,null,null,null,null,null,null,null,null,null,null,null,null,null,null,null,null,null,null,null,null,null,null,null,null,null,null,null,null,null,null,null,null,null,null,null,null,null,null,null,null,null,null,null,null,null,null,null,null,null,null,null,null,null,null,null,null,null,null,null,null,null,null,null,null,null,null,null,null,null,null,null,null,null,null,null,null,null,null,null,null,null,null,null,null,null,null,null,null,null,null,null,null,null,null,null,null,null,null,null,null,null,null,null,null,null,null,null,null,null,null,null,null,null,null,null,null,null,null,null,null,null,null,null,null,null,null,null,null,null,null,null,null,null,null,null,null,null,null,null,null,null,null,null,null,null,null,null,null,null,null,null,null,null,null,null,null,null,null,null,null,null,null,null,null,null,null,null,null,null,null,null,null,null,null,null,null,null,null,null,null,null,null,null,null,null,null,null,null,null,null,null,null,null,null,null,null,null,null,null,null,null,null,null,null,null,null,null,null,null,null,null,null,null,null,null,null,null,null,null,null,null,null,null,null,null,null,null,null,null,null,null,null,null,null,null,null,null,null,null,null,null,null,null,null,null,null,null,null,null,null,null,null,null,null,null,null,null,null,null,null,null,null,null,null,null,null,null,null,null,null,null,null,null,null,null,null,null,null,null,null,null,null,null,null,null,null,null,null,null,null,null,null,null,null,null,null,null,null,null,null,null,null,null,null,null,null,null,null,null,null,null,null,null,null,null,null,null,null,null,null,null,null,null,null,null,null,null,null,null,null,null,null,null,null,null,null,null,null,null,null,null,null,null,null,null,null,null,null,null,null,null,null,null,null,null,null,null,null,null,null,null,null,null,null,null,null,null,null,null,null,null,null,null,null,null,null,null,null,null,null,null,null,null,null,null,null,"試験費｜発生土有害物質試験｜式｜304000"]
[null,null,null,null,null,null,null,null,null,null,null,null,null,null,null,null,null,null,null,null,null,null,null,null,null,null,null,null,null,null,null,null,null,null,null,null,null,null,null,null,null,null,null,null,null,null,null,null,null,null,null,null,null,null,null,null,null,null,null,null,null,null,null,null,null,null,null,null,null,null,null,null,null,null,null,null,null,null,null,null,null,null,null,null,null,null,null,null,null,null,null,null,null,null,null,null,null,null,null,null,null,null,null,null,null,null,null,null,null,null,null,null,null,null,null,null,null,null,null,null,null,null,null,null,null,null,null,null,null,null,null,null,null,null,null,null,null,null,null,null,null,null,null,null,null,null,null,null,null,null,null,null,null,null,null,null,null,null,null,null,null,null,null,null,null,null,null,null,null,null,null,null,null,null,null,null,null,null,null,null,null,null,null,null,null,null,null,null,null,null,null,null,null,null,null,null,null,null,null,null,null,null,null,null,null,null,null,null,null,null,null,null,null,null,null,null,null,null,null,null,null,null,null,null,null,null,null,null,null,null,null,null,null,null,null,null,null,null,null,null,null,null,null,null,null,null,null,null,null,null,null,null,null,null,null,null,null,null,null,null,null,null,null,null,null,null,null,null,null,null,null,null,null,null,null,null,null,null,null,null,null,null,null,null,null,null,null,null,null,null,null,null,null,null,null,null,null,null,null,null,null,null,null,null,null,null,null,null,null,null,null,null,null,null,null,null,null,null,null,null,null,null,null,null,null,null,null,null,null,null,null,null,null,null,null,null,null,null,null,null,null,null,null,null,null,null,null,null,null,null,null,null,null,null,null,null,null,null,null,null,null,null,null,null,null,null,null,null,null,null,null,null,null,null,null,null,null,null,null,null,null,null,null,null,null,null,null,null,null,null,null,null,null,null,null,null,null,null,null,null,null,null,null,null,null,null,null,null,null,null,null,null,null,null,null,null,null,null,null,null,null,null,null,null,null,null,null,null,null,null,null,null,null,null,null,null,null,null,null,null,null,null,null,null,null,null,null,null,null,null,null,null,null,null,null,null,null,null,null,null,null,null,null,null,null,null,null,null,null,null,null,null,null,null,null,null,null,null,null,null,null,null,null,null,null,null,null,null,null,null,null,null,null,null,null,null,null,null,null,null,null,null,null,null,null,null,null,null,null,null,null,null,null,null,null,null,null,null,null,null,null,null,null,null,null,null,null,null,null,null,null,null,null,null,null,null,null,null,null,null,null,null,null,null,null,null,null,null,null,null,null,null,null,null,null,null,null,null,null,null,null,null,null,null,null,null,null,null,null,null,null,null,null,null,null,null,null,null,null,null,null,null,null,null,null,null,null,null,null,null,null,null,null,null,null,null,null,null,null,null,null,null,null,null,null,null,null,null,null,"試験費｜平板載荷・密度試験・ふるい分け｜式｜150000"]
[null,null,null,null,null,null,null,null,null,null,null,null,null,null,null,null,null,null,null,null,null,null,null,null,null,null,null,null,null,null,null,null,null,null,null,null,null,null,null,null,null,null,null,null,null,null,null,null,null,null,null,null,null,null,null,null,null,null,null,null,null,null,null,null,null,null,null,null,null,null,null,null,null,null,null,null,null,null,null,null,null,null,null,null,null,null,null,null,null,null,null,null,null,null,null,null,null,null,null,null,null,null,null,null,null,null,null,null,null,null,null,null,null,null,null,null,null,null,null,null,null,null,null,null,null,null,null,null,null,null,null,null,null,null,null,null,null,null,null,null,null,null,null,null,null,null,null,null,null,null,null,null,null,null,null,null,null,null,null,null,null,null,null,null,null,null,null,null,null,null,null,null,null,null,null,null,null,null,null,null,null,null,null,null,null,null,null,null,null,null,null,null,null,null,null,null,null,null,null,null,null,null,null,null,null,null,null,null,null,null,null,null,null,null,null,null,null,null,null,null,null,null,null,null,null,null,null,null,null,null,null,null,null,null,null,null,null,null,null,null,null,null,null,null,null,null,null,null,null,null,null,null,null,null,null,null,null,null,null,null,null,null,null,null,null,null,null,null,null,null,null,null,null,null,null,null,null,null,null,null,null,null,null,null,null,null,null,null,null,null,null,null,null,null,null,null,null,null,null,null,null,null,null,null,null,null,null,null,null,null,null,null,null,null,null,null,null,null,null,null,null,null,null,null,null,null,null,null,null,null,null,null,null,null,null,null,null,null,null,null,null,null,null,null,null,null,null,null,null,null,null,null,null,null,null,null,null,null,null,null,null,null,null,null,null,null,null,null,null,null,null,null,null,null,null,null,null,null,null,null,null,null,null,null,null,null,null,null,null,null,null,null,null,null,null,null,null,null,null,null,null,null,null,null,null,null,null,null,null,null,null,null,null,null,null,null,null,null,null,null,null,null,null,null,null,null,null,null,null,null,null,null,null,null,null,null,null,null,null,null,null,null,null,null,null,null,null,null,null,null,null,null,null,null,null,null,null,null,null,null,null,null,null,null,null,null,null,null,null,null,null,null,null,null,null,null,null,null,null,null,null,null,null,null,null,null,null,null,null,null,null,null,null,null,null,null,null,null,null,null,null,null,null,null,null,null,null,null,null,null,null,null,null,null,null,null,null,null,null,null,null,null,null,null,null,null,null,null,null,null,null,null,null,null,null,null,null,null,null,null,null,null,null,null,null,null,null,null,null,null,null,null,null,null,null,null,null,null,null,null,null,null,null,null,null,null,null,null,null,null,null,null,null,null,null,null,null,null,null,null,null,null,null,null,null,null,null,null,null,null,null,null,null,null,null,null,null,null,null,null,null,null,null,null,null,null,null,null,null,"測量費｜｜ヶ月｜150000"]
[null,null,null,null,null,null,null,null,null,null,null,null,null,null,null,null,null,null,null,null,null,null,null,null,null,null,null,null,null,null,null,null,null,null,null,null,null,null,null,null,null,null,null,null,null,null,null,null,null,null,null,null,null,null,null,null,null,null,null,null,null,null,null,null,null,null,null,null,null,null,null,null,null,null,null,null,null,null,null,null,null,null,null,null,null,null,null,null,null,null,null,null,null,null,null,null,null,null,null,null,null,null,null,null,null,null,null,null,null,null,null,null,null,null,null,null,null,null,null,null,null,null,null,null,null,null,null,null,null,null,null,null,null,null,null,null,null,null,null,null,null,null,null,null,null,null,null,null,null,null,null,null,null,null,null,null,null,null,null,null,null,null,null,null,null,null,null,null,null,null,null,null,null,null,null,null,null,null,null,null,null,null,null,null,null,null,null,null,null,null,null,null,null,null,null,null,null,null,null,null,null,null,null,null,null,null,null,null,null,null,null,null,null,null,null,null,null,null,null,null,null,null,null,null,null,null,null,null,null,null,null,null,null,null,null,null,null,null,null,null,null,null,null,null,null,null,null,null,null,null,null,null,null,null,null,null,null,null,null,null,null,null,null,null,null,null,null,null,null,null,null,null,null,null,null,null,null,null,null,null,null,null,null,null,null,null,null,null,null,null,null,null,null,null,null,null,null,null,null,null,null,null,null,null,null,null,null,null,null,null,null,null,null,null,null,null,null,null,null,null,null,null,null,null,null,null,null,null,null,null,null,null,null,null,null,null,null,null,null,null,null,null,null,null,null,null,null,null,null,null,null,null,null,null,null,null,null,null,null,null,null,null,null,null,null,null,null,null,null,null,null,null,null,null,null,null,null,null,null,null,null,null,null,null,null,null,null,null,null,null,null,null,null,null,null,null,null,null,null,null,null,null,null,null,null,null,null,null,null,null,null,null,null,null,null,null,null,null,null,null,null,null,null,null,null,null,null,null,null,null,null,null,null,null,null,null,null,null,null,null,null,null,null,null,null,null,null,null,null,null,null,null,null,null,null,null,null,null,null,null,null,null,null,null,null,null,null,null,null,null,null,null,null,null,null,null,null,null,null,null,null,null,null,null,null,null,null,null,null,null,null,null,null,null,null,null,null,null,null,null,null,null,null,null,null,null,null,null,null,null,null,null,null,null,null,null,null,null,null,null,null,null,null,null,null,null,null,null,null,null,null,null,null,null,null,null,null,null,null,null,null,null,null,null,null,null,null,null,null,null,null,null,null,null,null,null,null,null,null,null,null,null,null,null,null,null,null,null,null,null,null,null,null,null,null,null,null,null,null,null,null,null,null,null,null,null,null,null,null,null,null,null,null,null,null,null,null,null,null,null,null,null,null,null,null,null,null,null,null,"仮設材損耗｜｜式｜100000"]
[null,null,null,null,null,null,null,null,null,null,null,null,null,null,null,null,null,null,null,null,null,null,null,null,null,null,null,null,null,null,null,null,null,null,null,null,null,null,null,null,null,null,null,null,null,null,null,null,null,null,null,null,null,null,null,null,null,null,null,null,null,null,null,null,null,null,null,null,null,null,null,null,null,null,null,null,null,null,null,null,null,null,null,null,null,null,null,null,null,null,null,null,null,null,null,null,null,null,null,null,null,null,null,null,null,null,null,null,null,null,null,null,null,null,null,null,null,null,null,null,null,null,null,null,null,null,null,null,null,null,null,null,null,null,null,null,null,null,null,null,null,null,null,null,null,null,null,null,null,null,null,null,null,null,null,null,null,null,null,null,null,null,null,null,null,null,null,null,null,null,null,null,null,null,null,null,null,null,null,null,null,null,null,null,null,null,null,null,null,null,null,null,null,null,null,null,null,null,null,null,null,null,null,null,null,null,null,null,null,null,null,null,null,null,null,null,null,null,null,null,null,null,null,null,null,null,null,null,null,null,null,null,null,null,null,null,null,null,null,null,null,null,null,null,null,null,null,null,null,null,null,null,null,null,null,null,null,null,null,null,null,null,null,null,null,null,null,null,null,null,null,null,null,null,null,null,null,null,null,null,null,null,null,null,null,null,null,null,null,null,null,null,null,null,null,null,null,null,null,null,null,null,null,null,null,null,null,null,null,null,null,null,null,null,null,null,null,null,null,null,null,null,null,null,null,null,null,null,null,null,null,null,null,null,null,null,null,null,null,null,null,null,null,null,null,null,null,null,null,null,null,null,null,null,null,null,null,null,null,null,null,null,null,null,null,null,null,null,null,null,null,null,null,null,null,null,null,null,null,null,null,null,null,null,null,null,null,null,null,null,null,null,null,null,null,null,null,null,null,null,null,null,null,null,null,null,null,null,null,null,null,null,null,null,null,null,null,null,null,null,null,null,null,null,null,null,null,null,null,null,null,null,null,null,null,null,null,null,null,null,null,null,null,null,null,null,null,null,null,null,null,null,null,null,null,null,null,null,null,null,null,null,null,null,null,null,null,null,null,null,null,null,null,null,null,null,null,null,null,null,null,null,null,null,null,null,null,null,null,null,null,null,null,null,null,null,null,null,null,null,null,null,null,null,null,null,null,null,null,null,null,null,null,null,null,null,null,null,null,null,null,null,null,null,null,null,null,null,null,null,null,null,null,null,null,null,null,null,null,null,null,null,null,null,null,null,null,null,null,null,null,null,null,null,null,null,null,null,null,null,null,null,null,null,null,null,null,null,null,null,null,null,null,null,null,null,null,null,null,null,null,null,null,null,null,null,null,null,null,null,null,null,null,null,null,null,null,null,null,null,null,null,null,null,null,null,null,null,null,"敷き鉄板｜｜式｜100000"]
[null,null,null,null,null,null,null,null,null,null,null,null,null,null,null,null,null,null,null,null,null,null,null,null,null,null,null,null,null,null,null,null,null,null,null,null,null,null,null,null,null,null,null,null,null,null,null,null,null,null,null,null,null,null,null,null,null,null,null,null,null,null,null,null,null,null,null,null,null,null,null,null,null,null,null,null,null,null,null,null,null,null,null,null,null,null,null,null,null,null,null,null,null,null,null,null,null,null,null,null,null,null,null,null,null,null,null,null,null,null,null,null,null,null,null,null,null,null,null,null,null,null,null,null,null,null,null,null,null,null,null,null,null,null,null,null,null,null,null,null,null,null,null,null,null,null,null,null,null,null,null,null,null,null,null,null,null,null,null,null,null,null,null,null,null,null,null,null,null,null,null,null,null,null,null,null,null,null,null,null,null,null,null,null,null,null,null,null,null,null,null,null,null,null,null,null,null,null,null,null,null,null,null,null,null,null,null,null,null,null,null,null,null,null,null,null,null,null,null,null,null,null,null,null,null,null,null,null,null,null,null,null,null,null,null,null,null,null,null,null,null,null,null,null,null,null,null,null,null,null,null,null,null,null,null,null,null,null,null,null,null,null,null,null,null,null,null,null,null,null,null,null,null,null,null,null,null,null,null,null,null,null,null,null,null,null,null,null,null,null,null,null,null,null,null,null,null,null,null,null,null,null,null,null,null,null,null,null,null,null,null,null,null,null,null,null,null,null,null,null,null,null,null,null,null,null,null,null,null,null,null,null,null,null,null,null,null,null,null,null,null,null,null,null,null,null,null,null,null,null,null,null,null,null,null,null,null,null,null,null,null,null,null,null,null,null,null,null,null,null,null,null,null,null,null,null,null,null,null,null,null,null,null,null,null,null,null,null,null,null,null,null,null,null,null,null,null,null,null,null,null,null,null,null,null,null,null,null,null,null,null,null,null,null,null,null,null,null,null,null,null,null,null,null,null,null,null,null,null,null,null,null,null,null,null,null,null,null,null,null,null,null,null,null,null,null,null,null,null,null,null,null,null,null,null,null,null,null,null,null,null,null,null,null,null,null,null,null,null,null,null,null,null,null,null,null,null,null,null,null,null,null,null,null,null,null,null,null,null,null,null,null,null,null,null,null,null,null,null,null,null,null,null,null,null,null,null,null,null,null,null,null,null,null,null,null,null,null,null,null,null,null,null,null,null,null,null,null,null,null,null,null,null,null,null,null,null,null,null,null,null,null,null,null,null,null,null,null,null,null,null,null,null,null,null,null,null,null,null,null,null,null,null,null,null,null,null,null,null,null,null,null,null,null,null,null,null,null,null,null,null,null,null,null,null,null,null,null,null,null,null,null,null,null,null,null,null,null,null,null,null,null,null,null,null,null,null,null,null,"仮設タンク｜ポンプ・ノッチタンク｜ヶ月｜150000"]
[null,null,null,null,null,null,null,null,null,null,null,null,null,null,null,null,null,null,null,null,null,null,null,null,null,null,null,null,null,null,null,null,null,null,null,null,null,null,null,null,null,null,null,null,null,null,null,null,null,null,null,null,null,null,null,null,null,null,null,null,null,null,null,null,null,null,null,null,null,null,null,null,null,null,null,null,null,null,null,null,null,null,null,null,null,null,null,null,null,null,null,null,null,null,null,null,null,null,null,null,null,null,null,null,null,null,null,null,null,null,null,null,null,null,null,null,null,null,null,null,null,null,null,null,null,null,null,null,null,null,null,null,null,null,null,null,null,null,null,null,null,null,null,null,null,null,null,null,null,null,null,null,null,null,null,null,null,null,null,null,null,null,null,null,null,null,null,null,null,null,null,null,null,null,null,null,null,null,null,null,null,null,null,null,null,null,null,null,null,null,null,null,null,null,null,null,null,null,null,null,null,null,null,null,null,null,null,null,null,null,null,null,null,null,null,null,null,null,null,null,null,null,null,null,null,null,null,null,null,null,null,null,null,null,null,null,null,null,null,null,null,null,null,null,null,null,null,null,null,null,null,null,null,null,null,null,null,null,null,null,null,null,null,null,null,null,null,null,null,null,null,null,null,null,null,null,null,null,null,null,null,null,null,null,null,null,null,null,null,null,null,null,null,null,null,null,null,null,null,null,null,null,null,null,null,null,null,null,null,null,null,null,null,null,null,null,null,null,null,null,null,null,null,null,null,null,null,null,null,null,null,null,null,null,null,null,null,null,null,null,null,null,null,null,null,null,null,null,null,null,null,null,null,null,null,null,null,null,null,null,null,null,null,null,null,null,null,null,null,null,null,null,null,null,null,null,null,null,null,null,null,null,null,null,null,null,null,null,null,null,null,null,null,null,null,null,null,null,null,null,null,null,null,null,null,null,null,null,null,null,null,null,null,null,null,null,null,null,null,null,null,null,null,null,null,null,null,null,null,null,null,null,null,null,null,null,null,null,null,null,null,null,null,null,null,null,null,null,null,null,null,null,null,null,null,null,null,null,null,null,null,null,null,null,null,null,null,null,null,null,null,null,null,null,null,null,null,null,null,null,null,null,null,null,null,null,null,null,null,null,null,null,null,null,null,null,null,null,null,null,null,null,null,null,null,null,null,null,null,null,null,null,null,null,null,null,null,null,null,null,null,null,null,null,null,null,null,null,null,null,null,null,null,null,null,null,null,null,null,null,null,null,null,null,null,null,null,null,null,null,null,null,null,null,null,null,null,null,null,null,null,null,null,null,null,null,null,null,null,null,null,null,null,null,null,null,null,null,null,null,null,null,null,null,null,null,null,null,null,null,null,null,null,null,null,null,null,null,null,null,null,null,null,null,null,null,null,null,null,"仮設ハウス｜｜ヶ月｜100000"]
[null,null,null,null,null,null,null,null,null,null,null,null,null,null,null,null,null,null,null,null,null,null,null,null,null,null,null,null,null,null,null,null,null,null,null,null,null,null,null,null,null,null,null,null,null,null,null,null,null,null,null,null,null,null,null,null,null,null,null,null,null,null,null,null,null,null,null,null,null,null,null,null,null,null,null,null,null,null,null,null,null,null,null,null,null,null,null,null,null,null,null,null,null,null,null,null,null,null,null,null,null,null,null,null,null,null,null,null,null,null,null,null,null,null,null,null,null,null,null,null,null,null,null,null,null,null,null,null,null,null,null,null,null,null,null,null,null,null,null,null,null,null,null,null,null,null,null,null,null,null,null,null,null,null,null,null,null,null,null,null,null,null,null,null,null,null,null,null,null,null,null,null,null,null,null,null,null,null,null,null,null,null,null,null,null,null,null,null,null,null,null,null,null,null,null,null,null,null,null,null,null,null,null,null,null,null,null,null,null,null,null,null,null,null,null,null,null,null,null,null,null,null,null,null,null,null,null,null,null,null,null,null,null,null,null,null,null,null,null,null,null,null,null,null,null,null,null,null,null,null,null,null,null,null,null,null,null,null,null,null,null,null,null,null,null,null,null,null,null,null,null,null,null,null,null,null,null,null,null,null,null,null,null,null,null,null,null,null,null,null,null,null,null,null,null,null,null,null,null,null,null,null,null,null,null,null,null,null,null,null,null,null,null,null,null,null,null,null,null,null,null,null,null,null,null,null,null,null,null,null,null,null,null,null,null,null,null,null,null,null,null,null,null,null,null,null,null,null,null,null,null,null,null,null,null,null,null,null,null,null,null,null,null,null,null,null,null,null,null,null,null,null,null,null,null,null,null,null,null,null,null,null,null,null,null,null,null,null,null,null,null,null,null,null,null,null,null,null,null,null,null,null,null,null,null,null,null,null,null,null,null,null,null,null,null,null,null,null,null,null,null,null,null,null,null,null,null,null,null,null,null,null,null,null,null,null,null,null,null,null,null,null,null,null,null,null,null,null,null,null,null,null,null,null,null,null,null,null,null,null,null,null,null,null,null,null,null,null,null,null,null,null,null,null,null,null,null,null,null,null,null,null,null,null,null,null,null,null,null,null,null,null,null,null,null,null,null,null,null,null,null,null,null,null,null,null,null,null,null,null,null,null,null,null,null,null,null,null,null,null,null,null,null,null,null,null,null,null,null,null,null,null,null,null,null,null,null,null,null,null,null,null,null,null,null,null,null,null,null,null,null,null,null,null,null,null,null,null,null,null,null,null,null,null,null,null,null,null,null,null,null,null,null,null,null,null,null,null,null,null,null,null,null,null,null,null,null,null,null,null,null,null,null,null,null,null,null,null,null,null,null,null,null,null,null,null,null,null,null,"仮設水道・電気｜｜ヶ月｜100000"]
[null,null,null,null,null,null,null,null,null,null,null,null,null,null,null,null,null,null,null,null,null,null,null,null,null,null,null,null,null,null,null,null,null,null,null,null,null,null,null,null,null,null,null,null,null,null,null,null,null,null,null,null,null,null,null,null,null,null,null,null,null,null,null,null,null,null,null,null,null,null,null,null,null,null,null,null,null,null,null,null,null,null,null,null,null,null,null,null,null,null,null,null,null,null,null,null,null,null,null,null,null,null,null,null,null,null,null,null,null,null,null,null,null,null,null,null,null,null,null,null,null,null,null,null,null,null,null,null,null,null,null,null,null,null,null,null,null,null,null,null,null,null,null,null,null,null,null,null,null,null,null,null,null,null,null,null,null,null,null,null,null,null,null,null,null,null,null,null,null,null,null,null,null,null,null,null,null,null,null,null,null,null,null,null,null,null,null,null,null,null,null,null,null,null,null,null,null,null,null,null,null,null,null,null,null,null,null,null,null,null,null,null,null,null,null,null,null,null,null,null,null,null,null,null,null,null,null,null,null,null,null,null,null,null,null,null,null,null,null,null,null,null,null,null,null,null,null,null,null,null,null,null,null,null,null,null,null,null,null,null,null,null,null,null,null,null,null,null,null,null,null,null,null,null,null,null,null,null,null,null,null,null,null,null,null,null,null,null,null,null,null,null,null,null,null,null,null,null,null,null,null,null,null,null,null,null,null,null,null,null,null,null,null,null,null,null,null,null,null,null,null,null,null,null,null,null,null,null,null,null,null,null,null,null,null,null,null,null,null,null,null,null,null,null,null,null,null,null,null,null,null,null,null,null,null,null,null,null,null,null,null,null,null,null,null,null,null,null,null,null,null,null,null,null,null,null,null,null,null,null,null,null,null,null,null,null,null,null,null,null,null,null,null,null,null,null,null,null,null,null,null,null,null,null,null,null,null,null,null,null,null,null,null,null,null,null,null,null,null,null,null,null,null,null,null,null,null,null,null,null,null,null,null,null,null,null,null,null,null,null,null,null,null,null,null,null,null,null,null,null,null,null,null,null,null,null,null,null,null,null,null,null,null,null,null,null,null,null,null,null,null,null,null,null,null,null,null,null,null,null,null,null,null,null,null,null,null,null,null,null,null,null,null,null,null,null,null,null,null,null,null,null,null,null,null,null,null,null,null,null,null,null,null,null,null,null,null,null,null,null,null,null,null,null,null,null,null,null,null,null,null,null,null,null,null,null,null,null,null,null,null,null,null,null,null,null,null,null,null,null,null,null,null,null,null,null,null,null,null,null,null,null,null,null,null,null,null,null,null,null,null,null,null,null,null,null,null,null,null,null,null,null,null,null,null,null,null,null,null,null,null,null,null,null,null,null,null,null,null,null,null,null,null,null,null,null,null,null,null,"仮設トイレ搬入｜｜回｜35000"]
[null,null,null,null,null,null,null,null,null,null,null,null,null,null,null,null,null,null,null,null,null,null,null,null,null,null,null,null,null,null,null,null,null,null,null,null,null,null,null,null,null,null,null,null,null,null,null,null,null,null,null,null,null,null,null,null,null,null,null,null,null,null,null,null,null,null,null,null,null,null,null,null,null,null,null,null,null,null,null,null,null,null,null,null,null,null,null,null,null,null,null,null,null,null,null,null,null,null,null,null,null,null,null,null,null,null,null,null,null,null,null,null,null,null,null,null,null,null,null,null,null,null,null,null,null,null,null,null,null,null,null,null,null,null,null,null,null,null,null,null,null,null,null,null,null,null,null,null,null,null,null,null,null,null,null,null,null,null,null,null,null,null,null,null,null,null,null,null,null,null,null,null,null,null,null,null,null,null,null,null,null,null,null,null,null,null,null,null,null,null,null,null,null,null,null,null,null,null,null,null,null,null,null,null,null,null,null,null,null,null,null,null,null,null,null,null,null,null,null,null,null,null,null,null,null,null,null,null,null,null,null,null,null,null,null,null,null,null,null,null,null,null,null,null,null,null,null,null,null,null,null,null,null,null,null,null,null,null,null,null,null,null,null,null,null,null,null,null,null,null,null,null,null,null,null,null,null,null,null,null,null,null,null,null,null,null,null,null,null,null,null,null,null,null,null,null,null,null,null,null,null,null,null,null,null,null,null,null,null,null,null,null,null,null,null,null,null,null,null,null,null,null,null,null,null,null,null,null,null,null,null,null,null,null,null,null,null,null,null,null,null,null,null,null,null,null,null,null,null,null,null,null,null,null,null,null,null,null,null,null,null,null,null,null,null,null,null,null,null,null,null,null,null,null,null,null,null,null,null,null,null,null,null,null,null,null,null,null,null,null,null,null,null,null,null,null,null,null,null,null,null,null,null,null,null,null,null,null,null,null,null,null,null,null,null,null,null,null,null,null,null,null,null,null,null,null,null,null,null,null,null,null,null,null,null,null,null,null,null,null,null,null,null,null,null,null,null,null,null,null,null,null,null,null,null,null,null,null,null,null,null,null,null,null,null,null,null,null,null,null,null,null,null,null,null,null,null,null,null,null,null,null,null,null,null,null,null,null,null,null,null,null,null,null,null,null,null,null,null,null,null,null,null,null,null,null,null,null,null,null,null,null,null,null,null,null,null,null,null,null,null,null,null,null,null,null,null,null,null,null,null,null,null,null,null,null,null,null,null,null,null,null,null,null,null,null,null,null,null,null,null,null,null,null,null,null,null,null,null,null,null,null,null,null,null,null,null,null,null,null,null,null,null,null,null,null,null,null,null,null,null,null,null,null,null,null,null,null,null,null,null,null,null,null,null,null,null,null,null,null,null,null,null,null,null,null,null,null,null,"仮設トイレリース｜｜月｜6000"]
[null,null,null,null,null,null,null,null,null,null,null,null,null,null,null,null,null,null,null,null,null,null,null,null,null,null,null,null,null,null,null,null,null,null,null,null,null,null,null,null,null,null,null,null,null,null,null,null,null,null,null,null,null,null,null,null,null,null,null,null,null,null,null,null,null,null,null,null,null,null,null,null,null,null,null,null,null,null,null,null,null,null,null,null,null,null,null,null,null,null,null,null,null,null,null,null,null,null,null,null,null,null,null,null,null,null,null,null,null,null,null,null,null,null,null,null,null,null,null,null,null,null,null,null,null,null,null,null,null,null,null,null,null,null,null,null,null,null,null,null,null,null,null,null,null,null,null,null,null,null,null,null,null,null,null,null,null,null,null,null,null,null,null,null,null,null,null,null,null,null,null,null,null,null,null,null,null,null,null,null,null,null,null,null,null,null,null,null,null,null,null,null,null,null,null,null,null,null,null,null,null,null,null,null,null,null,null,null,null,null,null,null,null,null,null,null,null,null,null,null,null,null,null,null,null,null,null,null,null,null,null,null,null,null,null,null,null,null,null,null,null,null,null,null,null,null,null,null,null,null,null,null,null,null,null,null,null,null,null,null,null,null,null,null,null,null,null,null,null,null,null,null,null,null,null,null,null,null,null,null,null,null,null,null,null,null,null,null,null,null,null,null,null,null,null,null,null,null,null,null,null,null,null,null,null,null,null,null,null,null,null,null,null,null,null,null,null,null,null,null,null,null,null,null,null,null,null,null,null,null,null,null,null,null,null,null,null,null,null,null,null,null,null,null,null,null,null,null,null,null,null,null,null,null,null,null,null,null,null,null,null,null,null,null,null,null,null,null,null,null,null,null,null,null,null,null,null,null,null,null,null,null,null,null,null,null,null,null,null,null,null,null,null,null,null,null,null,null,null,null,null,null,null,null,null,null,null,null,null,null,null,null,null,null,null,null,null,null,null,null,null,null,null,null,null,null,null,null,null,null,null,null,null,null,null,null,null,null,null,null,null,null,null,null,null,null,null,null,null,null,null,null,null,null,null,null,null,null,null,null,null,null,null,null,null,null,null,null,null,null,null,null,null,null,null,null,null,null,null,null,null,null,null,null,null,null,null,null,null,null,null,null,null,null,null,null,null,null,null,null,null,null,null,null,null,null,null,null,null,null,null,null,null,null,null,null,null,null,null,null,null,null,null,null,null,null,null,null,null,null,null,null,null,null,null,null,null,null,null,null,null,null,null,null,null,null,null,null,null,null,null,null,null,null,null,null,null,null,null,null,null,null,null,null,null,null,null,null,null,null,null,null,null,null,null,null,null,null,null,null,null,null,null,null,null,null,null,null,null,null,null,null,null,null,null,null,null,null,null,null,null,null,null,null,null,null,null,null,null,"駐車料金｜｜台日｜1500"]

{"sheet":"選択マップ","index":17,"n_rows":34,"n_cols":14,"rows_kept":34,"cut":false,"hidden":true,"merged":[]}
["大分類名","列","件数",null,"大分類名","中分類名","列","件数",null,"大分類名","中分類名","工種名","列","件数"]
["撤去工事","ZX",2,null,"撤去工事","舗装版撤去","BXX",1,null,"撤去工事","舗装版撤去","既設舗装版撤去","EWV",1]
["土工事","ZY",4,null,"撤去工事","構造物取壊し","BXY",1,null,"撤去工事","構造物取壊し","構造物取壊し","EWW",1]
["擁壁工事","ZZ",4,null,"土工事","切土工","BXZ",1,null,"土工事","切土工","残土処分","EWX",1]
["排水工事","AAA",3,null,"土工事","床堀工","BYA",1,null,"土工事","床堀工","根切り","EWY",1]
["付帯工事","AAB",2,null,"土工事","盛土工","BYB",1,null,"土工事","盛土工","埋戻し","EWZ",1]
["舗装工事","AAC",4,null,"土工事","埋戻工","BYC",1,null,"土工事","埋戻工","路体（流用土）","EXA",1]
["仮設工事","AAD",3,null,"擁壁工事","RC擁壁","BYD",1,null,"擁壁工事","RC擁壁","コンクリート立上り","EXB",1]
["景観金物","AAE",5,null,"擁壁工事","型枠CB","BYE",1,null,"擁壁工事","型枠CB","型枠CB擁壁","EXC",1]
["植栽工事","AAF",1,null,"擁壁工事","石積擁壁","BYF",1,null,"擁壁工事","石積擁壁","石積擁壁工","EXD",1]
["法面工事","AAG",2,null,"擁壁工事","プレキャスト擁壁","BYG",1,null,"擁壁工事","プレキャスト擁壁","プレキャスト擁壁","EXE",1]
["地盤改良工事","AAH",3,null,"排水工事","Ｌ型側溝工","BYH",1,null,"排水工事","Ｌ型側溝工","Ｌ型側溝工","EXF",1]
[null,null,null,null,"排水工事","集水桝","BYI",1,null,"排水工事","集水桝","雨水桝","EXG",1]
[null,null,null,null,"排水工事","組立人孔","BYJ",1,null,"排水工事","組立人孔","汚水人孔設置工","EXH",1]
[null,null,null,null,"付帯工事","縁石工","BYK",1,null,"付帯工事","縁石工","地先境界ブロック","EXI",1]
[null,null,null,null,"付帯工事","囲障工事","BYL",1,null,"付帯工事","囲障工事","化粧CB２段積","EXJ",1]
[null,null,null,null,"舗装工事","舗装打換工","BYM",1,null,"舗装工事","舗装打換工","道路舗装打換工","EXK",1]
[null,null,null,null,"舗装工事","車道舗装","BYN",1,null,"舗装工事","車道舗装","下層路盤(車道・路肩部)","EXL",1]
[null,null,null,null,"舗装工事","歩道及び小規模舗装","BYO",1,null,"舗装工事","歩道及び小規模舗装","下層路盤(歩道部)","EXM",1]
[null,null,null,null,"舗装工事","コンクリート舗装","BYP",1,null,"舗装工事","コンクリート舗装","歩道コンクリート舗装工","EXN",1]
[null,null,null,null,"仮設工事","仮囲工","BYQ",1,null,"仮設工事","仮囲工","仮囲万能鋼板設置工","EXO",1]
[null,null,null,null,"仮設工事","山留め","BYR",1,null,"仮設工事","山留め","H鋼横矢板土留","EXP",1]
[null,null,null,null,"仮設工事","その他仮設","BYS",1,null,"仮設工事","その他仮設","木柵工","EXQ",1]
[null,null,null,null,"景観金物","メッシュフェンス","BYT",1,null,"景観金物","メッシュフェンス","メッシュフェンス","EXR",1]
[null,null,null,null,"景観金物","ネットフェンス","BYU",1,null,"景観金物","ネットフェンス","ネットフェンス","EXS",1]
[null,null,null,null,"景観金物","独立基礎築造","BYV",1,null,"景観金物","独立基礎築造","フェンス独立基礎設置","EXT",1]
[null,null,null,null,"景観金物","バリカー設置","BYW",1,null,"景観金物","バリカー設置","車止めバリカー設置工","EXU",1]
[null,null,null,null,"景観金物","横断防止柵","BYX",1,null,"景観金物","横断防止柵","ガードパイプ柵","EXV",1]
[null,null,null,null,"植栽工事","客土工","BYY",1,null,"植栽工事","客土工","客土","EXW",1]
[null,null,null,null,"法面工事","法面保護工","BYZ",1,null,"法面工事","法面保護工","法面整形工","EXX",1]
[null,null,null,null,"法面工事","法枠工","BZA",1,null,"法面工事","法枠工","現場打法枠工","EXY",1]
[null,null,null,null,"地盤改良工事","浅層・表層改良工","BZB",1,null,"地盤改良工事","浅層・表層改良工","表層地盤改良工","EXZ",1]
[null,null,null,null,"地盤改良工事","深層混合処理工","BZC",1,null,"地盤改良工事","深層混合処理工","深層混合処理工","EYA",1]
[null,null,null,null,"地盤改良工事","サンドコンパクションパイル工","BZD",1,null,"地盤改良工事","サンドコンパクションパイル工","サンドコンパクションパイル工","EYB",1]

{"sheet":"単価表_分類マップ","index":18,"n_rows":33,"n_cols":700,"rows_kept":33,"cut":false,"hidden":true,"merged":[]}
["No","表示ラベル","開始行","終了行","ファミリー上限コード"]
[1,"合材・砕石単価登録｜10100番台(密粒13･20mm)",5,21,10199]
[2,"合材・砕石単価登録｜10200番台(再生砂 大型)",22,28,10299,null,null,null,null,null,null,null,null,null,null,null,null,null,null,null,null,null,null,null,null,null,null,null,null,null,null,null,null,null,null,null,null,null,null,null,null,null,null,null,null,null,null,null,null,null,null,null,null,null,null,null,null,null,null,null,null,null,null,null,null,null,null,null,null,null,null,null,null,null,null,null,null,null,null,null,null,null,null,null,null,null,null,null,null,null,null,null,null,null,null,null,null,null,null,null,null,null,null,null,null,null,null,null,null,null,null,null,null,null,null,null,null,null,null,null,null,null,null,null,null,null,null,null,null,null,null,null,null,null,null,null,null,null,null,null,null,null,null,null,null,null,null,null,null,null,null,null,null,null,null,null,null,null,null,null,null,null,null,null,null,null,null,null,null,null,null,null,null,null,null,null,null,null,null,null,null,null,null,null,null,null,null,null,null,null,null,null,null,null,null,null,null,null,null,null,null,null,null,null,null,null,null,null,null,null,null,null,null,null,null,null,null,null,null,null,null,null,null,null,null,null,null,null,null,null,null,null,null,null,null,null,null,null,null,null,null,null,null,null,null,null,null,null,null,null,null,null,null,null,null,null,null,null,null,null,null,null,null,null,null,null,null,null,null,null,null,null,null,null,null,null,null,null,null,null,null,null,null,null,null,null,null,null,null,null,null,null,null,null,null,null,null,null,null,null,null,null,null,null,null,null,null,null,null,null,null,null,null,null,null,null,null,null,null,null,null,null,null,null,null,null,null,null,null,null,null,null,null,null,null,null,null,null,null,null,null,null,null,null,null,null,null,null,null,null,null,null,null,null,null,null,null,null,null,null,null,null,null,null,null,null,null,null,null,null,null,null,null,null,null,null,null,null,null,null,null,null,null,null,null,null,null,null,null,null,null,null,null,null,null,null,null,null,null,null,null,null,null,null,null,null,null,null,null,null,null,null,null,null,null,null,null,null,null,null,null,null,null,null,null,null,null,null,null,null,null,null,null,null,null,null,null,null,null,null,null,null,null,null,null,null,null,null,null,null,null,null,null,null,null,null,null,null,null,null,null,null,null,null,null,null,null,null,null,null,null,null,null,null,null,null,null,null,null,null,null,null,null,null,null,null,null,null,null,null,null,null,null,null,null,null,null,null,null,null,null,null,null,null,null,null,null,null,null,null,null,null,null,null,null,null,null,null,null,null,null,null,null,null,null,null,null,null,null,null,null,null,null,null,null,null,null,null,null,null,null,null,null,null,null,null,null,null,null,null,null,null,null,null,null,null,null,null,null,null,null,null,null,null,null,null,null,null,null,null,null,null,null,null,null,null,null,null,null,null,null,null,null,null,null,null,null,null,null,null,null,null,null,null,null,null,null,null,null,null,null,null,null,null,null,null,null,null,null,null,null,null,null,null,null,null,null,null,null,null,null,null,null,null,null,null,null,null,null,null,null,null,null,null,null,null,null,null,null,null,null,null,null,null,null,null,null,null,null,null,null,null,null,null,null,null,null,null,null,null,null,null,null,null,null,null,null,null,null,null,null,null,null,null,null,null,null,null,null,null,null,null,null,null,null,null,null,null,null,null,null,null,null,null,null,null,null,null,null,33]
[3,"合材・砕石単価登録｜10300番台(中目砂　大型)",29,49,10399]
[4,"合材・砕石単価登録｜10400番台(乳剤PK-3)",50,53,10499]
[5,"その他材料単価登録｜10500番台(生ｺﾝｸﾘｰﾄ　18-8　大型)",56,80,10599]
[6,"その他材料単価登録｜12100番台(鉄筋工　小規模(ｔ))",81,87,12199]
[7,"その他材料単価登録｜12500番台(VU100　片口)",88,112,12599]
[8,"その他材料単価登録｜12600番台(未使用)",113,120,12699]
[9,"その他材料単価登録｜13000番台(地先Aﾌﾞﾛｯｸ)",121,132,13099]
[10,"その他材料単価登録｜13100番台(植樹・並木ブロック)",133,137,13199]
[11,"その他材料単価登録｜13200番台(Ｕ字側溝　150)",138,176,13299]
[12,"その他材料単価登録｜13400番台(未使用)",177,198,13499]
[13,"その他材料単価登録｜14000番台(未使用)",199,204,14099]
[14,"その他材料単価登録｜15000番台(未使用)",205,215,15099]
[15,"その他材料単価登録｜15100番台(未使用)",216,219,15199]
[16,"その他材料単価登録｜15200番台(未使用)",220,221,15299]
[17,"その他材料単価登録｜16000番台(未使用)",222,224,16099]
[18,"作業員単価登録｜20100番台(作業員　昼間)",227,228,20199]
[19,"作業員単価登録｜20200番台(作業員　昼間)",229,230,20299]
[20,"作業員単価登録｜20300番台(ｶﾞｰﾄﾞﾏﾝ)",231,234,20399]
[21,"作業員単価登録｜20500番台(土木一般世話役)",235,241,20599]
[22,"外注・処分費単価登録｜30100番台(ＡＳ舗装切断(半日))",244,259,30199]
[23,"外注・処分費単価登録｜30200番台(残土処分　大型)",260,282,30299]
[24,"機械・その他単価登録｜40000番台(油脂燃料)",285,343,40099]
[25,"機械・その他単価登録｜41000番台(ｽﾌﾟﾚｰﾔｰ)",344,347,41099]
[26,"機械・その他単価登録｜42000番台(２ｔﾀﾞﾝﾌﾟ（ﾘｰｽ))",348,354,42099]
[27,"機械・その他単価登録｜50000番台(未使用)",355,357,50099]
[28,"機械・その他単価登録｜60000番台(未使用)",358,361,60099]
[29,"機械・その他単価登録｜70000番台(未使用)",362,362,70099]
[30,"機械・その他単価登録｜80000番台(所要日数)",363,364,80099]
[31,"機械・その他単価登録｜81000番台(未使用)",365,369,81099]
[32,"工種ｅｔｃ．単価登録｜90000番台(掘削・鋤取発生土（ｍ3）)",372,397,90099]

{"sheet":"工種の追加","index":19,"n_rows":0,"n_cols":0,"rows_kept":0,"cut":false,"hidden":true,"merged":[]}

{"sheet":"工種の新規登録","index":20,"n_rows":0,"n_cols":0,"rows_kept":0,"cut":false,"hidden":true,"merged":[]}

{"sheet":"単価の追加","index":21,"n_rows":0,"n_cols":0,"rows_kept":0,"cut":false,"hidden":true,"merged":[]}